Workbook

Sheet Design the AEF circuit
A1: TPSF12C1/-Q1 & TPSF12C3/-Q1 Common-Mode Active EMI Filter (AEF) Design Tool
B3: About | F3: = Input Box | I3: TERMS OF USE
A6: Step 1: Select system type - single or three phase
A7: System type?
A10: Step 2: Enter CM choke and Y-capacitor data
A11: CM choke model? | E11: ® | F11: =IF(CMdata=1,"Enter CM choke impedance parameters here:","Enter CM choke impedance (magnitude & phase) data vs. frequency in the ""CM choke"" tab") -> Enter CM choke impedance (magnitude & phase) data vs. frequency in the "CM choke" tab | J11: =IF(F9="Simple Model: L || R || C","","") ->  | K11: =IF(F9="Simple Model: L || R || C","","") -> 
F12: CM choke model #1 → | G12: Inductance, LCM [mH] | H12: Resistance, RPAR [kW] | I12: Capacitance, CPAR [pF]
A13: Grid-side Y-capacitors (each) | F13: Grid-side choke, LCM1 | G13: 3.4 | H13: 12 | I13: 10
A14: Capacitance | C14: 0.1 | D14: nF | F14: Regulator-side choke, LCM2 | G14: 3.4 | H14: 12 | I14: 10
A15: ESR | C15: 0.1 | D15: Ω
A16: ESL | C16: 0.1 | D16: nH
A18: Regulator-side Y-capacitors (each)
A19: Capacitance | C19: 10 | D19: nF
A20: ESR | C20: 5 | D20: Ω
A21: ESL | C21: 15 | D21: nH
A23: Step 3: Enter source impedances
A24: Grid source impedance (each power line)
A25: LGRID | C25: 10 | D25: µH
A26: RGRID | C26: 10 | D26: mΩ
A27: LISN present? | C27: 10
A29: Regulator CM noise source impedance (parasitic)
A30: CSRC | C30: 100 | D30: pF
A31: RSRC | C31: 10 | D31: mΩ
A32: LSRC | C32: 10 | D32: nH
A34: Step 4: Enter SENSE and INJECT capacitor parameters
A35: Sense capacitors - CSENx (each)
A36: Capacitance | C36: 1 | D36: nF
A37: ESR | C37: 10 | D37: Ω
A38: ESL | C38: 15 | D38: nH
A40: Inject capacitor - CINJ
A41: Capacitance | C41: 4.7 | D41: nF
A42: ESR | C42: 5 | D42: Ω
A43: ESL | C43: 15 | D43: nH
A45: Step 5: Set the COMP1-to-COMP2 component values
A46: RG | C46: 1.5 | D46: kΩ
A47: CG1 | C47: 10 | D47: nF
A48: CG2 | C48: 10 | D48: pF
A50: Step 6: Review damping network component values
B51: Calculated | C51: Selected
A52: RD1 | B52: ='Stability calculations'!B52/1000 -> 1 | C52: =B52 -> 1 | D52: kΩ
A53: CD2 | B53: =ROUND('Stability calculations'!B55*1000000000,1) -> 22.9 | C53: =B53 -> 22.9 | D53: nF
A54: CD1 | B54: =ROUND('Stability calculations'!B53*1000000000,1) -> 2.9 | C54: =B54 -> 2.9 | D54: nF
A55: RD2 | B55: ='Stability calculations'!B56 -> 125 | C55: =B55 -> 125 | D55: Ω
A56: RD1A | B56: ='Stability calculations'!B54 -> 10 | C56: 50 | D56: Ω
A57: RD3 | B57: ='Stability calculations'!B57 -> 700 | C57: =B57 -> 700 | D57: Ω
A58: CD3 | B58: =ROUND('Stability calculations'!B58*1000000000,2) -> 4.7 | C58: =B58 -> 4.7 | D58: nF
A59: fLFstability | C59: ='Stability calculations'!D35/1000 -> 34.8089 | D59: kHz
A60: fRD1-CD2 | C60: ='Stability calculations'!$D$46/1000 -> 6.949997515 | D60: kHz
A61: fRD1-CD1 | C61: ='Stability calculations'!$D$42/1000 -> 54.88101486 | D61: kHz
A62: fRD2-CD2 | C62: ='Stability calculations'!$D$43/1000 -> 55.59998012 | D62: kHz
A63: fRD3-CD3 | C63: ='Stability calculations'!$D$44/1000 -> 48.37536264 | D63: kHz
A64: fRD1A-CD1 | C64: ='Stability calculations'!$D$45/1000000 -> 1.097620297 | D64: MHz

Sheet Schematic management (hidden)
A1: =SETUP -> 1
A2: =CHOOSE(SETUP,"TPSF12C1","TPSF12C3_4wire","TPSF12C3_3wire") -> TPSF12C1

Sheet CM choke
A2: Enter/paste the CM choke impedance (magnitude & phase) data here:
C4: Grid-side CM choke | E4: Regulator-side CM choke
C5: LCM1 | E5: LCM2
A6: CM Choke Model #2 → | B6: Frequency [Hz] | C6: ZCM1 Magnitude [Ω] | D6: ZCM1 Phase [°] | E6: ZCM2 Magnitude [Ω] | F6: ZCM2 Phase [°]
A7: =IF(CMdata=1,"","Min. frequency") -> Min. frequency | B7: 1000 | C7: 1.872866283 | D7: 89.04283127 | E7: 1.872866283 | F7: 89.04283127
A8: =IF(CMdata=1,"",_xlfn.CONCAT(MIN(B7:B2106)/1000," kHz")) -> 1 kHz | B8: 1026.845608 | C8: 1.9289448 | D8: 89.0529178 | E8: 1.9289448 | F8: 89.0529178
A9: =IF(CMdata=1,"","Max. frequency") -> Max. frequency | B9: 1054.411903 | C9: 1.986641472 | D9: 89.06976187 | E9: 1.986641472 | F9: 89.06976187
A10: =IF(CMdata=1,"",_xlfn.CONCAT(MAX(B7:B2106)/1000000," MHz")) -> 40 MHz | B10: 1082.718232 | C10: 2.045552943 | D10: 89.08204363 | E10: 2.045552943 | F10: 89.08204363
B11: 1111.784461 | C11: 2.106618755 | D11: 89.09659755 | E11: 2.106618755 | F11: 89.09659755
B12: 1141.630991 | C12: 2.169130775 | D12: 89.10888324 | E12: 2.169130775 | F12: 89.10888324
B13: 1172.27877 | C13: 2.233732228 | D13: 89.11851789 | E13: 2.233732228 | F13: 89.11851789
B14: 1203.749306 | C14: 2.300075186 | D14: 89.13234717 | E14: 2.300075186 | F14: 89.13234717
B15: 1236.064689 | C15: 2.368346063 | D15: 89.1469126 | E15: 2.368346063 | F15: 89.1469126
B16: 1269.247597 | C16: 2.438714286 | D16: 89.15535446 | E16: 2.438714286 | F16: 89.15535446
B17: 1303.321321 | C17: 2.511120359 | D17: 89.16725118 | E17: 2.511120359 | F17: 89.16725118
B18: 1338.309774 | C18: 2.585731448 | D18: 89.17959487 | E18: 2.585731448 | F18: 89.17959487
B19: 1374.237514 | C19: 2.662449094 | D19: 89.18742298 | E19: 2.662449094 | F19: 89.18742298
B20: 1411.129756 | C20: 2.741450391 | D20: 89.20199606 | E20: 2.741450391 | F20: 89.20199606
B21: 1449.012392 | C21: 2.823015771 | D21: 89.20870765 | E21: 2.823015771 | F21: 89.20870765
B22: 1487.912011 | C22: 2.906647422 | D22: 89.21996327 | E22: 2.906647422 | F22: 89.21996327
B23: 1527.855914 | C23: 2.993177345 | D23: 89.22899303 | E23: 2.993177345 | F23: 89.22899303
B24: 1568.872135 | C24: 3.081933166 | D24: 89.23917585 | E24: 3.081933166 | F24: 89.23917585
B25: 1610.989462 | C25: 3.17318869 | D25: 89.24556649 | E25: 3.17318869 | F25: 89.24556649
B26: 1654.237454 | C26: 3.267407978 | D26: 89.25594979 | E26: 3.267407978 | F26: 89.25594979
B27: 1698.646465 | C27: 3.3643625 | D27: 89.26204176 | E27: 3.3643625 | F27: 89.26204176
B28: 1744.247662 | C28: 3.464048522 | D28: 89.26808467 | E28: 3.464048522 | F28: 89.26808467
B29: 1791.073051 | C29: 3.566748474 | D29: 89.2791632 | E29: 3.566748474 | F29: 89.2791632
B30: 1839.155497 | C30: 3.672558189 | D30: 89.28664637 | E30: 3.672558189 | F30: 89.28664637
B31: 1888.528745 | C31: 3.781453211 | D31: 89.29184519 | E31: 3.781453211 | F31: 89.29184519
B32: 1939.227447 | C32: 3.893738302 | D32: 89.29845368 | E32: 3.893738302 | F32: 89.29845368
B33: 1991.287188 | C33: 4.009180296 | D33: 89.30390376 | E33: 4.009180296 | F33: 89.30390376
B34: 2044.744503 | C34: 4.127894613 | D34: 89.31155247 | E34: 4.127894613 | F34: 89.31155247
B35: 2099.636913 | C35: 4.25023561 | D35: 89.31719562 | E35: 4.25023561 | F35: 89.31719562
B36: 2156.002943 | C36: 4.37618091 | D36: 89.32295206 | E36: 4.37618091 | F36: 89.32295206
B37: 2213.882153 | C37: 4.505871867 | D37: 89.3284871 | E37: 4.505871867 | F37: 89.3284871
B38: 2273.315166 | C38: 4.639600594 | D38: 89.33187732 | E38: 4.639600594 | F38: 89.33187732
B39: 2334.343695 | C39: 4.776953913 | D39: 89.33751121 | E39: 4.776953913 | F39: 89.33751121
B40: 2397.010571 | C40: 4.918647278 | D40: 89.34189725 | E40: 4.918647278 | F40: 89.34189725
B41: 2461.359778 | C41: 5.064323897 | D41: 89.34687637 | E41: 5.064323897 | F41: 89.34687637
B42: 2527.436478 | C42: 5.214333275 | D42: 89.3513081 | E42: 5.214333275 | F42: 89.3513081
B43: 2595.287047 | C43: 5.368601099 | D43: 89.35686135 | E43: 5.368601099 | F43: 89.35686135
B44: 2664.959106 | C44: 5.527551886 | D44: 89.3597562 | E44: 5.527551886 | F44: 89.3597562
B45: 2736.501554 | C45: 5.691457197 | D45: 89.3650202 | E45: 5.691457197 | F45: 89.3650202
B46: 2809.964603 | C46: 5.860123242 | D46: 89.36672816 | E46: 5.860123242 | F46: 89.36672816
B47: 2885.399812 | C47: 6.033611651 | D47: 89.37222137 | E47: 6.033611651 | F47: 89.37222137
B48: 2962.860125 | C48: 6.212132889 | D48: 89.37340877 | E48: 6.212132889 | F48: 89.37340877
B49: 3042.399907 | C49: 6.396309508 | D49: 89.37684876 | E49: 6.396309508 | F49: 89.37684876
B50: 3124.074983 | C50: 6.58551372 | D50: 89.37957762 | E50: 6.58551372 | F50: 89.37957762
B51: 3207.942676 | C51: 6.780409147 | D51: 89.38393239 | E51: 6.780409147 | F51: 89.38393239
B52: 3294.061848 | C52: 6.981088765 | D52: 89.38530631 | E52: 6.981088765 | F52: 89.38530631
B53: 3382.492942 | C53: 7.187591886 | D53: 89.38852475 | E53: 7.187591886 | F53: 89.38852475
B54: 3473.298022 | C54: 7.399984138 | D54: 89.39187227 | E54: 7.399984138 | F54: 89.39187227
B55: 3566.54082 | C55: 7.618995577 | D55: 89.39316928 | E55: 7.618995577 | F55: 89.39316928
B56: 3662.286777 | C56: 7.844376331 | D56: 89.39644851 | E56: 7.844376331 | F56: 89.39644851
B57: 3760.603093 | C57: 8.076377299 | D57: 89.39821754 | E57: 8.076377299 | F57: 89.39821754
B58: 3861.55877 | C58: 8.314943463 | D58: 89.39880526 | E58: 8.314943463 | F58: 89.39880526
B59: 3965.224664 | C59: 8.560842295 | D59: 89.40256709 | E59: 8.560842295 | F59: 89.40256709
B60: 4071.673532 | C60: 8.813922093 | D60: 89.40316129 | E60: 8.813922093 | F60: 89.40316129
B61: 4180.980084 | C61: 9.074520602 | D61: 89.40450898 | E61: 9.074520602 | F61: 89.40450898
B62: 4293.221037 | C62: 9.342491986 | D62: 89.40600091 | E62: 9.342491986 | F62: 89.40600091
B63: 4408.475167 | C63: 9.61838326 | D63: 89.40872605 | E63: 9.61838326 | F63: 89.40872605
B64: 4526.823364 | C64: 9.902256444 | D64: 89.40881422 | E64: 9.902256444 | F64: 89.40881422
B65: 4648.348691 | C65: 10.19474631 | D65: 89.40907602 | E65: 10.19474631 | F65: 89.40907602
B66: 4773.136439 | C66: 10.4958448 | D66: 89.41038112 | E66: 10.4958448 | F66: 89.41038112
B67: 4901.274189 | C67: 10.80545573 | D67: 89.41216865 | E67: 10.80545573 | F67: 89.41216865
B68: 5032.851876 | C68: 11.12437095 | D68: 89.41290371 | E68: 11.12437095 | F68: 89.41290371
B69: 5167.961846 | C69: 11.45257914 | D69: 89.41387869 | E69: 11.45257914 | F69: 89.41387869
B70: 5306.698924 | C70: 11.790353 | D70: 89.41477987 | E70: 11.790353 | F70: 89.41477987
B71: 5449.160485 | C71: 12.13816197 | D71: 89.41474906 | E71: 12.13816197 | F71: 89.41474906
B72: 5595.446512 | C72: 12.49588157 | D72: 89.41599136 | E72: 12.49588157 | F72: 89.41599136
B73: 5745.659677 | C73: 12.86422481 | D73: 89.4165533 | E73: 12.86422481 | F73: 89.4165533
B74: 5899.905405 | C74: 13.24332333 | D74: 89.41588633 | E74: 13.24332333 | F74: 89.41588633
B75: 6058.291954 | C75: 13.63361035 | D75: 89.41621728 | E75: 13.63361035 | F75: 89.41621728
B76: 6220.930486 | C76: 14.03487924 | D76: 89.41583608 | E76: 14.03487924 | F76: 89.41583608
B77: 6387.935149 | C77: 14.44823776 | D77: 89.41602745 | E77: 14.44823776 | F77: 89.41602745
B78: 6559.423153 | C78: 14.87348361 | D78: 89.41688087 | E78: 14.87348361 | F78: 89.41688087
B79: 6735.514857 | C79: 15.31145067 | D79: 89.41620691 | E79: 15.31145067 | F79: 89.41620691
B80: 6916.33385 | C80: 15.76174054 | D80: 89.41598243 | E80: 15.76174054 | F80: 89.41598243
B81: 7102.007039 | C81: 16.22535316 | D81: 89.41515694 | E81: 16.22535316 | F81: 89.41515694
B82: 7292.664737 | C82: 16.70254497 | D82: 89.41472546 | E82: 16.70254497 | F82: 89.41472546
B83: 7488.440757 | C83: 17.19365833 | D83: 89.41416749 | E83: 17.19365833 | F83: 89.41416749
B84: 7689.472504 | C84: 17.6991292 | D84: 89.41391414 | E84: 17.6991292 | F84: 89.41391414
B85: 7895.90107 | C85: 18.21932697 | D85: 89.41320945 | E85: 18.21932697 | F85: 89.41320945
B86: 8107.871337 | C86: 18.75459416 | D86: 89.41325415 | E86: 18.75459416 | F86: 89.41325415
B87: 8325.532074 | C87: 19.30593839 | D87: 89.41219667 | E87: 19.30593839 | F87: 89.41219667
B88: 8549.036046 | C88: 19.87300641 | D88: 89.41133929 | E88: 19.87300641 | F88: 89.41133929
B89: 8778.540118 | C89: 20.45651568 | D89: 89.41026937 | E89: 20.45651568 | F89: 89.41026937
B90: 9014.205367 | C90: 21.05743145 | D90: 89.4094757 | E90: 21.05743145 | F90: 89.4094757
B91: 9256.197192 | C91: 21.67525667 | D91: 89.40545262 | E91: 21.67525667 | F91: 89.40545262
B92: 9504.685436 | C92: 22.31216371 | D92: 89.40391767 | E92: 22.31216371 | F92: 89.40391767
B93: 9759.844497 | C93: 22.96713853 | D93: 89.40275737 | E93: 22.96713853 | F93: 89.40275737
B94: 10021.85346 | C94: 23.64134592 | D94: 89.40129225 | E94: 23.64134592 | F94: 89.40129225
B95: 10290.89621 | C95: 24.33492745 | D95: 89.40052953 | E95: 24.33492745 | F95: 89.40052953
B96: 10567.16158 | C96: 25.04930787 | D96: 89.39909745 | E96: 25.04930787 | F96: 89.39909745
B97: 10850.84346 | C97: 25.78446936 | D97: 89.39724139 | E97: 25.78446936 | F97: 89.39724139
B98: 11142.14095 | C98: 26.54129359 | D98: 89.39539689 | E98: 26.54129359 | F98: 89.39539689
B99: 11441.2585 | C99: 27.31978612 | D99: 89.39377317 | E99: 27.31978612 | F99: 89.39377317
B100: 11748.40604 | C100: 28.12147731 | D100: 89.3922195 | E100: 28.12147731 | F100: 89.3922195
B101: 12063.79915 | C101: 28.94667704 | D101: 89.39009385 | E101: 28.94667704 | F101: 89.39009385
B102: 12387.65917 | C102: 29.7957651 | D102: 89.38831537 | E102: 29.7957651 | F102: 89.38831537
B103: 12720.21342 | C103: 30.67013034 | D103: 89.38518931 | E103: 30.67013034 | F103: 89.38518931
B104: 13061.69528 | C104: 31.57014782 | D104: 89.38288982 | E104: 31.57014782 | F104: 89.38288982
B105: 13412.34444 | C105: 32.49633068 | D105: 89.38061152 | E105: 32.49633068 | F105: 89.38061152
B106: 13772.40698 | C106: 33.45007376 | D106: 89.37795567 | E106: 33.45007376 | F106: 89.37795567
B107: 14142.13562 | C107: 34.43186667 | D107: 89.37485842 | E107: 34.43186667 | F107: 89.37485842
B108: 14521.78986 | C108: 35.44245644 | D108: 89.37200922 | E108: 35.44245644 | F108: 89.37200922
B109: 14911.63614 | C109: 36.48288342 | D109: 89.36887023 | E109: 36.48288342 | F109: 89.36887023
B110: 15311.94808 | C110: 37.55390559 | D110: 89.36538579 | E110: 37.55390559 | F110: 89.36538579
B111: 15723.00664 | C111: 38.65627012 | D111: 89.36232889 | E111: 38.65627012 | F111: 89.36232889
B112: 16145.10031 | C112: 39.79127245 | D112: 89.35841071 | E112: 39.79127245 | F112: 89.35841071
B113: 16578.52535 | C113: 40.95937307 | D113: 89.35513867 | E113: 40.95937307 | F113: 89.35513867
B114: 17023.58595 | C114: 42.16239708 | D114: 89.35140732 | E114: 42.16239708 | F114: 89.35140732
B115: 17480.59446 | C115: 43.40055496 | D115: 89.34735431 | E115: 43.40055496 | F115: 89.34735431
B116: 17949.87165 | C116: 44.67653359 | D116: 89.34314469 | E116: 44.67653359 | F116: 89.34314469
B117: 18431.74688 | C117: 45.98971125 | D117: 89.33846424 | E117: 45.98971125 | F117: 89.33846424
B118: 18926.55833 | C118: 47.34111066 | D118: 89.33341706 | E118: 47.34111066 | F118: 89.33341706
B119: 19434.6533 | C119: 48.73371554 | D119: 89.329256 | E119: 48.73371554 | F119: 89.329256
B120: 19956.38839 | C120: 50.16756408 | D120: 89.32350996 | E120: 50.16756408 | F120: 89.32350996
B121: 20492.12977 | C121: 51.64362483 | D121: 89.31810801 | E121: 51.64362483 | F121: 89.31810801
B122: 21042.25346 | C122: 53.16379729 | D122: 89.31230349 | E122: 53.16379729 | F122: 89.31230349
B123: 21607.14555 | C123: 54.72927758 | D123: 89.306939 | E123: 54.72927758 | F123: 89.306939
B124: 22187.20252 | C124: 56.34020156 | D124: 89.30015484 | E124: 56.34020156 | F124: 89.30015484
B125: 22782.83146 | C125: 58.00020937 | D125: 89.29359634 | E125: 58.00020937 | F125: 89.29359634
B126: 23394.45043 | C126: 59.70914285 | D126: 89.28773877 | E126: 59.70914285 | F126: 89.28773877
B127: 24022.48868 | C127: 61.46790426 | D127: 89.28190776 | E127: 61.46790426 | F127: 89.28190776
B128: 24667.387 | C128: 63.28219399 | D128: 89.27475993 | E128: 63.28219399 | F128: 89.27475993
B129: 25329.59801 | C129: 65.14943389 | D129: 89.2670296 | E129: 65.14943389 | F129: 89.2670296
B130: 26009.58647 | C130: 67.07358821 | D130: 89.25922198 | E130: 67.07358821 | F130: 89.25922198
B131: 26707.82964 | C131: 69.05523756 | D131: 89.25086058 | E131: 69.05523756 | F131: 89.25086058
B132: 27424.81757 | C132: 71.09666637 | D132: 89.24237121 | E132: 71.09666637 | F132: 89.24237121
B133: 28161.05348 | C133: 73.20022845 | D133: 89.23382579 | E133: 73.20022845 | F133: 89.23382579
B134: 28917.05408 | C134: 75.36627042 | D134: 89.2242289 | E134: 75.36627042 | F134: 89.2242289
B135: 29693.34999 | C135: 77.59913206 | D135: 89.21432413 | E135: 77.59913206 | F135: 89.21432413
B136: 30490.48603 | C136: 79.89857892 | D136: 89.20433739 | E136: 79.89857892 | F136: 89.20433739
B137: 31309.02167 | C137: 82.26862673 | D137: 89.19308167 | E137: 82.26862673 | F137: 89.19308167
B138: 32149.5314 | C138: 84.71018095 | D138: 89.18247352 | E138: 84.71018095 | F138: 89.18247352
B139: 33012.60512 | C139: 87.22726244 | D139: 89.17031259 | E139: 87.22726244 | F139: 89.17031259
B140: 33898.84858 | C140: 89.82235179 | D140: 89.15815621 | E140: 89.82235179 | F140: 89.15815621
B141: 34808.88379 | C141: 92.49639212 | D141: 89.14544312 | E141: 92.49639212 | F141: 89.14544312
B142: 35743.34945 | C142: 95.25258425 | D142: 89.13219481 | E142: 95.25258425 | F142: 89.13219481
B143: 36702.9014 | C143: 98.09474632 | D143: 89.11817036 | E143: 98.09474632 | F143: 89.11817036
B144: 37688.21311 | C144: 101.0254186 | D144: 89.10377647 | E144: 101.0254186 | F144: 89.10377647
B145: 38699.97612 | C145: 104.0465081 | D145: 89.08828671 | E145: 104.0465081 | F145: 89.08828671
B146: 39738.90051 | C146: 107.1641161 | D146: 89.07163638 | E146: 107.1641161 | F146: 89.07163638
B147: 40805.71547 | C147: 110.3782618 | D147: 89.05354714 | E147: 110.3782618 | F147: 89.05354714
B148: 41901.16972 | C148: 113.6976983 | D148: 89.03475853 | E148: 113.6976983 | F148: 89.03475853
B149: 43026.0321 | C149: 117.234352 | D149: 88.98544626 | E149: 117.234352 | F149: 88.98544626
B150: 44181.0921 | C150: 120.6202793 | D150: 88.99576275 | E150: 120.6202793 | F150: 88.99576275
B151: 45367.16039 | C151: 124.268057 | D151: 88.97424504 | E151: 124.268057 | F151: 88.97424504
B152: 46585.0694 | C152: 128.0283437 | D152: 88.95120982 | E152: 128.0283437 | F152: 88.95120982
B153: 47835.67393 | C153: 131.9084018 | D153: 88.92700499 | E153: 131.9084018 | F153: 88.92700499
B154: 49119.85169 | C154: 135.9109258 | D154: 88.90116626 | E154: 135.9109258 | F154: 88.90116626
B155: 50438.50398 | C155: 140.0458866 | D155: 88.87410492 | E155: 140.0458866 | F155: 88.87410492
B156: 51792.5563 | C156: 144.3159236 | D156: 88.84468906 | E156: 144.3159236 | F156: 88.84468906
B157: 53182.95897 | C157: 148.7284875 | D157: 88.81306392 | E157: 148.7284875 | F157: 88.81306392
B158: 54610.68785 | C158: 153.2837843 | D158: 88.77911943 | E158: 153.2837843 | F158: 88.77911943
B159: 56076.74498 | C159: 157.9949409 | D159: 88.74407771 | E159: 157.9949409 | F159: 88.74407771
B160: 57582.1593 | C160: 162.8631685 | D160: 88.70588257 | E160: 162.8631685 | F160: 88.70588257
B161: 59127.98739 | C161: 167.8968362 | D161: 88.66520522 | E161: 167.8968362 | F161: 88.66520522
B162: 60715.31417 | C162: 173.0970462 | D162: 88.61894017 | E162: 173.0970462 | F162: 88.61894017
B163: 62345.25371 | C163: 178.4824311 | D163: 88.56956627 | E163: 178.4824311 | F163: 88.56956627
B164: 64018.94997 | C164: 184.0521194 | D164: 88.51675809 | E164: 184.0521194 | F164: 88.51675809
B165: 65737.57761 | C165: 189.8196227 | D165: 88.45940503 | E165: 189.8196227 | F165: 88.45940503
B166: 67502.34287 | C166: 195.7862024 | D166: 88.39645709 | E166: 195.7862024 | F166: 88.39645709
B167: 69314.48432 | C167: 201.9657311 | D167: 88.32726313 | E167: 201.9657311 | F167: 88.32726313
B168: 71175.2738 | C168: 208.365013 | D168: 88.25207291 | E168: 208.365013 | F168: 88.25207291
B169: 73086.01732 | C169: 214.9894766 | D169: 88.17081616 | E169: 214.9894766 | F169: 88.17081616
B170: 75048.0559 | C170: 221.8501423 | D170: 88.08109549 | E170: 221.8501423 | F170: 88.08109549
B171: 77062.76661 | C171: 228.9619862 | D171: 87.98399955 | E171: 228.9619862 | F171: 87.98399955
B172: 79131.56345 | C172: 236.3266443 | D172: 87.8758365 | E172: 236.3266443 | F172: 87.8758365
B173: 81255.8984 | C173: 243.9605564 | D173: 87.75810253 | E173: 243.9605564 | F173: 87.75810253
B174: 83437.26241 | C174: 251.8661327 | D174: 87.62927696 | E174: 251.8661327 | F174: 87.62927696
B175: 85677.18647 | C175: 260.0509552 | D175: 87.48929402 | E175: 260.0509552 | F175: 87.48929402
B176: 87977.24265 | C176: 268.5292097 | D176: 87.33590928 | E176: 268.5292097 | F176: 87.33590928
B177: 90339.04523 | C177: 277.3034351 | D177: 87.1688231 | E177: 277.3034351 | F177: 87.1688231
B178: 92764.25185 | C178: 286.3896882 | D178: 86.98816501 | E178: 286.3896882 | F178: 86.98816501
B179: 95254.56461 | C179: 295.7953717 | D179: 86.79499474 | E179: 295.7953717 | F179: 86.79499474
B180: 97811.73133 | C180: 305.5221549 | D180: 86.58495736 | E180: 305.5221549 | F180: 86.58495736
B181: 100437.5467 | C181: 315.6175236 | D181: 86.34292425 | E181: 315.6175236 | F181: 86.34292425
B182: 103133.8538 | C182: 325.9358248 | D182: 86.12494369 | E182: 325.9358248 | F182: 86.12494369
B183: 105902.5448 | C183: 336.7210203 | D183: 85.86956169 | E183: 336.7210203 | F183: 85.86956169
B184: 108745.563 | C184: 347.8454823 | D184: 85.60066485 | E184: 347.8454823 | F184: 85.60066485
B185: 111664.9038 | C185: 359.3376395 | D185: 85.31559159 | E185: 359.3376395 | F185: 85.31559159
B186: 114662.6161 | C186: 371.2007641 | D186: 85.0155246 | E186: 371.2007641 | F186: 85.0155246
B187: 117740.8037 | C187: 383.4758474 | D187: 84.69818443 | E187: 383.4758474 | F187: 84.69818443
B188: 120901.6272 | C188: 396.1644857 | D188: 84.36870878 | E188: 396.1644857 | F188: 84.36870878
B189: 124147.3049 | C189: 409.3076558 | D189: 84.02163676 | E189: 409.3076558 | F189: 84.02163676
B190: 127480.1148 | C190: 422.8762386 | D190: 83.65921409 | E190: 422.8762386 | F190: 83.65921409
B191: 130902.3961 | C191: 436.9580854 | D191: 83.27371967 | E191: 436.9580854 | F191: 83.27371967
B192: 134416.5505 | C192: 451.4314296 | D192: 82.8850836 | E192: 451.4314296 | F192: 82.8850836
B193: 138025.0445 | C193: 466.6203675 | D193: 82.44218918 | E193: 466.6203675 | F193: 82.44218918
B194: 141730.4108 | C194: 481.85472 | D194: 81.83344553 | E194: 481.85472 | F194: 81.83344553
B195: 145535.2499 | C195: 495.7760396 | D195: 81.73571908 | E195: 495.7760396 | F195: 81.73571908
B196: 149442.2322 | C196: 513.7611634 | D196: 81.27856059 | E196: 513.7611634 | F196: 81.27856059
B197: 153454.0998 | C197: 531.3531003 | D197: 80.79269494 | E197: 531.3531003 | F197: 80.79269494
B198: 157573.6684 | C198: 549.3967048 | D198: 80.29294555 | E198: 549.3967048 | F198: 80.29294555
B199: 161803.8294 | C199: 568.0573715 | D199: 79.77914377 | E199: 568.0573715 | F199: 79.77914377
B200: 166147.5516 | C200: 587.3983303 | D200: 79.23774774 | E200: 587.3983303 | F200: 79.23774774
B201: 170607.8837 | C201: 607.465843 | D201: 78.67624507 | E201: 607.465843 | F201: 78.67624507
B202: 175187.9561 | C202: 628.2998383 | D202: 78.08560731 | E202: 628.2998383 | F202: 78.08560731
... 205 more rows

Sheet Frequency vector (hidden)
A2: Number of points per decade | B2: ndec | C2: 300 | D2: index | E2: freq_generated [Hz] | F2: freq_customer [Hz] | G2: freq_selected [Hz] | H2: freq_selected [kHz]
A3: Logscale generator | B3: klog | C3: =10^(1/C2) -> 1.007704814 | D3: 0 | E3: =10*('Frequency vector'!$C$3)^D3 -> 10 | F3: ='CM choke'!B7 -> 1000 | G3: =IF(CMdata=1,'Frequency vector'!E3,'Frequency vector'!F3) -> 1000 | H3: =G3/1000 -> 1
D4: 1 | E4: =10*('Frequency vector'!$C$3)^D4 -> 10.07704814 | F4: =IF('CM choke'!B8=0, F3, 'CM choke'!B8) -> 1026.845608 | G4: =IF(CMdata=1,'Frequency vector'!E4,'Frequency vector'!F4) -> 1026.845608 | H4: =G4/1000 -> 1.026845608
D5: 2 | E5: =10*('Frequency vector'!$C$3)^D5 -> 10.15468992 | F5: =IF('CM choke'!B9=0, F4, 'CM choke'!B9) -> 1054.411903 | G5: =IF(CMdata=1,'Frequency vector'!E5,'Frequency vector'!F5) -> 1054.411903 | H5: 1.054411903
D6: 3 | E6: =10*('Frequency vector'!$C$3)^D6 -> 10.23292992 | F6: =IF('CM choke'!B10=0, F5, 'CM choke'!B10) -> 1082.718232 | G6: =IF(CMdata=1,'Frequency vector'!E6,'Frequency vector'!F6) -> 1082.718232 | H6: 1.082718232
D7: 4 | E7: =10*('Frequency vector'!$C$3)^D7 -> 10.31177275 | F7: =IF('CM choke'!B11=0, F6, 'CM choke'!B11) -> 1111.784461 | G7: =IF(CMdata=1,'Frequency vector'!E7,'Frequency vector'!F7) -> 1111.784461 | H7: 1.111784461
D8: 5 | E8: =10*('Frequency vector'!$C$3)^D8 -> 10.39122304 | F8: =IF('CM choke'!B12=0, F7, 'CM choke'!B12) -> 1141.630991 | G8: =IF(CMdata=1,'Frequency vector'!E8,'Frequency vector'!F8) -> 1141.630991 | H8: 1.141630991
D9: 6 | E9: =10*('Frequency vector'!$C$3)^D9 -> 10.47128548 | F9: =IF('CM choke'!B13=0, F8, 'CM choke'!B13) -> 1172.27877 | G9: =IF(CMdata=1,'Frequency vector'!E9,'Frequency vector'!F9) -> 1172.27877 | H9: 1.17227877
D10: 7 | E10: =10*('Frequency vector'!$C$3)^D10 -> 10.55196479 | F10: =IF('CM choke'!B14=0, F9, 'CM choke'!B14) -> 1203.749306 | G10: =IF(CMdata=1,'Frequency vector'!E10,'Frequency vector'!F10) -> 1203.749306 | H10: 1.203749306
D11: 8 | E11: =10*('Frequency vector'!$C$3)^D11 -> 10.63326572 | F11: =IF('CM choke'!B15=0, F10, 'CM choke'!B15) -> 1236.064689 | G11: =IF(CMdata=1,'Frequency vector'!E11,'Frequency vector'!F11) -> 1236.064689 | H11: 1.236064689
D12: 9 | E12: =10*('Frequency vector'!$C$3)^D12 -> 10.71519305 | F12: =IF('CM choke'!B16=0, F11, 'CM choke'!B16) -> 1269.247597 | G12: =IF(CMdata=1,'Frequency vector'!E12,'Frequency vector'!F12) -> 1269.247597 | H12: 1.269247597
D13: 10 | E13: =10*('Frequency vector'!$C$3)^D13 -> 10.79775162 | F13: =IF('CM choke'!B17=0, F12, 'CM choke'!B17) -> 1303.321321 | G13: =IF(CMdata=1,'Frequency vector'!E13,'Frequency vector'!F13) -> 1303.321321 | H13: 1.303321321
D14: 11 | E14: =10*('Frequency vector'!$C$3)^D14 -> 10.88094629 | F14: =IF('CM choke'!B18=0, F13, 'CM choke'!B18) -> 1338.309774 | G14: =IF(CMdata=1,'Frequency vector'!E14,'Frequency vector'!F14) -> 1338.309774 | H14: 1.338309774
D15: 12 | E15: =10*('Frequency vector'!$C$3)^D15 -> 10.96478196 | F15: =IF('CM choke'!B19=0, F14, 'CM choke'!B19) -> 1374.237514 | G15: =IF(CMdata=1,'Frequency vector'!E15,'Frequency vector'!F15) -> 1374.237514 | H15: 1.374237514
D16: 13 | E16: =10*('Frequency vector'!$C$3)^D16 -> 11.04926357 | F16: =IF('CM choke'!B20=0, F15, 'CM choke'!B20) -> 1411.129756 | G16: =IF(CMdata=1,'Frequency vector'!E16,'Frequency vector'!F16) -> 1411.129756 | H16: 1.411129756
D17: 14 | E17: =10*('Frequency vector'!$C$3)^D17 -> 11.13439609 | F17: =IF('CM choke'!B21=0, F16, 'CM choke'!B21) -> 1449.012392 | G17: =IF(CMdata=1,'Frequency vector'!E17,'Frequency vector'!F17) -> 1449.012392 | H17: 1.449012392
D18: 15 | E18: =10*('Frequency vector'!$C$3)^D18 -> 11.22018454 | F18: =IF('CM choke'!B22=0, F17, 'CM choke'!B22) -> 1487.912011 | G18: =IF(CMdata=1,'Frequency vector'!E18,'Frequency vector'!F18) -> 1487.912011 | H18: 1.487912011
D19: 16 | E19: =10*('Frequency vector'!$C$3)^D19 -> 11.30663398 | F19: =IF('CM choke'!B23=0, F18, 'CM choke'!B23) -> 1527.855914 | G19: =IF(CMdata=1,'Frequency vector'!E19,'Frequency vector'!F19) -> 1527.855914 | H19: 1.527855914
D20: 17 | E20: =10*('Frequency vector'!$C$3)^D20 -> 11.39374949 | F20: =IF('CM choke'!B24=0, F19, 'CM choke'!B24) -> 1568.872135 | G20: =IF(CMdata=1,'Frequency vector'!E20,'Frequency vector'!F20) -> 1568.872135 | H20: 1.568872135
D21: 18 | E21: =10*('Frequency vector'!$C$3)^D21 -> 11.48153621 | F21: =IF('CM choke'!B25=0, F20, 'CM choke'!B25) -> 1610.989462 | G21: =IF(CMdata=1,'Frequency vector'!E21,'Frequency vector'!F21) -> 1610.989462 | H21: 1.610989462
D22: 19 | E22: =10*('Frequency vector'!$C$3)^D22 -> 11.56999932 | F22: =IF('CM choke'!B26=0, F21, 'CM choke'!B26) -> 1654.237454 | G22: =IF(CMdata=1,'Frequency vector'!E22,'Frequency vector'!F22) -> 1654.237454 | H22: 1.654237454
D23: 20 | E23: =10*('Frequency vector'!$C$3)^D23 -> 11.65914401 | F23: =IF('CM choke'!B27=0, F22, 'CM choke'!B27) -> 1698.646465 | G23: =IF(CMdata=1,'Frequency vector'!E23,'Frequency vector'!F23) -> 1698.646465 | H23: 1.698646465
D24: 21 | E24: =10*('Frequency vector'!$C$3)^D24 -> 11.74897555 | F24: =IF('CM choke'!B28=0, F23, 'CM choke'!B28) -> 1744.247662 | G24: =IF(CMdata=1,'Frequency vector'!E24,'Frequency vector'!F24) -> 1744.247662 | H24: 1.744247662
D25: 22 | E25: =10*('Frequency vector'!$C$3)^D25 -> 11.83949922 | F25: =IF('CM choke'!B29=0, F24, 'CM choke'!B29) -> 1791.073051 | G25: =IF(CMdata=1,'Frequency vector'!E25,'Frequency vector'!F25) -> 1791.073051 | H25: 1.791073051
D26: 23 | E26: =10*('Frequency vector'!$C$3)^D26 -> 11.93072036 | F26: =IF('CM choke'!B30=0, F25, 'CM choke'!B30) -> 1839.155497 | G26: =IF(CMdata=1,'Frequency vector'!E26,'Frequency vector'!F26) -> 1839.155497 | H26: 1.839155497
D27: 24 | E27: =10*('Frequency vector'!$C$3)^D27 -> 12.02264435 | F27: =IF('CM choke'!B31=0, F26, 'CM choke'!B31) -> 1888.528745 | G27: =IF(CMdata=1,'Frequency vector'!E27,'Frequency vector'!F27) -> 1888.528745 | H27: 1.888528745
D28: 25 | E28: =10*('Frequency vector'!$C$3)^D28 -> 12.11527659 | F28: =IF('CM choke'!B32=0, F27, 'CM choke'!B32) -> 1939.227447 | G28: =IF(CMdata=1,'Frequency vector'!E28,'Frequency vector'!F28) -> 1939.227447 | H28: 1.939227447
D29: 26 | E29: =10*('Frequency vector'!$C$3)^D29 -> 12.20862254 | F29: =IF('CM choke'!B33=0, F28, 'CM choke'!B33) -> 1991.287188 | G29: =IF(CMdata=1,'Frequency vector'!E29,'Frequency vector'!F29) -> 1991.287188 | H29: 1.991287188
D30: 27 | E30: =10*('Frequency vector'!$C$3)^D30 -> 12.30268771 | F30: =IF('CM choke'!B34=0, F29, 'CM choke'!B34) -> 2044.744503 | G30: =IF(CMdata=1,'Frequency vector'!E30,'Frequency vector'!F30) -> 2044.744503 | H30: 2.044744503
D31: 28 | E31: =10*('Frequency vector'!$C$3)^D31 -> 12.39747763 | F31: =IF('CM choke'!B35=0, F30, 'CM choke'!B35) -> 2099.636913 | G31: =IF(CMdata=1,'Frequency vector'!E31,'Frequency vector'!F31) -> 2099.636913 | H31: 2.099636913
D32: 29 | E32: =10*('Frequency vector'!$C$3)^D32 -> 12.49299789 | F32: =IF('CM choke'!B36=0, F31, 'CM choke'!B36) -> 2156.002943 | G32: =IF(CMdata=1,'Frequency vector'!E32,'Frequency vector'!F32) -> 2156.002943 | H32: 2.156002943
D33: 30 | E33: =10*('Frequency vector'!$C$3)^D33 -> 12.58925412 | F33: =IF('CM choke'!B37=0, F32, 'CM choke'!B37) -> 2213.882153 | G33: =IF(CMdata=1,'Frequency vector'!E33,'Frequency vector'!F33) -> 2213.882153 | H33: 2.213882153
D34: 31 | E34: =10*('Frequency vector'!$C$3)^D34 -> 12.68625198 | F34: =IF('CM choke'!B38=0, F33, 'CM choke'!B38) -> 2273.315166 | G34: =IF(CMdata=1,'Frequency vector'!E34,'Frequency vector'!F34) -> 2273.315166 | H34: 2.273315166
D35: 32 | E35: =10*('Frequency vector'!$C$3)^D35 -> 12.78399719 | F35: =IF('CM choke'!B39=0, F34, 'CM choke'!B39) -> 2334.343695 | G35: =IF(CMdata=1,'Frequency vector'!E35,'Frequency vector'!F35) -> 2334.343695 | H35: 2.334343695
D36: 33 | E36: =10*('Frequency vector'!$C$3)^D36 -> 12.88249552 | F36: =IF('CM choke'!B40=0, F35, 'CM choke'!B40) -> 2397.010571 | G36: =IF(CMdata=1,'Frequency vector'!E36,'Frequency vector'!F36) -> 2397.010571 | H36: 2.397010571
D37: 34 | E37: =10*('Frequency vector'!$C$3)^D37 -> 12.98175275 | F37: =IF('CM choke'!B41=0, F36, 'CM choke'!B41) -> 2461.359778 | G37: =IF(CMdata=1,'Frequency vector'!E37,'Frequency vector'!F37) -> 2461.359778 | H37: 2.461359778
D38: 35 | E38: =10*('Frequency vector'!$C$3)^D38 -> 13.08177474 | F38: =IF('CM choke'!B42=0, F37, 'CM choke'!B42) -> 2527.436478 | G38: =IF(CMdata=1,'Frequency vector'!E38,'Frequency vector'!F38) -> 2527.436478 | H38: 2.527436478
D39: 36 | E39: =10*('Frequency vector'!$C$3)^D39 -> 13.18256739 | F39: =IF('CM choke'!B43=0, F38, 'CM choke'!B43) -> 2595.287047 | G39: =IF(CMdata=1,'Frequency vector'!E39,'Frequency vector'!F39) -> 2595.287047 | H39: 2.595287047
D40: 37 | E40: =10*('Frequency vector'!$C$3)^D40 -> 13.28413662 | F40: =IF('CM choke'!B44=0, F39, 'CM choke'!B44) -> 2664.959106 | G40: =IF(CMdata=1,'Frequency vector'!E40,'Frequency vector'!F40) -> 2664.959106 | H40: 2.664959106
D41: 38 | E41: =10*('Frequency vector'!$C$3)^D41 -> 13.38648842 | F41: =IF('CM choke'!B45=0, F40, 'CM choke'!B45) -> 2736.501554 | G41: =IF(CMdata=1,'Frequency vector'!E41,'Frequency vector'!F41) -> 2736.501554 | H41: 2.736501554
D42: 39 | E42: =10*('Frequency vector'!$C$3)^D42 -> 13.48962883 | F42: =IF('CM choke'!B46=0, F41, 'CM choke'!B46) -> 2809.964603 | G42: =IF(CMdata=1,'Frequency vector'!E42,'Frequency vector'!F42) -> 2809.964603 | H42: 2.809964603
D43: 40 | E43: =10*('Frequency vector'!$C$3)^D43 -> 13.59356391 | F43: =IF('CM choke'!B47=0, F42, 'CM choke'!B47) -> 2885.399812 | G43: =IF(CMdata=1,'Frequency vector'!E43,'Frequency vector'!F43) -> 2885.399812 | H43: 2.885399812
D44: 41 | E44: =10*('Frequency vector'!$C$3)^D44 -> 13.69829979 | F44: =IF('CM choke'!B48=0, F43, 'CM choke'!B48) -> 2962.860125 | G44: =IF(CMdata=1,'Frequency vector'!E44,'Frequency vector'!F44) -> 2962.860125 | H44: 2.962860125
D45: 42 | E45: =10*('Frequency vector'!$C$3)^D45 -> 13.80384265 | F45: =IF('CM choke'!B49=0, F44, 'CM choke'!B49) -> 3042.399907 | G45: =IF(CMdata=1,'Frequency vector'!E45,'Frequency vector'!F45) -> 3042.399907 | H45: 3.042399907
D46: 43 | E46: =10*('Frequency vector'!$C$3)^D46 -> 13.91019869 | F46: =IF('CM choke'!B50=0, F45, 'CM choke'!B50) -> 3124.074983 | G46: =IF(CMdata=1,'Frequency vector'!E46,'Frequency vector'!F46) -> 3124.074983 | H46: 3.124074983
D47: 44 | E47: =10*('Frequency vector'!$C$3)^D47 -> 14.01737418 | F47: =IF('CM choke'!B51=0, F46, 'CM choke'!B51) -> 3207.942676 | G47: =IF(CMdata=1,'Frequency vector'!E47,'Frequency vector'!F47) -> 3207.942676 | H47: 3.207942676
D48: 45 | E48: =10*('Frequency vector'!$C$3)^D48 -> 14.12537545 | F48: =IF('CM choke'!B52=0, F47, 'CM choke'!B52) -> 3294.061848 | G48: =IF(CMdata=1,'Frequency vector'!E48,'Frequency vector'!F48) -> 3294.061848 | H48: 3.294061848
D49: 46 | E49: =10*('Frequency vector'!$C$3)^D49 -> 14.23420884 | F49: =IF('CM choke'!B53=0, F48, 'CM choke'!B53) -> 3382.492942 | G49: =IF(CMdata=1,'Frequency vector'!E49,'Frequency vector'!F49) -> 3382.492942 | H49: 3.382492942
D50: 47 | E50: =10*('Frequency vector'!$C$3)^D50 -> 14.34388077 | F50: =IF('CM choke'!B54=0, F49, 'CM choke'!B54) -> 3473.298022 | G50: =IF(CMdata=1,'Frequency vector'!E50,'Frequency vector'!F50) -> 3473.298022 | H50: 3.473298022
D51: 48 | E51: =10*('Frequency vector'!$C$3)^D51 -> 14.45439771 | F51: =IF('CM choke'!B55=0, F50, 'CM choke'!B55) -> 3566.54082 | G51: =IF(CMdata=1,'Frequency vector'!E51,'Frequency vector'!F51) -> 3566.54082 | H51: 3.56654082
D52: 49 | E52: =10*('Frequency vector'!$C$3)^D52 -> 14.56576616 | F52: =IF('CM choke'!B56=0, F51, 'CM choke'!B56) -> 3662.286777 | G52: =IF(CMdata=1,'Frequency vector'!E52,'Frequency vector'!F52) -> 3662.286777 | H52: 3.662286777
D53: 50 | E53: =10*('Frequency vector'!$C$3)^D53 -> 14.67799268 | F53: =IF('CM choke'!B57=0, F52, 'CM choke'!B57) -> 3760.603093 | G53: =IF(CMdata=1,'Frequency vector'!E53,'Frequency vector'!F53) -> 3760.603093 | H53: 3.760603093
D54: 51 | E54: =10*('Frequency vector'!$C$3)^D54 -> 14.79108388 | F54: =IF('CM choke'!B58=0, F53, 'CM choke'!B58) -> 3861.55877 | G54: =IF(CMdata=1,'Frequency vector'!E54,'Frequency vector'!F54) -> 3861.55877 | H54: 3.86155877
D55: 52 | E55: =10*('Frequency vector'!$C$3)^D55 -> 14.90504643 | F55: =IF('CM choke'!B59=0, F54, 'CM choke'!B59) -> 3965.224664 | G55: =IF(CMdata=1,'Frequency vector'!E55,'Frequency vector'!F55) -> 3965.224664 | H55: 3.965224664
D56: 53 | E56: =10*('Frequency vector'!$C$3)^D56 -> 15.01988705 | F56: =IF('CM choke'!B60=0, F55, 'CM choke'!B60) -> 4071.673532 | G56: =IF(CMdata=1,'Frequency vector'!E56,'Frequency vector'!F56) -> 4071.673532 | H56: 4.071673532
D57: 54 | E57: =10*('Frequency vector'!$C$3)^D57 -> 15.13561248 | F57: =IF('CM choke'!B61=0, F56, 'CM choke'!B61) -> 4180.980084 | G57: =IF(CMdata=1,'Frequency vector'!E57,'Frequency vector'!F57) -> 4180.980084 | H57: 4.180980084
D58: 55 | E58: =10*('Frequency vector'!$C$3)^D58 -> 15.25222957 | F58: =IF('CM choke'!B62=0, F57, 'CM choke'!B62) -> 4293.221037 | G58: =IF(CMdata=1,'Frequency vector'!E58,'Frequency vector'!F58) -> 4293.221037 | H58: 4.293221037
D59: 56 | E59: =10*('Frequency vector'!$C$3)^D59 -> 15.36974516 | F59: =IF('CM choke'!B63=0, F58, 'CM choke'!B63) -> 4408.475167 | G59: =IF(CMdata=1,'Frequency vector'!E59,'Frequency vector'!F59) -> 4408.475167 | H59: 4.408475167
D60: 57 | E60: =10*('Frequency vector'!$C$3)^D60 -> 15.48816619 | F60: =IF('CM choke'!B64=0, F59, 'CM choke'!B64) -> 4526.823364 | G60: =IF(CMdata=1,'Frequency vector'!E60,'Frequency vector'!F60) -> 4526.823364 | H60: 4.526823364
D61: 58 | E61: =10*('Frequency vector'!$C$3)^D61 -> 15.60749963 | F61: =IF('CM choke'!B65=0, F60, 'CM choke'!B65) -> 4648.348691 | G61: =IF(CMdata=1,'Frequency vector'!E61,'Frequency vector'!F61) -> 4648.348691 | H61: 4.648348691
D62: 59 | E62: =10*('Frequency vector'!$C$3)^D62 -> 15.72775251 | F62: =IF('CM choke'!B66=0, F61, 'CM choke'!B66) -> 4773.136439 | G62: =IF(CMdata=1,'Frequency vector'!E62,'Frequency vector'!F62) -> 4773.136439 | H62: 4.773136439
D63: 60 | E63: =10*('Frequency vector'!$C$3)^D63 -> 15.84893192 | F63: =IF('CM choke'!B67=0, F62, 'CM choke'!B67) -> 4901.274189 | G63: =IF(CMdata=1,'Frequency vector'!E63,'Frequency vector'!F63) -> 4901.274189 | H63: 4.901274189
D64: 61 | E64: =10*('Frequency vector'!$C$3)^D64 -> 15.971045 | F64: =IF('CM choke'!B68=0, F63, 'CM choke'!B68) -> 5032.851876 | G64: =IF(CMdata=1,'Frequency vector'!E64,'Frequency vector'!F64) -> 5032.851876 | H64: 5.032851876
D65: 62 | E65: =10*('Frequency vector'!$C$3)^D65 -> 16.09409893 | F65: =IF('CM choke'!B69=0, F64, 'CM choke'!B69) -> 5167.961846 | G65: =IF(CMdata=1,'Frequency vector'!E65,'Frequency vector'!F65) -> 5167.961846 | H65: 5.167961846
D66: 63 | E66: =10*('Frequency vector'!$C$3)^D66 -> 16.21810097 | F66: =IF('CM choke'!B70=0, F65, 'CM choke'!B70) -> 5306.698924 | G66: =IF(CMdata=1,'Frequency vector'!E66,'Frequency vector'!F66) -> 5306.698924 | H66: 5.306698924
D67: 64 | E67: =10*('Frequency vector'!$C$3)^D67 -> 16.34305843 | F67: =IF('CM choke'!B71=0, F66, 'CM choke'!B71) -> 5449.160485 | G67: =IF(CMdata=1,'Frequency vector'!E67,'Frequency vector'!F67) -> 5449.160485 | H67: 5.449160485
D68: 65 | E68: =10*('Frequency vector'!$C$3)^D68 -> 16.46897865 | F68: =IF('CM choke'!B72=0, F67, 'CM choke'!B72) -> 5595.446512 | G68: =IF(CMdata=1,'Frequency vector'!E68,'Frequency vector'!F68) -> 5595.446512 | H68: =G68/1000 -> 5.595446512
D69: 66 | E69: =10*('Frequency vector'!$C$3)^D69 -> 16.59586907 | F69: =IF('CM choke'!B73=0, F68, 'CM choke'!B73) -> 5745.659677 | G69: =IF(CMdata=1,'Frequency vector'!E69,'Frequency vector'!F69) -> 5745.659677 | H69: 5.745659677
D70: 67 | E70: =10*('Frequency vector'!$C$3)^D70 -> 16.72373716 | F70: =IF('CM choke'!B74=0, F69, 'CM choke'!B74) -> 5899.905405 | G70: =IF(CMdata=1,'Frequency vector'!E70,'Frequency vector'!F70) -> 5899.905405 | H70: 5.899905405
D71: 68 | E71: =10*('Frequency vector'!$C$3)^D71 -> 16.85259045 | F71: =IF('CM choke'!B75=0, F70, 'CM choke'!B75) -> 6058.291954 | G71: =IF(CMdata=1,'Frequency vector'!E71,'Frequency vector'!F71) -> 6058.291954 | H71: 6.058291954
D72: 69 | E72: =10*('Frequency vector'!$C$3)^D72 -> 16.98243652 | F72: =IF('CM choke'!B76=0, F71, 'CM choke'!B76) -> 6220.930486 | G72: =IF(CMdata=1,'Frequency vector'!E72,'Frequency vector'!F72) -> 6220.930486 | H72: 6.220930486
D73: 70 | E73: =10*('Frequency vector'!$C$3)^D73 -> 17.11328304 | F73: =IF('CM choke'!B77=0, F72, 'CM choke'!B77) -> 6387.935149 | G73: =IF(CMdata=1,'Frequency vector'!E73,'Frequency vector'!F73) -> 6387.935149 | H73: 6.387935149
D74: 71 | E74: =10*('Frequency vector'!$C$3)^D74 -> 17.24513771 | F74: =IF('CM choke'!B78=0, F73, 'CM choke'!B78) -> 6559.423153 | G74: =IF(CMdata=1,'Frequency vector'!E74,'Frequency vector'!F74) -> 6559.423153 | H74: 6.559423153
D75: 72 | E75: =10*('Frequency vector'!$C$3)^D75 -> 17.37800829 | F75: =IF('CM choke'!B79=0, F74, 'CM choke'!B79) -> 6735.514857 | G75: =IF(CMdata=1,'Frequency vector'!E75,'Frequency vector'!F75) -> 6735.514857 | H75: 6.735514857
D76: 73 | E76: =10*('Frequency vector'!$C$3)^D76 -> 17.51190261 | F76: =IF('CM choke'!B80=0, F75, 'CM choke'!B80) -> 6916.33385 | G76: =IF(CMdata=1,'Frequency vector'!E76,'Frequency vector'!F76) -> 6916.33385 | H76: 6.91633385
D77: 74 | E77: =10*('Frequency vector'!$C$3)^D77 -> 17.64682857 | F77: =IF('CM choke'!B81=0, F76, 'CM choke'!B81) -> 7102.007039 | G77: =IF(CMdata=1,'Frequency vector'!E77,'Frequency vector'!F77) -> 7102.007039 | H77: 7.102007039
D78: 75 | E78: =10*('Frequency vector'!$C$3)^D78 -> 17.7827941 | F78: =IF('CM choke'!B82=0, F77, 'CM choke'!B82) -> 7292.664737 | G78: =IF(CMdata=1,'Frequency vector'!E78,'Frequency vector'!F78) -> 7292.664737 | H78: 7.292664737
D79: 76 | E79: =10*('Frequency vector'!$C$3)^D79 -> 17.91980722 | F79: =IF('CM choke'!B83=0, F78, 'CM choke'!B83) -> 7488.440757 | G79: =IF(CMdata=1,'Frequency vector'!E79,'Frequency vector'!F79) -> 7488.440757 | H79: 7.488440757
D80: 77 | E80: =10*('Frequency vector'!$C$3)^D80 -> 18.05787601 | F80: =IF('CM choke'!B84=0, F79, 'CM choke'!B84) -> 7689.472504 | G80: =IF(CMdata=1,'Frequency vector'!E80,'Frequency vector'!F80) -> 7689.472504 | H80: 7.689472504
D81: 78 | E81: =10*('Frequency vector'!$C$3)^D81 -> 18.19700859 | F81: =IF('CM choke'!B85=0, F80, 'CM choke'!B85) -> 7895.90107 | G81: =IF(CMdata=1,'Frequency vector'!E81,'Frequency vector'!F81) -> 7895.90107 | H81: 7.89590107
D82: 79 | E82: =10*('Frequency vector'!$C$3)^D82 -> 18.33721316 | F82: =IF('CM choke'!B86=0, F81, 'CM choke'!B86) -> 8107.871337 | G82: =IF(CMdata=1,'Frequency vector'!E82,'Frequency vector'!F82) -> 8107.871337 | H82: 8.107871337
D83: 80 | E83: =10*('Frequency vector'!$C$3)^D83 -> 18.47849797 | F83: =IF('CM choke'!B87=0, F82, 'CM choke'!B87) -> 8325.532074 | G83: =IF(CMdata=1,'Frequency vector'!E83,'Frequency vector'!F83) -> 8325.532074 | H83: 8.325532074
D84: 81 | E84: =10*('Frequency vector'!$C$3)^D84 -> 18.62087137 | F84: =IF('CM choke'!B88=0, F83, 'CM choke'!B88) -> 8549.036046 | G84: =IF(CMdata=1,'Frequency vector'!E84,'Frequency vector'!F84) -> 8549.036046 | H84: 8.549036046
D85: 82 | E85: =10*('Frequency vector'!$C$3)^D85 -> 18.76434172 | F85: =IF('CM choke'!B89=0, F84, 'CM choke'!B89) -> 8778.540118 | G85: =IF(CMdata=1,'Frequency vector'!E85,'Frequency vector'!F85) -> 8778.540118 | H85: 8.778540118
D86: 83 | E86: =10*('Frequency vector'!$C$3)^D86 -> 18.90891748 | F86: =IF('CM choke'!B90=0, F85, 'CM choke'!B90) -> 9014.205367 | G86: =IF(CMdata=1,'Frequency vector'!E86,'Frequency vector'!F86) -> 9014.205367 | H86: 9.014205367
D87: 84 | E87: =10*('Frequency vector'!$C$3)^D87 -> 19.05460718 | F87: =IF('CM choke'!B91=0, F86, 'CM choke'!B91) -> 9256.197192 | G87: =IF(CMdata=1,'Frequency vector'!E87,'Frequency vector'!F87) -> 9256.197192 | H87: 9.256197192
D88: 85 | E88: =10*('Frequency vector'!$C$3)^D88 -> 19.20141939 | F88: =IF('CM choke'!B92=0, F87, 'CM choke'!B92) -> 9504.685436 | G88: =IF(CMdata=1,'Frequency vector'!E88,'Frequency vector'!F88) -> 9504.685436 | H88: 9.504685436
D89: 86 | E89: =10*('Frequency vector'!$C$3)^D89 -> 19.34936275 | F89: =IF('CM choke'!B93=0, F88, 'CM choke'!B93) -> 9759.844497 | G89: =IF(CMdata=1,'Frequency vector'!E89,'Frequency vector'!F89) -> 9759.844497 | H89: 9.759844497
D90: 87 | E90: =10*('Frequency vector'!$C$3)^D90 -> 19.498446 | F90: =IF('CM choke'!B94=0, F89, 'CM choke'!B94) -> 10021.85346 | G90: =IF(CMdata=1,'Frequency vector'!E90,'Frequency vector'!F90) -> 10021.85346 | H90: 10.02185346
D91: 88 | E91: =10*('Frequency vector'!$C$3)^D91 -> 19.6486779 | F91: =IF('CM choke'!B95=0, F90, 'CM choke'!B95) -> 10290.89621 | G91: =IF(CMdata=1,'Frequency vector'!E91,'Frequency vector'!F91) -> 10290.89621 | H91: 10.29089621
D92: 89 | E92: =10*('Frequency vector'!$C$3)^D92 -> 19.80006731 | F92: =IF('CM choke'!B96=0, F91, 'CM choke'!B96) -> 10567.16158 | G92: =IF(CMdata=1,'Frequency vector'!E92,'Frequency vector'!F92) -> 10567.16158 | H92: 10.56716158
D93: 90 | E93: =10*('Frequency vector'!$C$3)^D93 -> 19.95262315 | F93: =IF('CM choke'!B97=0, F92, 'CM choke'!B97) -> 10850.84346 | G93: =IF(CMdata=1,'Frequency vector'!E93,'Frequency vector'!F93) -> 10850.84346 | H93: 10.85084346
D94: 91 | E94: =10*('Frequency vector'!$C$3)^D94 -> 20.1063544 | F94: =IF('CM choke'!B98=0, F93, 'CM choke'!B98) -> 11142.14095 | G94: =IF(CMdata=1,'Frequency vector'!E94,'Frequency vector'!F94) -> 11142.14095 | H94: 11.14214095
D95: 92 | E95: =10*('Frequency vector'!$C$3)^D95 -> 20.26127013 | F95: =IF('CM choke'!B99=0, F94, 'CM choke'!B99) -> 11441.2585 | G95: =IF(CMdata=1,'Frequency vector'!E95,'Frequency vector'!F95) -> 11441.2585 | H95: 11.4412585
D96: 93 | E96: =10*('Frequency vector'!$C$3)^D96 -> 20.41737945 | F96: =IF('CM choke'!B100=0, F95, 'CM choke'!B100) -> 11748.40604 | G96: =IF(CMdata=1,'Frequency vector'!E96,'Frequency vector'!F96) -> 11748.40604 | H96: 11.74840604
D97: 94 | E97: =10*('Frequency vector'!$C$3)^D97 -> 20.57469156 | F97: =IF('CM choke'!B101=0, F96, 'CM choke'!B101) -> 12063.79915 | G97: =IF(CMdata=1,'Frequency vector'!E97,'Frequency vector'!F97) -> 12063.79915 | H97: 12.06379915
D98: 95 | E98: =10*('Frequency vector'!$C$3)^D98 -> 20.73321573 | F98: =IF('CM choke'!B102=0, F97, 'CM choke'!B102) -> 12387.65917 | G98: =IF(CMdata=1,'Frequency vector'!E98,'Frequency vector'!F98) -> 12387.65917 | H98: 12.38765917
D99: 96 | E99: =10*('Frequency vector'!$C$3)^D99 -> 20.89296131 | F99: =IF('CM choke'!B103=0, F98, 'CM choke'!B103) -> 12720.21342 | G99: =IF(CMdata=1,'Frequency vector'!E99,'Frequency vector'!F99) -> 12720.21342 | H99: 12.72021342
D100: 97 | E100: =10*('Frequency vector'!$C$3)^D100 -> 21.05393769 | F100: =IF('CM choke'!B104=0, F99, 'CM choke'!B104) -> 13061.69528 | G100: =IF(CMdata=1,'Frequency vector'!E100,'Frequency vector'!F100) -> 13061.69528 | H100: 13.06169528
D101: 98 | E101: =10*('Frequency vector'!$C$3)^D101 -> 21.21615437 | F101: =IF('CM choke'!B105=0, F100, 'CM choke'!B105) -> 13412.34444 | G101: =IF(CMdata=1,'Frequency vector'!E101,'Frequency vector'!F101) -> 13412.34444 | H101: 13.41234444
D102: 99 | E102: =10*('Frequency vector'!$C$3)^D102 -> 21.3796209 | F102: =IF('CM choke'!B106=0, F101, 'CM choke'!B106) -> 13772.40698 | G102: =IF(CMdata=1,'Frequency vector'!E102,'Frequency vector'!F102) -> 13772.40698 | H102: 13.77240698
D103: 100 | E103: =10*('Frequency vector'!$C$3)^D103 -> 21.5443469 | F103: =IF('CM choke'!B107=0, F102, 'CM choke'!B107) -> 14142.13562 | G103: =IF(CMdata=1,'Frequency vector'!E103,'Frequency vector'!F103) -> 14142.13562 | H103: 14.14213562
D104: 101 | E104: =10*('Frequency vector'!$C$3)^D104 -> 21.71034209 | F104: =IF('CM choke'!B108=0, F103, 'CM choke'!B108) -> 14521.78986 | G104: =IF(CMdata=1,'Frequency vector'!E104,'Frequency vector'!F104) -> 14521.78986 | H104: 14.52178986
D105: 102 | E105: =10*('Frequency vector'!$C$3)^D105 -> 21.87761624 | F105: =IF('CM choke'!B109=0, F104, 'CM choke'!B109) -> 14911.63614 | G105: =IF(CMdata=1,'Frequency vector'!E105,'Frequency vector'!F105) -> 14911.63614 | H105: 14.91163614
D106: 103 | E106: =10*('Frequency vector'!$C$3)^D106 -> 22.04617921 | F106: =IF('CM choke'!B110=0, F105, 'CM choke'!B110) -> 15311.94808 | G106: =IF(CMdata=1,'Frequency vector'!E106,'Frequency vector'!F106) -> 15311.94808 | H106: 15.31194808
D107: 104 | E107: =10*('Frequency vector'!$C$3)^D107 -> 22.21604092 | F107: =IF('CM choke'!B111=0, F106, 'CM choke'!B111) -> 15723.00664 | G107: =IF(CMdata=1,'Frequency vector'!E107,'Frequency vector'!F107) -> 15723.00664 | H107: 15.72300664
D108: 105 | E108: =10*('Frequency vector'!$C$3)^D108 -> 22.38721139 | F108: =IF('CM choke'!B112=0, F107, 'CM choke'!B112) -> 16145.10031 | G108: =IF(CMdata=1,'Frequency vector'!E108,'Frequency vector'!F108) -> 16145.10031 | H108: 16.14510031
D109: 106 | E109: =10*('Frequency vector'!$C$3)^D109 -> 22.55970069 | F109: =IF('CM choke'!B113=0, F108, 'CM choke'!B113) -> 16578.52535 | G109: =IF(CMdata=1,'Frequency vector'!E109,'Frequency vector'!F109) -> 16578.52535 | H109: 16.57852535
D110: 107 | E110: =10*('Frequency vector'!$C$3)^D110 -> 22.73351899 | F110: =IF('CM choke'!B114=0, F109, 'CM choke'!B114) -> 17023.58595 | G110: =IF(CMdata=1,'Frequency vector'!E110,'Frequency vector'!F110) -> 17023.58595 | H110: 17.02358595
D111: 108 | E111: =10*('Frequency vector'!$C$3)^D111 -> 22.90867653 | F111: =IF('CM choke'!B115=0, F110, 'CM choke'!B115) -> 17480.59446 | G111: =IF(CMdata=1,'Frequency vector'!E111,'Frequency vector'!F111) -> 17480.59446 | H111: 17.48059446
D112: 109 | E112: =10*('Frequency vector'!$C$3)^D112 -> 23.08518362 | F112: =IF('CM choke'!B116=0, F111, 'CM choke'!B116) -> 17949.87165 | G112: =IF(CMdata=1,'Frequency vector'!E112,'Frequency vector'!F112) -> 17949.87165 | H112: 17.94987165
D113: 110 | E113: =10*('Frequency vector'!$C$3)^D113 -> 23.26305067 | F113: =IF('CM choke'!B117=0, F112, 'CM choke'!B117) -> 18431.74688 | G113: =IF(CMdata=1,'Frequency vector'!E113,'Frequency vector'!F113) -> 18431.74688 | H113: 18.43174688
D114: 111 | E114: =10*('Frequency vector'!$C$3)^D114 -> 23.44228815 | F114: =IF('CM choke'!B118=0, F113, 'CM choke'!B118) -> 18926.55833 | G114: =IF(CMdata=1,'Frequency vector'!E114,'Frequency vector'!F114) -> 18926.55833 | H114: 18.92655833
D115: 112 | E115: =10*('Frequency vector'!$C$3)^D115 -> 23.62290663 | F115: =IF('CM choke'!B119=0, F114, 'CM choke'!B119) -> 19434.6533 | G115: =IF(CMdata=1,'Frequency vector'!E115,'Frequency vector'!F115) -> 19434.6533 | H115: 19.4346533
D116: 113 | E116: =10*('Frequency vector'!$C$3)^D116 -> 23.80491673 | F116: =IF('CM choke'!B120=0, F115, 'CM choke'!B120) -> 19956.38839 | G116: =IF(CMdata=1,'Frequency vector'!E116,'Frequency vector'!F116) -> 19956.38839 | H116: 19.95638839
D117: 114 | E117: =10*('Frequency vector'!$C$3)^D117 -> 23.98832919 | F117: =IF('CM choke'!B121=0, F116, 'CM choke'!B121) -> 20492.12977 | G117: =IF(CMdata=1,'Frequency vector'!E117,'Frequency vector'!F117) -> 20492.12977 | H117: 20.49212977
D118: 115 | E118: =10*('Frequency vector'!$C$3)^D118 -> 24.17315481 | F118: =IF('CM choke'!B122=0, F117, 'CM choke'!B122) -> 21042.25346 | G118: =IF(CMdata=1,'Frequency vector'!E118,'Frequency vector'!F118) -> 21042.25346 | H118: 21.04225346
D119: 116 | E119: =10*('Frequency vector'!$C$3)^D119 -> 24.35940447 | F119: =IF('CM choke'!B123=0, F118, 'CM choke'!B123) -> 21607.14555 | G119: =IF(CMdata=1,'Frequency vector'!E119,'Frequency vector'!F119) -> 21607.14555 | H119: 21.60714555
D120: 117 | E120: =10*('Frequency vector'!$C$3)^D120 -> 24.54708916 | F120: =IF('CM choke'!B124=0, F119, 'CM choke'!B124) -> 22187.20252 | G120: =IF(CMdata=1,'Frequency vector'!E120,'Frequency vector'!F120) -> 22187.20252 | H120: 22.18720252
D121: 118 | E121: =10*('Frequency vector'!$C$3)^D121 -> 24.73621992 | F121: =IF('CM choke'!B125=0, F120, 'CM choke'!B125) -> 22782.83146 | G121: =IF(CMdata=1,'Frequency vector'!E121,'Frequency vector'!F121) -> 22782.83146 | H121: 22.78283146
D122: 119 | E122: =10*('Frequency vector'!$C$3)^D122 -> 24.92680789 | F122: =IF('CM choke'!B126=0, F121, 'CM choke'!B126) -> 23394.45043 | G122: =IF(CMdata=1,'Frequency vector'!E122,'Frequency vector'!F122) -> 23394.45043 | H122: 23.39445043
D123: 120 | E123: =10*('Frequency vector'!$C$3)^D123 -> 25.11886432 | F123: =IF('CM choke'!B127=0, F122, 'CM choke'!B127) -> 24022.48868 | G123: =IF(CMdata=1,'Frequency vector'!E123,'Frequency vector'!F123) -> 24022.48868 | H123: 24.02248868
D124: 121 | E124: =10*('Frequency vector'!$C$3)^D124 -> 25.3124005 | F124: =IF('CM choke'!B128=0, F123, 'CM choke'!B128) -> 24667.387 | G124: =IF(CMdata=1,'Frequency vector'!E124,'Frequency vector'!F124) -> 24667.387 | H124: 24.667387
D125: 122 | E125: =10*('Frequency vector'!$C$3)^D125 -> 25.50742784 | F125: =IF('CM choke'!B129=0, F124, 'CM choke'!B129) -> 25329.59801 | G125: =IF(CMdata=1,'Frequency vector'!E125,'Frequency vector'!F125) -> 25329.59801 | H125: 25.32959801
D126: 123 | E126: =10*('Frequency vector'!$C$3)^D126 -> 25.70395783 | F126: =IF('CM choke'!B130=0, F125, 'CM choke'!B130) -> 26009.58647 | G126: =IF(CMdata=1,'Frequency vector'!E126,'Frequency vector'!F126) -> 26009.58647 | H126: 26.00958647
D127: 124 | E127: =10*('Frequency vector'!$C$3)^D127 -> 25.90200205 | F127: =IF('CM choke'!B131=0, F126, 'CM choke'!B131) -> 26707.82964 | G127: =IF(CMdata=1,'Frequency vector'!E127,'Frequency vector'!F127) -> 26707.82964 | H127: 26.70782964
D128: 125 | E128: =10*('Frequency vector'!$C$3)^D128 -> 26.10157216 | F128: =IF('CM choke'!B132=0, F127, 'CM choke'!B132) -> 27424.81757 | G128: =IF(CMdata=1,'Frequency vector'!E128,'Frequency vector'!F128) -> 27424.81757 | H128: 27.42481757
D129: 126 | E129: =10*('Frequency vector'!$C$3)^D129 -> 26.30267992 | F129: =IF('CM choke'!B133=0, F128, 'CM choke'!B133) -> 28161.05348 | G129: =IF(CMdata=1,'Frequency vector'!E129,'Frequency vector'!F129) -> 28161.05348 | H129: 28.16105348
D130: 127 | E130: =10*('Frequency vector'!$C$3)^D130 -> 26.50533718 | F130: =IF('CM choke'!B134=0, F129, 'CM choke'!B134) -> 28917.05408 | G130: =IF(CMdata=1,'Frequency vector'!E130,'Frequency vector'!F130) -> 28917.05408 | H130: 28.91705408
D131: 128 | E131: =10*('Frequency vector'!$C$3)^D131 -> 26.70955588 | F131: =IF('CM choke'!B135=0, F130, 'CM choke'!B135) -> 29693.34999 | G131: =IF(CMdata=1,'Frequency vector'!E131,'Frequency vector'!F131) -> 29693.34999 | H131: 29.69334999
D132: 129 | E132: =10*('Frequency vector'!$C$3)^D132 -> 26.91534804 | F132: =IF('CM choke'!B136=0, F131, 'CM choke'!B136) -> 30490.48603 | G132: =IF(CMdata=1,'Frequency vector'!E132,'Frequency vector'!F132) -> 30490.48603 | H132: =G132/1000 -> 30.49048603
D133: 130 | E133: =10*('Frequency vector'!$C$3)^D133 -> 27.12272579 | F133: =IF('CM choke'!B137=0, F132, 'CM choke'!B137) -> 31309.02167 | G133: =IF(CMdata=1,'Frequency vector'!E133,'Frequency vector'!F133) -> 31309.02167 | H133: 31.30902167
D134: 131 | E134: =10*('Frequency vector'!$C$3)^D134 -> 27.33170135 | F134: =IF('CM choke'!B138=0, F133, 'CM choke'!B138) -> 32149.5314 | G134: =IF(CMdata=1,'Frequency vector'!E134,'Frequency vector'!F134) -> 32149.5314 | H134: 32.1495314
D135: 132 | E135: =10*('Frequency vector'!$C$3)^D135 -> 27.54228703 | F135: =IF('CM choke'!B139=0, F134, 'CM choke'!B139) -> 33012.60512 | G135: =IF(CMdata=1,'Frequency vector'!E135,'Frequency vector'!F135) -> 33012.60512 | H135: 33.01260512
D136: 133 | E136: =10*('Frequency vector'!$C$3)^D136 -> 27.75449524 | F136: =IF('CM choke'!B140=0, F135, 'CM choke'!B140) -> 33898.84858 | G136: =IF(CMdata=1,'Frequency vector'!E136,'Frequency vector'!F136) -> 33898.84858 | H136: 33.89884858
D137: 134 | E137: =10*('Frequency vector'!$C$3)^D137 -> 27.96833846 | F137: =IF('CM choke'!B141=0, F136, 'CM choke'!B141) -> 34808.88379 | G137: =IF(CMdata=1,'Frequency vector'!E137,'Frequency vector'!F137) -> 34808.88379 | H137: 34.80888379
D138: 135 | E138: =10*('Frequency vector'!$C$3)^D138 -> 28.18382931 | F138: =IF('CM choke'!B142=0, F137, 'CM choke'!B142) -> 35743.34945 | G138: =IF(CMdata=1,'Frequency vector'!E138,'Frequency vector'!F138) -> 35743.34945 | H138: 35.74334945
D139: 136 | E139: =10*('Frequency vector'!$C$3)^D139 -> 28.40098048 | F139: =IF('CM choke'!B143=0, F138, 'CM choke'!B143) -> 36702.9014 | G139: =IF(CMdata=1,'Frequency vector'!E139,'Frequency vector'!F139) -> 36702.9014 | H139: 36.7029014
D140: 137 | E140: =10*('Frequency vector'!$C$3)^D140 -> 28.61980476 | F140: =IF('CM choke'!B144=0, F139, 'CM choke'!B144) -> 37688.21311 | G140: =IF(CMdata=1,'Frequency vector'!E140,'Frequency vector'!F140) -> 37688.21311 | H140: 37.68821311
D141: 138 | E141: =10*('Frequency vector'!$C$3)^D141 -> 28.84031503 | F141: =IF('CM choke'!B145=0, F140, 'CM choke'!B145) -> 38699.97612 | G141: =IF(CMdata=1,'Frequency vector'!E141,'Frequency vector'!F141) -> 38699.97612 | H141: 38.69997612
D142: 139 | E142: =10*('Frequency vector'!$C$3)^D142 -> 29.0625243 | F142: =IF('CM choke'!B146=0, F141, 'CM choke'!B146) -> 39738.90051 | G142: =IF(CMdata=1,'Frequency vector'!E142,'Frequency vector'!F142) -> 39738.90051 | H142: 39.73890051
D143: 140 | E143: =10*('Frequency vector'!$C$3)^D143 -> 29.28644565 | F143: =IF('CM choke'!B147=0, F142, 'CM choke'!B147) -> 40805.71547 | G143: =IF(CMdata=1,'Frequency vector'!E143,'Frequency vector'!F143) -> 40805.71547 | H143: 40.80571547
D144: 141 | E144: =10*('Frequency vector'!$C$3)^D144 -> 29.51209227 | F144: =IF('CM choke'!B148=0, F143, 'CM choke'!B148) -> 41901.16972 | G144: =IF(CMdata=1,'Frequency vector'!E144,'Frequency vector'!F144) -> 41901.16972 | H144: 41.90116972
D145: 142 | E145: =10*('Frequency vector'!$C$3)^D145 -> 29.73947745 | F145: =IF('CM choke'!B149=0, F144, 'CM choke'!B149) -> 43026.0321 | G145: =IF(CMdata=1,'Frequency vector'!E145,'Frequency vector'!F145) -> 43026.0321 | H145: 43.0260321
D146: 143 | E146: =10*('Frequency vector'!$C$3)^D146 -> 29.9686146 | F146: =IF('CM choke'!B150=0, F145, 'CM choke'!B150) -> 44181.0921 | G146: =IF(CMdata=1,'Frequency vector'!E146,'Frequency vector'!F146) -> 44181.0921 | H146: 44.1810921
D147: 144 | E147: =10*('Frequency vector'!$C$3)^D147 -> 30.1995172 | F147: =IF('CM choke'!B151=0, F146, 'CM choke'!B151) -> 45367.16039 | G147: =IF(CMdata=1,'Frequency vector'!E147,'Frequency vector'!F147) -> 45367.16039 | H147: 45.36716039
D148: 145 | E148: =10*('Frequency vector'!$C$3)^D148 -> 30.43219887 | F148: =IF('CM choke'!B152=0, F147, 'CM choke'!B152) -> 46585.0694 | G148: =IF(CMdata=1,'Frequency vector'!E148,'Frequency vector'!F148) -> 46585.0694 | H148: 46.5850694
D149: 146 | E149: =10*('Frequency vector'!$C$3)^D149 -> 30.66667331 | F149: =IF('CM choke'!B153=0, F148, 'CM choke'!B153) -> 47835.67393 | G149: =IF(CMdata=1,'Frequency vector'!E149,'Frequency vector'!F149) -> 47835.67393 | H149: 47.83567393
D150: 147 | E150: =10*('Frequency vector'!$C$3)^D150 -> 30.90295433 | F150: =IF('CM choke'!B154=0, F149, 'CM choke'!B154) -> 49119.85169 | G150: =IF(CMdata=1,'Frequency vector'!E150,'Frequency vector'!F150) -> 49119.85169 | H150: 49.11985169
D151: 148 | E151: =10*('Frequency vector'!$C$3)^D151 -> 31.14105584 | F151: =IF('CM choke'!B155=0, F150, 'CM choke'!B155) -> 50438.50398 | G151: =IF(CMdata=1,'Frequency vector'!E151,'Frequency vector'!F151) -> 50438.50398 | H151: 50.43850398
D152: 149 | E152: =10*('Frequency vector'!$C$3)^D152 -> 31.38099189 | F152: =IF('CM choke'!B156=0, F151, 'CM choke'!B156) -> 51792.5563 | G152: =IF(CMdata=1,'Frequency vector'!E152,'Frequency vector'!F152) -> 51792.5563 | H152: 51.7925563
D153: 150 | E153: =10*('Frequency vector'!$C$3)^D153 -> 31.6227766 | F153: =IF('CM choke'!B157=0, F152, 'CM choke'!B157) -> 53182.95897 | G153: =IF(CMdata=1,'Frequency vector'!E153,'Frequency vector'!F153) -> 53182.95897 | H153: 53.18295897
D154: 151 | E154: =10*('Frequency vector'!$C$3)^D154 -> 31.86642422 | F154: =IF('CM choke'!B158=0, F153, 'CM choke'!B158) -> 54610.68785 | G154: =IF(CMdata=1,'Frequency vector'!E154,'Frequency vector'!F154) -> 54610.68785 | H154: 54.61068785
D155: 152 | E155: =10*('Frequency vector'!$C$3)^D155 -> 32.11194909 | F155: =IF('CM choke'!B159=0, F154, 'CM choke'!B159) -> 56076.74498 | G155: =IF(CMdata=1,'Frequency vector'!E155,'Frequency vector'!F155) -> 56076.74498 | H155: 56.07674498
D156: 153 | E156: =10*('Frequency vector'!$C$3)^D156 -> 32.35936569 | F156: =IF('CM choke'!B160=0, F155, 'CM choke'!B160) -> 57582.1593 | G156: =IF(CMdata=1,'Frequency vector'!E156,'Frequency vector'!F156) -> 57582.1593 | H156: 57.5821593
D157: 154 | E157: =10*('Frequency vector'!$C$3)^D157 -> 32.60868859 | F157: =IF('CM choke'!B161=0, F156, 'CM choke'!B161) -> 59127.98739 | G157: =IF(CMdata=1,'Frequency vector'!E157,'Frequency vector'!F157) -> 59127.98739 | H157: 59.12798739
D158: 155 | E158: =10*('Frequency vector'!$C$3)^D158 -> 32.85993248 | F158: =IF('CM choke'!B162=0, F157, 'CM choke'!B162) -> 60715.31417 | G158: =IF(CMdata=1,'Frequency vector'!E158,'Frequency vector'!F158) -> 60715.31417 | H158: 60.71531417
D159: 156 | E159: =10*('Frequency vector'!$C$3)^D159 -> 33.11311215 | F159: =IF('CM choke'!B163=0, F158, 'CM choke'!B163) -> 62345.25371 | G159: =IF(CMdata=1,'Frequency vector'!E159,'Frequency vector'!F159) -> 62345.25371 | H159: 62.34525371
D160: 157 | E160: =10*('Frequency vector'!$C$3)^D160 -> 33.36824252 | F160: =IF('CM choke'!B164=0, F159, 'CM choke'!B164) -> 64018.94997 | G160: =IF(CMdata=1,'Frequency vector'!E160,'Frequency vector'!F160) -> 64018.94997 | H160: 64.01894997
D161: 158 | E161: =10*('Frequency vector'!$C$3)^D161 -> 33.62533863 | F161: =IF('CM choke'!B165=0, F160, 'CM choke'!B165) -> 65737.57761 | G161: =IF(CMdata=1,'Frequency vector'!E161,'Frequency vector'!F161) -> 65737.57761 | H161: 65.73757761
D162: 159 | E162: =10*('Frequency vector'!$C$3)^D162 -> 33.88441561 | F162: =IF('CM choke'!B166=0, F161, 'CM choke'!B166) -> 67502.34287 | G162: =IF(CMdata=1,'Frequency vector'!E162,'Frequency vector'!F162) -> 67502.34287 | H162: 67.50234287
D163: 160 | E163: =10*('Frequency vector'!$C$3)^D163 -> 34.14548874 | F163: =IF('CM choke'!B167=0, F162, 'CM choke'!B167) -> 69314.48432 | G163: =IF(CMdata=1,'Frequency vector'!E163,'Frequency vector'!F163) -> 69314.48432 | H163: 69.31448432
D164: 161 | E164: =10*('Frequency vector'!$C$3)^D164 -> 34.40857338 | F164: =IF('CM choke'!B168=0, F163, 'CM choke'!B168) -> 71175.2738 | G164: =IF(CMdata=1,'Frequency vector'!E164,'Frequency vector'!F164) -> 71175.2738 | H164: 71.1752738
D165: 162 | E165: =10*('Frequency vector'!$C$3)^D165 -> 34.67368505 | F165: =IF('CM choke'!B169=0, F164, 'CM choke'!B169) -> 73086.01732 | G165: =IF(CMdata=1,'Frequency vector'!E165,'Frequency vector'!F165) -> 73086.01732 | H165: 73.08601732
D166: 163 | E166: =10*('Frequency vector'!$C$3)^D166 -> 34.94083934 | F166: =IF('CM choke'!B170=0, F165, 'CM choke'!B170) -> 75048.0559 | G166: =IF(CMdata=1,'Frequency vector'!E166,'Frequency vector'!F166) -> 75048.0559 | H166: 75.0480559
D167: 164 | E167: =10*('Frequency vector'!$C$3)^D167 -> 35.21005202 | F167: =IF('CM choke'!B171=0, F166, 'CM choke'!B171) -> 77062.76661 | G167: =IF(CMdata=1,'Frequency vector'!E167,'Frequency vector'!F167) -> 77062.76661 | H167: 77.06276661
D168: 165 | E168: =10*('Frequency vector'!$C$3)^D168 -> 35.48133892 | F168: =IF('CM choke'!B172=0, F167, 'CM choke'!B172) -> 79131.56345 | G168: =IF(CMdata=1,'Frequency vector'!E168,'Frequency vector'!F168) -> 79131.56345 | H168: 79.13156345
D169: 166 | E169: =10*('Frequency vector'!$C$3)^D169 -> 35.75471605 | F169: =IF('CM choke'!B173=0, F168, 'CM choke'!B173) -> 81255.8984 | G169: =IF(CMdata=1,'Frequency vector'!E169,'Frequency vector'!F169) -> 81255.8984 | H169: 81.2558984
D170: 167 | E170: =10*('Frequency vector'!$C$3)^D170 -> 36.03019949 | F170: =IF('CM choke'!B174=0, F169, 'CM choke'!B174) -> 83437.26241 | G170: =IF(CMdata=1,'Frequency vector'!E170,'Frequency vector'!F170) -> 83437.26241 | H170: 83.43726241
D171: 168 | E171: =10*('Frequency vector'!$C$3)^D171 -> 36.30780548 | F171: =IF('CM choke'!B175=0, F170, 'CM choke'!B175) -> 85677.18647 | G171: =IF(CMdata=1,'Frequency vector'!E171,'Frequency vector'!F171) -> 85677.18647 | H171: 85.67718647
D172: 169 | E172: =10*('Frequency vector'!$C$3)^D172 -> 36.58755037 | F172: =IF('CM choke'!B176=0, F171, 'CM choke'!B176) -> 87977.24265 | G172: =IF(CMdata=1,'Frequency vector'!E172,'Frequency vector'!F172) -> 87977.24265 | H172: 87.97724265
D173: 170 | E173: =10*('Frequency vector'!$C$3)^D173 -> 36.86945065 | F173: =IF('CM choke'!B177=0, F172, 'CM choke'!B177) -> 90339.04523 | G173: =IF(CMdata=1,'Frequency vector'!E173,'Frequency vector'!F173) -> 90339.04523 | H173: 90.33904523
D174: 171 | E174: =10*('Frequency vector'!$C$3)^D174 -> 37.15352291 | F174: =IF('CM choke'!B178=0, F173, 'CM choke'!B178) -> 92764.25185 | G174: =IF(CMdata=1,'Frequency vector'!E174,'Frequency vector'!F174) -> 92764.25185 | H174: 92.76425185
D175: 172 | E175: =10*('Frequency vector'!$C$3)^D175 -> 37.4397839 | F175: =IF('CM choke'!B179=0, F174, 'CM choke'!B179) -> 95254.56461 | G175: =IF(CMdata=1,'Frequency vector'!E175,'Frequency vector'!F175) -> 95254.56461 | H175: 95.25456461
D176: 173 | E176: =10*('Frequency vector'!$C$3)^D176 -> 37.72825047 | F176: =IF('CM choke'!B180=0, F175, 'CM choke'!B180) -> 97811.73133 | G176: =IF(CMdata=1,'Frequency vector'!E176,'Frequency vector'!F176) -> 97811.73133 | H176: 97.81173133
D177: 174 | E177: =10*('Frequency vector'!$C$3)^D177 -> 38.01893963 | F177: =IF('CM choke'!B181=0, F176, 'CM choke'!B181) -> 100437.5467 | G177: =IF(CMdata=1,'Frequency vector'!E177,'Frequency vector'!F177) -> 100437.5467 | H177: 100.4375467
D178: 175 | E178: =10*('Frequency vector'!$C$3)^D178 -> 38.3118685 | F178: =IF('CM choke'!B182=0, F177, 'CM choke'!B182) -> 103133.8538 | G178: =IF(CMdata=1,'Frequency vector'!E178,'Frequency vector'!F178) -> 103133.8538 | H178: 103.1338538
D179: 176 | E179: =10*('Frequency vector'!$C$3)^D179 -> 38.60705432 | F179: =IF('CM choke'!B183=0, F178, 'CM choke'!B183) -> 105902.5448 | G179: =IF(CMdata=1,'Frequency vector'!E179,'Frequency vector'!F179) -> 105902.5448 | H179: 105.9025448
D180: 177 | E180: =10*('Frequency vector'!$C$3)^D180 -> 38.9045145 | F180: =IF('CM choke'!B184=0, F179, 'CM choke'!B184) -> 108745.563 | G180: =IF(CMdata=1,'Frequency vector'!E180,'Frequency vector'!F180) -> 108745.563 | H180: 108.745563
D181: 178 | E181: =10*('Frequency vector'!$C$3)^D181 -> 39.20426655 | F181: =IF('CM choke'!B185=0, F180, 'CM choke'!B185) -> 111664.9038 | G181: =IF(CMdata=1,'Frequency vector'!E181,'Frequency vector'!F181) -> 111664.9038 | H181: 111.6649038
D182: 179 | E182: =10*('Frequency vector'!$C$3)^D182 -> 39.50632814 | F182: =IF('CM choke'!B186=0, F181, 'CM choke'!B186) -> 114662.6161 | G182: =IF(CMdata=1,'Frequency vector'!E182,'Frequency vector'!F182) -> 114662.6161 | H182: 114.6626161
D183: 180 | E183: =10*('Frequency vector'!$C$3)^D183 -> 39.81071706 | F183: =IF('CM choke'!B187=0, F182, 'CM choke'!B187) -> 117740.8037 | G183: =IF(CMdata=1,'Frequency vector'!E183,'Frequency vector'!F183) -> 117740.8037 | H183: 117.7408037
D184: 181 | E184: =10*('Frequency vector'!$C$3)^D184 -> 40.11745123 | F184: =IF('CM choke'!B188=0, F183, 'CM choke'!B188) -> 120901.6272 | G184: =IF(CMdata=1,'Frequency vector'!E184,'Frequency vector'!F184) -> 120901.6272 | H184: 120.9016272
D185: 182 | E185: =10*('Frequency vector'!$C$3)^D185 -> 40.42654874 | F185: =IF('CM choke'!B189=0, F184, 'CM choke'!B189) -> 124147.3049 | G185: =IF(CMdata=1,'Frequency vector'!E185,'Frequency vector'!F185) -> 124147.3049 | H185: 124.1473049
D186: 183 | E186: =10*('Frequency vector'!$C$3)^D186 -> 40.73802778 | F186: =IF('CM choke'!B190=0, F185, 'CM choke'!B190) -> 127480.1148 | G186: =IF(CMdata=1,'Frequency vector'!E186,'Frequency vector'!F186) -> 127480.1148 | H186: 127.4801148
D187: 184 | E187: =10*('Frequency vector'!$C$3)^D187 -> 41.05190671 | F187: =IF('CM choke'!B191=0, F186, 'CM choke'!B191) -> 130902.3961 | G187: =IF(CMdata=1,'Frequency vector'!E187,'Frequency vector'!F187) -> 130902.3961 | H187: 130.9023961
D188: 185 | E188: =10*('Frequency vector'!$C$3)^D188 -> 41.36820402 | F188: =IF('CM choke'!B192=0, F187, 'CM choke'!B192) -> 134416.5505 | G188: =IF(CMdata=1,'Frequency vector'!E188,'Frequency vector'!F188) -> 134416.5505 | H188: 134.4165505
D189: 186 | E189: =10*('Frequency vector'!$C$3)^D189 -> 41.68693835 | F189: =IF('CM choke'!B193=0, F188, 'CM choke'!B193) -> 138025.0445 | G189: =IF(CMdata=1,'Frequency vector'!E189,'Frequency vector'!F189) -> 138025.0445 | H189: 138.0250445
D190: 187 | E190: =10*('Frequency vector'!$C$3)^D190 -> 42.00812846 | F190: =IF('CM choke'!B194=0, F189, 'CM choke'!B194) -> 141730.4108 | G190: =IF(CMdata=1,'Frequency vector'!E190,'Frequency vector'!F190) -> 141730.4108 | H190: 141.7304108
D191: 188 | E191: =10*('Frequency vector'!$C$3)^D191 -> 42.33179328 | F191: =IF('CM choke'!B195=0, F190, 'CM choke'!B195) -> 145535.2499 | G191: =IF(CMdata=1,'Frequency vector'!E191,'Frequency vector'!F191) -> 145535.2499 | H191: 145.5352499
D192: 189 | E192: =10*('Frequency vector'!$C$3)^D192 -> 42.65795188 | F192: =IF('CM choke'!B196=0, F191, 'CM choke'!B196) -> 149442.2322 | G192: =IF(CMdata=1,'Frequency vector'!E192,'Frequency vector'!F192) -> 149442.2322 | H192: 149.4422322
D193: 190 | E193: =10*('Frequency vector'!$C$3)^D193 -> 42.98662347 | F193: =IF('CM choke'!B197=0, F192, 'CM choke'!B197) -> 153454.0998 | G193: =IF(CMdata=1,'Frequency vector'!E193,'Frequency vector'!F193) -> 153454.0998 | H193: 153.4540998
D194: 191 | E194: =10*('Frequency vector'!$C$3)^D194 -> 43.31782742 | F194: =IF('CM choke'!B198=0, F193, 'CM choke'!B198) -> 157573.6684 | G194: =IF(CMdata=1,'Frequency vector'!E194,'Frequency vector'!F194) -> 157573.6684 | H194: 157.5736684
D195: 192 | E195: =10*('Frequency vector'!$C$3)^D195 -> 43.65158322 | F195: =IF('CM choke'!B199=0, F194, 'CM choke'!B199) -> 161803.8294 | G195: =IF(CMdata=1,'Frequency vector'!E195,'Frequency vector'!F195) -> 161803.8294 | H195: 161.8038294
D196: 193 | E196: =10*('Frequency vector'!$C$3)^D196 -> 43.98791056 | F196: =IF('CM choke'!B200=0, F195, 'CM choke'!B200) -> 166147.5516 | G196: =IF(CMdata=1,'Frequency vector'!E196,'Frequency vector'!F196) -> 166147.5516 | H196: =G196/1000 -> 166.1475516
D197: 194 | E197: =10*('Frequency vector'!$C$3)^D197 -> 44.32682923 | F197: =IF('CM choke'!B201=0, F196, 'CM choke'!B201) -> 170607.8837 | G197: =IF(CMdata=1,'Frequency vector'!E197,'Frequency vector'!F197) -> 170607.8837 | H197: 170.6078837
D198: 195 | E198: =10*('Frequency vector'!$C$3)^D198 -> 44.66835922 | F198: =IF('CM choke'!B202=0, F197, 'CM choke'!B202) -> 175187.9561 | G198: =IF(CMdata=1,'Frequency vector'!E198,'Frequency vector'!F198) -> 175187.9561 | H198: 175.1879561
D199: 196 | E199: =10*('Frequency vector'!$C$3)^D199 -> 45.01252062 | F199: =IF('CM choke'!B203=0, F198, 'CM choke'!B203) -> 179890.9833 | G199: =IF(CMdata=1,'Frequency vector'!E199,'Frequency vector'!F199) -> 179890.9833 | H199: 179.8909833
D200: 197 | E200: =10*('Frequency vector'!$C$3)^D200 -> 45.35933373 | F200: =IF('CM choke'!B204=0, F199, 'CM choke'!B204) -> 184720.2662 | G200: =IF(CMdata=1,'Frequency vector'!E200,'Frequency vector'!F200) -> 184720.2662 | H200: 184.7202662
D201: 198 | E201: =10*('Frequency vector'!$C$3)^D201 -> 45.70881896 | F201: =IF('CM choke'!B205=0, F200, 'CM choke'!B205) -> 189679.1941 | G201: =IF(CMdata=1,'Frequency vector'!E201,'Frequency vector'!F201) -> 189679.1941 | H201: 189.6791941
... 1902 more rows

Sheet Choke impedance calculations (hidden)
C1: ZL1 (mag, phase) | E1: ZL2 (mag, phase) | G1: ZL1 (real, imag) | I1: ZL2 (real, imag) | K1: ZL1 (complex) | L1: ZL2 (complex)
A2: freq_selected [Hz] | B2: j*w [rad] | C2: ZL1_mag [Ω] | D2: ZL1_phase [°] | E2: ZL2_mag [Ω] | F2: ZL2_phase [°] | G2: ZL1_real [Ω] | H2: ZL1_imag [Ω] | I2: ZL2_real [Ω] | J2: ZL2_imag [Ω] | K2: Zch1 [Ω] | L2: Zch2 [Ω]
A3: ='Frequency vector'!G3 -> 1000 | B3: =COMPLEX(0,2*PI()*'Frequency vector'!G3,"j") -> 6283.18530717959j | C3: =IF(CMdata=1,IMABS(K3),'CM choke'!C7) -> 1.872866283 | D3: =IF(CMdata=1,DEGREES(IMARGUMENT(K3)),'CM choke'!D7) -> 89.04283127 | E3: =IF(CMdata=1,IMABS(L3),'CM choke'!E7) -> 1.872866283 | F3: =IF(CMdata=1,DEGREES(IMARGUMENT(L3)),'CM choke'!F7) -> 89.04283127 | G3: =C3*COS(RADIANS(D3)) -> 0.03128617298 | H3: =C3*SIN(RADIANS(D3)) -> 1.872604948 | I3: =E3*COS(RADIANS(F3)) -> 0.03128617298 | J3: =E3*SIN(RADIANS(F3)) -> 1.872604948 | K3: =IF(CMdata=1,IMDIV(1,IMSUM(IMDIV(1,IMPRODUCT(B3,'Design the AEF circuit'!$G$13*0.001)),IMDIV(1,'Design the AEF circuit'!$H$13*1000),IMPRODUCT(B3,'Design the AEF circuit'!$I$13*0.000000000001))),COMPLEX(G3,H3,"j")) -> 0.0312861729796411+1.87260494787392j | L3: =IF(CMdata=1,IMDIV(1, IMSUM(IMDIV(1,IMPRODUCT(B3,'Design the AEF circuit'!$G$14*0.001)), IMDIV(1,'Design the AEF circuit'!$H$14*1000), IMPRODUCT(B3,'Design the AEF circuit'!$I$14*0.000000000001))), COMPLEX(I3,J3,"j")) -> 0.0312861729796411+1.87260494787392j
A4: ='Frequency vector'!G4 -> 1026.845608 | B4: =COMPLEX(0,2*PI()*'Frequency vector'!G4,"j") -> 6451.86123819349j | C4: =IF(IF(CMdata=1,IMABS(K4),'CM choke'!C8)=0, C3, IF(CMdata=1,IMABS(K4),'CM choke'!C8)) -> 1.9289448 | D4: =IF(IF(CMdata=1,DEGREES(IMARGUMENT(K4)),'CM choke'!D8)=0, D3, IF(CMdata=1,DEGREES(IMARGUMENT(K4)),'CM choke'!D8)) -> 89.0529178 | E4: =IF(IF(CMdata=1,IMABS(L4),'CM choke'!E8)=0, E3, IF(CMdata=1,IMABS(L4),'CM choke'!E8)) -> 1.9289448 | F4: =IF(IF(CMdata=1,DEGREES(IMARGUMENT(L4)),'CM choke'!F8)=0, F3, IF(CMdata=1,DEGREES(IMARGUMENT(L4)),'CM choke'!F8)) -> 89.0529178 | G4: =C4*COS(RADIANS(D4)) -> 0.0318834322 | H4: 1.928681282 | I4: 0.0318834322 | J4: 1.928681282 | K4: =IF(CMdata=1,IMDIV(1,IMSUM(IMDIV(1,IMPRODUCT(B4,'Design the AEF circuit'!$G$13*0.001)),IMDIV(1,'Design the AEF circuit'!$H$13*1000),IMPRODUCT(B4,'Design the AEF circuit'!$I$13*0.000000000001))),COMPLEX(G4,H4,"j")) -> 0.0318834321959073+1.92868128179138j | L4: =IF(CMdata=1,IMDIV(1,IMSUM(IMDIV(1,IMPRODUCT(B4,'Design the AEF circuit'!$G$14*0.001)),IMDIV(1,'Design the AEF circuit'!$H$14*1000),IMPRODUCT(B4,'Design the AEF circuit'!$I$14*0.000000000001))),COMPLEX(I4,J4,"j")) -> 0.0318834321959073+1.92868128179138j
A5: ='Frequency vector'!G5 -> 1054.411903 | B5: =COMPLEX(0,2*PI()*'Frequency vector'!G5,"j") -> 6625.06537716442j | C5: =IF(IF(CMdata=1,IMABS(K5),'CM choke'!C9)=0, C4, IF(CMdata=1,IMABS(K5),'CM choke'!C9)) -> 1.986641472 | D5: =IF(IF(CMdata=1,DEGREES(IMARGUMENT(K5)),'CM choke'!D9)=0, D4, IF(CMdata=1,DEGREES(IMARGUMENT(K5)),'CM choke'!D9)) -> 89.06976187 | E5: =IF(IF(CMdata=1,IMABS(L5),'CM choke'!E9)=0, E4, IF(CMdata=1,IMABS(L5),'CM choke'!E9)) -> 1.986641472 | F5: =IF(IF(CMdata=1,DEGREES(IMARGUMENT(L5)),'CM choke'!F9)=0, F4, IF(CMdata=1,DEGREES(IMARGUMENT(L5)),'CM choke'!F9)) -> 89.06976187 | G5: 0.03225313398 | H5: 1.986379639 | I5: 0.03225313398 | J5: 1.986379639 | K5: =IF(CMdata=1,IMDIV(1,IMSUM(IMDIV(1,IMPRODUCT(B5,'Design the AEF circuit'!$G$13*0.001)),IMDIV(1,'Design the AEF circuit'!$H$13*1000),IMPRODUCT(B5,'Design the AEF circuit'!$I$13*0.000000000001))),COMPLEX(G5,H5,"j")) -> 0.0322531339756612+1.98637963943207j | L5: =IF(CMdata=1,IMDIV(1,IMSUM(IMDIV(1,IMPRODUCT(B5,'Design the AEF circuit'!$G$14*0.001)),IMDIV(1,'Design the AEF circuit'!$H$14*1000),IMPRODUCT(B5,'Design the AEF circuit'!$I$14*0.000000000001))),COMPLEX(I5,J5,"j")) -> 0.0322531339756612+1.98637963943207j
A6: ='Frequency vector'!G6 -> 1082.718232 | B6: =COMPLEX(0,2*PI()*'Frequency vector'!G6,"j") -> 6802.919286589j | C6: =IF(IF(CMdata=1,IMABS(K6),'CM choke'!C10)=0, C5, IF(CMdata=1,IMABS(K6),'CM choke'!C10)) -> 2.045552943 | D6: =IF(IF(CMdata=1,DEGREES(IMARGUMENT(K6)),'CM choke'!D10)=0, D5, IF(CMdata=1,DEGREES(IMARGUMENT(K6)),'CM choke'!D10)) -> 89.08204363 | E6: =IF(IF(CMdata=1,IMABS(L6),'CM choke'!E10)=0, E5, IF(CMdata=1,IMABS(L6),'CM choke'!E10)) -> 2.045552943 | F6: =IF(IF(CMdata=1,DEGREES(IMARGUMENT(L6)),'CM choke'!F10)=0, F5, IF(CMdata=1,DEGREES(IMARGUMENT(L6)),'CM choke'!F10)) -> 89.08204363 | G6: 0.03277114029 | H6: 2.045290418 | I6: 0.03277114029 | J6: 2.045290418 | K6: =IF(CMdata=1,IMDIV(1,IMSUM(IMDIV(1,IMPRODUCT(B6,'Design the AEF circuit'!$G$13*0.001)),IMDIV(1,'Design the AEF circuit'!$H$13*1000),IMPRODUCT(B6,'Design the AEF circuit'!$I$13*0.000000000001))),COMPLEX(G6,H6,"j")) -> 0.0327711402881013+2.04529041791872j | L6: =IF(CMdata=1,IMDIV(1,IMSUM(IMDIV(1,IMPRODUCT(B6,'Design the AEF circuit'!$G$14*0.001)),IMDIV(1,'Design the AEF circuit'!$H$14*1000),IMPRODUCT(B6,'Design the AEF circuit'!$I$14*0.000000000001))),COMPLEX(I6,J6,"j")) -> 0.0327711402881013+2.04529041791872j
A7: ='Frequency vector'!G7 -> 1111.784461 | B7: =COMPLEX(0,2*PI()*'Frequency vector'!G7,"j") -> 6985.54779238312j | C7: =IF(IF(CMdata=1,IMABS(K7),'CM choke'!C11)=0, C6, IF(CMdata=1,IMABS(K7),'CM choke'!C11)) -> 2.106618755 | D7: =IF(IF(CMdata=1,DEGREES(IMARGUMENT(K7)),'CM choke'!D11)=0, D6, IF(CMdata=1,DEGREES(IMARGUMENT(K7)),'CM choke'!D11)) -> 89.09659755 | E7: =IF(IF(CMdata=1,IMABS(L7),'CM choke'!E11)=0, E6, IF(CMdata=1,IMABS(L7),'CM choke'!E11)) -> 2.106618755 | F7: =IF(IF(CMdata=1,DEGREES(IMARGUMENT(L7)),'CM choke'!F11)=0, F6, IF(CMdata=1,DEGREES(IMARGUMENT(L7)),'CM choke'!F11)) -> 89.09659755 | G7: 0.03321441323 | H7: 2.106356898 | I7: 0.03321441323 | J7: 2.106356898 | K7: =IF(CMdata=1,IMDIV(1,IMSUM(IMDIV(1,IMPRODUCT(B7,'Design the AEF circuit'!$G$13*0.001)),IMDIV(1,'Design the AEF circuit'!$H$13*1000),IMPRODUCT(B7,'Design the AEF circuit'!$I$13*0.000000000001))),COMPLEX(G7,H7,"j")) -> 0.033214413230663+2.10635689799085j | L7: =IF(CMdata=1,IMDIV(1,IMSUM(IMDIV(1,IMPRODUCT(B7,'Design the AEF circuit'!$G$14*0.001)),IMDIV(1,'Design the AEF circuit'!$H$14*1000),IMPRODUCT(B7,'Design the AEF circuit'!$I$14*0.000000000001))),COMPLEX(I7,J7,"j")) -> 0.033214413230663+2.10635689799085j
A8: ='Frequency vector'!G8 -> 1141.630991 | B8: =COMPLEX(0,2*PI()*'Frequency vector'!G8,"j") -> 7173.07907149021j | C8: =IF(IF(CMdata=1,IMABS(K8),'CM choke'!C12)=0, C7, IF(CMdata=1,IMABS(K8),'CM choke'!C12)) -> 2.169130775 | D8: =IF(IF(CMdata=1,DEGREES(IMARGUMENT(K8)),'CM choke'!D12)=0, D7, IF(CMdata=1,DEGREES(IMARGUMENT(K8)),'CM choke'!D12)) -> 89.10888324 | E8: =IF(IF(CMdata=1,IMABS(L8),'CM choke'!E12)=0, E7, IF(CMdata=1,IMABS(L8),'CM choke'!E12)) -> 2.169130775 | F8: =IF(IF(CMdata=1,DEGREES(IMARGUMENT(L8)),'CM choke'!F12)=0, F7, IF(CMdata=1,DEGREES(IMARGUMENT(L8)),'CM choke'!F12)) -> 89.10888324 | G8: 0.03373496066 | H8: 2.168868431 | I8: 0.03373496066 | J8: 2.168868431 | K8: =IF(CMdata=1,IMDIV(1,IMSUM(IMDIV(1,IMPRODUCT(B8,'Design the AEF circuit'!$G$13*0.001)),IMDIV(1,'Design the AEF circuit'!$H$13*1000),IMPRODUCT(B8,'Design the AEF circuit'!$I$13*0.000000000001))),COMPLEX(G8,H8,"j")) -> 0.0337349606565727+2.16886843099368j | L8: =IF(CMdata=1,IMDIV(1,IMSUM(IMDIV(1,IMPRODUCT(B8,'Design the AEF circuit'!$G$14*0.001)),IMDIV(1,'Design the AEF circuit'!$H$14*1000),IMPRODUCT(B8,'Design the AEF circuit'!$I$14*0.000000000001))),COMPLEX(I8,J8,"j")) -> 0.0337349606565727+2.16886843099368j
A9: ='Frequency vector'!G9 -> 1172.27877 | B9: =COMPLEX(0,2*PI()*'Frequency vector'!G9,"j") -> 7365.64474184174j | C9: =IF(IF(CMdata=1,IMABS(K9),'CM choke'!C13)=0, C8, IF(CMdata=1,IMABS(K9),'CM choke'!C13)) -> 2.233732228 | D9: =IF(IF(CMdata=1,DEGREES(IMARGUMENT(K9)),'CM choke'!D13)=0, D8, IF(CMdata=1,DEGREES(IMARGUMENT(K9)),'CM choke'!D13)) -> 89.11851789 | E9: =IF(IF(CMdata=1,IMABS(L9),'CM choke'!E13)=0, E8, IF(CMdata=1,IMABS(L9),'CM choke'!E13)) -> 2.233732228 | F9: =IF(IF(CMdata=1,DEGREES(IMARGUMENT(L9)),'CM choke'!F13)=0, F8, IF(CMdata=1,DEGREES(IMARGUMENT(L9)),'CM choke'!F13)) -> 89.11851789 | G9: 0.03436408994 | H9: 2.233467881 | I9: 0.03436408994 | J9: 2.233467881 | K9: =IF(CMdata=1,IMDIV(1,IMSUM(IMDIV(1,IMPRODUCT(B9,'Design the AEF circuit'!$G$13*0.001)),IMDIV(1,'Design the AEF circuit'!$H$13*1000),IMPRODUCT(B9,'Design the AEF circuit'!$I$13*0.000000000001))),COMPLEX(G9,H9,"j")) -> 0.0343640899430106+2.23346788084033j | L9: =IF(CMdata=1,IMDIV(1,IMSUM(IMDIV(1,IMPRODUCT(B9,'Design the AEF circuit'!$G$14*0.001)),IMDIV(1,'Design the AEF circuit'!$H$14*1000),IMPRODUCT(B9,'Design the AEF circuit'!$I$14*0.000000000001))),COMPLEX(I9,J9,"j")) -> 0.0343640899430106+2.23346788084033j
A10: ='Frequency vector'!G10 -> 1203.749306 | B10: =COMPLEX(0,2*PI()*'Frequency vector'!G10,"j") -> 7563.37995473261j | C10: =IF(IF(CMdata=1,IMABS(K10),'CM choke'!C14)=0, C9, IF(CMdata=1,IMABS(K10),'CM choke'!C14)) -> 2.300075186 | D10: =IF(IF(CMdata=1,DEGREES(IMARGUMENT(K10)),'CM choke'!D14)=0, D9, IF(CMdata=1,DEGREES(IMARGUMENT(K10)),'CM choke'!D14)) -> 89.13234717 | E10: =IF(IF(CMdata=1,IMABS(L10),'CM choke'!E14)=0, E9, IF(CMdata=1,IMABS(L10),'CM choke'!E14)) -> 2.300075186 | F10: =IF(IF(CMdata=1,DEGREES(IMARGUMENT(L10)),'CM choke'!F14)=0, F9, IF(CMdata=1,DEGREES(IMARGUMENT(L10)),'CM choke'!F14)) -> 89.13234717 | G10: 0.0348296242 | H10: 2.299811461 | I10: 0.0348296242 | J10: 2.299811461 | K10: =IF(CMdata=1,IMDIV(1,IMSUM(IMDIV(1,IMPRODUCT(B10,'Design the AEF circuit'!$G$13*0.001)),IMDIV(1,'Design the AEF circuit'!$H$13*1000),IMPRODUCT(B10,'Design the AEF circuit'!$I$13*0.000000000001))),COMPLEX(G10,H10,"j")) -> 0.0348296242012322+2.29981146114826j | L10: =IF(CMdata=1,IMDIV(1,IMSUM(IMDIV(1,IMPRODUCT(B10,'Design the AEF circuit'!$G$14*0.001)),IMDIV(1,'Design the AEF circuit'!$H$14*1000),IMPRODUCT(B10,'Design the AEF circuit'!$I$14*0.000000000001))),COMPLEX(I10,J10,"j")) -> 0.0348296242012322+2.29981146114826j
A11: ='Frequency vector'!G11 -> 1236.064689 | B11: =COMPLEX(0,2*PI()*'Frequency vector'!G11,"j") -> 7766.42348967636j | C11: =IF(IF(CMdata=1,IMABS(K11),'CM choke'!C15)=0, C10, IF(CMdata=1,IMABS(K11),'CM choke'!C15)) -> 2.368346063 | D11: =IF(IF(CMdata=1,DEGREES(IMARGUMENT(K11)),'CM choke'!D15)=0, D10, IF(CMdata=1,DEGREES(IMARGUMENT(K11)),'CM choke'!D15)) -> 89.1469126 | E11: =IF(IF(CMdata=1,IMABS(L11),'CM choke'!E15)=0, E10, IF(CMdata=1,IMABS(L11),'CM choke'!E15)) -> 2.368346063 | F11: =IF(IF(CMdata=1,DEGREES(IMARGUMENT(L11)),'CM choke'!F15)=0, F10, IF(CMdata=1,DEGREES(IMARGUMENT(L11)),'CM choke'!F15)) -> 89.1469126 | G11: 0.03526143718 | H11: 2.368083552 | I11: 0.03526143718 | J11: 2.368083552 | K11: =IF(CMdata=1,IMDIV(1,IMSUM(IMDIV(1,IMPRODUCT(B11,'Design the AEF circuit'!$G$13*0.001)),IMDIV(1,'Design the AEF circuit'!$H$13*1000),IMPRODUCT(B11,'Design the AEF circuit'!$I$13*0.000000000001))),COMPLEX(G11,H11,"j")) -> 0.0352614371814006+2.36808355153913j | L11: =IF(CMdata=1,IMDIV(1,IMSUM(IMDIV(1,IMPRODUCT(B11,'Design the AEF circuit'!$G$14*0.001)),IMDIV(1,'Design the AEF circuit'!$H$14*1000),IMPRODUCT(B11,'Design the AEF circuit'!$I$14*0.000000000001))),COMPLEX(I11,J11,"j")) -> 0.0352614371814006+2.36808355153913j
A12: ='Frequency vector'!G12 -> 1269.247597 | B12: =COMPLEX(0,2*PI()*'Frequency vector'!G12,"j") -> 7974.91785180704j | C12: =IF(IF(CMdata=1,IMABS(K12),'CM choke'!C16)=0, C11, IF(CMdata=1,IMABS(K12),'CM choke'!C16)) -> 2.438714286 | D12: =IF(IF(CMdata=1,DEGREES(IMARGUMENT(K12)),'CM choke'!D16)=0, D11, IF(CMdata=1,DEGREES(IMARGUMENT(K12)),'CM choke'!D16)) -> 89.15535446 | E12: =IF(IF(CMdata=1,IMABS(L12),'CM choke'!E16)=0, E11, IF(CMdata=1,IMABS(L12),'CM choke'!E16)) -> 2.438714286 | F12: =IF(IF(CMdata=1,DEGREES(IMARGUMENT(L12)),'CM choke'!F16)=0, F11, IF(CMdata=1,DEGREES(IMARGUMENT(L12)),'CM choke'!F16)) -> 89.15535446 | G12: 0.03594984759 | H12: 2.438449297 | I12: 0.03594984759 | J12: 2.438449297 | K12: =IF(CMdata=1,IMDIV(1,IMSUM(IMDIV(1,IMPRODUCT(B12,'Design the AEF circuit'!$G$13*0.001)),IMDIV(1,'Design the AEF circuit'!$H$13*1000),IMPRODUCT(B12,'Design the AEF circuit'!$I$13*0.000000000001))),COMPLEX(G12,H12,"j")) -> 0.0359498475936385+2.43844929731765j | L12: =IF(CMdata=1,IMDIV(1,IMSUM(IMDIV(1,IMPRODUCT(B12,'Design the AEF circuit'!$G$14*0.001)),IMDIV(1,'Design the AEF circuit'!$H$14*1000),IMPRODUCT(B12,'Design the AEF circuit'!$I$14*0.000000000001))),COMPLEX(I12,J12,"j")) -> 0.0359498475936385+2.43844929731765j
A13: ='Frequency vector'!G13 -> 1303.321321 | B13: =COMPLEX(0,2*PI()*'Frequency vector'!G13,"j") -> 8189.00937189571j | C13: =IF(IF(CMdata=1,IMABS(K13),'CM choke'!C17)=0, C12, IF(CMdata=1,IMABS(K13),'CM choke'!C17)) -> 2.511120359 | D13: =IF(IF(CMdata=1,DEGREES(IMARGUMENT(K13)),'CM choke'!D17)=0, D12, IF(CMdata=1,DEGREES(IMARGUMENT(K13)),'CM choke'!D17)) -> 89.16725118 | E13: =IF(IF(CMdata=1,IMABS(L13),'CM choke'!E17)=0, E12, IF(CMdata=1,IMABS(L13),'CM choke'!E17)) -> 2.511120359 | F13: =IF(IF(CMdata=1,DEGREES(IMARGUMENT(L13)),'CM choke'!F17)=0, F12, IF(CMdata=1,DEGREES(IMARGUMENT(L13)),'CM choke'!F17)) -> 89.16725118 | G13: 0.0364958624 | H13: 2.510855135 | I13: 0.0364958624 | J13: 2.510855135 | K13: =IF(CMdata=1,IMDIV(1,IMSUM(IMDIV(1,IMPRODUCT(B13,'Design the AEF circuit'!$G$13*0.001)),IMDIV(1,'Design the AEF circuit'!$H$13*1000),IMPRODUCT(B13,'Design the AEF circuit'!$I$13*0.000000000001))),COMPLEX(G13,H13,"j")) -> 0.0364958624011191+2.51085513464076j | L13: =IF(CMdata=1,IMDIV(1,IMSUM(IMDIV(1,IMPRODUCT(B13,'Design the AEF circuit'!$G$14*0.001)),IMDIV(1,'Design the AEF circuit'!$H$14*1000),IMPRODUCT(B13,'Design the AEF circuit'!$I$14*0.000000000001))),COMPLEX(I13,J13,"j")) -> 0.0364958624011191+2.51085513464076j
A14: ='Frequency vector'!G14 -> 1338.309774 | B14: =COMPLEX(0,2*PI()*'Frequency vector'!G14,"j") -> 8408.84830905199j | C14: =IF(IF(CMdata=1,IMABS(K14),'CM choke'!C18)=0, C13, IF(CMdata=1,IMABS(K14),'CM choke'!C18)) -> 2.585731448 | D14: =IF(IF(CMdata=1,DEGREES(IMARGUMENT(K14)),'CM choke'!D18)=0, D13, IF(CMdata=1,DEGREES(IMARGUMENT(K14)),'CM choke'!D18)) -> 89.17959487 | E14: =IF(IF(CMdata=1,IMABS(L14),'CM choke'!E18)=0, E13, IF(CMdata=1,IMABS(L14),'CM choke'!E18)) -> 2.585731448 | F14: =IF(IF(CMdata=1,DEGREES(IMARGUMENT(L14)),'CM choke'!F18)=0, F13, IF(CMdata=1,DEGREES(IMARGUMENT(L14)),'CM choke'!F18)) -> 89.17959487 | G14: 0.03702323051 | H14: 2.58546638 | I14: 0.03702323051 | J14: 2.58546638 | K14: =IF(CMdata=1,IMDIV(1,IMSUM(IMDIV(1,IMPRODUCT(B14,'Design the AEF circuit'!$G$13*0.001)),IMDIV(1,'Design the AEF circuit'!$H$13*1000),IMPRODUCT(B14,'Design the AEF circuit'!$I$13*0.000000000001))),COMPLEX(G14,H14,"j")) -> 0.0370232305077302+2.58546637980723j | L14: =IF(CMdata=1,IMDIV(1,IMSUM(IMDIV(1,IMPRODUCT(B14,'Design the AEF circuit'!$G$14*0.001)),IMDIV(1,'Design the AEF circuit'!$H$14*1000),IMPRODUCT(B14,'Design the AEF circuit'!$I$14*0.000000000001))),COMPLEX(I14,J14,"j")) -> 0.0370232305077302+2.58546637980723j
A15: ='Frequency vector'!G15 -> 1374.237514 | B15: =COMPLEX(0,2*PI()*'Frequency vector'!G15,"j") -> 8634.58895618254j | C15: =IF(IF(CMdata=1,IMABS(K15),'CM choke'!C19)=0, C14, IF(CMdata=1,IMABS(K15),'CM choke'!C19)) -> 2.662449094 | D15: =IF(IF(CMdata=1,DEGREES(IMARGUMENT(K15)),'CM choke'!D19)=0, D14, IF(CMdata=1,DEGREES(IMARGUMENT(K15)),'CM choke'!D19)) -> 89.18742298 | E15: =IF(IF(CMdata=1,IMABS(L15),'CM choke'!E19)=0, E14, IF(CMdata=1,IMABS(L15),'CM choke'!E19)) -> 2.662449094 | F15: =IF(IF(CMdata=1,DEGREES(IMARGUMENT(L15)),'CM choke'!F19)=0, F14, IF(CMdata=1,DEGREES(IMARGUMENT(L15)),'CM choke'!F19)) -> 89.18742298 | G15: 0.03775797201 | H15: 2.662181345 | I15: 0.03775797201 | J15: 2.662181345 | K15: =IF(CMdata=1,IMDIV(1,IMSUM(IMDIV(1,IMPRODUCT(B15,'Design the AEF circuit'!$G$13*0.001)),IMDIV(1,'Design the AEF circuit'!$H$13*1000),IMPRODUCT(B15,'Design the AEF circuit'!$I$13*0.000000000001))),COMPLEX(G15,H15,"j")) -> 0.037757972011462+2.6621813450747j | L15: =IF(CMdata=1,IMDIV(1,IMSUM(IMDIV(1,IMPRODUCT(B15,'Design the AEF circuit'!$G$14*0.001)),IMDIV(1,'Design the AEF circuit'!$H$14*1000),IMPRODUCT(B15,'Design the AEF circuit'!$I$14*0.000000000001))),COMPLEX(I15,J15,"j")) -> 0.037757972011462+2.6621813450747j
A16: ='Frequency vector'!G16 -> 1411.129756 | B16: =COMPLEX(0,2*PI()*'Frequency vector'!G16,"j") -> 8866.38974828115j | C16: =IF(IF(CMdata=1,IMABS(K16),'CM choke'!C20)=0, C15, IF(CMdata=1,IMABS(K16),'CM choke'!C20)) -> 2.741450391 | D16: =IF(IF(CMdata=1,DEGREES(IMARGUMENT(K16)),'CM choke'!D20)=0, D15, IF(CMdata=1,DEGREES(IMARGUMENT(K16)),'CM choke'!D20)) -> 89.20199606 | E16: =IF(IF(CMdata=1,IMABS(L16),'CM choke'!E20)=0, E15, IF(CMdata=1,IMABS(L16),'CM choke'!E20)) -> 2.741450391 | F16: =IF(IF(CMdata=1,DEGREES(IMARGUMENT(L16)),'CM choke'!F20)=0, F15, IF(CMdata=1,DEGREES(IMARGUMENT(L16)),'CM choke'!F20)) -> 89.20199606 | G16: 0.03818112792 | H16: 2.741184497 | I16: 0.03818112792 | J16: 2.741184497 | K16: =IF(CMdata=1,IMDIV(1,IMSUM(IMDIV(1,IMPRODUCT(B16,'Design the AEF circuit'!$G$13*0.001)),IMDIV(1,'Design the AEF circuit'!$H$13*1000),IMPRODUCT(B16,'Design the AEF circuit'!$I$13*0.000000000001))),COMPLEX(G16,H16,"j")) -> 0.0381811279156141+2.74118449676738j | L16: =IF(CMdata=1,IMDIV(1,IMSUM(IMDIV(1,IMPRODUCT(B16,'Design the AEF circuit'!$G$14*0.001)),IMDIV(1,'Design the AEF circuit'!$H$14*1000),IMPRODUCT(B16,'Design the AEF circuit'!$I$14*0.000000000001))),COMPLEX(I16,J16,"j")) -> 0.0381811279156141+2.74118449676738j
A17: ='Frequency vector'!G17 -> 1449.012392 | B17: =COMPLEX(0,2*PI()*'Frequency vector'!G17,"j") -> 9104.4133736252j | C17: =IF(IF(CMdata=1,IMABS(K17),'CM choke'!C21)=0, C16, IF(CMdata=1,IMABS(K17),'CM choke'!C21)) -> 2.823015771 | D17: =IF(IF(CMdata=1,DEGREES(IMARGUMENT(K17)),'CM choke'!D21)=0, D16, IF(CMdata=1,DEGREES(IMARGUMENT(K17)),'CM choke'!D21)) -> 89.20870765 | E17: =IF(IF(CMdata=1,IMABS(L17),'CM choke'!E21)=0, E16, IF(CMdata=1,IMABS(L17),'CM choke'!E21)) -> 2.823015771 | F17: =IF(IF(CMdata=1,DEGREES(IMARGUMENT(L17)),'CM choke'!F21)=0, F16, IF(CMdata=1,DEGREES(IMARGUMENT(L17)),'CM choke'!F21)) -> 89.20870765 | G17: 0.03898646263 | H17: 2.822746552 | I17: 0.03898646263 | J17: 2.822746552 | K17: =IF(CMdata=1,IMDIV(1,IMSUM(IMDIV(1,IMPRODUCT(B17,'Design the AEF circuit'!$G$13*0.001)),IMDIV(1,'Design the AEF circuit'!$H$13*1000),IMPRODUCT(B17,'Design the AEF circuit'!$I$13*0.000000000001))),COMPLEX(G17,H17,"j")) -> 0.0389864626255473+2.82274655231301j | L17: =IF(CMdata=1,IMDIV(1,IMSUM(IMDIV(1,IMPRODUCT(B17,'Design the AEF circuit'!$G$14*0.001)),IMDIV(1,'Design the AEF circuit'!$H$14*1000),IMPRODUCT(B17,'Design the AEF circuit'!$I$14*0.000000000001))),COMPLEX(I17,J17,"j")) -> 0.0389864626255473+2.82274655231301j
A18: ='Frequency vector'!G18 -> 1487.912011 | B18: =COMPLEX(0,2*PI()*'Frequency vector'!G18,"j") -> 9348.8268879579j | C18: =IF(IF(CMdata=1,IMABS(K18),'CM choke'!C22)=0, C17, IF(CMdata=1,IMABS(K18),'CM choke'!C22)) -> 2.906647422 | D18: =IF(IF(CMdata=1,DEGREES(IMARGUMENT(K18)),'CM choke'!D22)=0, D17, IF(CMdata=1,DEGREES(IMARGUMENT(K18)),'CM choke'!D22)) -> 89.21996327 | E18: =IF(IF(CMdata=1,IMABS(L18),'CM choke'!E22)=0, E17, IF(CMdata=1,IMABS(L18),'CM choke'!E22)) -> 2.906647422 | F18: =IF(IF(CMdata=1,DEGREES(IMARGUMENT(L18)),'CM choke'!F22)=0, F17, IF(CMdata=1,DEGREES(IMARGUMENT(L18)),'CM choke'!F22)) -> 89.21996327 | G18: 0.03957048377 | H18: 2.906378057 | I18: 0.03957048377 | J18: 2.906378057 | K18: =IF(CMdata=1,IMDIV(1,IMSUM(IMDIV(1,IMPRODUCT(B18,'Design the AEF circuit'!$G$13*0.001)),IMDIV(1,'Design the AEF circuit'!$H$13*1000),IMPRODUCT(B18,'Design the AEF circuit'!$I$13*0.000000000001))),COMPLEX(G18,H18,"j")) -> 0.0395704837721004+2.90637805727669j | L18: =IF(CMdata=1,IMDIV(1,IMSUM(IMDIV(1,IMPRODUCT(B18,'Design the AEF circuit'!$G$14*0.001)),IMDIV(1,'Design the AEF circuit'!$H$14*1000),IMPRODUCT(B18,'Design the AEF circuit'!$I$14*0.000000000001))),COMPLEX(I18,J18,"j")) -> 0.0395704837721004+2.90637805727669j
A19: ='Frequency vector'!G19 -> 1527.855914 | B19: =COMPLEX(0,2*PI()*'Frequency vector'!G19,"j") -> 9599.80183173559j | C19: =IF(IF(CMdata=1,IMABS(K19),'CM choke'!C23)=0, C18, IF(CMdata=1,IMABS(K19),'CM choke'!C23)) -> 2.993177345 | D19: =IF(IF(CMdata=1,DEGREES(IMARGUMENT(K19)),'CM choke'!D23)=0, D18, IF(CMdata=1,DEGREES(IMARGUMENT(K19)),'CM choke'!D23)) -> 89.22899303 | E19: =IF(IF(CMdata=1,IMABS(L19),'CM choke'!E23)=0, E18, IF(CMdata=1,IMABS(L19),'CM choke'!E23)) -> 2.993177345 | F19: =IF(IF(CMdata=1,DEGREES(IMARGUMENT(L19)),'CM choke'!F23)=0, F18, IF(CMdata=1,DEGREES(IMARGUMENT(L19)),'CM choke'!F23)) -> 89.22899303 | G19: 0.04027680502 | H19: 2.992906346 | I19: 0.04027680502 | J19: 2.992906346 | K19: =IF(CMdata=1,IMDIV(1,IMSUM(IMDIV(1,IMPRODUCT(B19,'Design the AEF circuit'!$G$13*0.001)),IMDIV(1,'Design the AEF circuit'!$H$13*1000),IMPRODUCT(B19,'Design the AEF circuit'!$I$13*0.000000000001))),COMPLEX(G19,H19,"j")) -> 0.0402768050214101+2.99290634596921j | L19: =IF(CMdata=1,IMDIV(1,IMSUM(IMDIV(1,IMPRODUCT(B19,'Design the AEF circuit'!$G$14*0.001)),IMDIV(1,'Design the AEF circuit'!$H$14*1000),IMPRODUCT(B19,'Design the AEF circuit'!$I$14*0.000000000001))),COMPLEX(I19,J19,"j")) -> 0.0402768050214101+2.99290634596921j
A20: ='Frequency vector'!G20 -> 1568.872135 | B20: =COMPLEX(0,2*PI()*'Frequency vector'!G20,"j") -> 9857.5143505223j | C20: =IF(IF(CMdata=1,IMABS(K20),'CM choke'!C24)=0, C19, IF(CMdata=1,IMABS(K20),'CM choke'!C24)) -> 3.081933166 | D20: =IF(IF(CMdata=1,DEGREES(IMARGUMENT(K20)),'CM choke'!D24)=0, D19, IF(CMdata=1,DEGREES(IMARGUMENT(K20)),'CM choke'!D24)) -> 89.23917585 | E20: =IF(IF(CMdata=1,IMABS(L20),'CM choke'!E24)=0, E19, IF(CMdata=1,IMABS(L20),'CM choke'!E24)) -> 3.081933166 | F20: =IF(IF(CMdata=1,DEGREES(IMARGUMENT(L20)),'CM choke'!F24)=0, F19, IF(CMdata=1,DEGREES(IMARGUMENT(L20)),'CM choke'!F24)) -> 89.23917585 | G20: 0.04092343769 | H20: 3.081661453 | I20: 0.04092343769 | J20: 3.081661453 | K20: =IF(CMdata=1,IMDIV(1,IMSUM(IMDIV(1,IMPRODUCT(B20,'Design the AEF circuit'!$G$13*0.001)),IMDIV(1,'Design the AEF circuit'!$H$13*1000),IMPRODUCT(B20,'Design the AEF circuit'!$I$13*0.000000000001))),COMPLEX(G20,H20,"j")) -> 0.0409234376897619+3.08166145307749j | L20: =IF(CMdata=1,IMDIV(1,IMSUM(IMDIV(1,IMPRODUCT(B20,'Design the AEF circuit'!$G$14*0.001)),IMDIV(1,'Design the AEF circuit'!$H$14*1000),IMPRODUCT(B20,'Design the AEF circuit'!$I$14*0.000000000001))),COMPLEX(I20,J20,"j")) -> 0.0409234376897619+3.08166145307749j
A21: ='Frequency vector'!G21 -> 1610.989462 | B21: =COMPLEX(0,2*PI()*'Frequency vector'!G21,"j") -> 10122.145318617j | C21: =IF(IF(CMdata=1,IMABS(K21),'CM choke'!C25)=0, C20, IF(CMdata=1,IMABS(K21),'CM choke'!C25)) -> 3.17318869 | D21: =IF(IF(CMdata=1,DEGREES(IMARGUMENT(K21)),'CM choke'!D25)=0, D20, IF(CMdata=1,DEGREES(IMARGUMENT(K21)),'CM choke'!D25)) -> 89.24556649 | E21: =IF(IF(CMdata=1,IMABS(L21),'CM choke'!E25)=0, E20, IF(CMdata=1,IMABS(L21),'CM choke'!E25)) -> 3.17318869 | F21: =IF(IF(CMdata=1,DEGREES(IMARGUMENT(L21)),'CM choke'!F25)=0, F20, IF(CMdata=1,DEGREES(IMARGUMENT(L21)),'CM choke'!F25)) -> 89.24556649 | G21: 0.04178127475 | H21: 3.172913611 | I21: 0.04178127475 | J21: 3.172913611 | K21: =IF(CMdata=1,IMDIV(1,IMSUM(IMDIV(1,IMPRODUCT(B21,'Design the AEF circuit'!$G$13*0.001)),IMDIV(1,'Design the AEF circuit'!$H$13*1000),IMPRODUCT(B21,'Design the AEF circuit'!$I$13*0.000000000001))),COMPLEX(G21,H21,"j")) -> 0.041781274745197+3.17291361148786j | L21: =IF(CMdata=1,IMDIV(1,IMSUM(IMDIV(1,IMPRODUCT(B21,'Design the AEF circuit'!$G$14*0.001)),IMDIV(1,'Design the AEF circuit'!$H$14*1000),IMPRODUCT(B21,'Design the AEF circuit'!$I$14*0.000000000001))),COMPLEX(I21,J21,"j")) -> 0.041781274745197+3.17291361148786j
A22: ='Frequency vector'!G22 -> 1654.237454 | B22: =COMPLEX(0,2*PI()*'Frequency vector'!G22,"j") -> 10393.8804659991j | C22: =IF(IF(CMdata=1,IMABS(K22),'CM choke'!C26)=0, C21, IF(CMdata=1,IMABS(K22),'CM choke'!C26)) -> 3.267407978 | D22: =IF(IF(CMdata=1,DEGREES(IMARGUMENT(K22)),'CM choke'!D26)=0, D21, IF(CMdata=1,DEGREES(IMARGUMENT(K22)),'CM choke'!D26)) -> 89.25594979 | E22: =IF(IF(CMdata=1,IMABS(L22),'CM choke'!E26)=0, E21, IF(CMdata=1,IMABS(L22),'CM choke'!E26)) -> 3.267407978 | F22: =IF(IF(CMdata=1,DEGREES(IMARGUMENT(L22)),'CM choke'!F26)=0, F21, IF(CMdata=1,DEGREES(IMARGUMENT(L22)),'CM choke'!F26)) -> 89.25594979 | G22: 0.0424297792 | H22: 3.267132475 | I22: 0.0424297792 | J22: 3.267132475 | K22: =IF(CMdata=1,IMDIV(1,IMSUM(IMDIV(1,IMPRODUCT(B22,'Design the AEF circuit'!$G$13*0.001)),IMDIV(1,'Design the AEF circuit'!$H$13*1000),IMPRODUCT(B22,'Design the AEF circuit'!$I$13*0.000000000001))),COMPLEX(G22,H22,"j")) -> 0.0424297792038167+3.26713247471823j | L22: =IF(CMdata=1,IMDIV(1,IMSUM(IMDIV(1,IMPRODUCT(B22,'Design the AEF circuit'!$G$14*0.001)),IMDIV(1,'Design the AEF circuit'!$H$14*1000),IMPRODUCT(B22,'Design the AEF circuit'!$I$14*0.000000000001))),COMPLEX(I22,J22,"j")) -> 0.0424297792038167+3.26713247471823j
A23: ='Frequency vector'!G23 -> 1698.646465 | B23: =COMPLEX(0,2*PI()*'Frequency vector'!G23,"j") -> 10672.9105086825j | C23: =IF(IF(CMdata=1,IMABS(K23),'CM choke'!C27)=0, C22, IF(CMdata=1,IMABS(K23),'CM choke'!C27)) -> 3.3643625 | D23: =IF(IF(CMdata=1,DEGREES(IMARGUMENT(K23)),'CM choke'!D27)=0, D22, IF(CMdata=1,DEGREES(IMARGUMENT(K23)),'CM choke'!D27)) -> 89.26204176 | E23: =IF(IF(CMdata=1,IMABS(L23),'CM choke'!E27)=0, E22, IF(CMdata=1,IMABS(L23),'CM choke'!E27)) -> 3.3643625 | F23: =IF(IF(CMdata=1,DEGREES(IMARGUMENT(L23)),'CM choke'!F27)=0, F22, IF(CMdata=1,DEGREES(IMARGUMENT(L23)),'CM choke'!F27)) -> 89.26204176 | G23: 0.04333112159 | H23: 3.364083448 | I23: 0.04333112159 | J23: 3.364083448 | K23: =IF(CMdata=1,IMDIV(1,IMSUM(IMDIV(1,IMPRODUCT(B23,'Design the AEF circuit'!$G$13*0.001)),IMDIV(1,'Design the AEF circuit'!$H$13*1000),IMPRODUCT(B23,'Design the AEF circuit'!$I$13*0.000000000001))),COMPLEX(G23,H23,"j")) -> 0.0433311215932128+3.36408344787974j | L23: =IF(CMdata=1,IMDIV(1,IMSUM(IMDIV(1,IMPRODUCT(B23,'Design the AEF circuit'!$G$14*0.001)),IMDIV(1,'Design the AEF circuit'!$H$14*1000),IMPRODUCT(B23,'Design the AEF circuit'!$I$14*0.000000000001))),COMPLEX(I23,J23,"j")) -> 0.0433311215932128+3.36408344787974j
A24: ='Frequency vector'!G24 -> 1744.247662 | B24: =COMPLEX(0,2*PI()*'Frequency vector'!G24,"j") -> 10959.4312825681j | C24: =IF(IF(CMdata=1,IMABS(K24),'CM choke'!C28)=0, C23, IF(CMdata=1,IMABS(K24),'CM choke'!C28)) -> 3.464048522 | D24: =IF(IF(CMdata=1,DEGREES(IMARGUMENT(K24)),'CM choke'!D28)=0, D23, IF(CMdata=1,DEGREES(IMARGUMENT(K24)),'CM choke'!D28)) -> 89.26808467 | E24: =IF(IF(CMdata=1,IMABS(L24),'CM choke'!E28)=0, E23, IF(CMdata=1,IMABS(L24),'CM choke'!E28)) -> 3.464048522 | F24: =IF(IF(CMdata=1,DEGREES(IMARGUMENT(L24)),'CM choke'!F28)=0, F23, IF(CMdata=1,DEGREES(IMARGUMENT(L24)),'CM choke'!F28)) -> 89.26808467 | G24: 0.04424970338 | H24: 3.463765887 | I24: 0.04424970338 | J24: 3.463765887 | K24: =IF(CMdata=1,IMDIV(1,IMSUM(IMDIV(1,IMPRODUCT(B24,'Design the AEF circuit'!$G$13*0.001)),IMDIV(1,'Design the AEF circuit'!$H$13*1000),IMPRODUCT(B24,'Design the AEF circuit'!$I$13*0.000000000001))),COMPLEX(G24,H24,"j")) -> 0.0442497033763433+3.4637658874993j | L24: =IF(CMdata=1,IMDIV(1,IMSUM(IMDIV(1,IMPRODUCT(B24,'Design the AEF circuit'!$G$14*0.001)),IMDIV(1,'Design the AEF circuit'!$H$14*1000),IMPRODUCT(B24,'Design the AEF circuit'!$I$14*0.000000000001))),COMPLEX(I24,J24,"j")) -> 0.0442497033763433+3.4637658874993j
A25: ='Frequency vector'!G25 -> 1791.073051 | B25: =COMPLEX(0,2*PI()*'Frequency vector'!G25,"j") -> 11253.643880891j | C25: =IF(IF(CMdata=1,IMABS(K25),'CM choke'!C29)=0, C24, IF(CMdata=1,IMABS(K25),'CM choke'!C29)) -> 3.566748474 | D25: =IF(IF(CMdata=1,DEGREES(IMARGUMENT(K25)),'CM choke'!D29)=0, D24, IF(CMdata=1,DEGREES(IMARGUMENT(K25)),'CM choke'!D29)) -> 89.2791632 | E25: =IF(IF(CMdata=1,IMABS(L25),'CM choke'!E29)=0, E24, IF(CMdata=1,IMABS(L25),'CM choke'!E29)) -> 3.566748474 | F25: =IF(IF(CMdata=1,DEGREES(IMARGUMENT(L25)),'CM choke'!F29)=0, F24, IF(CMdata=1,DEGREES(IMARGUMENT(L25)),'CM choke'!F29)) -> 89.2791632 | G25: 0.04487199144 | H25: 3.566466204 | I25: 0.04487199144 | J25: 3.566466204 | K25: =IF(CMdata=1,IMDIV(1,IMSUM(IMDIV(1,IMPRODUCT(B25,'Design the AEF circuit'!$G$13*0.001)),IMDIV(1,'Design the AEF circuit'!$H$13*1000),IMPRODUCT(B25,'Design the AEF circuit'!$I$13*0.000000000001))),COMPLEX(G25,H25,"j")) -> 0.0448719914384327+3.56646620356421j | L25: =IF(CMdata=1,IMDIV(1,IMSUM(IMDIV(1,IMPRODUCT(B25,'Design the AEF circuit'!$G$14*0.001)),IMDIV(1,'Design the AEF circuit'!$H$14*1000),IMPRODUCT(B25,'Design the AEF circuit'!$I$14*0.000000000001))),COMPLEX(I25,J25,"j")) -> 0.0448719914384327+3.56646620356421j
A26: ='Frequency vector'!G26 -> 1839.155497 | B26: =COMPLEX(0,2*PI()*'Frequency vector'!G26,"j") -> 11555.7547953566j | C26: =IF(IF(CMdata=1,IMABS(K26),'CM choke'!C30)=0, C25, IF(CMdata=1,IMABS(K26),'CM choke'!C30)) -> 3.672558189 | D26: =IF(IF(CMdata=1,DEGREES(IMARGUMENT(K26)),'CM choke'!D30)=0, D25, IF(CMdata=1,DEGREES(IMARGUMENT(K26)),'CM choke'!D30)) -> 89.28664637 | E26: =IF(IF(CMdata=1,IMABS(L26),'CM choke'!E30)=0, E25, IF(CMdata=1,IMABS(L26),'CM choke'!E30)) -> 3.672558189 | F26: =IF(IF(CMdata=1,DEGREES(IMARGUMENT(L26)),'CM choke'!F30)=0, F25, IF(CMdata=1,DEGREES(IMARGUMENT(L26)),'CM choke'!F30)) -> 89.28664637 | G26: 0.04572352534 | H26: 3.672273548 | I26: 0.04572352534 | J26: 3.672273548 | K26: =IF(CMdata=1,IMDIV(1,IMSUM(IMDIV(1,IMPRODUCT(B26,'Design the AEF circuit'!$G$13*0.001)),IMDIV(1,'Design the AEF circuit'!$H$13*1000),IMPRODUCT(B26,'Design the AEF circuit'!$I$13*0.000000000001))),COMPLEX(G26,H26,"j")) -> 0.0457235253448833+3.67227354785926j | L26: =IF(CMdata=1,IMDIV(1,IMSUM(IMDIV(1,IMPRODUCT(B26,'Design the AEF circuit'!$G$14*0.001)),IMDIV(1,'Design the AEF circuit'!$H$14*1000),IMPRODUCT(B26,'Design the AEF circuit'!$I$14*0.000000000001))),COMPLEX(I26,J26,"j")) -> 0.0457235253448833+3.67227354785926j
A27: ='Frequency vector'!G27 -> 1888.528745 | B27: =COMPLEX(0,2*PI()*'Frequency vector'!G27,"j") -> 11865.9760610652j | C27: =IF(IF(CMdata=1,IMABS(K27),'CM choke'!C31)=0, C26, IF(CMdata=1,IMABS(K27),'CM choke'!C31)) -> 3.781453211 | D27: =IF(IF(CMdata=1,DEGREES(IMARGUMENT(K27)),'CM choke'!D31)=0, D26, IF(CMdata=1,DEGREES(IMARGUMENT(K27)),'CM choke'!D31)) -> 89.29184519 | E27: =IF(IF(CMdata=1,IMABS(L27),'CM choke'!E31)=0, E26, IF(CMdata=1,IMABS(L27),'CM choke'!E31)) -> 3.781453211 | F27: =IF(IF(CMdata=1,DEGREES(IMARGUMENT(L27)),'CM choke'!F31)=0, F26, IF(CMdata=1,DEGREES(IMARGUMENT(L27)),'CM choke'!F31)) -> 89.29184519 | G27: 0.04673618395 | H27: 3.781164387 | I27: 0.04673618395 | J27: 3.781164387 | K27: =IF(CMdata=1,IMDIV(1,IMSUM(IMDIV(1,IMPRODUCT(B27,'Design the AEF circuit'!$G$13*0.001)),IMDIV(1,'Design the AEF circuit'!$H$13*1000),IMPRODUCT(B27,'Design the AEF circuit'!$I$13*0.000000000001))),COMPLEX(G27,H27,"j")) -> 0.0467361839545576+3.78116438658258j | L27: =IF(CMdata=1,IMDIV(1,IMSUM(IMDIV(1,IMPRODUCT(B27,'Design the AEF circuit'!$G$14*0.001)),IMDIV(1,'Design the AEF circuit'!$H$14*1000),IMPRODUCT(B27,'Design the AEF circuit'!$I$14*0.000000000001))),COMPLEX(I27,J27,"j")) -> 0.0467361839545576+3.78116438658258j
A28: ='Frequency vector'!G28 -> 1939.227447 | B28: =COMPLEX(0,2*PI()*'Frequency vector'!G28,"j") -> 12184.5254053288j | C28: =IF(IF(CMdata=1,IMABS(K28),'CM choke'!C32)=0, C27, IF(CMdata=1,IMABS(K28),'CM choke'!C32)) -> 3.893738302 | D28: =IF(IF(CMdata=1,DEGREES(IMARGUMENT(K28)),'CM choke'!D32)=0, D27, IF(CMdata=1,DEGREES(IMARGUMENT(K28)),'CM choke'!D32)) -> 89.29845368 | E28: =IF(IF(CMdata=1,IMABS(L28),'CM choke'!E32)=0, E27, IF(CMdata=1,IMABS(L28),'CM choke'!E32)) -> 3.893738302 | F28: =IF(IF(CMdata=1,DEGREES(IMARGUMENT(L28)),'CM choke'!F32)=0, F27, IF(CMdata=1,DEGREES(IMARGUMENT(L28)),'CM choke'!F32)) -> 89.29845368 | G28: 0.04767488207 | H28: 3.893446426 | I28: 0.04767488207 | J28: 3.893446426 | K28: =IF(CMdata=1,IMDIV(1,IMSUM(IMDIV(1,IMPRODUCT(B28,'Design the AEF circuit'!$G$13*0.001)),IMDIV(1,'Design the AEF circuit'!$H$13*1000),IMPRODUCT(B28,'Design the AEF circuit'!$I$13*0.000000000001))),COMPLEX(G28,H28,"j")) -> 0.0476748820664113+3.89344642613672j | L28: =IF(CMdata=1,IMDIV(1,IMSUM(IMDIV(1,IMPRODUCT(B28,'Design the AEF circuit'!$G$14*0.001)),IMDIV(1,'Design the AEF circuit'!$H$14*1000),IMPRODUCT(B28,'Design the AEF circuit'!$I$14*0.000000000001))),COMPLEX(I28,J28,"j")) -> 0.0476748820664113+3.89344642613672j
A29: ='Frequency vector'!G29 -> 1991.287188 | B29: =COMPLEX(0,2*PI()*'Frequency vector'!G29,"j") -> 12511.6264004814j | C29: =IF(IF(CMdata=1,IMABS(K29),'CM choke'!C33)=0, C28, IF(CMdata=1,IMABS(K29),'CM choke'!C33)) -> 4.009180296 | D29: =IF(IF(CMdata=1,DEGREES(IMARGUMENT(K29)),'CM choke'!D33)=0, D28, IF(CMdata=1,DEGREES(IMARGUMENT(K29)),'CM choke'!D33)) -> 89.30390376 | E29: =IF(IF(CMdata=1,IMABS(L29),'CM choke'!E33)=0, E28, IF(CMdata=1,IMABS(L29),'CM choke'!E33)) -> 4.009180296 | F29: =IF(IF(CMdata=1,DEGREES(IMARGUMENT(L29)),'CM choke'!F33)=0, F28, IF(CMdata=1,DEGREES(IMARGUMENT(L29)),'CM choke'!F33)) -> 89.30390376 | G29: 0.04870701975 | H29: 4.008884417 | I29: 0.04870701975 | J29: 4.008884417 | K29: =IF(CMdata=1,IMDIV(1,IMSUM(IMDIV(1,IMPRODUCT(B29,'Design the AEF circuit'!$G$13*0.001)),IMDIV(1,'Design the AEF circuit'!$H$13*1000),IMPRODUCT(B29,'Design the AEF circuit'!$I$13*0.000000000001))),COMPLEX(G29,H29,"j")) -> 0.0487070197465693+4.00888441725868j | L29: =IF(CMdata=1,IMDIV(1,IMSUM(IMDIV(1,IMPRODUCT(B29,'Design the AEF circuit'!$G$14*0.001)),IMDIV(1,'Design the AEF circuit'!$H$14*1000),IMPRODUCT(B29,'Design the AEF circuit'!$I$14*0.000000000001))),COMPLEX(I29,J29,"j")) -> 0.0487070197465693+4.00888441725868j
A30: ='Frequency vector'!G30 -> 2044.744503 | B30: =COMPLEX(0,2*PI()*'Frequency vector'!G30,"j") -> 12847.5086207921j | C30: =IF(IF(CMdata=1,IMABS(K30),'CM choke'!C34)=0, C29, IF(CMdata=1,IMABS(K30),'CM choke'!C34)) -> 4.127894613 | D30: =IF(IF(CMdata=1,DEGREES(IMARGUMENT(K30)),'CM choke'!D34)=0, D29, IF(CMdata=1,DEGREES(IMARGUMENT(K30)),'CM choke'!D34)) -> 89.31155247 | E30: =IF(IF(CMdata=1,IMABS(L30),'CM choke'!E34)=0, E29, IF(CMdata=1,IMABS(L30),'CM choke'!E34)) -> 4.127894613 | F30: =IF(IF(CMdata=1,DEGREES(IMARGUMENT(L30)),'CM choke'!F34)=0, F29, IF(CMdata=1,DEGREES(IMARGUMENT(L30)),'CM choke'!F34)) -> 89.31155247 | G30: 0.04959825155 | H30: 4.127596631 | I30: 0.04959825155 | J30: 4.127596631 | K30: =IF(CMdata=1,IMDIV(1,IMSUM(IMDIV(1,IMPRODUCT(B30,'Design the AEF circuit'!$G$13*0.001)),IMDIV(1,'Design the AEF circuit'!$H$13*1000),IMPRODUCT(B30,'Design the AEF circuit'!$I$13*0.000000000001))),COMPLEX(G30,H30,"j")) -> 0.0495982515524843+4.12759663084956j | L30: =IF(CMdata=1,IMDIV(1,IMSUM(IMDIV(1,IMPRODUCT(B30,'Design the AEF circuit'!$G$14*0.001)),IMDIV(1,'Design the AEF circuit'!$H$14*1000),IMPRODUCT(B30,'Design the AEF circuit'!$I$14*0.000000000001))),COMPLEX(I30,J30,"j")) -> 0.0495982515524843+4.12759663084956j
A31: ='Frequency vector'!G31 -> 2099.636913 | B31: =COMPLEX(0,2*PI()*'Frequency vector'!G31,"j") -> 13192.4078035911j | C31: =IF(IF(CMdata=1,IMABS(K31),'CM choke'!C35)=0, C30, IF(CMdata=1,IMABS(K31),'CM choke'!C35)) -> 4.25023561 | D31: =IF(IF(CMdata=1,DEGREES(IMARGUMENT(K31)),'CM choke'!D35)=0, D30, IF(CMdata=1,DEGREES(IMARGUMENT(K31)),'CM choke'!D35)) -> 89.31719562 | E31: =IF(IF(CMdata=1,IMABS(L31),'CM choke'!E35)=0, E30, IF(CMdata=1,IMABS(L31),'CM choke'!E35)) -> 4.25023561 | F31: =IF(IF(CMdata=1,DEGREES(IMARGUMENT(L31)),'CM choke'!F35)=0, F30, IF(CMdata=1,DEGREES(IMARGUMENT(L31)),'CM choke'!F35)) -> 89.31719562 | G31: 0.05064964358 | H31: 4.249933806 | I31: 0.05064964358 | J31: 4.249933806 | K31: =IF(CMdata=1,IMDIV(1,IMSUM(IMDIV(1,IMPRODUCT(B31,'Design the AEF circuit'!$G$13*0.001)),IMDIV(1,'Design the AEF circuit'!$H$13*1000),IMPRODUCT(B31,'Design the AEF circuit'!$I$13*0.000000000001))),COMPLEX(G31,H31,"j")) -> 0.0506496435814177+4.24993380586123j | L31: =IF(CMdata=1,IMDIV(1,IMSUM(IMDIV(1,IMPRODUCT(B31,'Design the AEF circuit'!$G$14*0.001)),IMDIV(1,'Design the AEF circuit'!$H$14*1000),IMPRODUCT(B31,'Design the AEF circuit'!$I$14*0.000000000001))),COMPLEX(I31,J31,"j")) -> 0.0506496435814177+4.24993380586123j
A32: ='Frequency vector'!G32 -> 2156.002943 | B32: =COMPLEX(0,2*PI()*'Frequency vector'!G32,"j") -> 13546.5660147206j | C32: =IF(IF(CMdata=1,IMABS(K32),'CM choke'!C36)=0, C31, IF(CMdata=1,IMABS(K32),'CM choke'!C36)) -> 4.37618091 | D32: =IF(IF(CMdata=1,DEGREES(IMARGUMENT(K32)),'CM choke'!D36)=0, D31, IF(CMdata=1,DEGREES(IMARGUMENT(K32)),'CM choke'!D36)) -> 89.32295206 | E32: =IF(IF(CMdata=1,IMABS(L32),'CM choke'!E36)=0, E31, IF(CMdata=1,IMABS(L32),'CM choke'!E36)) -> 4.37618091 | F32: =IF(IF(CMdata=1,DEGREES(IMARGUMENT(L32)),'CM choke'!F36)=0, F31, IF(CMdata=1,DEGREES(IMARGUMENT(L32)),'CM choke'!F36)) -> 89.32295206 | G32: 0.05171088262 | H32: 4.375875381 | I32: 0.05171088262 | J32: 4.375875381 | K32: =IF(CMdata=1,IMDIV(1,IMSUM(IMDIV(1,IMPRODUCT(B32,'Design the AEF circuit'!$G$13*0.001)),IMDIV(1,'Design the AEF circuit'!$H$13*1000),IMPRODUCT(B32,'Design the AEF circuit'!$I$13*0.000000000001))),COMPLEX(G32,H32,"j")) -> 0.0517108826227404+4.37587538050307j | L32: =IF(CMdata=1,IMDIV(1,IMSUM(IMDIV(1,IMPRODUCT(B32,'Design the AEF circuit'!$G$14*0.001)),IMDIV(1,'Design the AEF circuit'!$H$14*1000),IMPRODUCT(B32,'Design the AEF circuit'!$I$14*0.000000000001))),COMPLEX(I32,J32,"j")) -> 0.0517108826227404+4.37587538050307j
A33: ='Frequency vector'!G33 -> 2213.882153 | B33: =COMPLEX(0,2*PI()*'Frequency vector'!G33,"j") -> 13910.2318184274j | C33: =IF(IF(CMdata=1,IMABS(K33),'CM choke'!C37)=0, C32, IF(CMdata=1,IMABS(K33),'CM choke'!C37)) -> 4.505871867 | D33: =IF(IF(CMdata=1,DEGREES(IMARGUMENT(K33)),'CM choke'!D37)=0, D32, IF(CMdata=1,DEGREES(IMARGUMENT(K33)),'CM choke'!D37)) -> 89.3284871 | E33: =IF(IF(CMdata=1,IMABS(L33),'CM choke'!E37)=0, E32, IF(CMdata=1,IMABS(L33),'CM choke'!E37)) -> 4.505871867 | F33: =IF(IF(CMdata=1,DEGREES(IMARGUMENT(L33)),'CM choke'!F37)=0, F32, IF(CMdata=1,DEGREES(IMARGUMENT(L33)),'CM choke'!F37)) -> 89.3284871 | G33: 0.05280810967 | H33: 4.505562405 | I33: 0.05280810967 | J33: 4.505562405 | K33: =IF(CMdata=1,IMDIV(1,IMSUM(IMDIV(1,IMPRODUCT(B33,'Design the AEF circuit'!$G$13*0.001)),IMDIV(1,'Design the AEF circuit'!$H$13*1000),IMPRODUCT(B33,'Design the AEF circuit'!$I$13*0.000000000001))),COMPLEX(G33,H33,"j")) -> 0.0528081096665895+4.50556240476288j | L33: =IF(CMdata=1,IMDIV(1,IMSUM(IMDIV(1,IMPRODUCT(B33,'Design the AEF circuit'!$G$14*0.001)),IMDIV(1,'Design the AEF circuit'!$H$14*1000),IMPRODUCT(B33,'Design the AEF circuit'!$I$14*0.000000000001))),COMPLEX(I33,J33,"j")) -> 0.0528081096665895+4.50556240476288j
A34: ='Frequency vector'!G34 -> 2273.315166 | B34: =COMPLEX(0,2*PI()*'Frequency vector'!G34,"j") -> 14283.6604518168j | C34: =IF(IF(CMdata=1,IMABS(K34),'CM choke'!C38)=0, C33, IF(CMdata=1,IMABS(K34),'CM choke'!C38)) -> 4.639600594 | D34: =IF(IF(CMdata=1,DEGREES(IMARGUMENT(K34)),'CM choke'!D38)=0, D33, IF(CMdata=1,DEGREES(IMARGUMENT(K34)),'CM choke'!D38)) -> 89.33187732 | E34: =IF(IF(CMdata=1,IMABS(L34),'CM choke'!E38)=0, E33, IF(CMdata=1,IMABS(L34),'CM choke'!E38)) -> 4.639600594 | F34: =IF(IF(CMdata=1,DEGREES(IMARGUMENT(L34)),'CM choke'!F38)=0, F33, IF(CMdata=1,DEGREES(IMARGUMENT(L34)),'CM choke'!F38)) -> 89.33187732 | G34: 0.05410088088 | H34: 4.639285156 | I34: 0.05410088088 | J34: 4.639285156 | K34: =IF(CMdata=1,IMDIV(1,IMSUM(IMDIV(1,IMPRODUCT(B34,'Design the AEF circuit'!$G$13*0.001)),IMDIV(1,'Design the AEF circuit'!$H$13*1000),IMPRODUCT(B34,'Design the AEF circuit'!$I$13*0.000000000001))),COMPLEX(G34,H34,"j")) -> 0.0541008808806634+4.63928515648613j | L34: =IF(CMdata=1,IMDIV(1,IMSUM(IMDIV(1,IMPRODUCT(B34,'Design the AEF circuit'!$G$14*0.001)),IMDIV(1,'Design the AEF circuit'!$H$14*1000),IMPRODUCT(B34,'Design the AEF circuit'!$I$14*0.000000000001))),COMPLEX(I34,J34,"j")) -> 0.0541008808806634+4.63928515648613j
A35: ='Frequency vector'!G35 -> 2334.343695 | B35: =COMPLEX(0,2*PI()*'Frequency vector'!G35,"j") -> 14667.1140039894j | C35: =IF(IF(CMdata=1,IMABS(K35),'CM choke'!C39)=0, C34, IF(CMdata=1,IMABS(K35),'CM choke'!C39)) -> 4.776953913 | D35: =IF(IF(CMdata=1,DEGREES(IMARGUMENT(K35)),'CM choke'!D39)=0, D34, IF(CMdata=1,DEGREES(IMARGUMENT(K35)),'CM choke'!D39)) -> 89.33751121 | E35: =IF(IF(CMdata=1,IMABS(L35),'CM choke'!E39)=0, E34, IF(CMdata=1,IMABS(L35),'CM choke'!E39)) -> 4.776953913 | F35: =IF(IF(CMdata=1,DEGREES(IMARGUMENT(L35)),'CM choke'!F39)=0, F34, IF(CMdata=1,DEGREES(IMARGUMENT(L35)),'CM choke'!F39)) -> 89.33751121 | G35: 0.05523282719 | H35: 4.776634591 | I35: 0.05523282719 | J35: 4.776634591 | K35: =IF(CMdata=1,IMDIV(1,IMSUM(IMDIV(1,IMPRODUCT(B35,'Design the AEF circuit'!$G$13*0.001)),IMDIV(1,'Design the AEF circuit'!$H$13*1000),IMPRODUCT(B35,'Design the AEF circuit'!$I$13*0.000000000001))),COMPLEX(G35,H35,"j")) -> 0.0552328271930473+4.77663459138591j | L35: =IF(CMdata=1,IMDIV(1,IMSUM(IMDIV(1,IMPRODUCT(B35,'Design the AEF circuit'!$G$14*0.001)),IMDIV(1,'Design the AEF circuit'!$H$14*1000),IMPRODUCT(B35,'Design the AEF circuit'!$I$14*0.000000000001))),COMPLEX(I35,J35,"j")) -> 0.0552328271930473+4.77663459138591j
A36: ='Frequency vector'!G36 -> 2397.010571 | B36: =COMPLEX(0,2*PI()*'Frequency vector'!G36,"j") -> 15060.861599987j | C36: =IF(IF(CMdata=1,IMABS(K36),'CM choke'!C40)=0, C35, IF(CMdata=1,IMABS(K36),'CM choke'!C40)) -> 4.918647278 | D36: =IF(IF(CMdata=1,DEGREES(IMARGUMENT(K36)),'CM choke'!D40)=0, D35, IF(CMdata=1,DEGREES(IMARGUMENT(K36)),'CM choke'!D40)) -> 89.34189725 | E36: =IF(IF(CMdata=1,IMABS(L36),'CM choke'!E40)=0, E35, IF(CMdata=1,IMABS(L36),'CM choke'!E40)) -> 4.918647278 | F36: =IF(IF(CMdata=1,DEGREES(IMARGUMENT(L36)),'CM choke'!F40)=0, F35, IF(CMdata=1,DEGREES(IMARGUMENT(L36)),'CM choke'!F40)) -> 89.34189725 | G36: 0.05649463439 | H36: 4.918322824 | I36: 0.05649463439 | J36: 4.918322824 | K36: =IF(CMdata=1,IMDIV(1,IMSUM(IMDIV(1,IMPRODUCT(B36,'Design the AEF circuit'!$G$13*0.001)),IMDIV(1,'Design the AEF circuit'!$H$13*1000),IMPRODUCT(B36,'Design the AEF circuit'!$I$13*0.000000000001))),COMPLEX(G36,H36,"j")) -> 0.0564946343912752+4.91832282429923j | L36: =IF(CMdata=1,IMDIV(1,IMSUM(IMDIV(1,IMPRODUCT(B36,'Design the AEF circuit'!$G$14*0.001)),IMDIV(1,'Design the AEF circuit'!$H$14*1000),IMPRODUCT(B36,'Design the AEF circuit'!$I$14*0.000000000001))),COMPLEX(I36,J36,"j")) -> 0.0564946343912752+4.91832282429923j
A37: ='Frequency vector'!G37 -> 2461.359778 | B37: =COMPLEX(0,2*PI()*'Frequency vector'!G37,"j") -> 15465.1795896772j | C37: =IF(IF(CMdata=1,IMABS(K37),'CM choke'!C41)=0, C36, IF(CMdata=1,IMABS(K37),'CM choke'!C41)) -> 5.064323897 | D37: =IF(IF(CMdata=1,DEGREES(IMARGUMENT(K37)),'CM choke'!D41)=0, D36, IF(CMdata=1,DEGREES(IMARGUMENT(K37)),'CM choke'!D41)) -> 89.34687637 | E37: =IF(IF(CMdata=1,IMABS(L37),'CM choke'!E41)=0, E36, IF(CMdata=1,IMABS(L37),'CM choke'!E41)) -> 5.064323897 | F37: =IF(IF(CMdata=1,DEGREES(IMARGUMENT(L37)),'CM choke'!F41)=0, F36, IF(CMdata=1,DEGREES(IMARGUMENT(L37)),'CM choke'!F41)) -> 89.34687637 | G37: 0.05772777723 | H37: 5.063994869 | I37: 0.05772777723 | J37: 5.063994869 | K37: =IF(CMdata=1,IMDIV(1,IMSUM(IMDIV(1,IMPRODUCT(B37,'Design the AEF circuit'!$G$13*0.001)),IMDIV(1,'Design the AEF circuit'!$H$13*1000),IMPRODUCT(B37,'Design the AEF circuit'!$I$13*0.000000000001))),COMPLEX(G37,H37,"j")) -> 0.0577277772280796+5.06399486891498j | L37: =IF(CMdata=1,IMDIV(1,IMSUM(IMDIV(1,IMPRODUCT(B37,'Design the AEF circuit'!$G$14*0.001)),IMDIV(1,'Design the AEF circuit'!$H$14*1000),IMPRODUCT(B37,'Design the AEF circuit'!$I$14*0.000000000001))),COMPLEX(I37,J37,"j")) -> 0.0577277772280796+5.06399486891498j
A38: ='Frequency vector'!G38 -> 2527.436478 | B38: =COMPLEX(0,2*PI()*'Frequency vector'!G38,"j") -> 15880.3517417073j | C38: =IF(IF(CMdata=1,IMABS(K38),'CM choke'!C42)=0, C37, IF(CMdata=1,IMABS(K38),'CM choke'!C42)) -> 5.214333275 | D38: =IF(IF(CMdata=1,DEGREES(IMARGUMENT(K38)),'CM choke'!D42)=0, D37, IF(CMdata=1,DEGREES(IMARGUMENT(K38)),'CM choke'!D42)) -> 89.3513081 | E38: =IF(IF(CMdata=1,IMABS(L38),'CM choke'!E42)=0, E37, IF(CMdata=1,IMABS(L38),'CM choke'!E42)) -> 5.214333275 | F38: =IF(IF(CMdata=1,DEGREES(IMARGUMENT(L38)),'CM choke'!F42)=0, F37, IF(CMdata=1,DEGREES(IMARGUMENT(L38)),'CM choke'!F42)) -> 89.3513081 | G38: 0.05903442712 | H38: 5.213999083 | I38: 0.05903442712 | J38: 5.213999083 | K38: =IF(CMdata=1,IMDIV(1,IMSUM(IMDIV(1,IMPRODUCT(B38,'Design the AEF circuit'!$G$13*0.001)),IMDIV(1,'Design the AEF circuit'!$H$13*1000),IMPRODUCT(B38,'Design the AEF circuit'!$I$13*0.000000000001))),COMPLEX(G38,H38,"j")) -> 0.0590344271169758+5.21399908275939j | L38: =IF(CMdata=1,IMDIV(1,IMSUM(IMDIV(1,IMPRODUCT(B38,'Design the AEF circuit'!$G$14*0.001)),IMDIV(1,'Design the AEF circuit'!$H$14*1000),IMPRODUCT(B38,'Design the AEF circuit'!$I$14*0.000000000001))),COMPLEX(I38,J38,"j")) -> 0.0590344271169758+5.21399908275939j
A39: ='Frequency vector'!G39 -> 2595.287047 | B39: =COMPLEX(0,2*PI()*'Frequency vector'!G39,"j") -> 16306.669442667j | C39: =IF(IF(CMdata=1,IMABS(K39),'CM choke'!C43)=0, C38, IF(CMdata=1,IMABS(K39),'CM choke'!C43)) -> 5.368601099 | D39: =IF(IF(CMdata=1,DEGREES(IMARGUMENT(K39)),'CM choke'!D43)=0, D38, IF(CMdata=1,DEGREES(IMARGUMENT(K39)),'CM choke'!D43)) -> 89.35686135 | E39: =IF(IF(CMdata=1,IMABS(L39),'CM choke'!E43)=0, E38, IF(CMdata=1,IMABS(L39),'CM choke'!E43)) -> 5.368601099 | F39: =IF(IF(CMdata=1,DEGREES(IMARGUMENT(L39)),'CM choke'!F43)=0, F38, IF(CMdata=1,DEGREES(IMARGUMENT(L39)),'CM choke'!F43)) -> 89.35686135 | G39: 0.06026067484 | H39: 5.368262886 | I39: 0.06026067484 | J39: 5.368262886 | K39: =IF(CMdata=1,IMDIV(1,IMSUM(IMDIV(1,IMPRODUCT(B39,'Design the AEF circuit'!$G$13*0.001)),IMDIV(1,'Design the AEF circuit'!$H$13*1000),IMPRODUCT(B39,'Design the AEF circuit'!$I$13*0.000000000001))),COMPLEX(G39,H39,"j")) -> 0.0602606748351635+5.36826288583813j | L39: =IF(CMdata=1,IMDIV(1,IMSUM(IMDIV(1,IMPRODUCT(B39,'Design the AEF circuit'!$G$14*0.001)),IMDIV(1,'Design the AEF circuit'!$H$14*1000),IMPRODUCT(B39,'Design the AEF circuit'!$I$14*0.000000000001))),COMPLEX(I39,J39,"j")) -> 0.0602606748351635+5.36826288583813j
A40: ='Frequency vector'!G40 -> 2664.959106 | B40: =COMPLEX(0,2*PI()*'Frequency vector'!G40,"j") -> 16744.4319015961j | C40: =IF(IF(CMdata=1,IMABS(K40),'CM choke'!C44)=0, C39, IF(CMdata=1,IMABS(K40),'CM choke'!C44)) -> 5.527551886 | D40: =IF(IF(CMdata=1,DEGREES(IMARGUMENT(K40)),'CM choke'!D44)=0, D39, IF(CMdata=1,DEGREES(IMARGUMENT(K40)),'CM choke'!D44)) -> 89.3597562 | E40: =IF(IF(CMdata=1,IMABS(L40),'CM choke'!E44)=0, E39, IF(CMdata=1,IMABS(L40),'CM choke'!E44)) -> 5.527551886 | F40: =IF(IF(CMdata=1,DEGREES(IMARGUMENT(L40)),'CM choke'!F44)=0, F39, IF(CMdata=1,DEGREES(IMARGUMENT(L40)),'CM choke'!F44)) -> 89.3597562 | G40: 0.06176558191 | H40: 5.527206787 | I40: 0.06176558191 | J40: 5.527206787 | K40: =IF(CMdata=1,IMDIV(1,IMSUM(IMDIV(1,IMPRODUCT(B40,'Design the AEF circuit'!$G$13*0.001)),IMDIV(1,'Design the AEF circuit'!$H$13*1000),IMPRODUCT(B40,'Design the AEF circuit'!$I$13*0.000000000001))),COMPLEX(G40,H40,"j")) -> 0.0617655819099556+5.52720678702449j | L40: =IF(CMdata=1,IMDIV(1,IMSUM(IMDIV(1,IMPRODUCT(B40,'Design the AEF circuit'!$G$14*0.001)),IMDIV(1,'Design the AEF circuit'!$H$14*1000),IMPRODUCT(B40,'Design the AEF circuit'!$I$14*0.000000000001))),COMPLEX(I40,J40,"j")) -> 0.0617655819099556+5.52720678702449j
A41: ='Frequency vector'!G41 -> 2736.501554 | B41: =COMPLEX(0,2*PI()*'Frequency vector'!G41,"j") -> 17193.9463599828j | C41: =IF(IF(CMdata=1,IMABS(K41),'CM choke'!C45)=0, C40, IF(CMdata=1,IMABS(K41),'CM choke'!C45)) -> 5.691457197 | D41: =IF(IF(CMdata=1,DEGREES(IMARGUMENT(K41)),'CM choke'!D45)=0, D40, IF(CMdata=1,DEGREES(IMARGUMENT(K41)),'CM choke'!D45)) -> 89.3650202 | E41: =IF(IF(CMdata=1,IMABS(L41),'CM choke'!E45)=0, E40, IF(CMdata=1,IMABS(L41),'CM choke'!E45)) -> 5.691457197 | F41: =IF(IF(CMdata=1,DEGREES(IMARGUMENT(L41)),'CM choke'!F45)=0, F40, IF(CMdata=1,DEGREES(IMARGUMENT(L41)),'CM choke'!F45)) -> 89.3650202 | G41: 0.06307421582 | H41: 5.691107684 | I41: 0.06307421582 | J41: 5.691107684 | K41: =IF(CMdata=1,IMDIV(1,IMSUM(IMDIV(1,IMPRODUCT(B41,'Design the AEF circuit'!$G$13*0.001)),IMDIV(1,'Design the AEF circuit'!$H$13*1000),IMPRODUCT(B41,'Design the AEF circuit'!$I$13*0.000000000001))),COMPLEX(G41,H41,"j")) -> 0.063074215820575+5.69110768403776j | L41: =IF(CMdata=1,IMDIV(1,IMSUM(IMDIV(1,IMPRODUCT(B41,'Design the AEF circuit'!$G$14*0.001)),IMDIV(1,'Design the AEF circuit'!$H$14*1000),IMPRODUCT(B41,'Design the AEF circuit'!$I$14*0.000000000001))),COMPLEX(I41,J41,"j")) -> 0.063074215820575+5.69110768403776j
A42: ='Frequency vector'!G42 -> 2809.964603 | B42: =COMPLEX(0,2*PI()*'Frequency vector'!G42,"j") -> 17655.5283074003j | C42: =IF(IF(CMdata=1,IMABS(K42),'CM choke'!C46)=0, C41, IF(CMdata=1,IMABS(K42),'CM choke'!C46)) -> 5.860123242 | D42: =IF(IF(CMdata=1,DEGREES(IMARGUMENT(K42)),'CM choke'!D46)=0, D41, IF(CMdata=1,DEGREES(IMARGUMENT(K42)),'CM choke'!D46)) -> 89.36672816 | E42: =IF(IF(CMdata=1,IMABS(L42),'CM choke'!E46)=0, E41, IF(CMdata=1,IMABS(L42),'CM choke'!E46)) -> 5.860123242 | F42: =IF(IF(CMdata=1,DEGREES(IMARGUMENT(L42)),'CM choke'!F46)=0, F41, IF(CMdata=1,DEGREES(IMARGUMENT(L42)),'CM choke'!F46)) -> 89.36672816 | G42: 0.06476874093 | H42: 5.859765305 | I42: 0.06476874093 | J42: 5.859765305 | K42: =IF(CMdata=1,IMDIV(1,IMSUM(IMDIV(1,IMPRODUCT(B42,'Design the AEF circuit'!$G$13*0.001)),IMDIV(1,'Design the AEF circuit'!$H$13*1000),IMPRODUCT(B42,'Design the AEF circuit'!$I$13*0.000000000001))),COMPLEX(G42,H42,"j")) -> 0.0647687409261181+5.85976530468277j | L42: =IF(CMdata=1,IMDIV(1,IMSUM(IMDIV(1,IMPRODUCT(B42,'Design the AEF circuit'!$G$14*0.001)),IMDIV(1,'Design the AEF circuit'!$H$14*1000),IMPRODUCT(B42,'Design the AEF circuit'!$I$14*0.000000000001))),COMPLEX(I42,J42,"j")) -> 0.0647687409261181+5.85976530468277j
A43: ='Frequency vector'!G43 -> 2885.399812 | B43: =COMPLEX(0,2*PI()*'Frequency vector'!G43,"j") -> 18129.5017029312j | C43: =IF(IF(CMdata=1,IMABS(K43),'CM choke'!C47)=0, C42, IF(CMdata=1,IMABS(K43),'CM choke'!C47)) -> 6.033611651 | D43: =IF(IF(CMdata=1,DEGREES(IMARGUMENT(K43)),'CM choke'!D47)=0, D42, IF(CMdata=1,DEGREES(IMARGUMENT(K43)),'CM choke'!D47)) -> 89.37222137 | E43: =IF(IF(CMdata=1,IMABS(L43),'CM choke'!E47)=0, E42, IF(CMdata=1,IMABS(L43),'CM choke'!E47)) -> 6.033611651 | F43: =IF(IF(CMdata=1,DEGREES(IMARGUMENT(L43)),'CM choke'!F47)=0, F42, IF(CMdata=1,DEGREES(IMARGUMENT(L43)),'CM choke'!F47)) -> 89.37222137 | G43: 0.06610777835 | H43: 6.033249482 | I43: 0.06610777835 | J43: 6.033249482 | K43: =IF(CMdata=1,IMDIV(1,IMSUM(IMDIV(1,IMPRODUCT(B43,'Design the AEF circuit'!$G$13*0.001)),IMDIV(1,'Design the AEF circuit'!$H$13*1000),IMPRODUCT(B43,'Design the AEF circuit'!$I$13*0.000000000001))),COMPLEX(G43,H43,"j")) -> 0.0661077783532387+6.03324948209708j | L43: =IF(CMdata=1,IMDIV(1,IMSUM(IMDIV(1,IMPRODUCT(B43,'Design the AEF circuit'!$G$14*0.001)),IMDIV(1,'Design the AEF circuit'!$H$14*1000),IMPRODUCT(B43,'Design the AEF circuit'!$I$14*0.000000000001))),COMPLEX(I43,J43,"j")) -> 0.0661077783532387+6.03324948209708j
A44: ='Frequency vector'!G44 -> 2962.860125 | B44: =COMPLEX(0,2*PI()*'Frequency vector'!G44,"j") -> 18616.1992025363j | C44: =IF(IF(CMdata=1,IMABS(K44),'CM choke'!C48)=0, C43, IF(CMdata=1,IMABS(K44),'CM choke'!C48)) -> 6.212132889 | D44: =IF(IF(CMdata=1,DEGREES(IMARGUMENT(K44)),'CM choke'!D48)=0, D43, IF(CMdata=1,DEGREES(IMARGUMENT(K44)),'CM choke'!D48)) -> 89.37340877 | E44: =IF(IF(CMdata=1,IMABS(L44),'CM choke'!E48)=0, E43, IF(CMdata=1,IMABS(L44),'CM choke'!E48)) -> 6.212132889 | F44: =IF(IF(CMdata=1,DEGREES(IMARGUMENT(L44)),'CM choke'!F48)=0, F43, IF(CMdata=1,DEGREES(IMARGUMENT(L44)),'CM choke'!F48)) -> 89.37340877 | G44: 0.0679350278 | H44: 6.211761414 | I44: 0.0679350278 | J44: 6.211761414 | K44: =IF(CMdata=1,IMDIV(1,IMSUM(IMDIV(1,IMPRODUCT(B44,'Design the AEF circuit'!$G$13*0.001)),IMDIV(1,'Design the AEF circuit'!$H$13*1000),IMPRODUCT(B44,'Design the AEF circuit'!$I$13*0.000000000001))),COMPLEX(G44,H44,"j")) -> 0.0679350277967609+6.21176141401985j | L44: =IF(CMdata=1,IMDIV(1,IMSUM(IMDIV(1,IMPRODUCT(B44,'Design the AEF circuit'!$G$14*0.001)),IMDIV(1,'Design the AEF circuit'!$H$14*1000),IMPRODUCT(B44,'Design the AEF circuit'!$I$14*0.000000000001))),COMPLEX(I44,J44,"j")) -> 0.0679350277967609+6.21176141401985j
A45: ='Frequency vector'!G45 -> 3042.399907 | B45: =COMPLEX(0,2*PI()*'Frequency vector'!G45,"j") -> 19115.9623925285j | C45: =IF(IF(CMdata=1,IMABS(K45),'CM choke'!C49)=0, C44, IF(CMdata=1,IMABS(K45),'CM choke'!C49)) -> 6.396309508 | D45: =IF(IF(CMdata=1,DEGREES(IMARGUMENT(K45)),'CM choke'!D49)=0, D44, IF(CMdata=1,DEGREES(IMARGUMENT(K45)),'CM choke'!D49)) -> 89.37684876 | E45: =IF(IF(CMdata=1,IMABS(L45),'CM choke'!E49)=0, E44, IF(CMdata=1,IMABS(L45),'CM choke'!E49)) -> 6.396309508 | F45: =IF(IF(CMdata=1,DEGREES(IMARGUMENT(L45)),'CM choke'!F49)=0, F44, IF(CMdata=1,DEGREES(IMARGUMENT(L45)),'CM choke'!F49)) -> 89.37684876 | G45: 0.06956515167 | H45: 6.395931208 | I45: 0.06956515167 | J45: 6.395931208 | K45: =IF(CMdata=1,IMDIV(1,IMSUM(IMDIV(1,IMPRODUCT(B45,'Design the AEF circuit'!$G$13*0.001)),IMDIV(1,'Design the AEF circuit'!$H$13*1000),IMPRODUCT(B45,'Design the AEF circuit'!$I$13*0.000000000001))),COMPLEX(G45,H45,"j")) -> 0.0695651516656572+6.39593120776728j | L45: =IF(CMdata=1,IMDIV(1,IMSUM(IMDIV(1,IMPRODUCT(B45,'Design the AEF circuit'!$G$14*0.001)),IMDIV(1,'Design the AEF circuit'!$H$14*1000),IMPRODUCT(B45,'Design the AEF circuit'!$I$14*0.000000000001))),COMPLEX(I45,J45,"j")) -> 0.0695651516656572+6.39593120776728j
A46: ='Frequency vector'!G46 -> 3124.074983 | B46: =COMPLEX(0,2*PI()*'Frequency vector'!G46,"j") -> 19629.1420293127j | C46: =IF(IF(CMdata=1,IMABS(K46),'CM choke'!C50)=0, C45, IF(CMdata=1,IMABS(K46),'CM choke'!C50)) -> 6.58551372 | D46: =IF(IF(CMdata=1,DEGREES(IMARGUMENT(K46)),'CM choke'!D50)=0, D45, IF(CMdata=1,DEGREES(IMARGUMENT(K46)),'CM choke'!D50)) -> 89.37957762 | E46: =IF(IF(CMdata=1,IMABS(L46),'CM choke'!E50)=0, E45, IF(CMdata=1,IMABS(L46),'CM choke'!E50)) -> 6.58551372 | F46: =IF(IF(CMdata=1,DEGREES(IMARGUMENT(L46)),'CM choke'!F50)=0, F45, IF(CMdata=1,DEGREES(IMARGUMENT(L46)),'CM choke'!F50)) -> 89.37957762 | G46: 0.07130927106 | H46: 6.585127633 | I46: 0.07130927106 | J46: 6.585127633 | K46: =IF(CMdata=1,IMDIV(1,IMSUM(IMDIV(1,IMPRODUCT(B46,'Design the AEF circuit'!$G$13*0.001)),IMDIV(1,'Design the AEF circuit'!$H$13*1000),IMPRODUCT(B46,'Design the AEF circuit'!$I$13*0.000000000001))),COMPLEX(G46,H46,"j")) -> 0.0713092710599237+6.58512763273633j | L46: =IF(CMdata=1,IMDIV(1,IMSUM(IMDIV(1,IMPRODUCT(B46,'Design the AEF circuit'!$G$14*0.001)),IMDIV(1,'Design the AEF circuit'!$H$14*1000),IMPRODUCT(B46,'Design the AEF circuit'!$I$14*0.000000000001))),COMPLEX(I46,J46,"j")) -> 0.0713092710599237+6.58512763273633j
A47: ='Frequency vector'!G47 -> 3207.942676 | B47: =COMPLEX(0,2*PI()*'Frequency vector'!G47,"j") -> 20156.098285563j | C47: =IF(IF(CMdata=1,IMABS(K47),'CM choke'!C51)=0, C46, IF(CMdata=1,IMABS(K47),'CM choke'!C51)) -> 6.780409147 | D47: =IF(IF(CMdata=1,DEGREES(IMARGUMENT(K47)),'CM choke'!D51)=0, D46, IF(CMdata=1,DEGREES(IMARGUMENT(K47)),'CM choke'!D51)) -> 89.38393239 | E47: =IF(IF(CMdata=1,IMABS(L47),'CM choke'!E51)=0, E46, IF(CMdata=1,IMABS(L47),'CM choke'!E51)) -> 6.780409147 | F47: =IF(IF(CMdata=1,DEGREES(IMARGUMENT(L47)),'CM choke'!F51)=0, F46, IF(CMdata=1,DEGREES(IMARGUMENT(L47)),'CM choke'!F51)) -> 89.38393239 | G47: 0.07290432258 | H47: 6.780017194 | I47: 0.07290432258 | J47: 6.780017194 | K47: =IF(CMdata=1,IMDIV(1,IMSUM(IMDIV(1,IMPRODUCT(B47,'Design the AEF circuit'!$G$13*0.001)),IMDIV(1,'Design the AEF circuit'!$H$13*1000),IMPRODUCT(B47,'Design the AEF circuit'!$I$13*0.000000000001))),COMPLEX(G47,H47,"j")) -> 0.0729043225828997+6.78001719446311j | L47: =IF(CMdata=1,IMDIV(1,IMSUM(IMDIV(1,IMPRODUCT(B47,'Design the AEF circuit'!$G$14*0.001)),IMDIV(1,'Design the AEF circuit'!$H$14*1000),IMPRODUCT(B47,'Design the AEF circuit'!$I$14*0.000000000001))),COMPLEX(I47,J47,"j")) -> 0.0729043225828997+6.78001719446311j
A48: ='Frequency vector'!G48 -> 3294.061848 | B48: =COMPLEX(0,2*PI()*'Frequency vector'!G48,"j") -> 20697.201003008j | C48: =IF(IF(CMdata=1,IMABS(K48),'CM choke'!C52)=0, C47, IF(CMdata=1,IMABS(K48),'CM choke'!C52)) -> 6.981088765 | D48: =IF(IF(CMdata=1,DEGREES(IMARGUMENT(K48)),'CM choke'!D52)=0, D47, IF(CMdata=1,DEGREES(IMARGUMENT(K48)),'CM choke'!D52)) -> 89.38530631 | E48: =IF(IF(CMdata=1,IMABS(L48),'CM choke'!E52)=0, E47, IF(CMdata=1,IMABS(L48),'CM choke'!E52)) -> 6.981088765 | F48: =IF(IF(CMdata=1,DEGREES(IMARGUMENT(L48)),'CM choke'!F52)=0, F47, IF(CMdata=1,DEGREES(IMARGUMENT(L48)),'CM choke'!F52)) -> 89.38530631 | G48: 0.0748946775 | H48: 6.98068701 | I48: 0.0748946775 | J48: 6.98068701 | K48: =IF(CMdata=1,IMDIV(1,IMSUM(IMDIV(1,IMPRODUCT(B48,'Design the AEF circuit'!$G$13*0.001)),IMDIV(1,'Design the AEF circuit'!$H$13*1000),IMPRODUCT(B48,'Design the AEF circuit'!$I$13*0.000000000001))),COMPLEX(G48,H48,"j")) -> 0.074894677504244+6.98068700998638j | L48: =IF(CMdata=1,IMDIV(1,IMSUM(IMDIV(1,IMPRODUCT(B48,'Design the AEF circuit'!$G$14*0.001)),IMDIV(1,'Design the AEF circuit'!$H$14*1000),IMPRODUCT(B48,'Design the AEF circuit'!$I$14*0.000000000001))),COMPLEX(I48,J48,"j")) -> 0.074894677504244+6.98068700998638j
A49: ='Frequency vector'!G49 -> 3382.492942 | B49: =COMPLEX(0,2*PI()*'Frequency vector'!G49,"j") -> 21252.8299520021j | C49: =IF(IF(CMdata=1,IMABS(K49),'CM choke'!C53)=0, C48, IF(CMdata=1,IMABS(K49),'CM choke'!C53)) -> 7.187591886 | D49: =IF(IF(CMdata=1,DEGREES(IMARGUMENT(K49)),'CM choke'!D53)=0, D48, IF(CMdata=1,DEGREES(IMARGUMENT(K49)),'CM choke'!D53)) -> 89.38852475 | E49: =IF(IF(CMdata=1,IMABS(L49),'CM choke'!E53)=0, E48, IF(CMdata=1,IMABS(L49),'CM choke'!E53)) -> 7.187591886 | F49: =IF(IF(CMdata=1,DEGREES(IMARGUMENT(L49)),'CM choke'!F53)=0, F48, IF(CMdata=1,DEGREES(IMARGUMENT(L49)),'CM choke'!F53)) -> 89.38852475 | G49: 0.07670636799 | H49: 7.187182568 | I49: 0.07670636799 | J49: 7.187182568 | K49: =IF(CMdata=1,IMDIV(1,IMSUM(IMDIV(1,IMPRODUCT(B49,'Design the AEF circuit'!$G$13*0.001)),IMDIV(1,'Design the AEF circuit'!$H$13*1000),IMPRODUCT(B49,'Design the AEF circuit'!$I$13*0.000000000001))),COMPLEX(G49,H49,"j")) -> 0.0767063679884202+7.18718256754842j | L49: =IF(CMdata=1,IMDIV(1,IMSUM(IMDIV(1,IMPRODUCT(B49,'Design the AEF circuit'!$G$14*0.001)),IMDIV(1,'Design the AEF circuit'!$H$14*1000),IMPRODUCT(B49,'Design the AEF circuit'!$I$14*0.000000000001))),COMPLEX(I49,J49,"j")) -> 0.0767063679884202+7.18718256754842j
A50: ='Frequency vector'!G50 -> 3473.298022 | B50: =COMPLEX(0,2*PI()*'Frequency vector'!G50,"j") -> 21823.3750980665j | C50: =IF(IF(CMdata=1,IMABS(K50),'CM choke'!C54)=0, C49, IF(CMdata=1,IMABS(K50),'CM choke'!C54)) -> 7.399984138 | D50: =IF(IF(CMdata=1,DEGREES(IMARGUMENT(K50)),'CM choke'!D54)=0, D49, IF(CMdata=1,DEGREES(IMARGUMENT(K50)),'CM choke'!D54)) -> 89.39187227 | E50: =IF(IF(CMdata=1,IMABS(L50),'CM choke'!E54)=0, E49, IF(CMdata=1,IMABS(L50),'CM choke'!E54)) -> 7.399984138 | F50: =IF(IF(CMdata=1,DEGREES(IMARGUMENT(L50)),'CM choke'!F54)=0, F49, IF(CMdata=1,DEGREES(IMARGUMENT(L50)),'CM choke'!F54)) -> 89.39187227 | G50: 0.07854070694 | H50: 7.399567325 | I50: 0.07854070694 | J50: 7.399567325 | K50: =IF(CMdata=1,IMDIV(1,IMSUM(IMDIV(1,IMPRODUCT(B50,'Design the AEF circuit'!$G$13*0.001)),IMDIV(1,'Design the AEF circuit'!$H$13*1000),IMPRODUCT(B50,'Design the AEF circuit'!$I$13*0.000000000001))),COMPLEX(G50,H50,"j")) -> 0.0785407069404606+7.39956732546903j | L50: =IF(CMdata=1,IMDIV(1,IMSUM(IMDIV(1,IMPRODUCT(B50,'Design the AEF circuit'!$G$14*0.001)),IMDIV(1,'Design the AEF circuit'!$H$14*1000),IMPRODUCT(B50,'Design the AEF circuit'!$I$14*0.000000000001))),COMPLEX(I50,J50,"j")) -> 0.0785407069404606+7.39956732546903j
A51: ='Frequency vector'!G51 -> 3566.54082 | B51: =COMPLEX(0,2*PI()*'Frequency vector'!G51,"j") -> 22409.2368755833j | C51: =IF(IF(CMdata=1,IMABS(K51),'CM choke'!C55)=0, C50, IF(CMdata=1,IMABS(K51),'CM choke'!C55)) -> 7.618995577 | D51: =IF(IF(CMdata=1,DEGREES(IMARGUMENT(K51)),'CM choke'!D55)=0, D50, IF(CMdata=1,DEGREES(IMARGUMENT(K51)),'CM choke'!D55)) -> 89.39316928 | E51: =IF(IF(CMdata=1,IMABS(L51),'CM choke'!E55)=0, E50, IF(CMdata=1,IMABS(L51),'CM choke'!E55)) -> 7.618995577 | F51: =IF(IF(CMdata=1,DEGREES(IMARGUMENT(L51)),'CM choke'!F55)=0, F50, IF(CMdata=1,DEGREES(IMARGUMENT(L51)),'CM choke'!F55)) -> 89.39316928 | G51: 0.08069275262 | H51: 7.618568257 | I51: 0.08069275262 | J51: 7.618568257 | K51: =IF(CMdata=1,IMDIV(1,IMSUM(IMDIV(1,IMPRODUCT(B51,'Design the AEF circuit'!$G$13*0.001)),IMDIV(1,'Design the AEF circuit'!$H$13*1000),IMPRODUCT(B51,'Design the AEF circuit'!$I$13*0.000000000001))),COMPLEX(G51,H51,"j")) -> 0.0806927526212+7.61856825667151j | L51: =IF(CMdata=1,IMDIV(1,IMSUM(IMDIV(1,IMPRODUCT(B51,'Design the AEF circuit'!$G$14*0.001)),IMDIV(1,'Design the AEF circuit'!$H$14*1000),IMPRODUCT(B51,'Design the AEF circuit'!$I$14*0.000000000001))),COMPLEX(I51,J51,"j")) -> 0.0806927526212+7.61856825667151j
A52: ='Frequency vector'!G52 -> 3662.286777 | B52: =COMPLEX(0,2*PI()*'Frequency vector'!G52,"j") -> 23010.8264688396j | C52: =IF(IF(CMdata=1,IMABS(K52),'CM choke'!C56)=0, C51, IF(CMdata=1,IMABS(K52),'CM choke'!C56)) -> 7.844376331 | D52: =IF(IF(CMdata=1,DEGREES(IMARGUMENT(K52)),'CM choke'!D56)=0, D51, IF(CMdata=1,DEGREES(IMARGUMENT(K52)),'CM choke'!D56)) -> 89.39644851 | E52: =IF(IF(CMdata=1,IMABS(L52),'CM choke'!E56)=0, E51, IF(CMdata=1,IMABS(L52),'CM choke'!E56)) -> 7.844376331 | F52: =IF(IF(CMdata=1,DEGREES(IMARGUMENT(L52)),'CM choke'!F56)=0, F51, IF(CMdata=1,DEGREES(IMARGUMENT(L52)),'CM choke'!F56)) -> 89.39644851 | G52: 0.08263082445 | H52: 7.843941112 | I52: 0.08263082445 | J52: 7.843941112 | K52: =IF(CMdata=1,IMDIV(1,IMSUM(IMDIV(1,IMPRODUCT(B52,'Design the AEF circuit'!$G$13*0.001)),IMDIV(1,'Design the AEF circuit'!$H$13*1000),IMPRODUCT(B52,'Design the AEF circuit'!$I$13*0.000000000001))),COMPLEX(G52,H52,"j")) -> 0.0826308244519141+7.84394111225333j | L52: =IF(CMdata=1,IMDIV(1,IMSUM(IMDIV(1,IMPRODUCT(B52,'Design the AEF circuit'!$G$14*0.001)),IMDIV(1,'Design the AEF circuit'!$H$14*1000),IMPRODUCT(B52,'Design the AEF circuit'!$I$14*0.000000000001))),COMPLEX(I52,J52,"j")) -> 0.0826308244519141+7.84394111225333j
A53: ='Frequency vector'!G53 -> 3760.603093 | B53: =COMPLEX(0,2*PI()*'Frequency vector'!G53,"j") -> 23628.5661006145j | C53: =IF(IF(CMdata=1,IMABS(K53),'CM choke'!C57)=0, C52, IF(CMdata=1,IMABS(K53),'CM choke'!C57)) -> 8.076377299 | D53: =IF(IF(CMdata=1,DEGREES(IMARGUMENT(K53)),'CM choke'!D57)=0, D52, IF(CMdata=1,DEGREES(IMARGUMENT(K53)),'CM choke'!D57)) -> 89.39821754 | E53: =IF(IF(CMdata=1,IMABS(L53),'CM choke'!E57)=0, E52, IF(CMdata=1,IMABS(L53),'CM choke'!E57)) -> 8.076377299 | F53: =IF(IF(CMdata=1,DEGREES(IMARGUMENT(L53)),'CM choke'!F57)=0, F52, IF(CMdata=1,DEGREES(IMARGUMENT(L53)),'CM choke'!F57)) -> 89.39821754 | G53: 0.08482532044 | H53: 8.075931831 | I53: 0.08482532044 | J53: 8.075931831 | K53: =IF(CMdata=1,IMDIV(1,IMSUM(IMDIV(1,IMPRODUCT(B53,'Design the AEF circuit'!$G$13*0.001)),IMDIV(1,'Design the AEF circuit'!$H$13*1000),IMPRODUCT(B53,'Design the AEF circuit'!$I$13*0.000000000001))),COMPLEX(G53,H53,"j")) -> 0.0848253204389019+8.07593183067488j | L53: =IF(CMdata=1,IMDIV(1,IMSUM(IMDIV(1,IMPRODUCT(B53,'Design the AEF circuit'!$G$14*0.001)),IMDIV(1,'Design the AEF circuit'!$H$14*1000),IMPRODUCT(B53,'Design the AEF circuit'!$I$14*0.000000000001))),COMPLEX(I53,J53,"j")) -> 0.0848253204389019+8.07593183067488j
A54: ='Frequency vector'!G54 -> 3861.55877 | B54: =COMPLEX(0,2*PI()*'Frequency vector'!G54,"j") -> 24262.8893285146j | C54: =IF(IF(CMdata=1,IMABS(K54),'CM choke'!C58)=0, C53, IF(CMdata=1,IMABS(K54),'CM choke'!C58)) -> 8.314943463 | D54: =IF(IF(CMdata=1,DEGREES(IMARGUMENT(K54)),'CM choke'!D58)=0, D53, IF(CMdata=1,DEGREES(IMARGUMENT(K54)),'CM choke'!D58)) -> 89.39880526 | E54: =IF(IF(CMdata=1,IMABS(L54),'CM choke'!E58)=0, E53, IF(CMdata=1,IMABS(L54),'CM choke'!E58)) -> 8.314943463 | F54: =IF(IF(CMdata=1,DEGREES(IMARGUMENT(L54)),'CM choke'!F58)=0, F53, IF(CMdata=1,DEGREES(IMARGUMENT(L54)),'CM choke'!F58)) -> 89.39880526 | G54: 0.08724566786 | H54: 8.314485731 | I54: 0.08724566786 | J54: 8.314485731 | K54: =IF(CMdata=1,IMDIV(1,IMSUM(IMDIV(1,IMPRODUCT(B54,'Design the AEF circuit'!$G$13*0.001)),IMDIV(1,'Design the AEF circuit'!$H$13*1000),IMPRODUCT(B54,'Design the AEF circuit'!$I$13*0.000000000001))),COMPLEX(G54,H54,"j")) -> 0.0872456678608887+8.31448573147146j | L54: =IF(CMdata=1,IMDIV(1,IMSUM(IMDIV(1,IMPRODUCT(B54,'Design the AEF circuit'!$G$14*0.001)),IMDIV(1,'Design the AEF circuit'!$H$14*1000),IMPRODUCT(B54,'Design the AEF circuit'!$I$14*0.000000000001))),COMPLEX(I54,J54,"j")) -> 0.0872456678608887+8.31448573147146j
A55: ='Frequency vector'!G55 -> 3965.224664 | B55: =COMPLEX(0,2*PI()*'Frequency vector'!G55,"j") -> 24914.241349264j | C55: =IF(IF(CMdata=1,IMABS(K55),'CM choke'!C59)=0, C54, IF(CMdata=1,IMABS(K55),'CM choke'!C59)) -> 8.560842295 | D55: =IF(IF(CMdata=1,DEGREES(IMARGUMENT(K55)),'CM choke'!D59)=0, D54, IF(CMdata=1,DEGREES(IMARGUMENT(K55)),'CM choke'!D59)) -> 89.40256709 | E55: =IF(IF(CMdata=1,IMABS(L55),'CM choke'!E59)=0, E54, IF(CMdata=1,IMABS(L55),'CM choke'!E59)) -> 8.560842295 | F55: =IF(IF(CMdata=1,DEGREES(IMARGUMENT(L55)),'CM choke'!F59)=0, F54, IF(CMdata=1,DEGREES(IMARGUMENT(L55)),'CM choke'!F59)) -> 89.40256709 | G55: 0.08926375153 | H55: 8.560376906 | I55: 0.08926375153 | J55: 8.560376906 | K55: =IF(CMdata=1,IMDIV(1,IMSUM(IMDIV(1,IMPRODUCT(B55,'Design the AEF circuit'!$G$13*0.001)),IMDIV(1,'Design the AEF circuit'!$H$13*1000),IMPRODUCT(B55,'Design the AEF circuit'!$I$13*0.000000000001))),COMPLEX(G55,H55,"j")) -> 0.0892637515336332+8.56037690622917j | L55: =IF(CMdata=1,IMDIV(1,IMSUM(IMDIV(1,IMPRODUCT(B55,'Design the AEF circuit'!$G$14*0.001)),IMDIV(1,'Design the AEF circuit'!$H$14*1000),IMPRODUCT(B55,'Design the AEF circuit'!$I$14*0.000000000001))),COMPLEX(I55,J55,"j")) -> 0.0892637515336332+8.56037690622917j
A56: ='Frequency vector'!G56 -> 4071.673532 | B56: =COMPLEX(0,2*PI()*'Frequency vector'!G56,"j") -> 25583.0793111637j | C56: =IF(IF(CMdata=1,IMABS(K56),'CM choke'!C60)=0, C55, IF(CMdata=1,IMABS(K56),'CM choke'!C60)) -> 8.813922093 | D56: =IF(IF(CMdata=1,DEGREES(IMARGUMENT(K56)),'CM choke'!D60)=0, D55, IF(CMdata=1,DEGREES(IMARGUMENT(K56)),'CM choke'!D60)) -> 89.40316129 | E56: =IF(IF(CMdata=1,IMABS(L56),'CM choke'!E60)=0, E55, IF(CMdata=1,IMABS(L56),'CM choke'!E60)) -> 8.813922093 | F56: =IF(IF(CMdata=1,DEGREES(IMARGUMENT(L56)),'CM choke'!F60)=0, F55, IF(CMdata=1,DEGREES(IMARGUMENT(L56)),'CM choke'!F60)) -> 89.40316129 | G56: 0.09181120815 | H56: 8.813443899 | I56: 0.09181120815 | J56: 8.813443899 | K56: =IF(CMdata=1,IMDIV(1,IMSUM(IMDIV(1,IMPRODUCT(B56,'Design the AEF circuit'!$G$13*0.001)),IMDIV(1,'Design the AEF circuit'!$H$13*1000),IMPRODUCT(B56,'Design the AEF circuit'!$I$13*0.000000000001))),COMPLEX(G56,H56,"j")) -> 0.0918112081508309+8.81344389890379j | L56: =IF(CMdata=1,IMDIV(1,IMSUM(IMDIV(1,IMPRODUCT(B56,'Design the AEF circuit'!$G$14*0.001)),IMDIV(1,'Design the AEF circuit'!$H$14*1000),IMPRODUCT(B56,'Design the AEF circuit'!$I$14*0.000000000001))),COMPLEX(I56,J56,"j")) -> 0.0918112081508309+8.81344389890379j
A57: ='Frequency vector'!G57 -> 4180.980084 | B57: =COMPLEX(0,2*PI()*'Frequency vector'!G57,"j") -> 26269.8726349388j | C57: =IF(IF(CMdata=1,IMABS(K57),'CM choke'!C61)=0, C56, IF(CMdata=1,IMABS(K57),'CM choke'!C61)) -> 9.074520602 | D57: =IF(IF(CMdata=1,DEGREES(IMARGUMENT(K57)),'CM choke'!D61)=0, D56, IF(CMdata=1,DEGREES(IMARGUMENT(K57)),'CM choke'!D61)) -> 89.40450898 | E57: =IF(IF(CMdata=1,IMABS(L57),'CM choke'!E61)=0, E56, IF(CMdata=1,IMABS(L57),'CM choke'!E61)) -> 9.074520602 | F57: =IF(IF(CMdata=1,DEGREES(IMARGUMENT(L57)),'CM choke'!F61)=0, F56, IF(CMdata=1,DEGREES(IMARGUMENT(L57)),'CM choke'!F61)) -> 89.40450898 | G57: 0.09431232646 | H57: 9.074030491 | I57: 0.09431232646 | J57: 9.074030491 | K57: =IF(CMdata=1,IMDIV(1,IMSUM(IMDIV(1,IMPRODUCT(B57,'Design the AEF circuit'!$G$13*0.001)),IMDIV(1,'Design the AEF circuit'!$H$13*1000),IMPRODUCT(B57,'Design the AEF circuit'!$I$13*0.000000000001))),COMPLEX(G57,H57,"j")) -> 0.0943123264642013+9.07403049065704j | L57: =IF(CMdata=1,IMDIV(1,IMSUM(IMDIV(1,IMPRODUCT(B57,'Design the AEF circuit'!$G$14*0.001)),IMDIV(1,'Design the AEF circuit'!$H$14*1000),IMPRODUCT(B57,'Design the AEF circuit'!$I$14*0.000000000001))),COMPLEX(I57,J57,"j")) -> 0.0943123264642013+9.07403049065704j
A58: ='Frequency vector'!G58 -> 4293.221037 | B58: =COMPLEX(0,2*PI()*'Frequency vector'!G58,"j") -> 26975.1033431995j | C58: =IF(IF(CMdata=1,IMABS(K58),'CM choke'!C62)=0, C57, IF(CMdata=1,IMABS(K58),'CM choke'!C62)) -> 9.342491986 | D58: =IF(IF(CMdata=1,DEGREES(IMARGUMENT(K58)),'CM choke'!D62)=0, D57, IF(CMdata=1,DEGREES(IMARGUMENT(K58)),'CM choke'!D62)) -> 89.40600091 | E58: =IF(IF(CMdata=1,IMABS(L58),'CM choke'!E62)=0, E57, IF(CMdata=1,IMABS(L58),'CM choke'!E62)) -> 9.342491986 | F58: =IF(IF(CMdata=1,DEGREES(IMARGUMENT(L58)),'CM choke'!F62)=0, F57, IF(CMdata=1,DEGREES(IMARGUMENT(L58)),'CM choke'!F62)) -> 89.40600091 | G58: 0.09685411973 | H58: 9.341989926 | I58: 0.09685411973 | J58: 9.341989926 | K58: =IF(CMdata=1,IMDIV(1,IMSUM(IMDIV(1,IMPRODUCT(B58,'Design the AEF circuit'!$G$13*0.001)),IMDIV(1,'Design the AEF circuit'!$H$13*1000),IMPRODUCT(B58,'Design the AEF circuit'!$I$13*0.000000000001))),COMPLEX(G58,H58,"j")) -> 0.0968541197277376+9.34198992642093j | L58: =IF(CMdata=1,IMDIV(1,IMSUM(IMDIV(1,IMPRODUCT(B58,'Design the AEF circuit'!$G$14*0.001)),IMDIV(1,'Design the AEF circuit'!$H$14*1000),IMPRODUCT(B58,'Design the AEF circuit'!$I$14*0.000000000001))),COMPLEX(I58,J58,"j")) -> 0.0968541197277376+9.34198992642093j
A59: ='Frequency vector'!G59 -> 4408.475167 | B59: =COMPLEX(0,2*PI()*'Frequency vector'!G59,"j") -> 27699.2663987457j | C59: =IF(IF(CMdata=1,IMABS(K59),'CM choke'!C63)=0, C58, IF(CMdata=1,IMABS(K59),'CM choke'!C63)) -> 9.61838326 | D59: =IF(IF(CMdata=1,DEGREES(IMARGUMENT(K59)),'CM choke'!D63)=0, D58, IF(CMdata=1,DEGREES(IMARGUMENT(K59)),'CM choke'!D63)) -> 89.40872605 | E59: =IF(IF(CMdata=1,IMABS(L59),'CM choke'!E63)=0, E58, IF(CMdata=1,IMABS(L59),'CM choke'!E63)) -> 9.61838326 | F59: =IF(IF(CMdata=1,DEGREES(IMARGUMENT(L59)),'CM choke'!F63)=0, F58, IF(CMdata=1,DEGREES(IMARGUMENT(L59)),'CM choke'!F63)) -> 89.40872605 | G59: 0.09925684853 | H59: 9.617871106 | I59: 0.09925684853 | J59: 9.617871106 | K59: =IF(CMdata=1,IMDIV(1,IMSUM(IMDIV(1,IMPRODUCT(B59,'Design the AEF circuit'!$G$13*0.001)),IMDIV(1,'Design the AEF circuit'!$H$13*1000),IMPRODUCT(B59,'Design the AEF circuit'!$I$13*0.000000000001))),COMPLEX(G59,H59,"j")) -> 0.099256848532834+9.61787110594713j | L59: =IF(CMdata=1,IMDIV(1,IMSUM(IMDIV(1,IMPRODUCT(B59,'Design the AEF circuit'!$G$14*0.001)),IMDIV(1,'Design the AEF circuit'!$H$14*1000),IMPRODUCT(B59,'Design the AEF circuit'!$I$14*0.000000000001))),COMPLEX(I59,J59,"j")) -> 0.099256848532834+9.61787110594713j
A60: ='Frequency vector'!G60 -> 4526.823364 | B60: =COMPLEX(0,2*PI()*'Frequency vector'!G60,"j") -> 28442.8700519551j | C60: =IF(IF(CMdata=1,IMABS(K60),'CM choke'!C64)=0, C59, IF(CMdata=1,IMABS(K60),'CM choke'!C64)) -> 9.902256444 | D60: =IF(IF(CMdata=1,DEGREES(IMARGUMENT(K60)),'CM choke'!D64)=0, D59, IF(CMdata=1,DEGREES(IMARGUMENT(K60)),'CM choke'!D64)) -> 89.40881422 | E60: =IF(IF(CMdata=1,IMABS(L60),'CM choke'!E64)=0, E59, IF(CMdata=1,IMABS(L60),'CM choke'!E64)) -> 9.902256444 | F60: =IF(IF(CMdata=1,DEGREES(IMARGUMENT(L60)),'CM choke'!F64)=0, F59, IF(CMdata=1,DEGREES(IMARGUMENT(L60)),'CM choke'!F64)) -> 89.40881422 | G60: 0.1021710391 | H60: 9.901729332 | I60: 0.1021710391 | J60: 9.901729332 | K60: =IF(CMdata=1,IMDIV(1,IMSUM(IMDIV(1,IMPRODUCT(B60,'Design the AEF circuit'!$G$13*0.001)),IMDIV(1,'Design the AEF circuit'!$H$13*1000),IMPRODUCT(B60,'Design the AEF circuit'!$I$13*0.000000000001))),COMPLEX(G60,H60,"j")) -> 0.102171039095748+9.90172933216471j | L60: =IF(CMdata=1,IMDIV(1,IMSUM(IMDIV(1,IMPRODUCT(B60,'Design the AEF circuit'!$G$14*0.001)),IMDIV(1,'Design the AEF circuit'!$H$14*1000),IMPRODUCT(B60,'Design the AEF circuit'!$I$14*0.000000000001))),COMPLEX(I60,J60,"j")) -> 0.102171039095748+9.90172933216471j
A61: ='Frequency vector'!G61 -> 4648.348691 | B61: =COMPLEX(0,2*PI()*'Frequency vector'!G61,"j") -> 29206.4361974958j | C61: =IF(IF(CMdata=1,IMABS(K61),'CM choke'!C65)=0, C60, IF(CMdata=1,IMABS(K61),'CM choke'!C65)) -> 10.19474631 | D61: =IF(IF(CMdata=1,DEGREES(IMARGUMENT(K61)),'CM choke'!D65)=0, D60, IF(CMdata=1,DEGREES(IMARGUMENT(K61)),'CM choke'!D65)) -> 89.40907602 | E61: =IF(IF(CMdata=1,IMABS(L61),'CM choke'!E65)=0, E60, IF(CMdata=1,IMABS(L61),'CM choke'!E65)) -> 10.19474631 | F61: =IF(IF(CMdata=1,DEGREES(IMARGUMENT(L61)),'CM choke'!F65)=0, F60, IF(CMdata=1,DEGREES(IMARGUMENT(L61)),'CM choke'!F65)) -> 89.40907602 | G61: 0.1051423567 | H61: 10.19420411 | I61: 0.1051423567 | J61: 10.19420411 | K61: =IF(CMdata=1,IMDIV(1,IMSUM(IMDIV(1,IMPRODUCT(B61,'Design the AEF circuit'!$G$13*0.001)),IMDIV(1,'Design the AEF circuit'!$H$13*1000),IMPRODUCT(B61,'Design the AEF circuit'!$I$13*0.000000000001))),COMPLEX(G61,H61,"j")) -> 0.10514235669713+10.1942041071122j | L61: =IF(CMdata=1,IMDIV(1,IMSUM(IMDIV(1,IMPRODUCT(B61,'Design the AEF circuit'!$G$14*0.001)),IMDIV(1,'Design the AEF circuit'!$H$14*1000),IMPRODUCT(B61,'Design the AEF circuit'!$I$14*0.000000000001))),COMPLEX(I61,J61,"j")) -> 0.10514235669713+10.1942041071122j
A62: ='Frequency vector'!G62 -> 4773.136439 | B62: =COMPLEX(0,2*PI()*'Frequency vector'!G62,"j") -> 29990.5007406155j | C62: =IF(IF(CMdata=1,IMABS(K62),'CM choke'!C66)=0, C61, IF(CMdata=1,IMABS(K62),'CM choke'!C66)) -> 10.4958448 | D62: =IF(IF(CMdata=1,DEGREES(IMARGUMENT(K62)),'CM choke'!D66)=0, D61, IF(CMdata=1,DEGREES(IMARGUMENT(K62)),'CM choke'!D66)) -> 89.41038112 | E62: =IF(IF(CMdata=1,IMABS(L62),'CM choke'!E66)=0, E61, IF(CMdata=1,IMABS(L62),'CM choke'!E66)) -> 10.4958448 | F62: =IF(IF(CMdata=1,DEGREES(IMARGUMENT(L62)),'CM choke'!F66)=0, F61, IF(CMdata=1,DEGREES(IMARGUMENT(L62)),'CM choke'!F66)) -> 89.41038112 | G62: 0.1080086357 | H62: 10.49528905 | I62: 0.1080086357 | J62: 10.49528905 | K62: =IF(CMdata=1,IMDIV(1,IMSUM(IMDIV(1,IMPRODUCT(B62,'Design the AEF circuit'!$G$13*0.001)),IMDIV(1,'Design the AEF circuit'!$H$13*1000),IMPRODUCT(B62,'Design the AEF circuit'!$I$13*0.000000000001))),COMPLEX(G62,H62,"j")) -> 0.108008635725534+10.4952890487632j | L62: =IF(CMdata=1,IMDIV(1,IMSUM(IMDIV(1,IMPRODUCT(B62,'Design the AEF circuit'!$G$14*0.001)),IMDIV(1,'Design the AEF circuit'!$H$14*1000),IMPRODUCT(B62,'Design the AEF circuit'!$I$14*0.000000000001))),COMPLEX(I62,J62,"j")) -> 0.108008635725534+10.4952890487632j
A63: ='Frequency vector'!G63 -> 4901.274189 | B63: =COMPLEX(0,2*PI()*'Frequency vector'!G63,"j") -> 30795.6139732646j | C63: =IF(IF(CMdata=1,IMABS(K63),'CM choke'!C67)=0, C62, IF(CMdata=1,IMABS(K63),'CM choke'!C67)) -> 10.80545573 | D63: =IF(IF(CMdata=1,DEGREES(IMARGUMENT(K63)),'CM choke'!D67)=0, D62, IF(CMdata=1,DEGREES(IMARGUMENT(K63)),'CM choke'!D67)) -> 89.41216865 | E63: =IF(IF(CMdata=1,IMABS(L63),'CM choke'!E67)=0, E62, IF(CMdata=1,IMABS(L63),'CM choke'!E67)) -> 10.80545573 | F63: =IF(IF(CMdata=1,DEGREES(IMARGUMENT(L63)),'CM choke'!F67)=0, F62, IF(CMdata=1,DEGREES(IMARGUMENT(L63)),'CM choke'!F67)) -> 89.41216865 | G63: 0.1108576269 | H63: 10.80488705 | I63: 0.1108576269 | J63: 10.80488705 | K63: =IF(CMdata=1,IMDIV(1,IMSUM(IMDIV(1,IMPRODUCT(B63,'Design the AEF circuit'!$G$13*0.001)),IMDIV(1,'Design the AEF circuit'!$H$13*1000),IMPRODUCT(B63,'Design the AEF circuit'!$I$13*0.000000000001))),COMPLEX(G63,H63,"j")) -> 0.110857626939727+10.8048870517771j | L63: =IF(CMdata=1,IMDIV(1,IMSUM(IMDIV(1,IMPRODUCT(B63,'Design the AEF circuit'!$G$14*0.001)),IMDIV(1,'Design the AEF circuit'!$H$14*1000),IMPRODUCT(B63,'Design the AEF circuit'!$I$14*0.000000000001))),COMPLEX(I63,J63,"j")) -> 0.110857626939727+10.8048870517771j
A64: ='Frequency vector'!G64 -> 5032.851876 | B64: =COMPLEX(0,2*PI()*'Frequency vector'!G64,"j") -> 31622.3409603152j | C64: =IF(IF(CMdata=1,IMABS(K64),'CM choke'!C68)=0, C63, IF(CMdata=1,IMABS(K64),'CM choke'!C68)) -> 11.12437095 | D64: =IF(IF(CMdata=1,DEGREES(IMARGUMENT(K64)),'CM choke'!D68)=0, D63, IF(CMdata=1,DEGREES(IMARGUMENT(K64)),'CM choke'!D68)) -> 89.41290371 | E64: =IF(IF(CMdata=1,IMABS(L64),'CM choke'!E68)=0, E63, IF(CMdata=1,IMABS(L64),'CM choke'!E68)) -> 11.12437095 | F64: =IF(IF(CMdata=1,DEGREES(IMARGUMENT(L64)),'CM choke'!F68)=0, F63, IF(CMdata=1,DEGREES(IMARGUMENT(L64)),'CM choke'!F68)) -> 89.41290371 | G64: 0.1139868015 | H64: 11.12378695 | I64: 0.1139868015 | J64: 11.12378695 | K64: =IF(CMdata=1,IMDIV(1,IMSUM(IMDIV(1,IMPRODUCT(B64,'Design the AEF circuit'!$G$13*0.001)),IMDIV(1,'Design the AEF circuit'!$H$13*1000),IMPRODUCT(B64,'Design the AEF circuit'!$I$13*0.000000000001))),COMPLEX(G64,H64,"j")) -> 0.113986801509589+11.1237869511019j | L64: =IF(CMdata=1,IMDIV(1,IMSUM(IMDIV(1,IMPRODUCT(B64,'Design the AEF circuit'!$G$14*0.001)),IMDIV(1,'Design the AEF circuit'!$H$14*1000),IMPRODUCT(B64,'Design the AEF circuit'!$I$14*0.000000000001))),COMPLEX(I64,J64,"j")) -> 0.113986801509589+11.1237869511019j
A65: ='Frequency vector'!G65 -> 5167.961846 | B65: =COMPLEX(0,2*PI()*'Frequency vector'!G65,"j") -> 32471.2619361497j | C65: =IF(IF(CMdata=1,IMABS(K65),'CM choke'!C69)=0, C64, IF(CMdata=1,IMABS(K65),'CM choke'!C69)) -> 11.45257914 | D65: =IF(IF(CMdata=1,DEGREES(IMARGUMENT(K65)),'CM choke'!D69)=0, D64, IF(CMdata=1,DEGREES(IMARGUMENT(K65)),'CM choke'!D69)) -> 89.41387869 | E65: =IF(IF(CMdata=1,IMABS(L65),'CM choke'!E69)=0, E64, IF(CMdata=1,IMABS(L65),'CM choke'!E69)) -> 11.45257914 | F65: =IF(IF(CMdata=1,DEGREES(IMARGUMENT(L65)),'CM choke'!F69)=0, F64, IF(CMdata=1,DEGREES(IMARGUMENT(L65)),'CM choke'!F69)) -> 89.41387869 | G65: 0.1171549391 | H65: 11.4519799 | I65: 0.1171549391 | J65: 11.4519799 | K65: =IF(CMdata=1,IMDIV(1,IMSUM(IMDIV(1,IMPRODUCT(B65,'Design the AEF circuit'!$G$13*0.001)),IMDIV(1,'Design the AEF circuit'!$H$13*1000),IMPRODUCT(B65,'Design the AEF circuit'!$I$13*0.000000000001))),COMPLEX(G65,H65,"j")) -> 0.117154939102167+11.4519799016045j | L65: =IF(CMdata=1,IMDIV(1,IMSUM(IMDIV(1,IMPRODUCT(B65,'Design the AEF circuit'!$G$14*0.001)),IMDIV(1,'Design the AEF circuit'!$H$14*1000),IMPRODUCT(B65,'Design the AEF circuit'!$I$14*0.000000000001))),COMPLEX(I65,J65,"j")) -> 0.117154939102167+11.4519799016045j
A66: ='Frequency vector'!G66 -> 5306.698924 | B66: =COMPLEX(0,2*PI()*'Frequency vector'!G66,"j") -> 33342.9727118955j | C66: =IF(IF(CMdata=1,IMABS(K66),'CM choke'!C70)=0, C65, IF(CMdata=1,IMABS(K66),'CM choke'!C70)) -> 11.790353 | D66: =IF(IF(CMdata=1,DEGREES(IMARGUMENT(K66)),'CM choke'!D70)=0, D65, IF(CMdata=1,DEGREES(IMARGUMENT(K66)),'CM choke'!D70)) -> 89.41477987 | E66: =IF(IF(CMdata=1,IMABS(L66),'CM choke'!E70)=0, E65, IF(CMdata=1,IMABS(L66),'CM choke'!E70)) -> 11.790353 | F66: =IF(IF(CMdata=1,DEGREES(IMARGUMENT(L66)),'CM choke'!F70)=0, F65, IF(CMdata=1,DEGREES(IMARGUMENT(L66)),'CM choke'!F70)) -> 89.41477987 | G66: 0.1204247861 | H66: 11.78973799 | I66: 0.1204247861 | J66: 11.78973799 | K66: =IF(CMdata=1,IMDIV(1,IMSUM(IMDIV(1,IMPRODUCT(B66,'Design the AEF circuit'!$G$13*0.001)),IMDIV(1,'Design the AEF circuit'!$H$13*1000),IMPRODUCT(B66,'Design the AEF circuit'!$I$13*0.000000000001))),COMPLEX(G66,H66,"j")) -> 0.120424786058572+11.7897379878757j | L66: =IF(CMdata=1,IMDIV(1,IMSUM(IMDIV(1,IMPRODUCT(B66,'Design the AEF circuit'!$G$14*0.001)),IMDIV(1,'Design the AEF circuit'!$H$14*1000),IMPRODUCT(B66,'Design the AEF circuit'!$I$14*0.000000000001))),COMPLEX(I66,J66,"j")) -> 0.120424786058572+11.7897379878757j
A67: ='Frequency vector'!G67 -> 5449.160485 | B67: =COMPLEX(0,2*PI()*'Frequency vector'!G67,"j") -> 34238.085093592j | C67: =IF(IF(CMdata=1,IMABS(K67),'CM choke'!C71)=0, C66, IF(CMdata=1,IMABS(K67),'CM choke'!C71)) -> 12.13816197 | D67: =IF(IF(CMdata=1,DEGREES(IMARGUMENT(K67)),'CM choke'!D71)=0, D66, IF(CMdata=1,DEGREES(IMARGUMENT(K67)),'CM choke'!D71)) -> 89.41474906 | E67: =IF(IF(CMdata=1,IMABS(L67),'CM choke'!E71)=0, E66, IF(CMdata=1,IMABS(L67),'CM choke'!E71)) -> 12.13816197 | F67: =IF(IF(CMdata=1,DEGREES(IMARGUMENT(L67)),'CM choke'!F71)=0, F66, IF(CMdata=1,DEGREES(IMARGUMENT(L67)),'CM choke'!F71)) -> 89.41474906 | G67: =C67*COS(RADIANS(D67)) -> 0.123983777 | H67: =C67*SIN(RADIANS(D67)) -> 12.13752875 | I67: =E67*COS(RADIANS(F67)) -> 0.123983777 | J67: =E67*SIN(RADIANS(F67)) -> 12.13752875 | K67: =IF(CMdata=1,IMDIV(1,IMSUM(IMDIV(1,IMPRODUCT(B67,'Design the AEF circuit'!$G$13*0.001)),IMDIV(1,'Design the AEF circuit'!$H$13*1000),IMPRODUCT(B67,'Design the AEF circuit'!$I$13*0.000000000001))),COMPLEX(G67,H67,"j")) -> 0.123983777004147+12.1375287478886j | L67: =IF(CMdata=1,IMDIV(1,IMSUM(IMDIV(1,IMPRODUCT(B67,'Design the AEF circuit'!$G$14*0.001)),IMDIV(1,'Design the AEF circuit'!$H$14*1000),IMPRODUCT(B67,'Design the AEF circuit'!$I$14*0.000000000001))),COMPLEX(I67,J67,"j")) -> 0.123983777004147+12.1375287478886j
A68: ='Frequency vector'!G68 -> 5595.446512 | B68: =COMPLEX(0,2*PI()*'Frequency vector'!G68,"j") -> 35157.2273115838j | C68: =IF(IF(CMdata=1,IMABS(K68),'CM choke'!C72)=0, C67, IF(CMdata=1,IMABS(K68),'CM choke'!C72)) -> 12.49588157 | D68: =IF(IF(CMdata=1,DEGREES(IMARGUMENT(K68)),'CM choke'!D72)=0, D67, IF(CMdata=1,DEGREES(IMARGUMENT(K68)),'CM choke'!D72)) -> 89.41599136 | E68: =IF(IF(CMdata=1,IMABS(L68),'CM choke'!E72)=0, E67, IF(CMdata=1,IMABS(L68),'CM choke'!E72)) -> 12.49588157 | F68: =IF(IF(CMdata=1,DEGREES(IMARGUMENT(L68)),'CM choke'!F72)=0, F67, IF(CMdata=1,DEGREES(IMARGUMENT(L68)),'CM choke'!F72)) -> 89.41599136 | G68: 0.1273667352 | H68: 12.49523245 | I68: 0.1273667352 | J68: 12.49523245 | K68: =IF(CMdata=1,IMDIV(1,IMSUM(IMDIV(1,IMPRODUCT(B68,'Design the AEF circuit'!$G$13*0.001)),IMDIV(1,'Design the AEF circuit'!$H$13*1000),IMPRODUCT(B68,'Design the AEF circuit'!$I$13*0.000000000001))),COMPLEX(G68,H68,"j")) -> 0.12736673522561+12.495232451667j | L68: =IF(CMdata=1,IMDIV(1,IMSUM(IMDIV(1,IMPRODUCT(B68,'Design the AEF circuit'!$G$14*0.001)),IMDIV(1,'Design the AEF circuit'!$H$14*1000),IMPRODUCT(B68,'Design the AEF circuit'!$I$14*0.000000000001))),COMPLEX(I68,J68,"j")) -> 0.12736673522561+12.495232451667j
A69: ='Frequency vector'!G69 -> 5745.659677 | B69: =COMPLEX(0,2*PI()*'Frequency vector'!G69,"j") -> 36101.0444614413j | C69: =IF(IF(CMdata=1,IMABS(K69),'CM choke'!C73)=0, C68, IF(CMdata=1,IMABS(K69),'CM choke'!C73)) -> 12.86422481 | D69: =IF(IF(CMdata=1,DEGREES(IMARGUMENT(K69)),'CM choke'!D73)=0, D68, IF(CMdata=1,DEGREES(IMARGUMENT(K69)),'CM choke'!D73)) -> 89.4165533 | E69: =IF(IF(CMdata=1,IMABS(L69),'CM choke'!E73)=0, E68, IF(CMdata=1,IMABS(L69),'CM choke'!E73)) -> 12.86422481 | F69: =IF(IF(CMdata=1,DEGREES(IMARGUMENT(L69)),'CM choke'!F73)=0, F68, IF(CMdata=1,DEGREES(IMARGUMENT(L69)),'CM choke'!F73)) -> 89.4165533 | G69: 0.1309949852 | H69: 12.86355784 | I69: 0.1309949852 | J69: 12.86355784 | K69: =IF(CMdata=1,IMDIV(1,IMSUM(IMDIV(1,IMPRODUCT(B69,'Design the AEF circuit'!$G$13*0.001)),IMDIV(1,'Design the AEF circuit'!$H$13*1000),IMPRODUCT(B69,'Design the AEF circuit'!$I$13*0.000000000001))),COMPLEX(G69,H69,"j")) -> 0.130994985200969+12.8635578401524j | L69: =IF(CMdata=1,IMDIV(1,IMSUM(IMDIV(1,IMPRODUCT(B69,'Design the AEF circuit'!$G$14*0.001)),IMDIV(1,'Design the AEF circuit'!$H$14*1000),IMPRODUCT(B69,'Design the AEF circuit'!$I$14*0.000000000001))),COMPLEX(I69,J69,"j")) -> 0.130994985200969+12.8635578401524j
A70: ='Frequency vector'!G70 -> 5899.905405 | B70: =COMPLEX(0,2*PI()*'Frequency vector'!G70,"j") -> 37070.1989567177j | C70: =IF(IF(CMdata=1,IMABS(K70),'CM choke'!C74)=0, C69, IF(CMdata=1,IMABS(K70),'CM choke'!C74)) -> 13.24332333 | D70: =IF(IF(CMdata=1,DEGREES(IMARGUMENT(K70)),'CM choke'!D74)=0, D69, IF(CMdata=1,DEGREES(IMARGUMENT(K70)),'CM choke'!D74)) -> 89.41588633 | E70: =IF(IF(CMdata=1,IMABS(L70),'CM choke'!E74)=0, E69, IF(CMdata=1,IMABS(L70),'CM choke'!E74)) -> 13.24332333 | F70: =IF(IF(CMdata=1,DEGREES(IMARGUMENT(L70)),'CM choke'!F74)=0, F69, IF(CMdata=1,DEGREES(IMARGUMENT(L70)),'CM choke'!F74)) -> 89.41588633 | G70: 0.135009459 | H70: 13.24263513 | I70: 0.135009459 | J70: 13.24263513 | K70: =IF(CMdata=1,IMDIV(1,IMSUM(IMDIV(1,IMPRODUCT(B70,'Design the AEF circuit'!$G$13*0.001)),IMDIV(1,'Design the AEF circuit'!$H$13*1000),IMPRODUCT(B70,'Design the AEF circuit'!$I$13*0.000000000001))),COMPLEX(G70,H70,"j")) -> 0.135009459035667+13.2426351297179j | L70: =IF(CMdata=1,IMDIV(1,IMSUM(IMDIV(1,IMPRODUCT(B70,'Design the AEF circuit'!$G$14*0.001)),IMDIV(1,'Design the AEF circuit'!$H$14*1000),IMPRODUCT(B70,'Design the AEF circuit'!$I$14*0.000000000001))),COMPLEX(I70,J70,"j")) -> 0.135009459035667+13.2426351297179j
A71: ='Frequency vector'!G71 -> 6058.291954 | B71: =COMPLEX(0,2*PI()*'Frequency vector'!G71,"j") -> 38065.3709938611j | C71: =IF(IF(CMdata=1,IMABS(K71),'CM choke'!C75)=0, C70, IF(CMdata=1,IMABS(K71),'CM choke'!C75)) -> 13.63361035 | D71: =IF(IF(CMdata=1,DEGREES(IMARGUMENT(K71)),'CM choke'!D75)=0, D70, IF(CMdata=1,DEGREES(IMARGUMENT(K71)),'CM choke'!D75)) -> 89.41621728 | E71: =IF(IF(CMdata=1,IMABS(L71),'CM choke'!E75)=0, E70, IF(CMdata=1,IMABS(L71),'CM choke'!E75)) -> 13.63361035 | F71: =IF(IF(CMdata=1,DEGREES(IMARGUMENT(L71)),'CM choke'!F75)=0, F70, IF(CMdata=1,DEGREES(IMARGUMENT(L71)),'CM choke'!F75)) -> 89.41621728 | G71: 0.138909507 | H71: 13.63290267 | I71: 0.138909507 | J71: 13.63290267 | K71: =IF(CMdata=1,IMDIV(1,IMSUM(IMDIV(1,IMPRODUCT(B71,'Design the AEF circuit'!$G$13*0.001)),IMDIV(1,'Design the AEF circuit'!$H$13*1000),IMPRODUCT(B71,'Design the AEF circuit'!$I$13*0.000000000001))),COMPLEX(G71,H71,"j")) -> 0.138909507017462+13.6329026722101j | L71: =IF(CMdata=1,IMDIV(1,IMSUM(IMDIV(1,IMPRODUCT(B71,'Design the AEF circuit'!$G$14*0.001)),IMDIV(1,'Design the AEF circuit'!$H$14*1000),IMPRODUCT(B71,'Design the AEF circuit'!$I$14*0.000000000001))),COMPLEX(I71,J71,"j")) -> 0.138909507017462+13.6329026722101j
A72: ='Frequency vector'!G72 -> 6220.930486 | B72: =COMPLEX(0,2*PI()*'Frequency vector'!G72,"j") -> 39087.2590296065j | C72: =IF(IF(CMdata=1,IMABS(K72),'CM choke'!C76)=0, C71, IF(CMdata=1,IMABS(K72),'CM choke'!C76)) -> 14.03487924 | D72: =IF(IF(CMdata=1,DEGREES(IMARGUMENT(K72)),'CM choke'!D76)=0, D71, IF(CMdata=1,DEGREES(IMARGUMENT(K72)),'CM choke'!D76)) -> 89.41583608 | E72: =IF(IF(CMdata=1,IMABS(L72),'CM choke'!E76)=0, E71, IF(CMdata=1,IMABS(L72),'CM choke'!E76)) -> 14.03487924 | F72: =IF(IF(CMdata=1,DEGREES(IMARGUMENT(L72)),'CM choke'!F76)=0, F71, IF(CMdata=1,DEGREES(IMARGUMENT(L72)),'CM choke'!F76)) -> 89.41583608 | G72: 0.1430913079 | H72: 14.03414978 | I72: 0.1430913079 | J72: 14.03414978 | K72: =IF(CMdata=1,IMDIV(1,IMSUM(IMDIV(1,IMPRODUCT(B72,'Design the AEF circuit'!$G$13*0.001)),IMDIV(1,'Design the AEF circuit'!$H$13*1000),IMPRODUCT(B72,'Design the AEF circuit'!$I$13*0.000000000001))),COMPLEX(G72,H72,"j")) -> 0.143091307884195+14.0341497814729j | L72: =IF(CMdata=1,IMDIV(1,IMSUM(IMDIV(1,IMPRODUCT(B72,'Design the AEF circuit'!$G$14*0.001)),IMDIV(1,'Design the AEF circuit'!$H$14*1000),IMPRODUCT(B72,'Design the AEF circuit'!$I$14*0.000000000001))),COMPLEX(I72,J72,"j")) -> 0.143091307884195+14.0341497814729j
A73: ='Frequency vector'!G73 -> 6387.935149 | B73: =COMPLEX(0,2*PI()*'Frequency vector'!G73,"j") -> 40136.5802711855j | C73: =IF(IF(CMdata=1,IMABS(K73),'CM choke'!C77)=0, C72, IF(CMdata=1,IMABS(K73),'CM choke'!C77)) -> 14.44823776 | D73: =IF(IF(CMdata=1,DEGREES(IMARGUMENT(K73)),'CM choke'!D77)=0, D72, IF(CMdata=1,DEGREES(IMARGUMENT(K73)),'CM choke'!D77)) -> 89.41602745 | E73: =IF(IF(CMdata=1,IMABS(L73),'CM choke'!E77)=0, E72, IF(CMdata=1,IMABS(L73),'CM choke'!E77)) -> 14.44823776 | F73: =IF(IF(CMdata=1,DEGREES(IMARGUMENT(L73)),'CM choke'!F77)=0, F72, IF(CMdata=1,DEGREES(IMARGUMENT(L73)),'CM choke'!F77)) -> 89.41602745 | G73: 0.1472574109 | H73: 14.44748732 | I73: 0.1472574109 | J73: 14.44748732 | K73: =IF(CMdata=1,IMDIV(1,IMSUM(IMDIV(1,IMPRODUCT(B73,'Design the AEF circuit'!$G$13*0.001)),IMDIV(1,'Design the AEF circuit'!$H$13*1000),IMPRODUCT(B73,'Design the AEF circuit'!$I$13*0.000000000001))),COMPLEX(G73,H73,"j")) -> 0.147257410908459+14.4474873150933j | L73: =IF(CMdata=1,IMDIV(1,IMSUM(IMDIV(1,IMPRODUCT(B73,'Design the AEF circuit'!$G$14*0.001)),IMDIV(1,'Design the AEF circuit'!$H$14*1000),IMPRODUCT(B73,'Design the AEF circuit'!$I$14*0.000000000001))),COMPLEX(I73,J73,"j")) -> 0.147257410908459+14.4474873150933j
A74: ='Frequency vector'!G74 -> 6559.423153 | B74: =COMPLEX(0,2*PI()*'Frequency vector'!G74,"j") -> 41214.0711796934j | C74: =IF(IF(CMdata=1,IMABS(K74),'CM choke'!C78)=0, C73, IF(CMdata=1,IMABS(K74),'CM choke'!C78)) -> 14.87348361 | D74: =IF(IF(CMdata=1,DEGREES(IMARGUMENT(K74)),'CM choke'!D78)=0, D73, IF(CMdata=1,DEGREES(IMARGUMENT(K74)),'CM choke'!D78)) -> 89.41688087 | E74: =IF(IF(CMdata=1,IMABS(L74),'CM choke'!E78)=0, E73, IF(CMdata=1,IMABS(L74),'CM choke'!E78)) -> 14.87348361 | F74: =IF(IF(CMdata=1,DEGREES(IMARGUMENT(L74)),'CM choke'!F78)=0, F73, IF(CMdata=1,DEGREES(IMARGUMENT(L74)),'CM choke'!F78)) -> 89.41688087 | G74: 0.1513700176 | H74: 14.87271333 | I74: 0.1513700176 | J74: 14.87271333 | K74: =IF(CMdata=1,IMDIV(1,IMSUM(IMDIV(1,IMPRODUCT(B74,'Design the AEF circuit'!$G$13*0.001)),IMDIV(1,'Design the AEF circuit'!$H$13*1000),IMPRODUCT(B74,'Design the AEF circuit'!$I$13*0.000000000001))),COMPLEX(G74,H74,"j")) -> 0.151370017569061+14.8727133311173j | L74: =IF(CMdata=1,IMDIV(1,IMSUM(IMDIV(1,IMPRODUCT(B74,'Design the AEF circuit'!$G$14*0.001)),IMDIV(1,'Design the AEF circuit'!$H$14*1000),IMPRODUCT(B74,'Design the AEF circuit'!$I$14*0.000000000001))),COMPLEX(I74,J74,"j")) -> 0.151370017569061+14.8727133311173j
A75: ='Frequency vector'!G75 -> 6735.514857 | B75: =COMPLEX(0,2*PI()*'Frequency vector'!G75,"j") -> 42320.4879869717j | C75: =IF(IF(CMdata=1,IMABS(K75),'CM choke'!C79)=0, C74, IF(CMdata=1,IMABS(K75),'CM choke'!C79)) -> 15.31145067 | D75: =IF(IF(CMdata=1,DEGREES(IMARGUMENT(K75)),'CM choke'!D79)=0, D74, IF(CMdata=1,DEGREES(IMARGUMENT(K75)),'CM choke'!D79)) -> 89.41620691 | E75: =IF(IF(CMdata=1,IMABS(L75),'CM choke'!E79)=0, E74, IF(CMdata=1,IMABS(L75),'CM choke'!E79)) -> 15.31145067 | F75: =IF(IF(CMdata=1,DEGREES(IMARGUMENT(L75)),'CM choke'!F79)=0, F74, IF(CMdata=1,DEGREES(IMARGUMENT(L75)),'CM choke'!F79)) -> 89.41620691 | G75: 0.1560073787 | H75: 15.31065588 | I75: 0.1560073787 | J75: 15.31065588 | K75: =IF(CMdata=1,IMDIV(1,IMSUM(IMDIV(1,IMPRODUCT(B75,'Design the AEF circuit'!$G$13*0.001)),IMDIV(1,'Design the AEF circuit'!$H$13*1000),IMPRODUCT(B75,'Design the AEF circuit'!$I$13*0.000000000001))),COMPLEX(G75,H75,"j")) -> 0.156007378681281+15.3106558764358j | L75: =IF(CMdata=1,IMDIV(1,IMSUM(IMDIV(1,IMPRODUCT(B75,'Design the AEF circuit'!$G$14*0.001)),IMDIV(1,'Design the AEF circuit'!$H$14*1000),IMPRODUCT(B75,'Design the AEF circuit'!$I$14*0.000000000001))),COMPLEX(I75,J75,"j")) -> 0.156007378681281+15.3106558764358j
A76: ='Frequency vector'!G76 -> 6916.33385 | B76: =COMPLEX(0,2*PI()*'Frequency vector'!G76,"j") -> 43456.6072263658j | C76: =IF(IF(CMdata=1,IMABS(K76),'CM choke'!C80)=0, C75, IF(CMdata=1,IMABS(K76),'CM choke'!C80)) -> 15.76174054 | D76: =IF(IF(CMdata=1,DEGREES(IMARGUMENT(K76)),'CM choke'!D80)=0, D75, IF(CMdata=1,DEGREES(IMARGUMENT(K76)),'CM choke'!D80)) -> 89.41598243 | E76: =IF(IF(CMdata=1,IMABS(L76),'CM choke'!E80)=0, E75, IF(CMdata=1,IMABS(L76),'CM choke'!E80)) -> 15.76174054 | F76: =IF(IF(CMdata=1,DEGREES(IMARGUMENT(L76)),'CM choke'!F80)=0, F75, IF(CMdata=1,DEGREES(IMARGUMENT(L76)),'CM choke'!F80)) -> 89.41598243 | G76: 0.1606571041 | H76: 15.76092174 | I76: 0.1606571041 | J76: 15.76092174 | K76: =IF(CMdata=1,IMDIV(1,IMSUM(IMDIV(1,IMPRODUCT(B76,'Design the AEF circuit'!$G$13*0.001)),IMDIV(1,'Design the AEF circuit'!$H$13*1000),IMPRODUCT(B76,'Design the AEF circuit'!$I$13*0.000000000001))),COMPLEX(G76,H76,"j")) -> 0.160657104112267+15.7609217420107j | L76: =IF(CMdata=1,IMDIV(1,IMSUM(IMDIV(1,IMPRODUCT(B76,'Design the AEF circuit'!$G$14*0.001)),IMDIV(1,'Design the AEF circuit'!$H$14*1000),IMPRODUCT(B76,'Design the AEF circuit'!$I$14*0.000000000001))),COMPLEX(I76,J76,"j")) -> 0.160657104112267+15.7609217420107j
A77: ='Frequency vector'!G77 -> 7102.007039 | B77: =COMPLEX(0,2*PI()*'Frequency vector'!G77,"j") -> 44623.2262777308j | C77: =IF(IF(CMdata=1,IMABS(K77),'CM choke'!C81)=0, C76, IF(CMdata=1,IMABS(K77),'CM choke'!C81)) -> 16.22535316 | D77: =IF(IF(CMdata=1,DEGREES(IMARGUMENT(K77)),'CM choke'!D81)=0, D76, IF(CMdata=1,DEGREES(IMARGUMENT(K77)),'CM choke'!D81)) -> 89.41515694 | E77: =IF(IF(CMdata=1,IMABS(L77),'CM choke'!E81)=0, E76, IF(CMdata=1,IMABS(L77),'CM choke'!E81)) -> 16.22535316 | F77: =IF(IF(CMdata=1,DEGREES(IMARGUMENT(L77)),'CM choke'!F81)=0, F76, IF(CMdata=1,DEGREES(IMARGUMENT(L77)),'CM choke'!F81)) -> 89.41515694 | G77: 0.1656163936 | H77: 16.22450789 | I77: 0.1656163936 | J77: 16.22450789 | K77: =IF(CMdata=1,IMDIV(1,IMSUM(IMDIV(1,IMPRODUCT(B77,'Design the AEF circuit'!$G$13*0.001)),IMDIV(1,'Design the AEF circuit'!$H$13*1000),IMPRODUCT(B77,'Design the AEF circuit'!$I$13*0.000000000001))),COMPLEX(G77,H77,"j")) -> 0.165616393550841+16.2245078892121j | L77: =IF(CMdata=1,IMDIV(1,IMSUM(IMDIV(1,IMPRODUCT(B77,'Design the AEF circuit'!$G$14*0.001)),IMDIV(1,'Design the AEF circuit'!$H$14*1000),IMPRODUCT(B77,'Design the AEF circuit'!$I$14*0.000000000001))),COMPLEX(I77,J77,"j")) -> 0.165616393550841+16.2245078892121j
A78: ='Frequency vector'!G78 -> 7292.664737 | B78: =COMPLEX(0,2*PI()*'Frequency vector'!G78,"j") -> 45821.1639270692j | C78: =IF(IF(CMdata=1,IMABS(K78),'CM choke'!C82)=0, C77, IF(CMdata=1,IMABS(K78),'CM choke'!C82)) -> 16.70254497 | D78: =IF(IF(CMdata=1,DEGREES(IMARGUMENT(K78)),'CM choke'!D82)=0, D77, IF(CMdata=1,DEGREES(IMARGUMENT(K78)),'CM choke'!D82)) -> 89.41472546 | E78: =IF(IF(CMdata=1,IMABS(L78),'CM choke'!E82)=0, E77, IF(CMdata=1,IMABS(L78),'CM choke'!E82)) -> 16.70254497 | F78: =IF(IF(CMdata=1,DEGREES(IMARGUMENT(L78)),'CM choke'!F82)=0, F77, IF(CMdata=1,DEGREES(IMARGUMENT(L78)),'CM choke'!F82)) -> 89.41472546 | G78: 0.1706129904 | H78: 16.70167356 | I78: 0.1706129904 | J78: 16.70167356 | K78: =IF(CMdata=1,IMDIV(1,IMSUM(IMDIV(1,IMPRODUCT(B78,'Design the AEF circuit'!$G$13*0.001)),IMDIV(1,'Design the AEF circuit'!$H$13*1000),IMPRODUCT(B78,'Design the AEF circuit'!$I$13*0.000000000001))),COMPLEX(G78,H78,"j")) -> 0.170612990439268+16.7016735598283j | L78: =IF(CMdata=1,IMDIV(1,IMSUM(IMDIV(1,IMPRODUCT(B78,'Design the AEF circuit'!$G$14*0.001)),IMDIV(1,'Design the AEF circuit'!$H$14*1000),IMPRODUCT(B78,'Design the AEF circuit'!$I$14*0.000000000001))),COMPLEX(I78,J78,"j")) -> 0.170612990439268+16.7016735598283j
A79: ='Frequency vector'!G79 -> 7488.440757 | B79: =COMPLEX(0,2*PI()*'Frequency vector'!G79,"j") -> 47051.2609411916j | C79: =IF(IF(CMdata=1,IMABS(K79),'CM choke'!C83)=0, C78, IF(CMdata=1,IMABS(K79),'CM choke'!C83)) -> 17.19365833 | D79: =IF(IF(CMdata=1,DEGREES(IMARGUMENT(K79)),'CM choke'!D83)=0, D78, IF(CMdata=1,DEGREES(IMARGUMENT(K79)),'CM choke'!D83)) -> 89.41416749 | E79: =IF(IF(CMdata=1,IMABS(L79),'CM choke'!E83)=0, E78, IF(CMdata=1,IMABS(L79),'CM choke'!E83)) -> 17.19365833 | F79: =IF(IF(CMdata=1,DEGREES(IMARGUMENT(L79)),'CM choke'!F83)=0, F78, IF(CMdata=1,DEGREES(IMARGUMENT(L79)),'CM choke'!F83)) -> 89.41416749 | G79: 0.1757970401 | H79: 17.19275959 | I79: 0.1757970401 | J79: 17.19275959 | K79: =IF(CMdata=1,IMDIV(1,IMSUM(IMDIV(1,IMPRODUCT(B79,'Design the AEF circuit'!$G$13*0.001)),IMDIV(1,'Design the AEF circuit'!$H$13*1000),IMPRODUCT(B79,'Design the AEF circuit'!$I$13*0.000000000001))),COMPLEX(G79,H79,"j")) -> 0.175797040076766+17.192759586536j | L79: =IF(CMdata=1,IMDIV(1,IMSUM(IMDIV(1,IMPRODUCT(B79,'Design the AEF circuit'!$G$14*0.001)),IMDIV(1,'Design the AEF circuit'!$H$14*1000),IMPRODUCT(B79,'Design the AEF circuit'!$I$14*0.000000000001))),COMPLEX(I79,J79,"j")) -> 0.175797040076766+17.192759586536j
A80: ='Frequency vector'!G80 -> 7689.472504 | B80: =COMPLEX(0,2*PI()*'Frequency vector'!G80,"j") -> 48314.3806578048j | C80: =IF(IF(CMdata=1,IMABS(K80),'CM choke'!C84)=0, C79, IF(CMdata=1,IMABS(K80),'CM choke'!C84)) -> 17.6991292 | D80: =IF(IF(CMdata=1,DEGREES(IMARGUMENT(K80)),'CM choke'!D84)=0, D79, IF(CMdata=1,DEGREES(IMARGUMENT(K80)),'CM choke'!D84)) -> 89.41391414 | E80: =IF(IF(CMdata=1,IMABS(L80),'CM choke'!E84)=0, E79, IF(CMdata=1,IMABS(L80),'CM choke'!E84)) -> 17.6991292 | F80: =IF(IF(CMdata=1,DEGREES(IMARGUMENT(L80)),'CM choke'!F84)=0, F79, IF(CMdata=1,DEGREES(IMARGUMENT(L80)),'CM choke'!F84)) -> 89.41391414 | G80: 0.1810435007 | H80: 17.69820324 | I80: 0.1810435007 | J80: 17.69820324 | K80: =IF(CMdata=1,IMDIV(1,IMSUM(IMDIV(1,IMPRODUCT(B80,'Design the AEF circuit'!$G$13*0.001)),IMDIV(1,'Design the AEF circuit'!$H$13*1000),IMPRODUCT(B80,'Design the AEF circuit'!$I$13*0.000000000001))),COMPLEX(G80,H80,"j")) -> 0.181043500676008+17.6982032375557j | L80: =IF(CMdata=1,IMDIV(1,IMSUM(IMDIV(1,IMPRODUCT(B80,'Design the AEF circuit'!$G$14*0.001)),IMDIV(1,'Design the AEF circuit'!$H$14*1000),IMPRODUCT(B80,'Design the AEF circuit'!$I$14*0.000000000001))),COMPLEX(I80,J80,"j")) -> 0.181043500676008+17.6982032375557j
A81: ='Frequency vector'!G81 -> 7895.90107 | B81: =COMPLEX(0,2*PI()*'Frequency vector'!G81,"j") -> 49611.4095914419j | C81: =IF(IF(CMdata=1,IMABS(K81),'CM choke'!C85)=0, C80, IF(CMdata=1,IMABS(K81),'CM choke'!C85)) -> 18.21932697 | D81: =IF(IF(CMdata=1,DEGREES(IMARGUMENT(K81)),'CM choke'!D85)=0, D80, IF(CMdata=1,DEGREES(IMARGUMENT(K81)),'CM choke'!D85)) -> 89.41320945 | E81: =IF(IF(CMdata=1,IMABS(L81),'CM choke'!E85)=0, E80, IF(CMdata=1,IMABS(L81),'CM choke'!E85)) -> 18.21932697 | F81: =IF(IF(CMdata=1,DEGREES(IMARGUMENT(L81)),'CM choke'!F85)=0, F80, IF(CMdata=1,DEGREES(IMARGUMENT(L81)),'CM choke'!F85)) -> 89.41320945 | G81: 0.1865886489 | H81: 18.21837149 | I81: 0.1865886489 | J81: 18.21837149 | K81: =IF(CMdata=1,IMDIV(1,IMSUM(IMDIV(1,IMPRODUCT(B81,'Design the AEF circuit'!$G$13*0.001)),IMDIV(1,'Design the AEF circuit'!$H$13*1000),IMPRODUCT(B81,'Design the AEF circuit'!$I$13*0.000000000001))),COMPLEX(G81,H81,"j")) -> 0.186588648899841+18.2183714920168j | L81: =IF(CMdata=1,IMDIV(1,IMSUM(IMDIV(1,IMPRODUCT(B81,'Design the AEF circuit'!$G$14*0.001)),IMDIV(1,'Design the AEF circuit'!$H$14*1000),IMPRODUCT(B81,'Design the AEF circuit'!$I$14*0.000000000001))),COMPLEX(I81,J81,"j")) -> 0.186588648899841+18.2183714920168j
A82: ='Frequency vector'!G82 -> 8107.871337 | B82: =COMPLEX(0,2*PI()*'Frequency vector'!G82,"j") -> 50943.2580556573j | C82: =IF(IF(CMdata=1,IMABS(K82),'CM choke'!C86)=0, C81, IF(CMdata=1,IMABS(K82),'CM choke'!C86)) -> 18.75459416 | D82: =IF(IF(CMdata=1,DEGREES(IMARGUMENT(K82)),'CM choke'!D86)=0, D81, IF(CMdata=1,DEGREES(IMARGUMENT(K82)),'CM choke'!D86)) -> 89.41325415 | E82: =IF(IF(CMdata=1,IMABS(L82),'CM choke'!E86)=0, E81, IF(CMdata=1,IMABS(L82),'CM choke'!E86)) -> 18.75459416 | F82: =IF(IF(CMdata=1,DEGREES(IMARGUMENT(L82)),'CM choke'!F86)=0, F81, IF(CMdata=1,DEGREES(IMARGUMENT(L82)),'CM choke'!F86)) -> 89.41325415 | G82: 0.1920558221 | H82: 18.75361077 | I82: 0.1920558221 | J82: 18.75361077 | K82: =IF(CMdata=1,IMDIV(1,IMSUM(IMDIV(1,IMPRODUCT(B82,'Design the AEF circuit'!$G$13*0.001)),IMDIV(1,'Design the AEF circuit'!$H$13*1000),IMPRODUCT(B82,'Design the AEF circuit'!$I$13*0.000000000001))),COMPLEX(G82,H82,"j")) -> 0.192055822147853+18.7536107650633j | L82: =IF(CMdata=1,IMDIV(1,IMSUM(IMDIV(1,IMPRODUCT(B82,'Design the AEF circuit'!$G$14*0.001)),IMDIV(1,'Design the AEF circuit'!$H$14*1000),IMPRODUCT(B82,'Design the AEF circuit'!$I$14*0.000000000001))),COMPLEX(I82,J82,"j")) -> 0.192055822147853+18.7536107650633j
A83: ='Frequency vector'!G83 -> 8325.532074 | B83: =COMPLEX(0,2*PI()*'Frequency vector'!G83,"j") -> 52310.8608019269j | C83: =IF(IF(CMdata=1,IMABS(K83),'CM choke'!C87)=0, C82, IF(CMdata=1,IMABS(K83),'CM choke'!C87)) -> 19.30593839 | D83: =IF(IF(CMdata=1,DEGREES(IMARGUMENT(K83)),'CM choke'!D87)=0, D82, IF(CMdata=1,DEGREES(IMARGUMENT(K83)),'CM choke'!D87)) -> 89.41219667 | E83: =IF(IF(CMdata=1,IMABS(L83),'CM choke'!E87)=0, E82, IF(CMdata=1,IMABS(L83),'CM choke'!E87)) -> 19.30593839 | F83: =IF(IF(CMdata=1,DEGREES(IMARGUMENT(L83)),'CM choke'!F87)=0, F82, IF(CMdata=1,DEGREES(IMARGUMENT(L83)),'CM choke'!F87)) -> 89.41219667 | G83: 0.1980581461 | H83: 19.30492243 | I83: 0.1980581461 | J83: 19.30492243 | K83: =IF(CMdata=1,IMDIV(1,IMSUM(IMDIV(1,IMPRODUCT(B83,'Design the AEF circuit'!$G$13*0.001)),IMDIV(1,'Design the AEF circuit'!$H$13*1000),IMPRODUCT(B83,'Design the AEF circuit'!$I$13*0.000000000001))),COMPLEX(G83,H83,"j")) -> 0.198058146133108+19.3049224303775j | L83: =IF(CMdata=1,IMDIV(1,IMSUM(IMDIV(1,IMPRODUCT(B83,'Design the AEF circuit'!$G$14*0.001)),IMDIV(1,'Design the AEF circuit'!$H$14*1000),IMPRODUCT(B83,'Design the AEF circuit'!$I$14*0.000000000001))),COMPLEX(I83,J83,"j")) -> 0.198058146133108+19.3049224303775j
A84: ='Frequency vector'!G84 -> 8549.036046 | B84: =COMPLEX(0,2*PI()*'Frequency vector'!G84,"j") -> 53715.1776756981j | C84: =IF(IF(CMdata=1,IMABS(K84),'CM choke'!C88)=0, C83, IF(CMdata=1,IMABS(K84),'CM choke'!C88)) -> 19.87300641 | D84: =IF(IF(CMdata=1,DEGREES(IMARGUMENT(K84)),'CM choke'!D88)=0, D83, IF(CMdata=1,DEGREES(IMARGUMENT(K84)),'CM choke'!D88)) -> 89.41133929 | E84: =IF(IF(CMdata=1,IMABS(L84),'CM choke'!E88)=0, E83, IF(CMdata=1,IMABS(L84),'CM choke'!E88)) -> 19.87300641 | F84: =IF(IF(CMdata=1,DEGREES(IMARGUMENT(L84)),'CM choke'!F88)=0, F83, IF(CMdata=1,DEGREES(IMARGUMENT(L84)),'CM choke'!F88)) -> 89.41133929 | G84: 0.2041730198 | H84: 19.87195755 | I84: 0.2041730198 | J84: 19.87195755 | K84: =IF(CMdata=1,IMDIV(1,IMSUM(IMDIV(1,IMPRODUCT(B84,'Design the AEF circuit'!$G$13*0.001)),IMDIV(1,'Design the AEF circuit'!$H$13*1000),IMPRODUCT(B84,'Design the AEF circuit'!$I$13*0.000000000001))),COMPLEX(G84,H84,"j")) -> 0.204173019839561+19.8719575527667j | L84: =IF(CMdata=1,IMDIV(1,IMSUM(IMDIV(1,IMPRODUCT(B84,'Design the AEF circuit'!$G$14*0.001)),IMDIV(1,'Design the AEF circuit'!$H$14*1000),IMPRODUCT(B84,'Design the AEF circuit'!$I$14*0.000000000001))),COMPLEX(I84,J84,"j")) -> 0.204173019839561+19.8719575527667j
A85: ='Frequency vector'!G85 -> 8778.540118 | B85: =COMPLEX(0,2*PI()*'Frequency vector'!G85,"j") -> 55157.1942900533j | C85: =IF(IF(CMdata=1,IMABS(K85),'CM choke'!C89)=0, C84, IF(CMdata=1,IMABS(K85),'CM choke'!C89)) -> 20.45651568 | D85: =IF(IF(CMdata=1,DEGREES(IMARGUMENT(K85)),'CM choke'!D89)=0, D84, IF(CMdata=1,DEGREES(IMARGUMENT(K85)),'CM choke'!D89)) -> 89.41026937 | E85: =IF(IF(CMdata=1,IMABS(L85),'CM choke'!E89)=0, E84, IF(CMdata=1,IMABS(L85),'CM choke'!E89)) -> 20.45651568 | F85: =IF(IF(CMdata=1,DEGREES(IMARGUMENT(L85)),'CM choke'!F89)=0, F84, IF(CMdata=1,DEGREES(IMARGUMENT(L85)),'CM choke'!F89)) -> 89.41026937 | G85: 0.2105499051 | H85: 20.45543211 | I85: 0.2105499051 | J85: 20.45543211 | K85: =IF(CMdata=1,IMDIV(1,IMSUM(IMDIV(1,IMPRODUCT(B85,'Design the AEF circuit'!$G$13*0.001)),IMDIV(1,'Design the AEF circuit'!$H$13*1000),IMPRODUCT(B85,'Design the AEF circuit'!$I$13*0.000000000001))),COMPLEX(G85,H85,"j")) -> 0.210549905106629+20.4554321050871j | L85: =IF(CMdata=1,IMDIV(1,IMSUM(IMDIV(1,IMPRODUCT(B85,'Design the AEF circuit'!$G$14*0.001)),IMDIV(1,'Design the AEF circuit'!$H$14*1000),IMPRODUCT(B85,'Design the AEF circuit'!$I$14*0.000000000001))),COMPLEX(I85,J85,"j")) -> 0.210549905106629+20.4554321050871j
A86: ='Frequency vector'!G86 -> 9014.205367 | B86: =COMPLEX(0,2*PI()*'Frequency vector'!G86,"j") -> 56637.9227174575j | C86: =IF(IF(CMdata=1,IMABS(K86),'CM choke'!C90)=0, C85, IF(CMdata=1,IMABS(K86),'CM choke'!C90)) -> 21.05743145 | D86: =IF(IF(CMdata=1,DEGREES(IMARGUMENT(K86)),'CM choke'!D90)=0, D85, IF(CMdata=1,DEGREES(IMARGUMENT(K86)),'CM choke'!D90)) -> 89.4094757 | E86: =IF(IF(CMdata=1,IMABS(L86),'CM choke'!E90)=0, E85, IF(CMdata=1,IMABS(L86),'CM choke'!E90)) -> 21.05743145 | F86: =IF(IF(CMdata=1,DEGREES(IMARGUMENT(L86)),'CM choke'!F90)=0, F85, IF(CMdata=1,DEGREES(IMARGUMENT(L86)),'CM choke'!F90)) -> 89.4094757 | G86: 0.2170265398 | H86: 21.05631304 | I86: 0.2170265398 | J86: 21.05631304 | K86: =IF(CMdata=1,IMDIV(1,IMSUM(IMDIV(1,IMPRODUCT(B86,'Design the AEF circuit'!$G$13*0.001)),IMDIV(1,'Design the AEF circuit'!$H$13*1000),IMPRODUCT(B86,'Design the AEF circuit'!$I$13*0.000000000001))),COMPLEX(G86,H86,"j")) -> 0.217026539833982+21.0563130427577j | L86: =IF(CMdata=1,IMDIV(1,IMSUM(IMDIV(1,IMPRODUCT(B86,'Design the AEF circuit'!$G$14*0.001)),IMDIV(1,'Design the AEF circuit'!$H$14*1000),IMPRODUCT(B86,'Design the AEF circuit'!$I$14*0.000000000001))),COMPLEX(I86,J86,"j")) -> 0.217026539833982+21.0563130427577j
A87: ='Frequency vector'!G87 -> 9256.197192 | B87: =COMPLEX(0,2*PI()*'Frequency vector'!G87,"j") -> 58158.4022000765j | C87: =IF(IF(CMdata=1,IMABS(K87),'CM choke'!C91)=0, C86, IF(CMdata=1,IMABS(K87),'CM choke'!C91)) -> 21.67525667 | D87: =IF(IF(CMdata=1,DEGREES(IMARGUMENT(K87)),'CM choke'!D91)=0, D86, IF(CMdata=1,DEGREES(IMARGUMENT(K87)),'CM choke'!D91)) -> 89.40545262 | E87: =IF(IF(CMdata=1,IMABS(L87),'CM choke'!E91)=0, E86, IF(CMdata=1,IMABS(L87),'CM choke'!E91)) -> 21.67525667 | F87: =IF(IF(CMdata=1,DEGREES(IMARGUMENT(L87)),'CM choke'!F91)=0, F86, IF(CMdata=1,DEGREES(IMARGUMENT(L87)),'CM choke'!F91)) -> 89.40545262 | G87: 0.2249159676 | H87: 21.6740897 | I87: 0.2249159676 | J87: 21.6740897 | K87: =IF(CMdata=1,IMDIV(1,IMSUM(IMDIV(1,IMPRODUCT(B87,'Design the AEF circuit'!$G$13*0.001)),IMDIV(1,'Design the AEF circuit'!$H$13*1000),IMPRODUCT(B87,'Design the AEF circuit'!$I$13*0.000000000001))),COMPLEX(G87,H87,"j")) -> 0.224915967569451+21.6740897041815j | L87: =IF(CMdata=1,IMDIV(1,IMSUM(IMDIV(1,IMPRODUCT(B87,'Design the AEF circuit'!$G$14*0.001)),IMDIV(1,'Design the AEF circuit'!$H$14*1000),IMPRODUCT(B87,'Design the AEF circuit'!$I$14*0.000000000001))),COMPLEX(I87,J87,"j")) -> 0.224915967569451+21.6740897041815j
A88: ='Frequency vector'!G88 -> 9504.685436 | B88: =COMPLEX(0,2*PI()*'Frequency vector'!G88,"j") -> 59719.6998791645j | C88: =IF(IF(CMdata=1,IMABS(K88),'CM choke'!C92)=0, C87, IF(CMdata=1,IMABS(K88),'CM choke'!C92)) -> 22.31216371 | D88: =IF(IF(CMdata=1,DEGREES(IMARGUMENT(K88)),'CM choke'!D92)=0, D87, IF(CMdata=1,DEGREES(IMARGUMENT(K88)),'CM choke'!D92)) -> 89.40391767 | E88: =IF(IF(CMdata=1,IMABS(L88),'CM choke'!E92)=0, E87, IF(CMdata=1,IMABS(L88),'CM choke'!E92)) -> 22.31216371 | F88: =IF(IF(CMdata=1,DEGREES(IMARGUMENT(L88)),'CM choke'!F92)=0, F87, IF(CMdata=1,DEGREES(IMARGUMENT(L88)),'CM choke'!F92)) -> 89.40391767 | G88: 0.2321226246 | H88: 22.31095624 | I88: 0.2321226246 | J88: 22.31095624 | K88: =IF(CMdata=1,IMDIV(1,IMSUM(IMDIV(1,IMPRODUCT(B88,'Design the AEF circuit'!$G$13*0.001)),IMDIV(1,'Design the AEF circuit'!$H$13*1000),IMPRODUCT(B88,'Design the AEF circuit'!$I$13*0.000000000001))),COMPLEX(G88,H88,"j")) -> 0.232122624567061+22.3109562404157j | L88: =IF(CMdata=1,IMDIV(1,IMSUM(IMDIV(1,IMPRODUCT(B88,'Design the AEF circuit'!$G$14*0.001)),IMDIV(1,'Design the AEF circuit'!$H$14*1000),IMPRODUCT(B88,'Design the AEF circuit'!$I$14*0.000000000001))),COMPLEX(I88,J88,"j")) -> 0.232122624567061+22.3109562404157j
A89: ='Frequency vector'!G89 -> 9759.844497 | B89: =COMPLEX(0,2*PI()*'Frequency vector'!G89,"j") -> 61322.9115440311j | C89: =IF(IF(CMdata=1,IMABS(K89),'CM choke'!C93)=0, C88, IF(CMdata=1,IMABS(K89),'CM choke'!C93)) -> 22.96713853 | D89: =IF(IF(CMdata=1,DEGREES(IMARGUMENT(K89)),'CM choke'!D93)=0, D88, IF(CMdata=1,DEGREES(IMARGUMENT(K89)),'CM choke'!D93)) -> 89.40275737 | E89: =IF(IF(CMdata=1,IMABS(L89),'CM choke'!E93)=0, E88, IF(CMdata=1,IMABS(L89),'CM choke'!E93)) -> 22.96713853 | F89: =IF(IF(CMdata=1,DEGREES(IMARGUMENT(L89)),'CM choke'!F93)=0, F88, IF(CMdata=1,DEGREES(IMARGUMENT(L89)),'CM choke'!F93)) -> 89.40275737 | G89: 0.2394016789 | H89: 22.96589078 | I89: 0.2394016789 | J89: 22.96589078 | K89: =IF(CMdata=1,IMDIV(1,IMSUM(IMDIV(1,IMPRODUCT(B89,'Design the AEF circuit'!$G$13*0.001)),IMDIV(1,'Design the AEF circuit'!$H$13*1000),IMPRODUCT(B89,'Design the AEF circuit'!$I$13*0.000000000001))),COMPLEX(G89,H89,"j")) -> 0.239401678927757+22.9658907772678j | L89: =IF(CMdata=1,IMDIV(1,IMSUM(IMDIV(1,IMPRODUCT(B89,'Design the AEF circuit'!$G$14*0.001)),IMDIV(1,'Design the AEF circuit'!$H$14*1000),IMPRODUCT(B89,'Design the AEF circuit'!$I$14*0.000000000001))),COMPLEX(I89,J89,"j")) -> 0.239401678927757+22.9658907772678j
A90: ='Frequency vector'!G90 -> 10021.85346 | B90: =COMPLEX(0,2*PI()*'Frequency vector'!G90,"j") -> 62969.1624011171j | C90: =IF(IF(CMdata=1,IMABS(K90),'CM choke'!C94)=0, C89, IF(CMdata=1,IMABS(K90),'CM choke'!C94)) -> 23.64134592 | D90: =IF(IF(CMdata=1,DEGREES(IMARGUMENT(K90)),'CM choke'!D94)=0, D89, IF(CMdata=1,DEGREES(IMARGUMENT(K90)),'CM choke'!D94)) -> 89.40129225 | E90: =IF(IF(CMdata=1,IMABS(L90),'CM choke'!E94)=0, E89, IF(CMdata=1,IMABS(L90),'CM choke'!E94)) -> 23.64134592 | F90: =IF(IF(CMdata=1,DEGREES(IMARGUMENT(L90)),'CM choke'!F94)=0, F89, IF(CMdata=1,DEGREES(IMARGUMENT(L90)),'CM choke'!F94)) -> 89.40129225 | G90: 0.2470338935 | H90: 23.64005522 | I90: 0.2470338935 | J90: 23.64005522 | K90: =IF(CMdata=1,IMDIV(1,IMSUM(IMDIV(1,IMPRODUCT(B90,'Design the AEF circuit'!$G$13*0.001)),IMDIV(1,'Design the AEF circuit'!$H$13*1000),IMPRODUCT(B90,'Design the AEF circuit'!$I$13*0.000000000001))),COMPLEX(G90,H90,"j")) -> 0.247033893534877+23.6400552240118j | L90: =IF(CMdata=1,IMDIV(1,IMSUM(IMDIV(1,IMPRODUCT(B90,'Design the AEF circuit'!$G$14*0.001)),IMDIV(1,'Design the AEF circuit'!$H$14*1000),IMPRODUCT(B90,'Design the AEF circuit'!$I$14*0.000000000001))),COMPLEX(I90,J90,"j")) -> 0.247033893534877+23.6400552240118j
A91: ='Frequency vector'!G91 -> 10290.89621 | B91: =COMPLEX(0,2*PI()*'Frequency vector'!G91,"j") -> 64659.6078637129j | C91: =IF(IF(CMdata=1,IMABS(K91),'CM choke'!C95)=0, C90, IF(CMdata=1,IMABS(K91),'CM choke'!C95)) -> 24.33492745 | D91: =IF(IF(CMdata=1,DEGREES(IMARGUMENT(K91)),'CM choke'!D95)=0, D90, IF(CMdata=1,DEGREES(IMARGUMENT(K91)),'CM choke'!D95)) -> 89.40052953 | E91: =IF(IF(CMdata=1,IMABS(L91),'CM choke'!E95)=0, E90, IF(CMdata=1,IMABS(L91),'CM choke'!E95)) -> 24.33492745 | F91: =IF(IF(CMdata=1,DEGREES(IMARGUMENT(L91)),'CM choke'!F95)=0, F90, IF(CMdata=1,DEGREES(IMARGUMENT(L91)),'CM choke'!F95)) -> 89.40052953 | G91: 0.2546052127 | H91: 24.33359551 | I91: 0.2546052127 | J91: 24.33359551 | K91: =IF(CMdata=1,IMDIV(1,IMSUM(IMDIV(1,IMPRODUCT(B91,'Design the AEF circuit'!$G$13*0.001)),IMDIV(1,'Design the AEF circuit'!$H$13*1000),IMPRODUCT(B91,'Design the AEF circuit'!$I$13*0.000000000001))),COMPLEX(G91,H91,"j")) -> 0.254605212695578+24.3335955095196j | L91: =IF(CMdata=1,IMDIV(1,IMSUM(IMDIV(1,IMPRODUCT(B91,'Design the AEF circuit'!$G$14*0.001)),IMDIV(1,'Design the AEF circuit'!$H$14*1000),IMPRODUCT(B91,'Design the AEF circuit'!$I$14*0.000000000001))),COMPLEX(I91,J91,"j")) -> 0.254605212695578+24.3335955095196j
A92: ='Frequency vector'!G92 -> 10567.16158 | B92: =COMPLEX(0,2*PI()*'Frequency vector'!G92,"j") -> 66395.4343628841j | C92: =IF(IF(CMdata=1,IMABS(K92),'CM choke'!C96)=0, C91, IF(CMdata=1,IMABS(K92),'CM choke'!C96)) -> 25.04930787 | D92: =IF(IF(CMdata=1,DEGREES(IMARGUMENT(K92)),'CM choke'!D96)=0, D91, IF(CMdata=1,DEGREES(IMARGUMENT(K92)),'CM choke'!D96)) -> 89.39909745 | E92: =IF(IF(CMdata=1,IMABS(L92),'CM choke'!E96)=0, E91, IF(CMdata=1,IMABS(L92),'CM choke'!E96)) -> 25.04930787 | F92: =IF(IF(CMdata=1,DEGREES(IMARGUMENT(L92)),'CM choke'!F96)=0, F91, IF(CMdata=1,DEGREES(IMARGUMENT(L92)),'CM choke'!F96)) -> 89.39909745 | G92: 0.2627055107 | H92: 25.04793027 | I92: 0.2627055107 | J92: 25.04793027 | K92: =IF(CMdata=1,IMDIV(1,IMSUM(IMDIV(1,IMPRODUCT(B92,'Design the AEF circuit'!$G$13*0.001)),IMDIV(1,'Design the AEF circuit'!$H$13*1000),IMPRODUCT(B92,'Design the AEF circuit'!$I$13*0.000000000001))),COMPLEX(G92,H92,"j")) -> 0.262705510656204+25.0479302688076j | L92: =IF(CMdata=1,IMDIV(1,IMSUM(IMDIV(1,IMPRODUCT(B92,'Design the AEF circuit'!$G$14*0.001)),IMDIV(1,'Design the AEF circuit'!$H$14*1000),IMPRODUCT(B92,'Design the AEF circuit'!$I$14*0.000000000001))),COMPLEX(I92,J92,"j")) -> 0.262705510656204+25.0479302688076j
A93: ='Frequency vector'!G93 -> 10850.84346 | B93: =COMPLEX(0,2*PI()*'Frequency vector'!G93,"j") -> 68177.8601801577j | C93: =IF(IF(CMdata=1,IMABS(K93),'CM choke'!C97)=0, C92, IF(CMdata=1,IMABS(K93),'CM choke'!C97)) -> 25.78446936 | D93: =IF(IF(CMdata=1,DEGREES(IMARGUMENT(K93)),'CM choke'!D97)=0, D92, IF(CMdata=1,DEGREES(IMARGUMENT(K93)),'CM choke'!D97)) -> 89.39724139 | E93: =IF(IF(CMdata=1,IMABS(L93),'CM choke'!E97)=0, E92, IF(CMdata=1,IMABS(L93),'CM choke'!E97)) -> 25.78446936 | F93: =IF(IF(CMdata=1,DEGREES(IMARGUMENT(L93)),'CM choke'!F97)=0, F92, IF(CMdata=1,DEGREES(IMARGUMENT(L93)),'CM choke'!F97)) -> 89.39724139 | G93: 0.2712507709 | H93: 25.78304255 | I93: 0.2712507709 | J93: 25.78304255 | K93: =IF(CMdata=1,IMDIV(1,IMSUM(IMDIV(1,IMPRODUCT(B93,'Design the AEF circuit'!$G$13*0.001)),IMDIV(1,'Design the AEF circuit'!$H$13*1000),IMPRODUCT(B93,'Design the AEF circuit'!$I$13*0.000000000001))),COMPLEX(G93,H93,"j")) -> 0.271250770891536+25.7830425498821j | L93: =IF(CMdata=1,IMDIV(1,IMSUM(IMDIV(1,IMPRODUCT(B93,'Design the AEF circuit'!$G$14*0.001)),IMDIV(1,'Design the AEF circuit'!$H$14*1000),IMPRODUCT(B93,'Design the AEF circuit'!$I$14*0.000000000001))),COMPLEX(I93,J93,"j")) -> 0.271250770891536+25.7830425498821j
A94: ='Frequency vector'!G94 -> 11142.14095 | B94: =COMPLEX(0,2*PI()*'Frequency vector'!G94,"j") -> 70008.1363025701j | C94: =IF(IF(CMdata=1,IMABS(K94),'CM choke'!C98)=0, C93, IF(CMdata=1,IMABS(K94),'CM choke'!C98)) -> 26.54129359 | D94: =IF(IF(CMdata=1,DEGREES(IMARGUMENT(K94)),'CM choke'!D98)=0, D93, IF(CMdata=1,DEGREES(IMARGUMENT(K94)),'CM choke'!D98)) -> 89.39539689 | E94: =IF(IF(CMdata=1,IMABS(L94),'CM choke'!E98)=0, E93, IF(CMdata=1,IMABS(L94),'CM choke'!E98)) -> 26.54129359 | F94: =IF(IF(CMdata=1,DEGREES(IMARGUMENT(L94)),'CM choke'!F98)=0, F93, IF(CMdata=1,DEGREES(IMARGUMENT(L94)),'CM choke'!F98)) -> 89.39539689 | G94: 0.2800668889 | H94: 26.5398159 | I94: 0.2800668889 | J94: 26.5398159 | K94: =IF(CMdata=1,IMDIV(1,IMSUM(IMDIV(1,IMPRODUCT(B94,'Design the AEF circuit'!$G$13*0.001)),IMDIV(1,'Design the AEF circuit'!$H$13*1000),IMPRODUCT(B94,'Design the AEF circuit'!$I$13*0.000000000001))),COMPLEX(G94,H94,"j")) -> 0.280066888913208+26.5398159027921j | L94: =IF(CMdata=1,IMDIV(1,IMSUM(IMDIV(1,IMPRODUCT(B94,'Design the AEF circuit'!$G$14*0.001)),IMDIV(1,'Design the AEF circuit'!$H$14*1000),IMPRODUCT(B94,'Design the AEF circuit'!$I$14*0.000000000001))),COMPLEX(I94,J94,"j")) -> 0.280066888913208+26.5398159027921j
A95: ='Frequency vector'!G95 -> 11441.2585 | B95: =COMPLEX(0,2*PI()*'Frequency vector'!G95,"j") -> 71887.5473006658j | C95: =IF(IF(CMdata=1,IMABS(K95),'CM choke'!C99)=0, C94, IF(CMdata=1,IMABS(K95),'CM choke'!C99)) -> 27.31978612 | D95: =IF(IF(CMdata=1,DEGREES(IMARGUMENT(K95)),'CM choke'!D99)=0, D94, IF(CMdata=1,DEGREES(IMARGUMENT(K95)),'CM choke'!D99)) -> 89.39377317 | E95: =IF(IF(CMdata=1,IMABS(L95),'CM choke'!E99)=0, E94, IF(CMdata=1,IMABS(L95),'CM choke'!E99)) -> 27.31978612 | F95: =IF(IF(CMdata=1,DEGREES(IMARGUMENT(L95)),'CM choke'!F99)=0, F94, IF(CMdata=1,DEGREES(IMARGUMENT(L95)),'CM choke'!F99)) -> 89.39377317 | G95: 0.2890558153 | H95: 27.3182569 | I95: 0.2890558153 | J95: 27.3182569 | K95: =IF(CMdata=1,IMDIV(1,IMSUM(IMDIV(1,IMPRODUCT(B95,'Design the AEF circuit'!$G$13*0.001)),IMDIV(1,'Design the AEF circuit'!$H$13*1000),IMPRODUCT(B95,'Design the AEF circuit'!$I$13*0.000000000001))),COMPLEX(G95,H95,"j")) -> 0.289055815332021+27.3182569044258j | L95: =IF(CMdata=1,IMDIV(1,IMSUM(IMDIV(1,IMPRODUCT(B95,'Design the AEF circuit'!$G$14*0.001)),IMDIV(1,'Design the AEF circuit'!$H$14*1000),IMPRODUCT(B95,'Design the AEF circuit'!$I$14*0.000000000001))),COMPLEX(I95,J95,"j")) -> 0.289055815332021+27.3182569044258j
A96: ='Frequency vector'!G96 -> 11748.40604 | B96: =COMPLEX(0,2*PI()*'Frequency vector'!G96,"j") -> 73817.4122300652j | C96: =IF(IF(CMdata=1,IMABS(K96),'CM choke'!C100)=0, C95, IF(CMdata=1,IMABS(K96),'CM choke'!C100)) -> 28.12147731 | D96: =IF(IF(CMdata=1,DEGREES(IMARGUMENT(K96)),'CM choke'!D100)=0, D95, IF(CMdata=1,DEGREES(IMARGUMENT(K96)),'CM choke'!D100)) -> 89.3922195 | E96: =IF(IF(CMdata=1,IMABS(L96),'CM choke'!E100)=0, E95, IF(CMdata=1,IMABS(L96),'CM choke'!E100)) -> 28.12147731 | F96: =IF(IF(CMdata=1,DEGREES(IMARGUMENT(L96)),'CM choke'!F100)=0, F95, IF(CMdata=1,DEGREES(IMARGUMENT(L96)),'CM choke'!F100)) -> 89.3922195 | G96: 0.2983005917 | H96: 28.11989514 | I96: 0.2983005917 | J96: 28.11989514 | K96: =IF(CMdata=1,IMDIV(1,IMSUM(IMDIV(1,IMPRODUCT(B96,'Design the AEF circuit'!$G$13*0.001)),IMDIV(1,'Design the AEF circuit'!$H$13*1000),IMPRODUCT(B96,'Design the AEF circuit'!$I$13*0.000000000001))),COMPLEX(G96,H96,"j")) -> 0.29830059174512+28.1198951405086j | L96: =IF(CMdata=1,IMDIV(1,IMSUM(IMDIV(1,IMPRODUCT(B96,'Design the AEF circuit'!$G$14*0.001)),IMDIV(1,'Design the AEF circuit'!$H$14*1000),IMPRODUCT(B96,'Design the AEF circuit'!$I$14*0.000000000001))),COMPLEX(I96,J96,"j")) -> 0.29830059174512+28.1198951405086j
A97: ='Frequency vector'!G97 -> 12063.79915 | B97: =COMPLEX(0,2*PI()*'Frequency vector'!G97,"j") -> 75799.0855572416j | C97: =IF(IF(CMdata=1,IMABS(K97),'CM choke'!C101)=0, C96, IF(CMdata=1,IMABS(K97),'CM choke'!C101)) -> 28.94667704 | D97: =IF(IF(CMdata=1,DEGREES(IMARGUMENT(K97)),'CM choke'!D101)=0, D96, IF(CMdata=1,DEGREES(IMARGUMENT(K97)),'CM choke'!D101)) -> 89.39009385 | E97: =IF(IF(CMdata=1,IMABS(L97),'CM choke'!E101)=0, E96, IF(CMdata=1,IMABS(L97),'CM choke'!E101)) -> 28.94667704 | F97: =IF(IF(CMdata=1,DEGREES(IMARGUMENT(L97)),'CM choke'!F101)=0, F96, IF(CMdata=1,DEGREES(IMARGUMENT(L97)),'CM choke'!F101)) -> 89.39009385 | G97: 0.3081278095 | H97: 28.94503703 | I97: 0.3081278095 | J97: 28.94503703 | K97: =IF(CMdata=1,IMDIV(1,IMSUM(IMDIV(1,IMPRODUCT(B97,'Design the AEF circuit'!$G$13*0.001)),IMDIV(1,'Design the AEF circuit'!$H$13*1000),IMPRODUCT(B97,'Design the AEF circuit'!$I$13*0.000000000001))),COMPLEX(G97,H97,"j")) -> 0.308127809540239+28.9450370328972j | L97: =IF(CMdata=1,IMDIV(1,IMSUM(IMDIV(1,IMPRODUCT(B97,'Design the AEF circuit'!$G$14*0.001)),IMDIV(1,'Design the AEF circuit'!$H$14*1000),IMPRODUCT(B97,'Design the AEF circuit'!$I$14*0.000000000001))),COMPLEX(I97,J97,"j")) -> 0.308127809540239+28.9450370328972j
A98: ='Frequency vector'!G98 -> 12387.65917 | B98: =COMPLEX(0,2*PI()*'Frequency vector'!G98,"j") -> 77833.9581101425j | C98: =IF(IF(CMdata=1,IMABS(K98),'CM choke'!C102)=0, C97, IF(CMdata=1,IMABS(K98),'CM choke'!C102)) -> 29.7957651 | D98: =IF(IF(CMdata=1,DEGREES(IMARGUMENT(K98)),'CM choke'!D102)=0, D97, IF(CMdata=1,DEGREES(IMARGUMENT(K98)),'CM choke'!D102)) -> 89.38831537 | E98: =IF(IF(CMdata=1,IMABS(L98),'CM choke'!E102)=0, E97, IF(CMdata=1,IMABS(L98),'CM choke'!E102)) -> 29.7957651 | F98: =IF(IF(CMdata=1,DEGREES(IMARGUMENT(L98)),'CM choke'!F102)=0, F97, IF(CMdata=1,DEGREES(IMARGUMENT(L98)),'CM choke'!F102)) -> 89.38831537 | G98: 0.3180908849 | H98: 29.79406713 | I98: 0.3180908849 | J98: 29.79406713 | K98: =IF(CMdata=1,IMDIV(1,IMSUM(IMDIV(1,IMPRODUCT(B98,'Design the AEF circuit'!$G$13*0.001)),IMDIV(1,'Design the AEF circuit'!$H$13*1000),IMPRODUCT(B98,'Design the AEF circuit'!$I$13*0.000000000001))),COMPLEX(G98,H98,"j")) -> 0.318090884908972+29.7940671323324j | L98: =IF(CMdata=1,IMDIV(1,IMSUM(IMDIV(1,IMPRODUCT(B98,'Design the AEF circuit'!$G$14*0.001)),IMDIV(1,'Design the AEF circuit'!$H$14*1000),IMPRODUCT(B98,'Design the AEF circuit'!$I$14*0.000000000001))),COMPLEX(I98,J98,"j")) -> 0.318090884908972+29.7940671323324j
A99: ='Frequency vector'!G99 -> 12720.21342 | B99: =COMPLEX(0,2*PI()*'Frequency vector'!G99,"j") -> 79923.4580543383j | C99: =IF(IF(CMdata=1,IMABS(K99),'CM choke'!C103)=0, C98, IF(CMdata=1,IMABS(K99),'CM choke'!C103)) -> 30.67013034 | D99: =IF(IF(CMdata=1,DEGREES(IMARGUMENT(K99)),'CM choke'!D103)=0, D98, IF(CMdata=1,DEGREES(IMARGUMENT(K99)),'CM choke'!D103)) -> 89.38518931 | E99: =IF(IF(CMdata=1,IMABS(L99),'CM choke'!E103)=0, E98, IF(CMdata=1,IMABS(L99),'CM choke'!E103)) -> 30.67013034 | F99: =IF(IF(CMdata=1,DEGREES(IMARGUMENT(L99)),'CM choke'!F103)=0, F98, IF(CMdata=1,DEGREES(IMARGUMENT(L99)),'CM choke'!F103)) -> 89.38518931 | G99: 0.3290986234 | H99: 30.66836463 | I99: 0.3290986234 | J99: 30.66836463 | K99: =IF(CMdata=1,IMDIV(1,IMSUM(IMDIV(1,IMPRODUCT(B99,'Design the AEF circuit'!$G$13*0.001)),IMDIV(1,'Design the AEF circuit'!$H$13*1000),IMPRODUCT(B99,'Design the AEF circuit'!$I$13*0.000000000001))),COMPLEX(G99,H99,"j")) -> 0.329098623371752+30.6683646342683j | L99: =IF(CMdata=1,IMDIV(1,IMSUM(IMDIV(1,IMPRODUCT(B99,'Design the AEF circuit'!$G$14*0.001)),IMDIV(1,'Design the AEF circuit'!$H$14*1000),IMPRODUCT(B99,'Design the AEF circuit'!$I$14*0.000000000001))),COMPLEX(I99,J99,"j")) -> 0.329098623371752+30.6683646342683j
A100: ='Frequency vector'!G100 -> 13061.69528 | B100: =COMPLEX(0,2*PI()*'Frequency vector'!G100,"j") -> 82069.0518953737j | C100: =IF(IF(CMdata=1,IMABS(K100),'CM choke'!C104)=0, C99, IF(CMdata=1,IMABS(K100),'CM choke'!C104)) -> 31.57014782 | D100: =IF(IF(CMdata=1,DEGREES(IMARGUMENT(K100)),'CM choke'!D104)=0, D99, IF(CMdata=1,DEGREES(IMARGUMENT(K100)),'CM choke'!D104)) -> 89.38288982 | E100: =IF(IF(CMdata=1,IMABS(L100),'CM choke'!E104)=0, E99, IF(CMdata=1,IMABS(L100),'CM choke'!E104)) -> 31.57014782 | F100: =IF(IF(CMdata=1,DEGREES(IMARGUMENT(L100)),'CM choke'!F104)=0, F99, IF(CMdata=1,DEGREES(IMARGUMENT(L100)),'CM choke'!F104)) -> 89.38288982 | G100: 0.3400230006 | H100: 31.56831668 | I100: 0.3400230006 | J100: 31.56831668 | K100: =IF(CMdata=1,IMDIV(1,IMSUM(IMDIV(1,IMPRODUCT(B100,'Design the AEF circuit'!$G$13*0.001)),IMDIV(1,'Design the AEF circuit'!$H$13*1000),IMPRODUCT(B100,'Design the AEF circuit'!$I$13*0.000000000001))),COMPLEX(G100,H100,"j")) -> 0.340023000648759+31.5683166782748j | L100: =IF(CMdata=1,IMDIV(1,IMSUM(IMDIV(1,IMPRODUCT(B100,'Design the AEF circuit'!$G$14*0.001)),IMDIV(1,'Design the AEF circuit'!$H$14*1000),IMPRODUCT(B100,'Design the AEF circuit'!$I$14*0.000000000001))),COMPLEX(I100,J100,"j")) -> 0.340023000648759+31.5683166782748j
A101: ='Frequency vector'!G101 -> 13412.34444 | B101: =COMPLEX(0,2*PI()*'Frequency vector'!G101,"j") -> 84272.245508024j | C101: =IF(IF(CMdata=1,IMABS(K101),'CM choke'!C105)=0, C100, IF(CMdata=1,IMABS(K101),'CM choke'!C105)) -> 32.49633068 | D101: =IF(IF(CMdata=1,DEGREES(IMARGUMENT(K101)),'CM choke'!D105)=0, D100, IF(CMdata=1,DEGREES(IMARGUMENT(K101)),'CM choke'!D105)) -> 89.38061152 | E101: =IF(IF(CMdata=1,IMABS(L101),'CM choke'!E105)=0, E100, IF(CMdata=1,IMABS(L101),'CM choke'!E105)) -> 32.49633068 | F101: =IF(IF(CMdata=1,DEGREES(IMARGUMENT(L101)),'CM choke'!F105)=0, F100, IF(CMdata=1,DEGREES(IMARGUMENT(L101)),'CM choke'!F105)) -> 89.38061152 | G101: 0.3512904618 | H101: 32.49443187 | I101: 0.3512904618 | J101: 32.49443187 | K101: =IF(CMdata=1,IMDIV(1,IMSUM(IMDIV(1,IMPRODUCT(B101,'Design the AEF circuit'!$G$13*0.001)),IMDIV(1,'Design the AEF circuit'!$H$13*1000),IMPRODUCT(B101,'Design the AEF circuit'!$I$13*0.000000000001))),COMPLEX(G101,H101,"j")) -> 0.351290461842295+32.4944318716658j | L101: =IF(CMdata=1,IMDIV(1,IMSUM(IMDIV(1,IMPRODUCT(B101,'Design the AEF circuit'!$G$14*0.001)),IMDIV(1,'Design the AEF circuit'!$H$14*1000),IMPRODUCT(B101,'Design the AEF circuit'!$I$14*0.000000000001))),COMPLEX(I101,J101,"j")) -> 0.351290461842295+32.4944318716658j
A102: ='Frequency vector'!G102 -> 13772.40698 | B102: =COMPLEX(0,2*PI()*'Frequency vector'!G102,"j") -> 86534.5851931924j | C102: =IF(IF(CMdata=1,IMABS(K102),'CM choke'!C106)=0, C101, IF(CMdata=1,IMABS(K102),'CM choke'!C106)) -> 33.45007376 | D102: =IF(IF(CMdata=1,DEGREES(IMARGUMENT(K102)),'CM choke'!D106)=0, D101, IF(CMdata=1,DEGREES(IMARGUMENT(K102)),'CM choke'!D106)) -> 89.37795567 | E102: =IF(IF(CMdata=1,IMABS(L102),'CM choke'!E106)=0, E101, IF(CMdata=1,IMABS(L102),'CM choke'!E106)) -> 33.45007376 | F102: =IF(IF(CMdata=1,DEGREES(IMARGUMENT(L102)),'CM choke'!F106)=0, F101, IF(CMdata=1,DEGREES(IMARGUMENT(L102)),'CM choke'!F106)) -> 89.37795567 | G102: 0.363151008 | H102: 33.44810243 | I102: 0.363151008 | J102: 33.44810243 | K102: =IF(CMdata=1,IMDIV(1,IMSUM(IMDIV(1,IMPRODUCT(B102,'Design the AEF circuit'!$G$13*0.001)),IMDIV(1,'Design the AEF circuit'!$H$13*1000),IMPRODUCT(B102,'Design the AEF circuit'!$I$13*0.000000000001))),COMPLEX(G102,H102,"j")) -> 0.363151007979373+33.4481024306204j | L102: =IF(CMdata=1,IMDIV(1,IMSUM(IMDIV(1,IMPRODUCT(B102,'Design the AEF circuit'!$G$14*0.001)),IMDIV(1,'Design the AEF circuit'!$H$14*1000),IMPRODUCT(B102,'Design the AEF circuit'!$I$14*0.000000000001))),COMPLEX(I102,J102,"j")) -> 0.363151007979373+33.4481024306204j
A103: ='Frequency vector'!G103 -> 14142.13562 | B103: =COMPLEX(0,2*PI()*'Frequency vector'!G103,"j") -> 88857.6587631676j | C103: =IF(IF(CMdata=1,IMABS(K103),'CM choke'!C107)=0, C102, IF(CMdata=1,IMABS(K103),'CM choke'!C107)) -> 34.43186667 | D103: =IF(IF(CMdata=1,DEGREES(IMARGUMENT(K103)),'CM choke'!D107)=0, D102, IF(CMdata=1,DEGREES(IMARGUMENT(K103)),'CM choke'!D107)) -> 89.37485842 | E103: =IF(IF(CMdata=1,IMABS(L103),'CM choke'!E107)=0, E102, IF(CMdata=1,IMABS(L103),'CM choke'!E107)) -> 34.43186667 | F103: =IF(IF(CMdata=1,DEGREES(IMARGUMENT(L103)),'CM choke'!F107)=0, F102, IF(CMdata=1,DEGREES(IMARGUMENT(L103)),'CM choke'!F107)) -> 89.37485842 | G103: 0.3756710296 | H103: 34.42981722 | I103: 0.3756710296 | J103: 34.42981722 | K103: =IF(CMdata=1,IMDIV(1,IMSUM(IMDIV(1,IMPRODUCT(B103,'Design the AEF circuit'!$G$13*0.001)),IMDIV(1,'Design the AEF circuit'!$H$13*1000),IMPRODUCT(B103,'Design the AEF circuit'!$I$13*0.000000000001))),COMPLEX(G103,H103,"j")) -> 0.375671029585858+34.4298172211029j | L103: =IF(CMdata=1,IMDIV(1,IMSUM(IMDIV(1,IMPRODUCT(B103,'Design the AEF circuit'!$G$14*0.001)),IMDIV(1,'Design the AEF circuit'!$H$14*1000),IMPRODUCT(B103,'Design the AEF circuit'!$I$14*0.000000000001))),COMPLEX(I103,J103,"j")) -> 0.375671029585858+34.4298172211029j
A104: ='Frequency vector'!G104 -> 14521.78986 | B104: =COMPLEX(0,2*PI()*'Frequency vector'!G104,"j") -> 91243.0966560252j | C104: =IF(IF(CMdata=1,IMABS(K104),'CM choke'!C108)=0, C103, IF(CMdata=1,IMABS(K104),'CM choke'!C108)) -> 35.44245644 | D104: =IF(IF(CMdata=1,DEGREES(IMARGUMENT(K104)),'CM choke'!D108)=0, D103, IF(CMdata=1,DEGREES(IMARGUMENT(K104)),'CM choke'!D108)) -> 89.37200922 | E104: =IF(IF(CMdata=1,IMABS(L104),'CM choke'!E108)=0, E103, IF(CMdata=1,IMABS(L104),'CM choke'!E108)) -> 35.44245644 | F104: =IF(IF(CMdata=1,DEGREES(IMARGUMENT(L104)),'CM choke'!F108)=0, F103, IF(CMdata=1,DEGREES(IMARGUMENT(L104)),'CM choke'!F108)) -> 89.37200922 | G104: 0.3884595056 | H104: 35.44032756 | I104: 0.3884595056 | J104: 35.44032756 | K104: =IF(CMdata=1,IMDIV(1,IMSUM(IMDIV(1,IMPRODUCT(B104,'Design the AEF circuit'!$G$13*0.001)),IMDIV(1,'Design the AEF circuit'!$H$13*1000),IMPRODUCT(B104,'Design the AEF circuit'!$I$13*0.000000000001))),COMPLEX(G104,H104,"j")) -> 0.388459505612345+35.4403275642686j | L104: =IF(CMdata=1,IMDIV(1,IMSUM(IMDIV(1,IMPRODUCT(B104,'Design the AEF circuit'!$G$14*0.001)),IMDIV(1,'Design the AEF circuit'!$H$14*1000),IMPRODUCT(B104,'Design the AEF circuit'!$I$14*0.000000000001))),COMPLEX(I104,J104,"j")) -> 0.388459505612345+35.4403275642686j
A105: ='Frequency vector'!G105 -> 14911.63614 | B105: =COMPLEX(0,2*PI()*'Frequency vector'!G105,"j") -> 93692.5730799432j | C105: =IF(IF(CMdata=1,IMABS(K105),'CM choke'!C109)=0, C104, IF(CMdata=1,IMABS(K105),'CM choke'!C109)) -> 36.48288342 | D105: =IF(IF(CMdata=1,DEGREES(IMARGUMENT(K105)),'CM choke'!D109)=0, D104, IF(CMdata=1,DEGREES(IMARGUMENT(K105)),'CM choke'!D109)) -> 89.36887023 | E105: =IF(IF(CMdata=1,IMABS(L105),'CM choke'!E109)=0, E104, IF(CMdata=1,IMABS(L105),'CM choke'!E109)) -> 36.48288342 | F105: =IF(IF(CMdata=1,DEGREES(IMARGUMENT(L105)),'CM choke'!F109)=0, F104, IF(CMdata=1,DEGREES(IMARGUMENT(L105)),'CM choke'!F109)) -> 89.36887023 | G105: 0.4018615034 | H105: 36.48067009 | I105: 0.4018615034 | J105: 36.48067009 | K105: =IF(CMdata=1,IMDIV(1,IMSUM(IMDIV(1,IMPRODUCT(B105,'Design the AEF circuit'!$G$13*0.001)),IMDIV(1,'Design the AEF circuit'!$H$13*1000),IMPRODUCT(B105,'Design the AEF circuit'!$I$13*0.000000000001))),COMPLEX(G105,H105,"j")) -> 0.401861503422121+36.4806700861277j | L105: =IF(CMdata=1,IMDIV(1,IMSUM(IMDIV(1,IMPRODUCT(B105,'Design the AEF circuit'!$G$14*0.001)),IMDIV(1,'Design the AEF circuit'!$H$14*1000),IMPRODUCT(B105,'Design the AEF circuit'!$I$14*0.000000000001))),COMPLEX(I105,J105,"j")) -> 0.401861503422121+36.4806700861277j
A106: ='Frequency vector'!G106 -> 15311.94808 | B106: =COMPLEX(0,2*PI()*'Frequency vector'!G106,"j") -> 96207.807188237j | C106: =IF(IF(CMdata=1,IMABS(K106),'CM choke'!C110)=0, C105, IF(CMdata=1,IMABS(K106),'CM choke'!C110)) -> 37.55390559 | D106: =IF(IF(CMdata=1,DEGREES(IMARGUMENT(K106)),'CM choke'!D110)=0, D105, IF(CMdata=1,DEGREES(IMARGUMENT(K106)),'CM choke'!D110)) -> 89.36538579 | E106: =IF(IF(CMdata=1,IMABS(L106),'CM choke'!E110)=0, E105, IF(CMdata=1,IMABS(L106),'CM choke'!E110)) -> 37.55390559 | F106: =IF(IF(CMdata=1,DEGREES(IMARGUMENT(L106)),'CM choke'!F110)=0, F105, IF(CMdata=1,DEGREES(IMARGUMENT(L106)),'CM choke'!F110)) -> 89.36538579 | G106: 0.4159425892 | H106: 37.55160205 | I106: 0.4159425892 | J106: 37.55160205 | K106: =IF(CMdata=1,IMDIV(1,IMSUM(IMDIV(1,IMPRODUCT(B106,'Design the AEF circuit'!$G$13*0.001)),IMDIV(1,'Design the AEF circuit'!$H$13*1000),IMPRODUCT(B106,'Design the AEF circuit'!$I$13*0.000000000001))),COMPLEX(G106,H106,"j")) -> 0.415942589197866+37.5516020518418j | L106: =IF(CMdata=1,IMDIV(1,IMSUM(IMDIV(1,IMPRODUCT(B106,'Design the AEF circuit'!$G$14*0.001)),IMDIV(1,'Design the AEF circuit'!$H$14*1000),IMPRODUCT(B106,'Design the AEF circuit'!$I$14*0.000000000001))),COMPLEX(I106,J106,"j")) -> 0.415942589197866+37.5516020518418j
A107: ='Frequency vector'!G107 -> 15723.00664 | B107: =COMPLEX(0,2*PI()*'Frequency vector'!G107,"j") -> 98790.5642859368j | C107: =IF(IF(CMdata=1,IMABS(K107),'CM choke'!C111)=0, C106, IF(CMdata=1,IMABS(K107),'CM choke'!C111)) -> 38.65627012 | D107: =IF(IF(CMdata=1,DEGREES(IMARGUMENT(K107)),'CM choke'!D111)=0, D106, IF(CMdata=1,DEGREES(IMARGUMENT(K107)),'CM choke'!D111)) -> 89.36232889 | E107: =IF(IF(CMdata=1,IMABS(L107),'CM choke'!E111)=0, E106, IF(CMdata=1,IMABS(L107),'CM choke'!E111)) -> 38.65627012 | F107: =IF(IF(CMdata=1,DEGREES(IMARGUMENT(L107)),'CM choke'!F111)=0, F106, IF(CMdata=1,DEGREES(IMARGUMENT(L107)),'CM choke'!F111)) -> 89.36232889 | G107: 0.4302145468 | H107: 38.65387607 | I107: 0.4302145468 | J107: 38.65387607 | K107: =IF(CMdata=1,IMDIV(1,IMSUM(IMDIV(1,IMPRODUCT(B107,'Design the AEF circuit'!$G$13*0.001)),IMDIV(1,'Design the AEF circuit'!$H$13*1000),IMPRODUCT(B107,'Design the AEF circuit'!$I$13*0.000000000001))),COMPLEX(G107,H107,"j")) -> 0.430214546794394+38.6538760673027j | L107: =IF(CMdata=1,IMDIV(1,IMSUM(IMDIV(1,IMPRODUCT(B107,'Design the AEF circuit'!$G$14*0.001)),IMDIV(1,'Design the AEF circuit'!$H$14*1000),IMPRODUCT(B107,'Design the AEF circuit'!$I$14*0.000000000001))),COMPLEX(I107,J107,"j")) -> 0.430214546794394+38.6538760673027j
A108: ='Frequency vector'!G108 -> 16145.10031 | B108: =COMPLEX(0,2*PI()*'Frequency vector'!G108,"j") -> 101442.657068761j | C108: =IF(IF(CMdata=1,IMABS(K108),'CM choke'!C112)=0, C107, IF(CMdata=1,IMABS(K108),'CM choke'!C112)) -> 39.79127245 | D108: =IF(IF(CMdata=1,DEGREES(IMARGUMENT(K108)),'CM choke'!D112)=0, D107, IF(CMdata=1,DEGREES(IMARGUMENT(K108)),'CM choke'!D112)) -> 89.35841071 | E108: =IF(IF(CMdata=1,IMABS(L108),'CM choke'!E112)=0, E107, IF(CMdata=1,IMABS(L108),'CM choke'!E112)) -> 39.79127245 | F108: =IF(IF(CMdata=1,DEGREES(IMARGUMENT(L108)),'CM choke'!F112)=0, F107, IF(CMdata=1,DEGREES(IMARGUMENT(L108)),'CM choke'!F112)) -> 89.35841071 | G108: 0.4455672144 | H108: 39.78877773 | I108: 0.4455672144 | J108: 39.78877773 | K108: =IF(CMdata=1,IMDIV(1,IMSUM(IMDIV(1,IMPRODUCT(B108,'Design the AEF circuit'!$G$13*0.001)),IMDIV(1,'Design the AEF circuit'!$H$13*1000),IMPRODUCT(B108,'Design the AEF circuit'!$I$13*0.000000000001))),COMPLEX(G108,H108,"j")) -> 0.445567214351379+39.7887777282903j | L108: =IF(CMdata=1,IMDIV(1,IMSUM(IMDIV(1,IMPRODUCT(B108,'Design the AEF circuit'!$G$14*0.001)),IMDIV(1,'Design the AEF circuit'!$H$14*1000),IMPRODUCT(B108,'Design the AEF circuit'!$I$14*0.000000000001))),COMPLEX(I108,J108,"j")) -> 0.445567214351379+39.7887777282903j
A109: ='Frequency vector'!G109 -> 16578.52535 | B109: =COMPLEX(0,2*PI()*'Frequency vector'!G109,"j") -> 104165.946895347j | C109: =IF(IF(CMdata=1,IMABS(K109),'CM choke'!C113)=0, C108, IF(CMdata=1,IMABS(K109),'CM choke'!C113)) -> 40.95937307 | D109: =IF(IF(CMdata=1,DEGREES(IMARGUMENT(K109)),'CM choke'!D113)=0, D108, IF(CMdata=1,DEGREES(IMARGUMENT(K109)),'CM choke'!D113)) -> 89.35513867 | E109: =IF(IF(CMdata=1,IMABS(L109),'CM choke'!E113)=0, E108, IF(CMdata=1,IMABS(L109),'CM choke'!E113)) -> 40.95937307 | F109: =IF(IF(CMdata=1,DEGREES(IMARGUMENT(L109)),'CM choke'!F113)=0, F108, IF(CMdata=1,DEGREES(IMARGUMENT(L109)),'CM choke'!F113)) -> 89.35513867 | G109: 0.4609861044 | H109: 40.95677885 | I109: 0.4609861044 | J109: 40.95677885 | K109: =IF(CMdata=1,IMDIV(1,IMSUM(IMDIV(1,IMPRODUCT(B109,'Design the AEF circuit'!$G$13*0.001)),IMDIV(1,'Design the AEF circuit'!$H$13*1000),IMPRODUCT(B109,'Design the AEF circuit'!$I$13*0.000000000001))),COMPLEX(G109,H109,"j")) -> 0.460986104428685+40.9567788507426j | L109: =IF(CMdata=1,IMDIV(1,IMSUM(IMDIV(1,IMPRODUCT(B109,'Design the AEF circuit'!$G$14*0.001)),IMDIV(1,'Design the AEF circuit'!$H$14*1000),IMPRODUCT(B109,'Design the AEF circuit'!$I$14*0.000000000001))),COMPLEX(I109,J109,"j")) -> 0.460986104428685+40.9567788507426j
A110: ='Frequency vector'!G110 -> 17023.58595 | B110: =COMPLEX(0,2*PI()*'Frequency vector'!G110,"j") -> 106962.345093637j | C110: =IF(IF(CMdata=1,IMABS(K110),'CM choke'!C114)=0, C109, IF(CMdata=1,IMABS(K110),'CM choke'!C114)) -> 42.16239708 | D110: =IF(IF(CMdata=1,DEGREES(IMARGUMENT(K110)),'CM choke'!D114)=0, D109, IF(CMdata=1,DEGREES(IMARGUMENT(K110)),'CM choke'!D114)) -> 89.35140732 | E110: =IF(IF(CMdata=1,IMABS(L110),'CM choke'!E114)=0, E109, IF(CMdata=1,IMABS(L110),'CM choke'!E114)) -> 42.16239708 | F110: =IF(IF(CMdata=1,DEGREES(IMARGUMENT(L110)),'CM choke'!F114)=0, F109, IF(CMdata=1,DEGREES(IMARGUMENT(L110)),'CM choke'!F114)) -> 89.35140732 | G110: 0.4772714173 | H110: 42.15969567 | I110: 0.4772714173 | J110: 42.15969567 | K110: =IF(CMdata=1,IMDIV(1,IMSUM(IMDIV(1,IMPRODUCT(B110,'Design the AEF circuit'!$G$13*0.001)),IMDIV(1,'Design the AEF circuit'!$H$13*1000),IMPRODUCT(B110,'Design the AEF circuit'!$I$13*0.000000000001))),COMPLEX(G110,H110,"j")) -> 0.477271417315641+42.1596956728896j | L110: =IF(CMdata=1,IMDIV(1,IMSUM(IMDIV(1,IMPRODUCT(B110,'Design the AEF circuit'!$G$14*0.001)),IMDIV(1,'Design the AEF circuit'!$H$14*1000),IMPRODUCT(B110,'Design the AEF circuit'!$I$14*0.000000000001))),COMPLEX(I110,J110,"j")) -> 0.477271417315641+42.1596956728896j
A111: ='Frequency vector'!G111 -> 17480.59446 | B111: =COMPLEX(0,2*PI()*'Frequency vector'!G111,"j") -> 109833.814302333j | C111: =IF(IF(CMdata=1,IMABS(K111),'CM choke'!C115)=0, C110, IF(CMdata=1,IMABS(K111),'CM choke'!C115)) -> 43.40055496 | D111: =IF(IF(CMdata=1,DEGREES(IMARGUMENT(K111)),'CM choke'!D115)=0, D110, IF(CMdata=1,DEGREES(IMARGUMENT(K111)),'CM choke'!D115)) -> 89.34735431 | E111: =IF(IF(CMdata=1,IMABS(L111),'CM choke'!E115)=0, E110, IF(CMdata=1,IMABS(L111),'CM choke'!E115)) -> 43.40055496 | F111: =IF(IF(CMdata=1,DEGREES(IMARGUMENT(L111)),'CM choke'!F115)=0, F110, IF(CMdata=1,DEGREES(IMARGUMENT(L111)),'CM choke'!F115)) -> 89.34735431 | G111: 0.4943570525 | H111: 43.39773936 | I111: 0.4943570525 | J111: 43.39773936 | K111: =IF(CMdata=1,IMDIV(1,IMSUM(IMDIV(1,IMPRODUCT(B111,'Design the AEF circuit'!$G$13*0.001)),IMDIV(1,'Design the AEF circuit'!$H$13*1000),IMPRODUCT(B111,'Design the AEF circuit'!$I$13*0.000000000001))),COMPLEX(G111,H111,"j")) -> 0.494357052549964+43.397739362402j | L111: =IF(CMdata=1,IMDIV(1,IMSUM(IMDIV(1,IMPRODUCT(B111,'Design the AEF circuit'!$G$14*0.001)),IMDIV(1,'Design the AEF circuit'!$H$14*1000),IMPRODUCT(B111,'Design the AEF circuit'!$I$14*0.000000000001))),COMPLEX(I111,J111,"j")) -> 0.494357052549964+43.397739362402j
A112: ='Frequency vector'!G112 -> 17949.87165 | B112: =COMPLEX(0,2*PI()*'Frequency vector'!G112,"j") -> 112782.369848369j | C112: =IF(IF(CMdata=1,IMABS(K112),'CM choke'!C116)=0, C111, IF(CMdata=1,IMABS(K112),'CM choke'!C116)) -> 44.67653359 | D112: =IF(IF(CMdata=1,DEGREES(IMARGUMENT(K112)),'CM choke'!D116)=0, D111, IF(CMdata=1,DEGREES(IMARGUMENT(K112)),'CM choke'!D116)) -> 89.34314469 | E112: =IF(IF(CMdata=1,IMABS(L112),'CM choke'!E116)=0, E111, IF(CMdata=1,IMABS(L112),'CM choke'!E116)) -> 44.67653359 | F112: =IF(IF(CMdata=1,DEGREES(IMARGUMENT(L112)),'CM choke'!F116)=0, F111, IF(CMdata=1,DEGREES(IMARGUMENT(L112)),'CM choke'!F116)) -> 89.34314469 | G112: 0.5121734205 | H112: 44.6735977 | I112: 0.5121734205 | J112: 44.6735977 | K112: =IF(CMdata=1,IMDIV(1,IMSUM(IMDIV(1,IMPRODUCT(B112,'Design the AEF circuit'!$G$13*0.001)),IMDIV(1,'Design the AEF circuit'!$H$13*1000),IMPRODUCT(B112,'Design the AEF circuit'!$I$13*0.000000000001))),COMPLEX(G112,H112,"j")) -> 0.51217342045143+44.6735977045923j | L112: =IF(CMdata=1,IMDIV(1,IMSUM(IMDIV(1,IMPRODUCT(B112,'Design the AEF circuit'!$G$14*0.001)),IMDIV(1,'Design the AEF circuit'!$H$14*1000),IMPRODUCT(B112,'Design the AEF circuit'!$I$14*0.000000000001))),COMPLEX(I112,J112,"j")) -> 0.51217342045143+44.6735977045923j
A113: ='Frequency vector'!G113 -> 18431.74688 | B113: =COMPLEX(0,2*PI()*'Frequency vector'!G113,"j") -> 115810.081161354j | C113: =IF(IF(CMdata=1,IMABS(K113),'CM choke'!C117)=0, C112, IF(CMdata=1,IMABS(K113),'CM choke'!C117)) -> 45.98971125 | D113: =IF(IF(CMdata=1,DEGREES(IMARGUMENT(K113)),'CM choke'!D117)=0, D112, IF(CMdata=1,DEGREES(IMARGUMENT(K113)),'CM choke'!D117)) -> 89.33846424 | E113: =IF(IF(CMdata=1,IMABS(L113),'CM choke'!E117)=0, E112, IF(CMdata=1,IMABS(L113),'CM choke'!E117)) -> 45.98971125 | F113: =IF(IF(CMdata=1,DEGREES(IMARGUMENT(L113)),'CM choke'!F117)=0, F112, IF(CMdata=1,DEGREES(IMARGUMENT(L113)),'CM choke'!F117)) -> 89.33846424 | G113: 0.53098436 | H113: 45.98664585 | I113: 0.53098436 | J113: 45.98664585 | K113: =IF(CMdata=1,IMDIV(1,IMSUM(IMDIV(1,IMPRODUCT(B113,'Design the AEF circuit'!$G$13*0.001)),IMDIV(1,'Design the AEF circuit'!$H$13*1000),IMPRODUCT(B113,'Design the AEF circuit'!$I$13*0.000000000001))),COMPLEX(G113,H113,"j")) -> 0.530984359988823+45.9866458533881j | L113: =IF(CMdata=1,IMDIV(1,IMSUM(IMDIV(1,IMPRODUCT(B113,'Design the AEF circuit'!$G$14*0.001)),IMDIV(1,'Design the AEF circuit'!$H$14*1000),IMPRODUCT(B113,'Design the AEF circuit'!$I$14*0.000000000001))),COMPLEX(I113,J113,"j")) -> 0.530984359988823+45.9866458533881j
A114: ='Frequency vector'!G114 -> 18926.55833 | B114: =COMPLEX(0,2*PI()*'Frequency vector'!G114,"j") -> 118919.073225994j | C114: =IF(IF(CMdata=1,IMABS(K114),'CM choke'!C118)=0, C113, IF(CMdata=1,IMABS(K114),'CM choke'!C118)) -> 47.34111066 | D114: =IF(IF(CMdata=1,DEGREES(IMARGUMENT(K114)),'CM choke'!D118)=0, D113, IF(CMdata=1,DEGREES(IMARGUMENT(K114)),'CM choke'!D118)) -> 89.33341706 | E114: =IF(IF(CMdata=1,IMABS(L114),'CM choke'!E118)=0, E113, IF(CMdata=1,IMABS(L114),'CM choke'!E118)) -> 47.34111066 | F114: =IF(IF(CMdata=1,DEGREES(IMARGUMENT(L114)),'CM choke'!F118)=0, F113, IF(CMdata=1,DEGREES(IMARGUMENT(L114)),'CM choke'!F118)) -> 89.33341706 | G114: 0.550757227 | H114: 47.33790685 | I114: 0.550757227 | J114: 47.33790685 | K114: =IF(CMdata=1,IMDIV(1,IMSUM(IMDIV(1,IMPRODUCT(B114,'Design the AEF circuit'!$G$13*0.001)),IMDIV(1,'Design the AEF circuit'!$H$13*1000),IMPRODUCT(B114,'Design the AEF circuit'!$I$13*0.000000000001))),COMPLEX(G114,H114,"j")) -> 0.550757226960133+47.3379068491341j | L114: =IF(CMdata=1,IMDIV(1,IMSUM(IMDIV(1,IMPRODUCT(B114,'Design the AEF circuit'!$G$14*0.001)),IMDIV(1,'Design the AEF circuit'!$H$14*1000),IMPRODUCT(B114,'Design the AEF circuit'!$I$14*0.000000000001))),COMPLEX(I114,J114,"j")) -> 0.550757226960133+47.3379068491341j
A115: ='Frequency vector'!G115 -> 19434.6533 | B115: =COMPLEX(0,2*PI()*'Frequency vector'!G115,"j") -> 122111.528073503j | C115: =IF(IF(CMdata=1,IMABS(K115),'CM choke'!C119)=0, C114, IF(CMdata=1,IMABS(K115),'CM choke'!C119)) -> 48.73371554 | D115: =IF(IF(CMdata=1,DEGREES(IMARGUMENT(K115)),'CM choke'!D119)=0, D114, IF(CMdata=1,DEGREES(IMARGUMENT(K115)),'CM choke'!D119)) -> 89.329256 | E115: =IF(IF(CMdata=1,IMABS(L115),'CM choke'!E119)=0, E114, IF(CMdata=1,IMABS(L115),'CM choke'!E119)) -> 48.73371554 | F115: =IF(IF(CMdata=1,DEGREES(IMARGUMENT(L115)),'CM choke'!F119)=0, F114, IF(CMdata=1,DEGREES(IMARGUMENT(L115)),'CM choke'!F119)) -> 89.329256 | G115: 0.5704975278 | H115: 48.73037618 | I115: 0.5704975278 | J115: 48.73037618 | K115: =IF(CMdata=1,IMDIV(1,IMSUM(IMDIV(1,IMPRODUCT(B115,'Design the AEF circuit'!$G$13*0.001)),IMDIV(1,'Design the AEF circuit'!$H$13*1000),IMPRODUCT(B115,'Design the AEF circuit'!$I$13*0.000000000001))),COMPLEX(G115,H115,"j")) -> 0.57049752780776+48.7303761803685j | L115: =IF(CMdata=1,IMDIV(1,IMSUM(IMDIV(1,IMPRODUCT(B115,'Design the AEF circuit'!$G$14*0.001)),IMDIV(1,'Design the AEF circuit'!$H$14*1000),IMPRODUCT(B115,'Design the AEF circuit'!$I$14*0.000000000001))),COMPLEX(I115,J115,"j")) -> 0.57049752780776+48.7303761803685j
A116: ='Frequency vector'!G116 -> 19956.38839 | B116: =COMPLEX(0,2*PI()*'Frequency vector'!G116,"j") -> 125389.686313049j | C116: =IF(IF(CMdata=1,IMABS(K116),'CM choke'!C120)=0, C115, IF(CMdata=1,IMABS(K116),'CM choke'!C120)) -> 50.16756408 | D116: =IF(IF(CMdata=1,DEGREES(IMARGUMENT(K116)),'CM choke'!D120)=0, D115, IF(CMdata=1,DEGREES(IMARGUMENT(K116)),'CM choke'!D120)) -> 89.32350996 | E116: =IF(IF(CMdata=1,IMABS(L116),'CM choke'!E120)=0, E115, IF(CMdata=1,IMABS(L116),'CM choke'!E120)) -> 50.16756408 | F116: =IF(IF(CMdata=1,DEGREES(IMARGUMENT(L116)),'CM choke'!F120)=0, F115, IF(CMdata=1,DEGREES(IMARGUMENT(L116)),'CM choke'!F120)) -> 89.32350996 | G116: 0.5923135914 | H116: 50.16406733 | I116: 0.5923135914 | J116: 50.16406733 | K116: =IF(CMdata=1,IMDIV(1,IMSUM(IMDIV(1,IMPRODUCT(B116,'Design the AEF circuit'!$G$13*0.001)),IMDIV(1,'Design the AEF circuit'!$H$13*1000),IMPRODUCT(B116,'Design the AEF circuit'!$I$13*0.000000000001))),COMPLEX(G116,H116,"j")) -> 0.592313591367213+50.1640673272413j | L116: =IF(CMdata=1,IMDIV(1,IMSUM(IMDIV(1,IMPRODUCT(B116,'Design the AEF circuit'!$G$14*0.001)),IMDIV(1,'Design the AEF circuit'!$H$14*1000),IMPRODUCT(B116,'Design the AEF circuit'!$I$14*0.000000000001))),COMPLEX(I116,J116,"j")) -> 0.592313591367213+50.1640673272413j
A117: ='Frequency vector'!G117 -> 20492.12977 | B117: =COMPLEX(0,2*PI()*'Frequency vector'!G117,"j") -> 128755.848704317j | C117: =IF(IF(CMdata=1,IMABS(K117),'CM choke'!C121)=0, C116, IF(CMdata=1,IMABS(K117),'CM choke'!C121)) -> 51.64362483 | D117: =IF(IF(CMdata=1,DEGREES(IMARGUMENT(K117)),'CM choke'!D121)=0, D116, IF(CMdata=1,DEGREES(IMARGUMENT(K117)),'CM choke'!D121)) -> 89.31810801 | E117: =IF(IF(CMdata=1,IMABS(L117),'CM choke'!E121)=0, E116, IF(CMdata=1,IMABS(L117),'CM choke'!E121)) -> 51.64362483 | F117: =IF(IF(CMdata=1,DEGREES(IMARGUMENT(L117)),'CM choke'!F121)=0, F116, IF(CMdata=1,DEGREES(IMARGUMENT(L117)),'CM choke'!F121)) -> 89.31810801 | G117: 0.6146097127 | H117: 51.63996747 | I117: 0.6146097127 | J117: 51.63996747 | K117: =IF(CMdata=1,IMDIV(1,IMSUM(IMDIV(1,IMPRODUCT(B117,'Design the AEF circuit'!$G$13*0.001)),IMDIV(1,'Design the AEF circuit'!$H$13*1000),IMPRODUCT(B117,'Design the AEF circuit'!$I$13*0.000000000001))),COMPLEX(G117,H117,"j")) -> 0.614609712713728+51.6399674693443j | L117: =IF(CMdata=1,IMDIV(1,IMSUM(IMDIV(1,IMPRODUCT(B117,'Design the AEF circuit'!$G$14*0.001)),IMDIV(1,'Design the AEF circuit'!$H$14*1000),IMPRODUCT(B117,'Design the AEF circuit'!$I$14*0.000000000001))),COMPLEX(I117,J117,"j")) -> 0.614609712713728+51.6399674693443j
A118: ='Frequency vector'!G118 -> 21042.25346 | B118: =COMPLEX(0,2*PI()*'Frequency vector'!G118,"j") -> 132212.377772284j | C118: =IF(IF(CMdata=1,IMABS(K118),'CM choke'!C122)=0, C117, IF(CMdata=1,IMABS(K118),'CM choke'!C122)) -> 53.16379729 | D118: =IF(IF(CMdata=1,DEGREES(IMARGUMENT(K118)),'CM choke'!D122)=0, D117, IF(CMdata=1,DEGREES(IMARGUMENT(K118)),'CM choke'!D122)) -> 89.31230349 | E118: =IF(IF(CMdata=1,IMABS(L118),'CM choke'!E122)=0, E117, IF(CMdata=1,IMABS(L118),'CM choke'!E122)) -> 53.16379729 | F118: =IF(IF(CMdata=1,DEGREES(IMARGUMENT(L118)),'CM choke'!F122)=0, F117, IF(CMdata=1,DEGREES(IMARGUMENT(L118)),'CM choke'!F122)) -> 89.31230349 | G118: 0.6380867879 | H118: 53.1599679 | I118: 0.6380867879 | J118: 53.1599679 | K118: =IF(CMdata=1,IMDIV(1,IMSUM(IMDIV(1,IMPRODUCT(B118,'Design the AEF circuit'!$G$13*0.001)),IMDIV(1,'Design the AEF circuit'!$H$13*1000),IMPRODUCT(B118,'Design the AEF circuit'!$I$13*0.000000000001))),COMPLEX(G118,H118,"j")) -> 0.638086787944353+53.1599678998958j | L118: =IF(CMdata=1,IMDIV(1,IMSUM(IMDIV(1,IMPRODUCT(B118,'Design the AEF circuit'!$G$14*0.001)),IMDIV(1,'Design the AEF circuit'!$H$14*1000),IMPRODUCT(B118,'Design the AEF circuit'!$I$14*0.000000000001))),COMPLEX(I118,J118,"j")) -> 0.638086787944353+53.1599678998958j
A119: ='Frequency vector'!G119 -> 21607.14555 | B119: =COMPLEX(0,2*PI()*'Frequency vector'!G119,"j") -> 135761.699465346j | C119: =IF(IF(CMdata=1,IMABS(K119),'CM choke'!C123)=0, C118, IF(CMdata=1,IMABS(K119),'CM choke'!C123)) -> 54.72927758 | D119: =IF(IF(CMdata=1,DEGREES(IMARGUMENT(K119)),'CM choke'!D123)=0, D118, IF(CMdata=1,DEGREES(IMARGUMENT(K119)),'CM choke'!D123)) -> 89.306939 | E119: =IF(IF(CMdata=1,IMABS(L119),'CM choke'!E123)=0, E118, IF(CMdata=1,IMABS(L119),'CM choke'!E123)) -> 54.72927758 | F119: =IF(IF(CMdata=1,DEGREES(IMARGUMENT(L119)),'CM choke'!F123)=0, F118, IF(CMdata=1,DEGREES(IMARGUMENT(L119)),'CM choke'!F123)) -> 89.306939 | G119: 0.6619999412 | H119: 54.72527369 | I119: 0.6619999412 | J119: 54.72527369 | K119: =IF(CMdata=1,IMDIV(1,IMSUM(IMDIV(1,IMPRODUCT(B119,'Design the AEF circuit'!$G$13*0.001)),IMDIV(1,'Design the AEF circuit'!$H$13*1000),IMPRODUCT(B119,'Design the AEF circuit'!$I$13*0.000000000001))),COMPLEX(G119,H119,"j")) -> 0.661999941180247+54.7252736906588j | L119: =IF(CMdata=1,IMDIV(1,IMSUM(IMDIV(1,IMPRODUCT(B119,'Design the AEF circuit'!$G$14*0.001)),IMDIV(1,'Design the AEF circuit'!$H$14*1000),IMPRODUCT(B119,'Design the AEF circuit'!$I$14*0.000000000001))),COMPLEX(I119,J119,"j")) -> 0.661999941180247+54.7252736906588j
A120: ='Frequency vector'!G120 -> 22187.20252 | B120: =COMPLEX(0,2*PI()*'Frequency vector'!G120,"j") -> 139406.304857961j | C120: =IF(IF(CMdata=1,IMABS(K120),'CM choke'!C124)=0, C119, IF(CMdata=1,IMABS(K120),'CM choke'!C124)) -> 56.34020156 | D120: =IF(IF(CMdata=1,DEGREES(IMARGUMENT(K120)),'CM choke'!D124)=0, D119, IF(CMdata=1,DEGREES(IMARGUMENT(K120)),'CM choke'!D124)) -> 89.30015484 | E120: =IF(IF(CMdata=1,IMABS(L120),'CM choke'!E124)=0, E119, IF(CMdata=1,IMABS(L120),'CM choke'!E124)) -> 56.34020156 | F120: =IF(IF(CMdata=1,DEGREES(IMARGUMENT(L120)),'CM choke'!F124)=0, F119, IF(CMdata=1,DEGREES(IMARGUMENT(L120)),'CM choke'!F124)) -> 89.30015484 | G120: 0.6881560389 | H120: 56.33599873 | I120: 0.6881560389 | J120: 56.33599873 | K120: =IF(CMdata=1,IMDIV(1,IMSUM(IMDIV(1,IMPRODUCT(B120,'Design the AEF circuit'!$G$13*0.001)),IMDIV(1,'Design the AEF circuit'!$H$13*1000),IMPRODUCT(B120,'Design the AEF circuit'!$I$13*0.000000000001))),COMPLEX(G120,H120,"j")) -> 0.688156038860084+56.3359987307068j | L120: =IF(CMdata=1,IMDIV(1,IMSUM(IMDIV(1,IMPRODUCT(B120,'Design the AEF circuit'!$G$14*0.001)),IMDIV(1,'Design the AEF circuit'!$H$14*1000),IMPRODUCT(B120,'Design the AEF circuit'!$I$14*0.000000000001))),COMPLEX(I120,J120,"j")) -> 0.688156038860084+56.3359987307068j
A121: ='Frequency vector'!G121 -> 22782.83146 | B121: =COMPLEX(0,2*PI()*'Frequency vector'!G121,"j") -> 143148.751898995j | C121: =IF(IF(CMdata=1,IMABS(K121),'CM choke'!C125)=0, C120, IF(CMdata=1,IMABS(K121),'CM choke'!C125)) -> 58.00020937 | D121: =IF(IF(CMdata=1,DEGREES(IMARGUMENT(K121)),'CM choke'!D125)=0, D120, IF(CMdata=1,DEGREES(IMARGUMENT(K121)),'CM choke'!D125)) -> 89.29359634 | E121: =IF(IF(CMdata=1,IMABS(L121),'CM choke'!E125)=0, E120, IF(CMdata=1,IMABS(L121),'CM choke'!E125)) -> 58.00020937 | F121: =IF(IF(CMdata=1,DEGREES(IMARGUMENT(L121)),'CM choke'!F125)=0, F120, IF(CMdata=1,DEGREES(IMARGUMENT(L121)),'CM choke'!F125)) -> 89.29359634 | G121: 0.715070507 | H121: 57.99580123 | I121: 0.715070507 | J121: 57.99580123 | K121: =IF(CMdata=1,IMDIV(1,IMSUM(IMDIV(1,IMPRODUCT(B121,'Design the AEF circuit'!$G$13*0.001)),IMDIV(1,'Design the AEF circuit'!$H$13*1000),IMPRODUCT(B121,'Design the AEF circuit'!$I$13*0.000000000001))),COMPLEX(G121,H121,"j")) -> 0.715070507010169+57.9958012343052j | L121: =IF(CMdata=1,IMDIV(1,IMSUM(IMDIV(1,IMPRODUCT(B121,'Design the AEF circuit'!$G$14*0.001)),IMDIV(1,'Design the AEF circuit'!$H$14*1000),IMPRODUCT(B121,'Design the AEF circuit'!$I$14*0.000000000001))),COMPLEX(I121,J121,"j")) -> 0.715070507010169+57.9958012343052j
A122: ='Frequency vector'!G122 -> 23394.45043 | B122: =COMPLEX(0,2*PI()*'Frequency vector'!G122,"j") -> 146991.667207008j | C122: =IF(IF(CMdata=1,IMABS(K122),'CM choke'!C126)=0, C121, IF(CMdata=1,IMABS(K122),'CM choke'!C126)) -> 59.70914285 | D122: =IF(IF(CMdata=1,DEGREES(IMARGUMENT(K122)),'CM choke'!D126)=0, D121, IF(CMdata=1,DEGREES(IMARGUMENT(K122)),'CM choke'!D126)) -> 89.28773877 | E122: =IF(IF(CMdata=1,IMABS(L122),'CM choke'!E126)=0, E121, IF(CMdata=1,IMABS(L122),'CM choke'!E126)) -> 59.70914285 | F122: =IF(IF(CMdata=1,DEGREES(IMARGUMENT(L122)),'CM choke'!F126)=0, F121, IF(CMdata=1,DEGREES(IMARGUMENT(L122)),'CM choke'!F126)) -> 89.28773877 | G122: 0.7422433623 | H122: 59.70452927 | I122: 0.7422433623 | J122: 59.70452927 | K122: =IF(CMdata=1,IMDIV(1,IMSUM(IMDIV(1,IMPRODUCT(B122,'Design the AEF circuit'!$G$13*0.001)),IMDIV(1,'Design the AEF circuit'!$H$13*1000),IMPRODUCT(B122,'Design the AEF circuit'!$I$13*0.000000000001))),COMPLEX(G122,H122,"j")) -> 0.74224336234862+59.7045292671094j | L122: =IF(CMdata=1,IMDIV(1,IMSUM(IMDIV(1,IMPRODUCT(B122,'Design the AEF circuit'!$G$14*0.001)),IMDIV(1,'Design the AEF circuit'!$H$14*1000),IMPRODUCT(B122,'Design the AEF circuit'!$I$14*0.000000000001))),COMPLEX(I122,J122,"j")) -> 0.74224336234862+59.7045292671094j
A123: ='Frequency vector'!G123 -> 24022.48868 | B123: =COMPLEX(0,2*PI()*'Frequency vector'!G123,"j") -> 150937.74791373j | C123: =IF(IF(CMdata=1,IMABS(K123),'CM choke'!C127)=0, C122, IF(CMdata=1,IMABS(K123),'CM choke'!C127)) -> 61.46790426 | D123: =IF(IF(CMdata=1,DEGREES(IMARGUMENT(K123)),'CM choke'!D127)=0, D122, IF(CMdata=1,DEGREES(IMARGUMENT(K123)),'CM choke'!D127)) -> 89.28190776 | E123: =IF(IF(CMdata=1,IMABS(L123),'CM choke'!E127)=0, E122, IF(CMdata=1,IMABS(L123),'CM choke'!E127)) -> 61.46790426 | F123: =IF(IF(CMdata=1,DEGREES(IMARGUMENT(L123)),'CM choke'!F127)=0, F122, IF(CMdata=1,DEGREES(IMARGUMENT(L123)),'CM choke'!F127)) -> 89.28190776 | G123: 0.7703616198 | H123: 61.4630767 | I123: 0.7703616198 | J123: 61.4630767 | K123: =IF(CMdata=1,IMDIV(1,IMSUM(IMDIV(1,IMPRODUCT(B123,'Design the AEF circuit'!$G$13*0.001)),IMDIV(1,'Design the AEF circuit'!$H$13*1000),IMPRODUCT(B123,'Design the AEF circuit'!$I$13*0.000000000001))),COMPLEX(G123,H123,"j")) -> 0.770361619840685+61.4630767008435j | L123: =IF(CMdata=1,IMDIV(1,IMSUM(IMDIV(1,IMPRODUCT(B123,'Design the AEF circuit'!$G$14*0.001)),IMDIV(1,'Design the AEF circuit'!$H$14*1000),IMPRODUCT(B123,'Design the AEF circuit'!$I$14*0.000000000001))),COMPLEX(I123,J123,"j")) -> 0.770361619840685+61.4630767008435j
A124: ='Frequency vector'!G124 -> 24667.387 | B124: =COMPLEX(0,2*PI()*'Frequency vector'!G124,"j") -> 154989.763557038j | C124: =IF(IF(CMdata=1,IMABS(K124),'CM choke'!C128)=0, C123, IF(CMdata=1,IMABS(K124),'CM choke'!C128)) -> 63.28219399 | D124: =IF(IF(CMdata=1,DEGREES(IMARGUMENT(K124)),'CM choke'!D128)=0, D123, IF(CMdata=1,DEGREES(IMARGUMENT(K124)),'CM choke'!D128)) -> 89.27475993 | E124: =IF(IF(CMdata=1,IMABS(L124),'CM choke'!E128)=0, E123, IF(CMdata=1,IMABS(L124),'CM choke'!E128)) -> 63.28219399 | F124: =IF(IF(CMdata=1,DEGREES(IMARGUMENT(L124)),'CM choke'!F128)=0, F123, IF(CMdata=1,DEGREES(IMARGUMENT(L124)),'CM choke'!F128)) -> 89.27475993 | G124: 0.8009936828 | H124: 63.2771245 | I124: 0.8009936828 | J124: 63.2771245 | K124: =IF(CMdata=1,IMDIV(1,IMSUM(IMDIV(1,IMPRODUCT(B124,'Design the AEF circuit'!$G$13*0.001)),IMDIV(1,'Design the AEF circuit'!$H$13*1000),IMPRODUCT(B124,'Design the AEF circuit'!$I$13*0.000000000001))),COMPLEX(G124,H124,"j")) -> 0.800993682836934+63.2771245011249j | L124: =IF(CMdata=1,IMDIV(1,IMSUM(IMDIV(1,IMPRODUCT(B124,'Design the AEF circuit'!$G$14*0.001)),IMDIV(1,'Design the AEF circuit'!$H$14*1000),IMPRODUCT(B124,'Design the AEF circuit'!$I$14*0.000000000001))),COMPLEX(I124,J124,"j")) -> 0.800993682836934+63.2771245011249j
A125: ='Frequency vector'!G125 -> 25329.59801 | B125: =COMPLEX(0,2*PI()*'Frequency vector'!G125,"j") -> 159150.558024731j | C125: =IF(IF(CMdata=1,IMABS(K125),'CM choke'!C129)=0, C124, IF(CMdata=1,IMABS(K125),'CM choke'!C129)) -> 65.14943389 | D125: =IF(IF(CMdata=1,DEGREES(IMARGUMENT(K125)),'CM choke'!D129)=0, D124, IF(CMdata=1,DEGREES(IMARGUMENT(K125)),'CM choke'!D129)) -> 89.2670296 | E125: =IF(IF(CMdata=1,IMABS(L125),'CM choke'!E129)=0, E124, IF(CMdata=1,IMABS(L125),'CM choke'!E129)) -> 65.14943389 | F125: =IF(IF(CMdata=1,DEGREES(IMARGUMENT(L125)),'CM choke'!F129)=0, F124, IF(CMdata=1,DEGREES(IMARGUMENT(L125)),'CM choke'!F129)) -> 89.2670296 | G125: 0.8334174814 | H125: 65.14410297 | I125: 0.8334174814 | J125: 65.14410297 | K125: =IF(CMdata=1,IMDIV(1,IMSUM(IMDIV(1,IMPRODUCT(B125,'Design the AEF circuit'!$G$13*0.001)),IMDIV(1,'Design the AEF circuit'!$H$13*1000),IMPRODUCT(B125,'Design the AEF circuit'!$I$13*0.000000000001))),COMPLEX(G125,H125,"j")) -> 0.833417481377109+65.1441029718762j | L125: =IF(CMdata=1,IMDIV(1,IMSUM(IMDIV(1,IMPRODUCT(B125,'Design the AEF circuit'!$G$14*0.001)),IMDIV(1,'Design the AEF circuit'!$H$14*1000),IMPRODUCT(B125,'Design the AEF circuit'!$I$14*0.000000000001))),COMPLEX(I125,J125,"j")) -> 0.833417481377109+65.1441029718762j
A126: ='Frequency vector'!G126 -> 26009.58647 | B126: =COMPLEX(0,2*PI()*'Frequency vector'!G126,"j") -> 163423.051550512j | C126: =IF(IF(CMdata=1,IMABS(K126),'CM choke'!C130)=0, C125, IF(CMdata=1,IMABS(K126),'CM choke'!C130)) -> 67.07358821 | D126: =IF(IF(CMdata=1,DEGREES(IMARGUMENT(K126)),'CM choke'!D130)=0, D125, IF(CMdata=1,DEGREES(IMARGUMENT(K126)),'CM choke'!D130)) -> 89.25922198 | E126: =IF(IF(CMdata=1,IMABS(L126),'CM choke'!E130)=0, E125, IF(CMdata=1,IMABS(L126),'CM choke'!E130)) -> 67.07358821 | F126: =IF(IF(CMdata=1,DEGREES(IMARGUMENT(L126)),'CM choke'!F130)=0, F125, IF(CMdata=1,DEGREES(IMARGUMENT(L126)),'CM choke'!F130)) -> 89.25922198 | G126: 0.8671713034 | H126: 67.0679823 | I126: 0.8671713034 | J126: 67.0679823 | K126: =IF(CMdata=1,IMDIV(1,IMSUM(IMDIV(1,IMPRODUCT(B126,'Design the AEF circuit'!$G$13*0.001)),IMDIV(1,'Design the AEF circuit'!$H$13*1000),IMPRODUCT(B126,'Design the AEF circuit'!$I$13*0.000000000001))),COMPLEX(G126,H126,"j")) -> 0.867171303377059+67.0679822994886j | L126: =IF(CMdata=1,IMDIV(1,IMSUM(IMDIV(1,IMPRODUCT(B126,'Design the AEF circuit'!$G$14*0.001)),IMDIV(1,'Design the AEF circuit'!$H$14*1000),IMPRODUCT(B126,'Design the AEF circuit'!$I$14*0.000000000001))),COMPLEX(I126,J126,"j")) -> 0.867171303377059+67.0679822994886j
A127: ='Frequency vector'!G127 -> 26707.82964 | B127: =COMPLEX(0,2*PI()*'Frequency vector'!G127,"j") -> 167810.242763528j | C127: =IF(IF(CMdata=1,IMABS(K127),'CM choke'!C131)=0, C126, IF(CMdata=1,IMABS(K127),'CM choke'!C131)) -> 69.05523756 | D127: =IF(IF(CMdata=1,DEGREES(IMARGUMENT(K127)),'CM choke'!D131)=0, D126, IF(CMdata=1,DEGREES(IMARGUMENT(K127)),'CM choke'!D131)) -> 89.25086058 | E127: =IF(IF(CMdata=1,IMABS(L127),'CM choke'!E131)=0, E126, IF(CMdata=1,IMABS(L127),'CM choke'!E131)) -> 69.05523756 | F127: =IF(IF(CMdata=1,DEGREES(IMARGUMENT(L127)),'CM choke'!F131)=0, F126, IF(CMdata=1,DEGREES(IMARGUMENT(L127)),'CM choke'!F131)) -> 89.25086058 | G127: 0.9028680134 | H127: 69.049335 | I127: 0.9028680134 | J127: 69.049335 | K127: =IF(CMdata=1,IMDIV(1,IMSUM(IMDIV(1,IMPRODUCT(B127,'Design the AEF circuit'!$G$13*0.001)),IMDIV(1,'Design the AEF circuit'!$H$13*1000),IMPRODUCT(B127,'Design the AEF circuit'!$I$13*0.000000000001))),COMPLEX(G127,H127,"j")) -> 0.902868013392788+69.0493350005037j | L127: =IF(CMdata=1,IMDIV(1,IMSUM(IMDIV(1,IMPRODUCT(B127,'Design the AEF circuit'!$G$14*0.001)),IMDIV(1,'Design the AEF circuit'!$H$14*1000),IMPRODUCT(B127,'Design the AEF circuit'!$I$14*0.000000000001))),COMPLEX(I127,J127,"j")) -> 0.902868013392788+69.0493350005037j
A128: ='Frequency vector'!G128 -> 27424.81757 | B128: =COMPLEX(0,2*PI()*'Frequency vector'!G128,"j") -> 172315.210792955j | C128: =IF(IF(CMdata=1,IMABS(K128),'CM choke'!C132)=0, C127, IF(CMdata=1,IMABS(K128),'CM choke'!C132)) -> 71.09666637 | D128: =IF(IF(CMdata=1,DEGREES(IMARGUMENT(K128)),'CM choke'!D132)=0, D127, IF(CMdata=1,DEGREES(IMARGUMENT(K128)),'CM choke'!D132)) -> 89.24237121 | E128: =IF(IF(CMdata=1,IMABS(L128),'CM choke'!E132)=0, E127, IF(CMdata=1,IMABS(L128),'CM choke'!E132)) -> 71.09666637 | F128: =IF(IF(CMdata=1,DEGREES(IMARGUMENT(L128)),'CM choke'!F132)=0, F127, IF(CMdata=1,DEGREES(IMARGUMENT(L128)),'CM choke'!F132)) -> 89.24237121 | G128: 0.9400921315 | H128: 71.0904508 | I128: 0.9400921315 | J128: 71.0904508 | K128: =IF(CMdata=1,IMDIV(1,IMSUM(IMDIV(1,IMPRODUCT(B128,'Design the AEF circuit'!$G$13*0.001)),IMDIV(1,'Design the AEF circuit'!$H$13*1000),IMPRODUCT(B128,'Design the AEF circuit'!$I$13*0.000000000001))),COMPLEX(G128,H128,"j")) -> 0.940092131477455+71.0904508041748j | L128: =IF(CMdata=1,IMDIV(1,IMSUM(IMDIV(1,IMPRODUCT(B128,'Design the AEF circuit'!$G$14*0.001)),IMDIV(1,'Design the AEF circuit'!$H$14*1000),IMPRODUCT(B128,'Design the AEF circuit'!$I$14*0.000000000001))),COMPLEX(I128,J128,"j")) -> 0.940092131477455+71.0904508041748j
A129: ='Frequency vector'!G129 -> 28161.05348 | B129: =COMPLEX(0,2*PI()*'Frequency vector'!G129,"j") -> 176941.11742906j | C129: =IF(IF(CMdata=1,IMABS(K129),'CM choke'!C133)=0, C128, IF(CMdata=1,IMABS(K129),'CM choke'!C133)) -> 73.20022845 | D129: =IF(IF(CMdata=1,DEGREES(IMARGUMENT(K129)),'CM choke'!D133)=0, D128, IF(CMdata=1,DEGREES(IMARGUMENT(K129)),'CM choke'!D133)) -> 89.23382579 | E129: =IF(IF(CMdata=1,IMABS(L129),'CM choke'!E133)=0, E128, IF(CMdata=1,IMABS(L129),'CM choke'!E133)) -> 73.20022845 | F129: =IF(IF(CMdata=1,DEGREES(IMARGUMENT(L129)),'CM choke'!F133)=0, F128, IF(CMdata=1,DEGREES(IMARGUMENT(L129)),'CM choke'!F133)) -> 89.23382579 | G129: 0.9788235087 | H129: 73.19368381 | I129: 0.9788235087 | J129: 73.19368381 | K129: =IF(CMdata=1,IMDIV(1,IMSUM(IMDIV(1,IMPRODUCT(B129,'Design the AEF circuit'!$G$13*0.001)),IMDIV(1,'Design the AEF circuit'!$H$13*1000),IMPRODUCT(B129,'Design the AEF circuit'!$I$13*0.000000000001))),COMPLEX(G129,H129,"j")) -> 0.978823508719647+73.19368380705j | L129: =IF(CMdata=1,IMDIV(1,IMSUM(IMDIV(1,IMPRODUCT(B129,'Design the AEF circuit'!$G$14*0.001)),IMDIV(1,'Design the AEF circuit'!$H$14*1000),IMPRODUCT(B129,'Design the AEF circuit'!$I$14*0.000000000001))),COMPLEX(I129,J129,"j")) -> 0.978823508719647+73.19368380705j
A130: ='Frequency vector'!G130 -> 28917.05408 | B130: =COMPLEX(0,2*PI()*'Frequency vector'!G130,"j") -> 181691.209342294j | C130: =IF(IF(CMdata=1,IMABS(K130),'CM choke'!C134)=0, C129, IF(CMdata=1,IMABS(K130),'CM choke'!C134)) -> 75.36627042 | D130: =IF(IF(CMdata=1,DEGREES(IMARGUMENT(K130)),'CM choke'!D134)=0, D129, IF(CMdata=1,DEGREES(IMARGUMENT(K130)),'CM choke'!D134)) -> 89.2242289 | E130: =IF(IF(CMdata=1,IMABS(L130),'CM choke'!E134)=0, E129, IF(CMdata=1,IMABS(L130),'CM choke'!E134)) -> 75.36627042 | F130: =IF(IF(CMdata=1,DEGREES(IMARGUMENT(L130)),'CM choke'!F134)=0, F129, IF(CMdata=1,DEGREES(IMARGUMENT(L130)),'CM choke'!F134)) -> 89.2242289 | G130: 1.020410024 | H130: 75.35936226 | I130: 1.020410024 | J130: 75.35936226 | K130: =IF(CMdata=1,IMDIV(1,IMSUM(IMDIV(1,IMPRODUCT(B130,'Design the AEF circuit'!$G$13*0.001)),IMDIV(1,'Design the AEF circuit'!$H$13*1000),IMPRODUCT(B130,'Design the AEF circuit'!$I$13*0.000000000001))),COMPLEX(G130,H130,"j")) -> 1.02041002448697+75.3593622646188j | L130: =IF(CMdata=1,IMDIV(1,IMSUM(IMDIV(1,IMPRODUCT(B130,'Design the AEF circuit'!$G$14*0.001)),IMDIV(1,'Design the AEF circuit'!$H$14*1000),IMPRODUCT(B130,'Design the AEF circuit'!$I$14*0.000000000001))),COMPLEX(I130,J130,"j")) -> 1.02041002448697+75.3593622646188j
A131: ='Frequency vector'!G131 -> 29693.34999 | B131: =COMPLEX(0,2*PI()*'Frequency vector'!G131,"j") -> 186568.820361952j | C131: =IF(IF(CMdata=1,IMABS(K131),'CM choke'!C135)=0, C130, IF(CMdata=1,IMABS(K131),'CM choke'!C135)) -> 77.59913206 | D131: =IF(IF(CMdata=1,DEGREES(IMARGUMENT(K131)),'CM choke'!D135)=0, D130, IF(CMdata=1,DEGREES(IMARGUMENT(K131)),'CM choke'!D135)) -> 89.21432413 | E131: =IF(IF(CMdata=1,IMABS(L131),'CM choke'!E135)=0, E130, IF(CMdata=1,IMABS(L131),'CM choke'!E135)) -> 77.59913206 | F131: =IF(IF(CMdata=1,DEGREES(IMARGUMENT(L131)),'CM choke'!F135)=0, F130, IF(CMdata=1,DEGREES(IMARGUMENT(L131)),'CM choke'!F135)) -> 89.21432413 | G131: =C131*COS(RADIANS(D131)) -> 1.064054894 | H131: =C131*SIN(RADIANS(D131)) -> 77.59183645 | I131: =E131*COS(RADIANS(F131)) -> 1.064054894 | J131: =E131*SIN(RADIANS(F131)) -> 77.59183645 | K131: =IF(CMdata=1,IMDIV(1,IMSUM(IMDIV(1,IMPRODUCT(B131,'Design the AEF circuit'!$G$13*0.001)),IMDIV(1,'Design the AEF circuit'!$H$13*1000),IMPRODUCT(B131,'Design the AEF circuit'!$I$13*0.000000000001))),COMPLEX(G131,H131,"j")) -> 1.06405489434698+77.5918364498654j | L131: =IF(CMdata=1,IMDIV(1,IMSUM(IMDIV(1,IMPRODUCT(B131,'Design the AEF circuit'!$G$14*0.001)),IMDIV(1,'Design the AEF circuit'!$H$14*1000),IMPRODUCT(B131,'Design the AEF circuit'!$I$14*0.000000000001))),COMPLEX(I131,J131,"j")) -> 1.06405489434698+77.5918364498654j
A132: ='Frequency vector'!G132 -> 30490.48603 | B132: =COMPLEX(0,2*PI()*'Frequency vector'!G132,"j") -> 191577.373816004j | C132: =IF(IF(CMdata=1,IMABS(K132),'CM choke'!C136)=0, C131, IF(CMdata=1,IMABS(K132),'CM choke'!C136)) -> 79.89857892 | D132: =IF(IF(CMdata=1,DEGREES(IMARGUMENT(K132)),'CM choke'!D136)=0, D131, IF(CMdata=1,DEGREES(IMARGUMENT(K132)),'CM choke'!D136)) -> 89.20433739 | E132: =IF(IF(CMdata=1,IMABS(L132),'CM choke'!E136)=0, E131, IF(CMdata=1,IMABS(L132),'CM choke'!E136)) -> 79.89857892 | F132: =IF(IF(CMdata=1,DEGREES(IMARGUMENT(L132)),'CM choke'!F136)=0, F131, IF(CMdata=1,DEGREES(IMARGUMENT(L132)),'CM choke'!F136)) -> 89.20433739 | G132: 1.109510495 | H132: 79.89087495 | I132: 1.109510495 | J132: 79.89087495 | K132: =IF(CMdata=1,IMDIV(1,IMSUM(IMDIV(1,IMPRODUCT(B132,'Design the AEF circuit'!$G$13*0.001)),IMDIV(1,'Design the AEF circuit'!$H$13*1000),IMPRODUCT(B132,'Design the AEF circuit'!$I$13*0.000000000001))),COMPLEX(G132,H132,"j")) -> 1.10951049505058+79.8908749484237j | L132: =IF(CMdata=1,IMDIV(1,IMSUM(IMDIV(1,IMPRODUCT(B132,'Design the AEF circuit'!$G$14*0.001)),IMDIV(1,'Design the AEF circuit'!$H$14*1000),IMPRODUCT(B132,'Design the AEF circuit'!$I$14*0.000000000001))),COMPLEX(I132,J132,"j")) -> 1.10951049505058+79.8908749484237j
A133: ='Frequency vector'!G133 -> 31309.02167 | B133: =COMPLEX(0,2*PI()*'Frequency vector'!G133,"j") -> 196720.384933738j | C133: =IF(IF(CMdata=1,IMABS(K133),'CM choke'!C137)=0, C132, IF(CMdata=1,IMABS(K133),'CM choke'!C137)) -> 82.26862673 | D133: =IF(IF(CMdata=1,DEGREES(IMARGUMENT(K133)),'CM choke'!D137)=0, D132, IF(CMdata=1,DEGREES(IMARGUMENT(K133)),'CM choke'!D137)) -> 89.19308167 | E133: =IF(IF(CMdata=1,IMABS(L133),'CM choke'!E137)=0, E132, IF(CMdata=1,IMABS(L133),'CM choke'!E137)) -> 82.26862673 | F133: =IF(IF(CMdata=1,DEGREES(IMARGUMENT(L133)),'CM choke'!F137)=0, F132, IF(CMdata=1,DEGREES(IMARGUMENT(L133)),'CM choke'!F137)) -> 89.19308167 | G133: 1.158582161 | H133: 82.26046822 | I133: 1.158582161 | J133: 82.26046822 | K133: =IF(CMdata=1,IMDIV(1,IMSUM(IMDIV(1,IMPRODUCT(B133,'Design the AEF circuit'!$G$13*0.001)),IMDIV(1,'Design the AEF circuit'!$H$13*1000),IMPRODUCT(B133,'Design the AEF circuit'!$I$13*0.000000000001))),COMPLEX(G133,H133,"j")) -> 1.15858216140633+82.2604682208225j | L133: =IF(CMdata=1,IMDIV(1,IMSUM(IMDIV(1,IMPRODUCT(B133,'Design the AEF circuit'!$G$14*0.001)),IMDIV(1,'Design the AEF circuit'!$H$14*1000),IMPRODUCT(B133,'Design the AEF circuit'!$I$14*0.000000000001))),COMPLEX(I133,J133,"j")) -> 1.15858216140633+82.2604682208225j
A134: ='Frequency vector'!G134 -> 32149.5314 | B134: =COMPLEX(0,2*PI()*'Frequency vector'!G134,"j") -> 202001.463312915j | C134: =IF(IF(CMdata=1,IMABS(K134),'CM choke'!C138)=0, C133, IF(CMdata=1,IMABS(K134),'CM choke'!C138)) -> 84.71018095 | D134: =IF(IF(CMdata=1,DEGREES(IMARGUMENT(K134)),'CM choke'!D138)=0, D133, IF(CMdata=1,DEGREES(IMARGUMENT(K134)),'CM choke'!D138)) -> 89.18247352 | E134: =IF(IF(CMdata=1,IMABS(L134),'CM choke'!E138)=0, E133, IF(CMdata=1,IMABS(L134),'CM choke'!E138)) -> 84.71018095 | F134: =IF(IF(CMdata=1,DEGREES(IMARGUMENT(L134)),'CM choke'!F138)=0, F133, IF(CMdata=1,DEGREES(IMARGUMENT(L134)),'CM choke'!F138)) -> 89.18247352 | G134: 1.208648648 | H134: 84.70155799 | I134: 1.208648648 | J134: 84.70155799 | K134: =IF(CMdata=1,IMDIV(1,IMSUM(IMDIV(1,IMPRODUCT(B134,'Design the AEF circuit'!$G$13*0.001)),IMDIV(1,'Design the AEF circuit'!$H$13*1000),IMPRODUCT(B134,'Design the AEF circuit'!$I$13*0.000000000001))),COMPLEX(G134,H134,"j")) -> 1.20864864840643+84.701557988547j | L134: =IF(CMdata=1,IMDIV(1,IMSUM(IMDIV(1,IMPRODUCT(B134,'Design the AEF circuit'!$G$14*0.001)),IMDIV(1,'Design the AEF circuit'!$H$14*1000),IMPRODUCT(B134,'Design the AEF circuit'!$I$14*0.000000000001))),COMPLEX(I134,J134,"j")) -> 1.20864864840643+84.701557988547j
A135: ='Frequency vector'!G135 -> 33012.60512 | B135: =COMPLEX(0,2*PI()*'Frequency vector'!G135,"j") -> 207424.315453142j | C135: =IF(IF(CMdata=1,IMABS(K135),'CM choke'!C139)=0, C134, IF(CMdata=1,IMABS(K135),'CM choke'!C139)) -> 87.22726244 | D135: =IF(IF(CMdata=1,DEGREES(IMARGUMENT(K135)),'CM choke'!D139)=0, D134, IF(CMdata=1,DEGREES(IMARGUMENT(K135)),'CM choke'!D139)) -> 89.17031259 | E135: =IF(IF(CMdata=1,IMABS(L135),'CM choke'!E139)=0, E134, IF(CMdata=1,IMABS(L135),'CM choke'!E139)) -> 87.22726244 | F135: =IF(IF(CMdata=1,DEGREES(IMARGUMENT(L135)),'CM choke'!F139)=0, F134, IF(CMdata=1,DEGREES(IMARGUMENT(L135)),'CM choke'!F139)) -> 89.17031259 | G135: 1.263074392 | H135: 87.21811713 | I135: 1.263074392 | J135: 87.21811713 | K135: =IF(CMdata=1,IMDIV(1,IMSUM(IMDIV(1,IMPRODUCT(B135,'Design the AEF circuit'!$G$13*0.001)),IMDIV(1,'Design the AEF circuit'!$H$13*1000),IMPRODUCT(B135,'Design the AEF circuit'!$I$13*0.000000000001))),COMPLEX(G135,H135,"j")) -> 1.26307439223259+87.2181171344828j | L135: =IF(CMdata=1,IMDIV(1,IMSUM(IMDIV(1,IMPRODUCT(B135,'Design the AEF circuit'!$G$14*0.001)),IMDIV(1,'Design the AEF circuit'!$H$14*1000),IMPRODUCT(B135,'Design the AEF circuit'!$I$14*0.000000000001))),COMPLEX(I135,J135,"j")) -> 1.26307439223259+87.2181171344828j
A136: ='Frequency vector'!G136 -> 33898.84858 | B136: =COMPLEX(0,2*PI()*'Frequency vector'!G136,"j") -> 212992.747357258j | C136: =IF(IF(CMdata=1,IMABS(K136),'CM choke'!C140)=0, C135, IF(CMdata=1,IMABS(K136),'CM choke'!C140)) -> 89.82235179 | D136: =IF(IF(CMdata=1,DEGREES(IMARGUMENT(K136)),'CM choke'!D140)=0, D135, IF(CMdata=1,DEGREES(IMARGUMENT(K136)),'CM choke'!D140)) -> 89.15815621 | E136: =IF(IF(CMdata=1,IMABS(L136),'CM choke'!E140)=0, E135, IF(CMdata=1,IMABS(L136),'CM choke'!E140)) -> 89.82235179 | F136: =IF(IF(CMdata=1,DEGREES(IMARGUMENT(L136)),'CM choke'!F140)=0, F135, IF(CMdata=1,DEGREES(IMARGUMENT(L136)),'CM choke'!F140)) -> 89.15815621 | G136: 1.319707477 | H136: 89.81265642 | I136: 1.319707477 | J136: 89.81265642 | K136: =IF(CMdata=1,IMDIV(1,IMSUM(IMDIV(1,IMPRODUCT(B136,'Design the AEF circuit'!$G$13*0.001)),IMDIV(1,'Design the AEF circuit'!$H$13*1000),IMPRODUCT(B136,'Design the AEF circuit'!$I$13*0.000000000001))),COMPLEX(G136,H136,"j")) -> 1.31970747741209+89.8126564230431j | L136: =IF(CMdata=1,IMDIV(1,IMSUM(IMDIV(1,IMPRODUCT(B136,'Design the AEF circuit'!$G$14*0.001)),IMDIV(1,'Design the AEF circuit'!$H$14*1000),IMPRODUCT(B136,'Design the AEF circuit'!$I$14*0.000000000001))),COMPLEX(I136,J136,"j")) -> 1.31970747741209+89.8126564230431j
A137: ='Frequency vector'!G137 -> 34808.88379 | B137: =COMPLEX(0,2*PI()*'Frequency vector'!G137,"j") -> 218710.66720257j | C137: =IF(IF(CMdata=1,IMABS(K137),'CM choke'!C141)=0, C136, IF(CMdata=1,IMABS(K137),'CM choke'!C141)) -> 92.49639212 | D137: =IF(IF(CMdata=1,DEGREES(IMARGUMENT(K137)),'CM choke'!D141)=0, D136, IF(CMdata=1,DEGREES(IMARGUMENT(K137)),'CM choke'!D141)) -> 89.14544312 | E137: =IF(IF(CMdata=1,IMABS(L137),'CM choke'!E141)=0, E136, IF(CMdata=1,IMABS(L137),'CM choke'!E141)) -> 92.49639212 | F137: =IF(IF(CMdata=1,DEGREES(IMARGUMENT(L137)),'CM choke'!F141)=0, F136, IF(CMdata=1,DEGREES(IMARGUMENT(L137)),'CM choke'!F141)) -> 89.14544312 | G137: 1.379516928 | H137: 92.4861043 | I137: 1.379516928 | J137: 92.4861043 | K137: =IF(CMdata=1,IMDIV(1,IMSUM(IMDIV(1,IMPRODUCT(B137,'Design the AEF circuit'!$G$13*0.001)),IMDIV(1,'Design the AEF circuit'!$H$13*1000),IMPRODUCT(B137,'Design the AEF circuit'!$I$13*0.000000000001))),COMPLEX(G137,H137,"j")) -> 1.37951692826642+92.4861042968209j | L137: =IF(CMdata=1,IMDIV(1,IMSUM(IMDIV(1,IMPRODUCT(B137,'Design the AEF circuit'!$G$14*0.001)),IMDIV(1,'Design the AEF circuit'!$H$14*1000),IMPRODUCT(B137,'Design the AEF circuit'!$I$14*0.000000000001))),COMPLEX(I137,J137,"j")) -> 1.37951692826642+92.4861042968209j
A138: ='Frequency vector'!G138 -> 35743.34945 | B138: =COMPLEX(0,2*PI()*'Frequency vector'!G138,"j") -> 224582.088083777j | C138: =IF(IF(CMdata=1,IMABS(K138),'CM choke'!C142)=0, C137, IF(CMdata=1,IMABS(K138),'CM choke'!C142)) -> 95.25258425 | D138: =IF(IF(CMdata=1,DEGREES(IMARGUMENT(K138)),'CM choke'!D142)=0, D137, IF(CMdata=1,DEGREES(IMARGUMENT(K138)),'CM choke'!D142)) -> 89.13219481 | E138: =IF(IF(CMdata=1,IMABS(L138),'CM choke'!E142)=0, E137, IF(CMdata=1,IMABS(L138),'CM choke'!E142)) -> 95.25258425 | F138: =IF(IF(CMdata=1,DEGREES(IMARGUMENT(L138)),'CM choke'!F142)=0, F137, IF(CMdata=1,DEGREES(IMARGUMENT(L138)),'CM choke'!F142)) -> 89.13219481 | G138: 1.442645995 | H138: 95.24165884 | I138: 1.442645995 | J138: 95.24165884 | K138: =IF(CMdata=1,IMDIV(1,IMSUM(IMDIV(1,IMPRODUCT(B138,'Design the AEF circuit'!$G$13*0.001)),IMDIV(1,'Design the AEF circuit'!$H$13*1000),IMPRODUCT(B138,'Design the AEF circuit'!$I$13*0.000000000001))),COMPLEX(G138,H138,"j")) -> 1.44264599493245+95.241658842369j | L138: =IF(CMdata=1,IMDIV(1,IMSUM(IMDIV(1,IMPRODUCT(B138,'Design the AEF circuit'!$G$14*0.001)),IMDIV(1,'Design the AEF circuit'!$H$14*1000),IMPRODUCT(B138,'Design the AEF circuit'!$I$14*0.000000000001))),COMPLEX(I138,J138,"j")) -> 1.44264599493245+95.241658842369j
A139: ='Frequency vector'!G139 -> 36702.9014 | B139: =COMPLEX(0,2*PI()*'Frequency vector'!G139,"j") -> 230611.130829546j | C139: =IF(IF(CMdata=1,IMABS(K139),'CM choke'!C143)=0, C138, IF(CMdata=1,IMABS(K139),'CM choke'!C143)) -> 98.09474632 | D139: =IF(IF(CMdata=1,DEGREES(IMARGUMENT(K139)),'CM choke'!D143)=0, D138, IF(CMdata=1,DEGREES(IMARGUMENT(K139)),'CM choke'!D143)) -> 89.11817036 | E139: =IF(IF(CMdata=1,IMABS(L139),'CM choke'!E143)=0, E138, IF(CMdata=1,IMABS(L139),'CM choke'!E143)) -> 98.09474632 | F139: =IF(IF(CMdata=1,DEGREES(IMARGUMENT(L139)),'CM choke'!F143)=0, F138, IF(CMdata=1,DEGREES(IMARGUMENT(L139)),'CM choke'!F143)) -> 89.11817036 | G139: 1.509700027 | H139: 98.08312832 | I139: 1.509700027 | J139: 98.08312832 | K139: =IF(CMdata=1,IMDIV(1,IMSUM(IMDIV(1,IMPRODUCT(B139,'Design the AEF circuit'!$G$13*0.001)),IMDIV(1,'Design the AEF circuit'!$H$13*1000),IMPRODUCT(B139,'Design the AEF circuit'!$I$13*0.000000000001))),COMPLEX(G139,H139,"j")) -> 1.50970002705901+98.0831283205159j | L139: =IF(CMdata=1,IMDIV(1,IMSUM(IMDIV(1,IMPRODUCT(B139,'Design the AEF circuit'!$G$14*0.001)),IMDIV(1,'Design the AEF circuit'!$H$14*1000),IMPRODUCT(B139,'Design the AEF circuit'!$I$14*0.000000000001))),COMPLEX(I139,J139,"j")) -> 1.50970002705901+98.0831283205159j
A140: ='Frequency vector'!G140 -> 37688.21311 | B140: =COMPLEX(0,2*PI()*'Frequency vector'!G140,"j") -> 236802.026894699j | C140: =IF(IF(CMdata=1,IMABS(K140),'CM choke'!C144)=0, C139, IF(CMdata=1,IMABS(K140),'CM choke'!C144)) -> 101.0254186 | D140: =IF(IF(CMdata=1,DEGREES(IMARGUMENT(K140)),'CM choke'!D144)=0, D139, IF(CMdata=1,DEGREES(IMARGUMENT(K140)),'CM choke'!D144)) -> 89.10377647 | E140: =IF(IF(CMdata=1,IMABS(L140),'CM choke'!E144)=0, E139, IF(CMdata=1,IMABS(L140),'CM choke'!E144)) -> 101.0254186 | F140: =IF(IF(CMdata=1,DEGREES(IMARGUMENT(L140)),'CM choke'!F144)=0, F139, IF(CMdata=1,DEGREES(IMARGUMENT(L140)),'CM choke'!F144)) -> 89.10377647 | G140: 1.580180349 | H140: 101.0130597 | I140: 1.580180349 | J140: 101.0130597 | K140: =IF(CMdata=1,IMDIV(1,IMSUM(IMDIV(1,IMPRODUCT(B140,'Design the AEF circuit'!$G$13*0.001)),IMDIV(1,'Design the AEF circuit'!$H$13*1000),IMPRODUCT(B140,'Design the AEF circuit'!$I$13*0.000000000001))),COMPLEX(G140,H140,"j")) -> 1.5801803490167+101.013059717899j | L140: =IF(CMdata=1,IMDIV(1,IMSUM(IMDIV(1,IMPRODUCT(B140,'Design the AEF circuit'!$G$14*0.001)),IMDIV(1,'Design the AEF circuit'!$H$14*1000),IMPRODUCT(B140,'Design the AEF circuit'!$I$14*0.000000000001))),COMPLEX(I140,J140,"j")) -> 1.5801803490167+101.013059717899j
A141: ='Frequency vector'!G141 -> 38699.97612 | B141: =COMPLEX(0,2*PI()*'Frequency vector'!G141,"j") -> 243159.121330033j | C141: =IF(IF(CMdata=1,IMABS(K141),'CM choke'!C145)=0, C140, IF(CMdata=1,IMABS(K141),'CM choke'!C145)) -> 104.0465081 | D141: =IF(IF(CMdata=1,DEGREES(IMARGUMENT(K141)),'CM choke'!D145)=0, D140, IF(CMdata=1,DEGREES(IMARGUMENT(K141)),'CM choke'!D145)) -> 89.08828671 | E141: =IF(IF(CMdata=1,IMABS(L141),'CM choke'!E145)=0, E140, IF(CMdata=1,IMABS(L141),'CM choke'!E145)) -> 104.0465081 | F141: =IF(IF(CMdata=1,DEGREES(IMARGUMENT(L141)),'CM choke'!F145)=0, F140, IF(CMdata=1,DEGREES(IMARGUMENT(L141)),'CM choke'!F145)) -> 89.08828671 | G141: 1.655559655 | H141: 104.0333359 | I141: 1.655559655 | J141: 104.0333359 | K141: =IF(CMdata=1,IMDIV(1,IMSUM(IMDIV(1,IMPRODUCT(B141,'Design the AEF circuit'!$G$13*0.001)),IMDIV(1,'Design the AEF circuit'!$H$13*1000),IMPRODUCT(B141,'Design the AEF circuit'!$I$13*0.000000000001))),COMPLEX(G141,H141,"j")) -> 1.65555965544279+104.03333585438j | L141: =IF(CMdata=1,IMDIV(1,IMSUM(IMDIV(1,IMPRODUCT(B141,'Design the AEF circuit'!$G$14*0.001)),IMDIV(1,'Design the AEF circuit'!$H$14*1000),IMPRODUCT(B141,'Design the AEF circuit'!$I$14*0.000000000001))),COMPLEX(I141,J141,"j")) -> 1.65555965544279+104.03333585438j
A142: ='Frequency vector'!G142 -> 39738.90051 | B142: =COMPLEX(0,2*PI()*'Frequency vector'!G142,"j") -> 249686.875831877j | C142: =IF(IF(CMdata=1,IMABS(K142),'CM choke'!C146)=0, C141, IF(CMdata=1,IMABS(K142),'CM choke'!C146)) -> 107.1641161 | D142: =IF(IF(CMdata=1,DEGREES(IMARGUMENT(K142)),'CM choke'!D146)=0, D141, IF(CMdata=1,DEGREES(IMARGUMENT(K142)),'CM choke'!D146)) -> 89.07163638 | E142: =IF(IF(CMdata=1,IMABS(L142),'CM choke'!E146)=0, E141, IF(CMdata=1,IMABS(L142),'CM choke'!E146)) -> 107.1641161 | F142: =IF(IF(CMdata=1,DEGREES(IMARGUMENT(L142)),'CM choke'!F146)=0, F141, IF(CMdata=1,DEGREES(IMARGUMENT(L142)),'CM choke'!F146)) -> 89.07163638 | G142: 1.736304386 | H142: 107.1500492 | I142: 1.736304386 | J142: 107.1500492 | K142: =IF(CMdata=1,IMDIV(1,IMSUM(IMDIV(1,IMPRODUCT(B142,'Design the AEF circuit'!$G$13*0.001)),IMDIV(1,'Design the AEF circuit'!$H$13*1000),IMPRODUCT(B142,'Design the AEF circuit'!$I$13*0.000000000001))),COMPLEX(G142,H142,"j")) -> 1.73630438590043+107.150049153729j | L142: =IF(CMdata=1,IMDIV(1,IMSUM(IMDIV(1,IMPRODUCT(B142,'Design the AEF circuit'!$G$14*0.001)),IMDIV(1,'Design the AEF circuit'!$H$14*1000),IMPRODUCT(B142,'Design the AEF circuit'!$I$14*0.000000000001))),COMPLEX(I142,J142,"j")) -> 1.73630438590043+107.150049153729j
A143: ='Frequency vector'!G143 -> 40805.71547 | B143: =COMPLEX(0,2*PI()*'Frequency vector'!G143,"j") -> 256389.871873514j | C143: =IF(IF(CMdata=1,IMABS(K143),'CM choke'!C147)=0, C142, IF(CMdata=1,IMABS(K143),'CM choke'!C147)) -> 110.3782618 | D143: =IF(IF(CMdata=1,DEGREES(IMARGUMENT(K143)),'CM choke'!D147)=0, D142, IF(CMdata=1,DEGREES(IMARGUMENT(K143)),'CM choke'!D147)) -> 89.05354714 | E143: =IF(IF(CMdata=1,IMABS(L143),'CM choke'!E147)=0, E142, IF(CMdata=1,IMABS(L143),'CM choke'!E147)) -> 110.3782618 | F143: =IF(IF(CMdata=1,DEGREES(IMARGUMENT(L143)),'CM choke'!F147)=0, F142, IF(CMdata=1,DEGREES(IMARGUMENT(L143)),'CM choke'!F147)) -> 89.05354714 | G143: 1.823224536 | H143: 110.3632028 | I143: 1.823224536 | J143: 110.3632028 | K143: =IF(CMdata=1,IMDIV(1,IMSUM(IMDIV(1,IMPRODUCT(B143,'Design the AEF circuit'!$G$13*0.001)),IMDIV(1,'Design the AEF circuit'!$H$13*1000),IMPRODUCT(B143,'Design the AEF circuit'!$I$13*0.000000000001))),COMPLEX(G143,H143,"j")) -> 1.82322453567658+110.363202821979j | L143: =IF(CMdata=1,IMDIV(1,IMSUM(IMDIV(1,IMPRODUCT(B143,'Design the AEF circuit'!$G$14*0.001)),IMDIV(1,'Design the AEF circuit'!$H$14*1000),IMPRODUCT(B143,'Design the AEF circuit'!$I$14*0.000000000001))),COMPLEX(I143,J143,"j")) -> 1.82322453567658+110.363202821979j
A144: ='Frequency vector'!G144 -> 41901.16972 | B144: =COMPLEX(0,2*PI()*'Frequency vector'!G144,"j") -> 263272.81392066j | C144: =IF(IF(CMdata=1,IMABS(K144),'CM choke'!C148)=0, C143, IF(CMdata=1,IMABS(K144),'CM choke'!C148)) -> 113.6976983 | D144: =IF(IF(CMdata=1,DEGREES(IMARGUMENT(K144)),'CM choke'!D148)=0, D143, IF(CMdata=1,DEGREES(IMARGUMENT(K144)),'CM choke'!D148)) -> 89.03475853 | E144: =IF(IF(CMdata=1,IMABS(L144),'CM choke'!E148)=0, E143, IF(CMdata=1,IMABS(L144),'CM choke'!E148)) -> 113.6976983 | F144: =IF(IF(CMdata=1,DEGREES(IMARGUMENT(L144)),'CM choke'!F148)=0, F143, IF(CMdata=1,DEGREES(IMARGUMENT(L144)),'CM choke'!F148)) -> 89.03475853 | G144: 1.915333796 | H144: 113.6815645 | I144: 1.915333796 | J144: 113.6815645 | K144: =IF(CMdata=1,IMDIV(1,IMSUM(IMDIV(1,IMPRODUCT(B144,'Design the AEF circuit'!$G$13*0.001)),IMDIV(1,'Design the AEF circuit'!$H$13*1000),IMPRODUCT(B144,'Design the AEF circuit'!$I$13*0.000000000001))),COMPLEX(G144,H144,"j")) -> 1.91533379635214+113.681564453216j | L144: =IF(CMdata=1,IMDIV(1,IMSUM(IMDIV(1,IMPRODUCT(B144,'Design the AEF circuit'!$G$14*0.001)),IMDIV(1,'Design the AEF circuit'!$H$14*1000),IMPRODUCT(B144,'Design the AEF circuit'!$I$14*0.000000000001))),COMPLEX(I144,J144,"j")) -> 1.91533379635214+113.681564453216j
A145: ='Frequency vector'!G145 -> 43026.0321 | B145: =COMPLEX(0,2*PI()*'Frequency vector'!G145,"j") -> 270340.532733278j | C145: =IF(IF(CMdata=1,IMABS(K145),'CM choke'!C149)=0, C144, IF(CMdata=1,IMABS(K145),'CM choke'!C149)) -> 117.234352 | D145: =IF(IF(CMdata=1,DEGREES(IMARGUMENT(K145)),'CM choke'!D149)=0, D144, IF(CMdata=1,DEGREES(IMARGUMENT(K145)),'CM choke'!D149)) -> 88.98544626 | E145: =IF(IF(CMdata=1,IMABS(L145),'CM choke'!E149)=0, E144, IF(CMdata=1,IMABS(L145),'CM choke'!E149)) -> 117.234352 | F145: =IF(IF(CMdata=1,DEGREES(IMARGUMENT(L145)),'CM choke'!F149)=0, F144, IF(CMdata=1,DEGREES(IMARGUMENT(L145)),'CM choke'!F149)) -> 88.98544626 | G145: 2.075795744 | H145: 117.2159732 | I145: 2.075795744 | J145: 117.2159732 | K145: =IF(CMdata=1,IMDIV(1,IMSUM(IMDIV(1,IMPRODUCT(B145,'Design the AEF circuit'!$G$13*0.001)),IMDIV(1,'Design the AEF circuit'!$H$13*1000),IMPRODUCT(B145,'Design the AEF circuit'!$I$13*0.000000000001))),COMPLEX(G145,H145,"j")) -> 2.07579574371426+117.215973167396j | L145: =IF(CMdata=1,IMDIV(1,IMSUM(IMDIV(1,IMPRODUCT(B145,'Design the AEF circuit'!$G$14*0.001)),IMDIV(1,'Design the AEF circuit'!$H$14*1000),IMPRODUCT(B145,'Design the AEF circuit'!$I$14*0.000000000001))),COMPLEX(I145,J145,"j")) -> 2.07579574371426+117.215973167396j
A146: ='Frequency vector'!G146 -> 44181.0921 | B146: =COMPLEX(0,2*PI()*'Frequency vector'!G146,"j") -> 277597.988756017j | C146: =IF(IF(CMdata=1,IMABS(K146),'CM choke'!C150)=0, C145, IF(CMdata=1,IMABS(K146),'CM choke'!C150)) -> 120.6202793 | D146: =IF(IF(CMdata=1,DEGREES(IMARGUMENT(K146)),'CM choke'!D150)=0, D145, IF(CMdata=1,DEGREES(IMARGUMENT(K146)),'CM choke'!D150)) -> 88.99576275 | E146: =IF(IF(CMdata=1,IMABS(L146),'CM choke'!E150)=0, E145, IF(CMdata=1,IMABS(L146),'CM choke'!E150)) -> 120.6202793 | F146: =IF(IF(CMdata=1,DEGREES(IMARGUMENT(L146)),'CM choke'!F150)=0, F145, IF(CMdata=1,DEGREES(IMARGUMENT(L146)),'CM choke'!F150)) -> 88.99576275 | G146: 2.114033123 | H146: 120.6017522 | I146: 2.114033123 | J146: 120.6017522 | K146: =IF(CMdata=1,IMDIV(1,IMSUM(IMDIV(1,IMPRODUCT(B146,'Design the AEF circuit'!$G$13*0.001)),IMDIV(1,'Design the AEF circuit'!$H$13*1000),IMPRODUCT(B146,'Design the AEF circuit'!$I$13*0.000000000001))),COMPLEX(G146,H146,"j")) -> 2.11403312293709+120.601752247884j | L146: =IF(CMdata=1,IMDIV(1,IMSUM(IMDIV(1,IMPRODUCT(B146,'Design the AEF circuit'!$G$14*0.001)),IMDIV(1,'Design the AEF circuit'!$H$14*1000),IMPRODUCT(B146,'Design the AEF circuit'!$I$14*0.000000000001))),COMPLEX(I146,J146,"j")) -> 2.11403312293709+120.601752247884j
A147: ='Frequency vector'!G147 -> 45367.16039 | B147: =COMPLEX(0,2*PI()*'Frequency vector'!G147,"j") -> 285050.275599683j | C147: =IF(IF(CMdata=1,IMABS(K147),'CM choke'!C151)=0, C146, IF(CMdata=1,IMABS(K147),'CM choke'!C151)) -> 124.268057 | D147: =IF(IF(CMdata=1,DEGREES(IMARGUMENT(K147)),'CM choke'!D151)=0, D146, IF(CMdata=1,DEGREES(IMARGUMENT(K147)),'CM choke'!D151)) -> 88.97424504 | E147: =IF(IF(CMdata=1,IMABS(L147),'CM choke'!E151)=0, E146, IF(CMdata=1,IMABS(L147),'CM choke'!E151)) -> 124.268057 | F147: =IF(IF(CMdata=1,DEGREES(IMARGUMENT(L147)),'CM choke'!F151)=0, F146, IF(CMdata=1,DEGREES(IMARGUMENT(L147)),'CM choke'!F151)) -> 88.97424504 | G147: 2.2246275 | H147: 124.2481429 | I147: 2.2246275 | J147: 124.2481429 | K147: =IF(CMdata=1,IMDIV(1,IMSUM(IMDIV(1,IMPRODUCT(B147,'Design the AEF circuit'!$G$13*0.001)),IMDIV(1,'Design the AEF circuit'!$H$13*1000),IMPRODUCT(B147,'Design the AEF circuit'!$I$13*0.000000000001))),COMPLEX(G147,H147,"j")) -> 2.2246274999901+124.248142893981j | L147: =IF(CMdata=1,IMDIV(1,IMSUM(IMDIV(1,IMPRODUCT(B147,'Design the AEF circuit'!$G$14*0.001)),IMDIV(1,'Design the AEF circuit'!$H$14*1000),IMPRODUCT(B147,'Design the AEF circuit'!$I$14*0.000000000001))),COMPLEX(I147,J147,"j")) -> 2.2246274999901+124.248142893981j
A148: ='Frequency vector'!G148 -> 46585.0694 | B148: =COMPLEX(0,2*PI()*'Frequency vector'!G148,"j") -> 292702.623616159j | C148: =IF(IF(CMdata=1,IMABS(K148),'CM choke'!C152)=0, C147, IF(CMdata=1,IMABS(K148),'CM choke'!C152)) -> 128.0283437 | D148: =IF(IF(CMdata=1,DEGREES(IMARGUMENT(K148)),'CM choke'!D152)=0, D147, IF(CMdata=1,DEGREES(IMARGUMENT(K148)),'CM choke'!D152)) -> 88.95120982 | E148: =IF(IF(CMdata=1,IMABS(L148),'CM choke'!E152)=0, E147, IF(CMdata=1,IMABS(L148),'CM choke'!E152)) -> 128.0283437 | F148: =IF(IF(CMdata=1,DEGREES(IMARGUMENT(L148)),'CM choke'!F152)=0, F147, IF(CMdata=1,DEGREES(IMARGUMENT(L148)),'CM choke'!F152)) -> 88.95120982 | G148: 2.343407716 | H148: 128.0068953 | I148: 2.343407716 | J148: 128.0068953 | K148: =IF(CMdata=1,IMDIV(1,IMSUM(IMDIV(1,IMPRODUCT(B148,'Design the AEF circuit'!$G$13*0.001)),IMDIV(1,'Design the AEF circuit'!$H$13*1000),IMPRODUCT(B148,'Design the AEF circuit'!$I$13*0.000000000001))),COMPLEX(G148,H148,"j")) -> 2.34340771585922+128.006895264261j | L148: =IF(CMdata=1,IMDIV(1,IMSUM(IMDIV(1,IMPRODUCT(B148,'Design the AEF circuit'!$G$14*0.001)),IMDIV(1,'Design the AEF circuit'!$H$14*1000),IMPRODUCT(B148,'Design the AEF circuit'!$I$14*0.000000000001))),COMPLEX(I148,J148,"j")) -> 2.34340771585922+128.006895264261j
A149: ='Frequency vector'!G149 -> 47835.67393 | B149: =COMPLEX(0,2*PI()*'Frequency vector'!G149,"j") -> 300560.403569306j | C149: =IF(IF(CMdata=1,IMABS(K149),'CM choke'!C153)=0, C148, IF(CMdata=1,IMABS(K149),'CM choke'!C153)) -> 131.9084018 | D149: =IF(IF(CMdata=1,DEGREES(IMARGUMENT(K149)),'CM choke'!D153)=0, D148, IF(CMdata=1,DEGREES(IMARGUMENT(K149)),'CM choke'!D153)) -> 88.92700499 | E149: =IF(IF(CMdata=1,IMABS(L149),'CM choke'!E153)=0, E148, IF(CMdata=1,IMABS(L149),'CM choke'!E153)) -> 131.9084018 | F149: =IF(IF(CMdata=1,DEGREES(IMARGUMENT(L149)),'CM choke'!F153)=0, F148, IF(CMdata=1,DEGREES(IMARGUMENT(L149)),'CM choke'!F153)) -> 88.92700499 | G149: 2.470143257 | H149: 131.8852715 | I149: 2.470143257 | J149: 131.8852715 | K149: =IF(CMdata=1,IMDIV(1,IMSUM(IMDIV(1,IMPRODUCT(B149,'Design the AEF circuit'!$G$13*0.001)),IMDIV(1,'Design the AEF circuit'!$H$13*1000),IMPRODUCT(B149,'Design the AEF circuit'!$I$13*0.000000000001))),COMPLEX(G149,H149,"j")) -> 2.47014325709561+131.885271535371j | L149: =IF(CMdata=1,IMDIV(1,IMSUM(IMDIV(1,IMPRODUCT(B149,'Design the AEF circuit'!$G$14*0.001)),IMDIV(1,'Design the AEF circuit'!$H$14*1000),IMPRODUCT(B149,'Design the AEF circuit'!$I$14*0.000000000001))),COMPLEX(I149,J149,"j")) -> 2.47014325709561+131.885271535371j
A150: ='Frequency vector'!G150 -> 49119.85169 | B150: =COMPLEX(0,2*PI()*'Frequency vector'!G150,"j") -> 308629.130404409j | C150: =IF(IF(CMdata=1,IMABS(K150),'CM choke'!C154)=0, C149, IF(CMdata=1,IMABS(K150),'CM choke'!C154)) -> 135.9109258 | D150: =IF(IF(CMdata=1,DEGREES(IMARGUMENT(K150)),'CM choke'!D154)=0, D149, IF(CMdata=1,DEGREES(IMARGUMENT(K150)),'CM choke'!D154)) -> 88.90116626 | E150: =IF(IF(CMdata=1,IMABS(L150),'CM choke'!E154)=0, E149, IF(CMdata=1,IMABS(L150),'CM choke'!E154)) -> 135.9109258 | F150: =IF(IF(CMdata=1,DEGREES(IMARGUMENT(L150)),'CM choke'!F154)=0, F149, IF(CMdata=1,DEGREES(IMARGUMENT(L150)),'CM choke'!F154)) -> 88.90116626 | G150: 2.606376206 | H150: 135.8859321 | I150: 2.606376206 | J150: 135.8859321 | K150: =IF(CMdata=1,IMDIV(1,IMSUM(IMDIV(1,IMPRODUCT(B150,'Design the AEF circuit'!$G$13*0.001)),IMDIV(1,'Design the AEF circuit'!$H$13*1000),IMPRODUCT(B150,'Design the AEF circuit'!$I$13*0.000000000001))),COMPLEX(G150,H150,"j")) -> 2.60637620576621+135.885932133893j | L150: =IF(CMdata=1,IMDIV(1,IMSUM(IMDIV(1,IMPRODUCT(B150,'Design the AEF circuit'!$G$14*0.001)),IMDIV(1,'Design the AEF circuit'!$H$14*1000),IMPRODUCT(B150,'Design the AEF circuit'!$I$14*0.000000000001))),COMPLEX(I150,J150,"j")) -> 2.60637620576621+135.885932133893j
A151: ='Frequency vector'!G151 -> 50438.50398 | B151: =COMPLEX(0,2*PI()*'Frequency vector'!G151,"j") -> 316914.467118812j | C151: =IF(IF(CMdata=1,IMABS(K151),'CM choke'!C155)=0, C150, IF(CMdata=1,IMABS(K151),'CM choke'!C155)) -> 140.0458866 | D151: =IF(IF(CMdata=1,DEGREES(IMARGUMENT(K151)),'CM choke'!D155)=0, D150, IF(CMdata=1,DEGREES(IMARGUMENT(K151)),'CM choke'!D155)) -> 88.87410492 | E151: =IF(IF(CMdata=1,IMABS(L151),'CM choke'!E155)=0, E150, IF(CMdata=1,IMABS(L151),'CM choke'!E155)) -> 140.0458866 | F151: =IF(IF(CMdata=1,DEGREES(IMARGUMENT(L151)),'CM choke'!F155)=0, F150, IF(CMdata=1,DEGREES(IMARGUMENT(L151)),'CM choke'!F155)) -> 88.87410492 | G151: 2.751805246 | H151: 140.0188484 | I151: 2.751805246 | J151: 140.0188484 | K151: =IF(CMdata=1,IMDIV(1,IMSUM(IMDIV(1,IMPRODUCT(B151,'Design the AEF circuit'!$G$13*0.001)),IMDIV(1,'Design the AEF circuit'!$H$13*1000),IMPRODUCT(B151,'Design the AEF circuit'!$I$13*0.000000000001))),COMPLEX(G151,H151,"j")) -> 2.75180524553844+140.018848418732j | L151: =IF(CMdata=1,IMDIV(1,IMSUM(IMDIV(1,IMPRODUCT(B151,'Design the AEF circuit'!$G$14*0.001)),IMDIV(1,'Design the AEF circuit'!$H$14*1000),IMPRODUCT(B151,'Design the AEF circuit'!$I$14*0.000000000001))),COMPLEX(I151,J151,"j")) -> 2.75180524553844+140.018848418732j
A152: ='Frequency vector'!G152 -> 51792.5563 | B152: =COMPLEX(0,2*PI()*'Frequency vector'!G152,"j") -> 325422.228736467j | C152: =IF(IF(CMdata=1,IMABS(K152),'CM choke'!C156)=0, C151, IF(CMdata=1,IMABS(K152),'CM choke'!C156)) -> 144.3159236 | D152: =IF(IF(CMdata=1,DEGREES(IMARGUMENT(K152)),'CM choke'!D156)=0, D151, IF(CMdata=1,DEGREES(IMARGUMENT(K152)),'CM choke'!D156)) -> 88.84468906 | E152: =IF(IF(CMdata=1,IMABS(L152),'CM choke'!E156)=0, E151, IF(CMdata=1,IMABS(L152),'CM choke'!E156)) -> 144.3159236 | F152: =IF(IF(CMdata=1,DEGREES(IMARGUMENT(L152)),'CM choke'!F156)=0, F151, IF(CMdata=1,DEGREES(IMARGUMENT(L152)),'CM choke'!F156)) -> 88.84468906 | G152: 2.909786184 | H152: 144.2865862 | I152: 2.909786184 | J152: 144.2865862 | K152: =IF(CMdata=1,IMDIV(1,IMSUM(IMDIV(1,IMPRODUCT(B152,'Design the AEF circuit'!$G$13*0.001)),IMDIV(1,'Design the AEF circuit'!$H$13*1000),IMPRODUCT(B152,'Design the AEF circuit'!$I$13*0.000000000001))),COMPLEX(G152,H152,"j")) -> 2.90978618431553+144.286586217013j | L152: =IF(CMdata=1,IMDIV(1,IMSUM(IMDIV(1,IMPRODUCT(B152,'Design the AEF circuit'!$G$14*0.001)),IMDIV(1,'Design the AEF circuit'!$H$14*1000),IMPRODUCT(B152,'Design the AEF circuit'!$I$14*0.000000000001))),COMPLEX(I152,J152,"j")) -> 2.90978618431553+144.286586217013j
A153: ='Frequency vector'!G153 -> 53182.95897 | B153: =COMPLEX(0,2*PI()*'Frequency vector'!G153,"j") -> 334158.386389182j | C153: =IF(IF(CMdata=1,IMABS(K153),'CM choke'!C157)=0, C152, IF(CMdata=1,IMABS(K153),'CM choke'!C157)) -> 148.7284875 | D153: =IF(IF(CMdata=1,DEGREES(IMARGUMENT(K153)),'CM choke'!D157)=0, D152, IF(CMdata=1,DEGREES(IMARGUMENT(K153)),'CM choke'!D157)) -> 88.81306392 | E153: =IF(IF(CMdata=1,IMABS(L153),'CM choke'!E157)=0, E152, IF(CMdata=1,IMABS(L153),'CM choke'!E157)) -> 148.7284875 | F153: =IF(IF(CMdata=1,DEGREES(IMARGUMENT(L153)),'CM choke'!F157)=0, F152, IF(CMdata=1,DEGREES(IMARGUMENT(L153)),'CM choke'!F157)) -> 88.81306392 | G153: 3.080830432 | H153: 148.6965752 | I153: 3.080830432 | J153: 148.6965752 | K153: =IF(CMdata=1,IMDIV(1,IMSUM(IMDIV(1,IMPRODUCT(B153,'Design the AEF circuit'!$G$13*0.001)),IMDIV(1,'Design the AEF circuit'!$H$13*1000),IMPRODUCT(B153,'Design the AEF circuit'!$I$13*0.000000000001))),COMPLEX(G153,H153,"j")) -> 3.08083043163405+148.696575248658j | L153: =IF(CMdata=1,IMDIV(1,IMSUM(IMDIV(1,IMPRODUCT(B153,'Design the AEF circuit'!$G$14*0.001)),IMDIV(1,'Design the AEF circuit'!$H$14*1000),IMPRODUCT(B153,'Design the AEF circuit'!$I$14*0.000000000001))),COMPLEX(I153,J153,"j")) -> 3.08083043163405+148.696575248658j
A154: ='Frequency vector'!G154 -> 54610.68785 | B154: =COMPLEX(0,2*PI()*'Frequency vector'!G154,"j") -> 343129.071507429j | C154: =IF(IF(CMdata=1,IMABS(K154),'CM choke'!C158)=0, C153, IF(CMdata=1,IMABS(K154),'CM choke'!C158)) -> 153.2837843 | D154: =IF(IF(CMdata=1,DEGREES(IMARGUMENT(K154)),'CM choke'!D158)=0, D153, IF(CMdata=1,DEGREES(IMARGUMENT(K154)),'CM choke'!D158)) -> 88.77911943 | E154: =IF(IF(CMdata=1,IMABS(L154),'CM choke'!E158)=0, E153, IF(CMdata=1,IMABS(L154),'CM choke'!E158)) -> 153.2837843 | F154: =IF(IF(CMdata=1,DEGREES(IMARGUMENT(L154)),'CM choke'!F158)=0, F153, IF(CMdata=1,DEGREES(IMARGUMENT(L154)),'CM choke'!F158)) -> 88.77911943 | G154: 3.265982843 | H154: 153.2489865 | I154: 3.265982843 | J154: 153.2489865 | K154: =IF(CMdata=1,IMDIV(1,IMSUM(IMDIV(1,IMPRODUCT(B154,'Design the AEF circuit'!$G$13*0.001)),IMDIV(1,'Design the AEF circuit'!$H$13*1000),IMPRODUCT(B154,'Design the AEF circuit'!$I$13*0.000000000001))),COMPLEX(G154,H154,"j")) -> 3.26598284263096+153.24898652417j | L154: =IF(CMdata=1,IMDIV(1,IMSUM(IMDIV(1,IMPRODUCT(B154,'Design the AEF circuit'!$G$14*0.001)),IMDIV(1,'Design the AEF circuit'!$H$14*1000),IMPRODUCT(B154,'Design the AEF circuit'!$I$14*0.000000000001))),COMPLEX(I154,J154,"j")) -> 3.26598284263096+153.24898652417j
A155: ='Frequency vector'!G155 -> 56076.74498 | B155: =COMPLEX(0,2*PI()*'Frequency vector'!G155,"j") -> 352340.580123658j | C155: =IF(IF(CMdata=1,IMABS(K155),'CM choke'!C159)=0, C154, IF(CMdata=1,IMABS(K155),'CM choke'!C159)) -> 157.9949409 | D155: =IF(IF(CMdata=1,DEGREES(IMARGUMENT(K155)),'CM choke'!D159)=0, D154, IF(CMdata=1,DEGREES(IMARGUMENT(K155)),'CM choke'!D159)) -> 88.74407771 | E155: =IF(IF(CMdata=1,IMABS(L155),'CM choke'!E159)=0, E154, IF(CMdata=1,IMABS(L155),'CM choke'!E159)) -> 157.9949409 | F155: =IF(IF(CMdata=1,DEGREES(IMARGUMENT(L155)),'CM choke'!F159)=0, F154, IF(CMdata=1,DEGREES(IMARGUMENT(L155)),'CM choke'!F159)) -> 88.74407771 | G155: 3.462968466 | H155: 157.9569853 | I155: 3.462968466 | J155: 157.9569853 | K155: =IF(CMdata=1,IMDIV(1,IMSUM(IMDIV(1,IMPRODUCT(B155,'Design the AEF circuit'!$G$13*0.001)),IMDIV(1,'Design the AEF circuit'!$H$13*1000),IMPRODUCT(B155,'Design the AEF circuit'!$I$13*0.000000000001))),COMPLEX(G155,H155,"j")) -> 3.46296846629543+157.956985268054j | L155: =IF(CMdata=1,IMDIV(1,IMSUM(IMDIV(1,IMPRODUCT(B155,'Design the AEF circuit'!$G$14*0.001)),IMDIV(1,'Design the AEF circuit'!$H$14*1000),IMPRODUCT(B155,'Design the AEF circuit'!$I$14*0.000000000001))),COMPLEX(I155,J155,"j")) -> 3.46296846629543+157.956985268054j
A156: ='Frequency vector'!G156 -> 57582.1593 | B156: =COMPLEX(0,2*PI()*'Frequency vector'!G156,"j") -> 361799.377291143j | C156: =IF(IF(CMdata=1,IMABS(K156),'CM choke'!C160)=0, C155, IF(CMdata=1,IMABS(K156),'CM choke'!C160)) -> 162.8631685 | D156: =IF(IF(CMdata=1,DEGREES(IMARGUMENT(K156)),'CM choke'!D160)=0, D155, IF(CMdata=1,DEGREES(IMARGUMENT(K156)),'CM choke'!D160)) -> 88.70588257 | E156: =IF(IF(CMdata=1,IMABS(L156),'CM choke'!E160)=0, E155, IF(CMdata=1,IMABS(L156),'CM choke'!E160)) -> 162.8631685 | F156: =IF(IF(CMdata=1,DEGREES(IMARGUMENT(L156)),'CM choke'!F160)=0, F155, IF(CMdata=1,DEGREES(IMARGUMENT(L156)),'CM choke'!F160)) -> 88.70588257 | G156: 3.678214106 | H156: 162.8216276 | I156: 3.678214106 | J156: 162.8216276 | K156: =IF(CMdata=1,IMDIV(1,IMSUM(IMDIV(1,IMPRODUCT(B156,'Design the AEF circuit'!$G$13*0.001)),IMDIV(1,'Design the AEF circuit'!$H$13*1000),IMPRODUCT(B156,'Design the AEF circuit'!$I$13*0.000000000001))),COMPLEX(G156,H156,"j")) -> 3.67821410594336+162.821627555236j | L156: =IF(CMdata=1,IMDIV(1,IMSUM(IMDIV(1,IMPRODUCT(B156,'Design the AEF circuit'!$G$14*0.001)),IMDIV(1,'Design the AEF circuit'!$H$14*1000),IMPRODUCT(B156,'Design the AEF circuit'!$I$14*0.000000000001))),COMPLEX(I156,J156,"j")) -> 3.67821410594336+162.821627555236j
A157: ='Frequency vector'!G157 -> 59127.98739 | B157: =COMPLEX(0,2*PI()*'Frequency vector'!G157,"j") -> 371512.101621444j | C157: =IF(IF(CMdata=1,IMABS(K157),'CM choke'!C161)=0, C156, IF(CMdata=1,IMABS(K157),'CM choke'!C161)) -> 167.8968362 | D157: =IF(IF(CMdata=1,DEGREES(IMARGUMENT(K157)),'CM choke'!D161)=0, D156, IF(CMdata=1,DEGREES(IMARGUMENT(K157)),'CM choke'!D161)) -> 88.66520522 | E157: =IF(IF(CMdata=1,IMABS(L157),'CM choke'!E161)=0, E156, IF(CMdata=1,IMABS(L157),'CM choke'!E161)) -> 167.8968362 | F157: =IF(IF(CMdata=1,DEGREES(IMARGUMENT(L157)),'CM choke'!F161)=0, F156, IF(CMdata=1,DEGREES(IMARGUMENT(L157)),'CM choke'!F161)) -> 88.66520522 | G157: 3.911065536 | H157: 167.8512769 | I157: 3.911065536 | J157: 167.8512769 | K157: =IF(CMdata=1,IMDIV(1,IMSUM(IMDIV(1,IMPRODUCT(B157,'Design the AEF circuit'!$G$13*0.001)),IMDIV(1,'Design the AEF circuit'!$H$13*1000),IMPRODUCT(B157,'Design the AEF circuit'!$I$13*0.000000000001))),COMPLEX(G157,H157,"j")) -> 3.91106553590383+167.851276914815j | L157: =IF(CMdata=1,IMDIV(1,IMSUM(IMDIV(1,IMPRODUCT(B157,'Design the AEF circuit'!$G$14*0.001)),IMDIV(1,'Design the AEF circuit'!$H$14*1000),IMPRODUCT(B157,'Design the AEF circuit'!$I$14*0.000000000001))),COMPLEX(I157,J157,"j")) -> 3.91106553590383+167.851276914815j
A158: ='Frequency vector'!G158 -> 60715.31417 | B158: =COMPLEX(0,2*PI()*'Frequency vector'!G158,"j") -> 381485.569943685j | C158: =IF(IF(CMdata=1,IMABS(K158),'CM choke'!C162)=0, C157, IF(CMdata=1,IMABS(K158),'CM choke'!C162)) -> 173.0970462 | D158: =IF(IF(CMdata=1,DEGREES(IMARGUMENT(K158)),'CM choke'!D162)=0, D157, IF(CMdata=1,DEGREES(IMARGUMENT(K158)),'CM choke'!D162)) -> 88.61894017 | E158: =IF(IF(CMdata=1,IMABS(L158),'CM choke'!E162)=0, E157, IF(CMdata=1,IMABS(L158),'CM choke'!E162)) -> 173.0970462 | F158: =IF(IF(CMdata=1,DEGREES(IMARGUMENT(L158)),'CM choke'!F162)=0, F157, IF(CMdata=1,DEGREES(IMARGUMENT(L158)),'CM choke'!F162)) -> 88.61894017 | G158: 4.171934315 | H158: 173.0467636 | I158: 4.171934315 | J158: 173.0467636 | K158: =IF(CMdata=1,IMDIV(1,IMSUM(IMDIV(1,IMPRODUCT(B158,'Design the AEF circuit'!$G$13*0.001)),IMDIV(1,'Design the AEF circuit'!$H$13*1000),IMPRODUCT(B158,'Design the AEF circuit'!$I$13*0.000000000001))),COMPLEX(G158,H158,"j")) -> 4.17193431460789+173.046763568214j | L158: =IF(CMdata=1,IMDIV(1,IMSUM(IMDIV(1,IMPRODUCT(B158,'Design the AEF circuit'!$G$14*0.001)),IMDIV(1,'Design the AEF circuit'!$H$14*1000),IMPRODUCT(B158,'Design the AEF circuit'!$I$14*0.000000000001))),COMPLEX(I158,J158,"j")) -> 4.17193431460789+173.046763568214j
A159: ='Frequency vector'!G159 -> 62345.25371 | B159: =COMPLEX(0,2*PI()*'Frequency vector'!G159,"j") -> 391726.782088915j | C159: =IF(IF(CMdata=1,IMABS(K159),'CM choke'!C163)=0, C158, IF(CMdata=1,IMABS(K159),'CM choke'!C163)) -> 178.4824311 | D159: =IF(IF(CMdata=1,DEGREES(IMARGUMENT(K159)),'CM choke'!D163)=0, D158, IF(CMdata=1,DEGREES(IMARGUMENT(K159)),'CM choke'!D163)) -> 88.56956627 | E159: =IF(IF(CMdata=1,IMABS(L159),'CM choke'!E163)=0, E158, IF(CMdata=1,IMABS(L159),'CM choke'!E163)) -> 178.4824311 | F159: =IF(IF(CMdata=1,DEGREES(IMARGUMENT(L159)),'CM choke'!F163)=0, F158, IF(CMdata=1,DEGREES(IMARGUMENT(L159)),'CM choke'!F163)) -> 88.56956627 | G159: 4.455489945 | H159: 178.4268108 | I159: 4.455489945 | J159: 178.4268108 | K159: =IF(CMdata=1,IMDIV(1,IMSUM(IMDIV(1,IMPRODUCT(B159,'Design the AEF circuit'!$G$13*0.001)),IMDIV(1,'Design the AEF circuit'!$H$13*1000),IMPRODUCT(B159,'Design the AEF circuit'!$I$13*0.000000000001))),COMPLEX(G159,H159,"j")) -> 4.45548994537928+178.426810808685j | L159: =IF(CMdata=1,IMDIV(1,IMSUM(IMDIV(1,IMPRODUCT(B159,'Design the AEF circuit'!$G$14*0.001)),IMDIV(1,'Design the AEF circuit'!$H$14*1000),IMPRODUCT(B159,'Design the AEF circuit'!$I$14*0.000000000001))),COMPLEX(I159,J159,"j")) -> 4.45548994537928+178.426810808685j
A160: ='Frequency vector'!G160 -> 64018.94997 | B160: =COMPLEX(0,2*PI()*'Frequency vector'!G160,"j") -> 402242.925802905j | C160: =IF(IF(CMdata=1,IMABS(K160),'CM choke'!C164)=0, C159, IF(CMdata=1,IMABS(K160),'CM choke'!C164)) -> 184.0521194 | D160: =IF(IF(CMdata=1,DEGREES(IMARGUMENT(K160)),'CM choke'!D164)=0, D159, IF(CMdata=1,DEGREES(IMARGUMENT(K160)),'CM choke'!D164)) -> 88.51675809 | E160: =IF(IF(CMdata=1,IMABS(L160),'CM choke'!E164)=0, E159, IF(CMdata=1,IMABS(L160),'CM choke'!E164)) -> 184.0521194 | F160: =IF(IF(CMdata=1,DEGREES(IMARGUMENT(L160)),'CM choke'!F164)=0, F159, IF(CMdata=1,DEGREES(IMARGUMENT(L160)),'CM choke'!F164)) -> 88.51675809 | G160: 4.764108782 | H160: 183.9904506 | I160: 4.764108782 | J160: 183.9904506 | K160: =IF(CMdata=1,IMDIV(1,IMSUM(IMDIV(1,IMPRODUCT(B160,'Design the AEF circuit'!$G$13*0.001)),IMDIV(1,'Design the AEF circuit'!$H$13*1000),IMPRODUCT(B160,'Design the AEF circuit'!$I$13*0.000000000001))),COMPLEX(G160,H160,"j")) -> 4.76410878167591+183.990450616315j | L160: =IF(CMdata=1,IMDIV(1,IMSUM(IMDIV(1,IMPRODUCT(B160,'Design the AEF circuit'!$G$14*0.001)),IMDIV(1,'Design the AEF circuit'!$H$14*1000),IMPRODUCT(B160,'Design the AEF circuit'!$I$14*0.000000000001))),COMPLEX(I160,J160,"j")) -> 4.76410878167591+183.990450616315j
A161: ='Frequency vector'!G161 -> 65737.57761 | B161: =COMPLEX(0,2*PI()*'Frequency vector'!G161,"j") -> 413041.38179083j | C161: =IF(IF(CMdata=1,IMABS(K161),'CM choke'!C165)=0, C160, IF(CMdata=1,IMABS(K161),'CM choke'!C165)) -> 189.8196227 | D161: =IF(IF(CMdata=1,DEGREES(IMARGUMENT(K161)),'CM choke'!D165)=0, D160, IF(CMdata=1,DEGREES(IMARGUMENT(K161)),'CM choke'!D165)) -> 88.45940503 | E161: =IF(IF(CMdata=1,IMABS(L161),'CM choke'!E165)=0, E160, IF(CMdata=1,IMABS(L161),'CM choke'!E165)) -> 189.8196227 | F161: =IF(IF(CMdata=1,DEGREES(IMARGUMENT(L161)),'CM choke'!F165)=0, F160, IF(CMdata=1,DEGREES(IMARGUMENT(L161)),'CM choke'!F165)) -> 88.45940503 | G161: 5.103341337 | H161: 189.751008 | I161: 5.103341337 | J161: 189.751008 | K161: =IF(CMdata=1,IMDIV(1,IMSUM(IMDIV(1,IMPRODUCT(B161,'Design the AEF circuit'!$G$13*0.001)),IMDIV(1,'Design the AEF circuit'!$H$13*1000),IMPRODUCT(B161,'Design the AEF circuit'!$I$13*0.000000000001))),COMPLEX(G161,H161,"j")) -> 5.10334133702399+189.751008042707j | L161: =IF(CMdata=1,IMDIV(1,IMSUM(IMDIV(1,IMPRODUCT(B161,'Design the AEF circuit'!$G$14*0.001)),IMDIV(1,'Design the AEF circuit'!$H$14*1000),IMPRODUCT(B161,'Design the AEF circuit'!$I$14*0.000000000001))),COMPLEX(I161,J161,"j")) -> 5.10334133702399+189.751008042707j
A162: ='Frequency vector'!G162 -> 67502.34287 | B162: =COMPLEX(0,2*PI()*'Frequency vector'!G162,"j") -> 424129.728897388j | C162: =IF(IF(CMdata=1,IMABS(K162),'CM choke'!C166)=0, C161, IF(CMdata=1,IMABS(K162),'CM choke'!C166)) -> 195.7862024 | D162: =IF(IF(CMdata=1,DEGREES(IMARGUMENT(K162)),'CM choke'!D166)=0, D161, IF(CMdata=1,DEGREES(IMARGUMENT(K162)),'CM choke'!D166)) -> 88.39645709 | E162: =IF(IF(CMdata=1,IMABS(L162),'CM choke'!E166)=0, E161, IF(CMdata=1,IMABS(L162),'CM choke'!E166)) -> 195.7862024 | F162: =IF(IF(CMdata=1,DEGREES(IMARGUMENT(L162)),'CM choke'!F166)=0, F161, IF(CMdata=1,DEGREES(IMARGUMENT(L162)),'CM choke'!F166)) -> 88.39645709 | G162: 5.478773424 | H162: 195.7095299 | I162: 5.478773424 | J162: 195.7095299 | K162: =IF(CMdata=1,IMDIV(1,IMSUM(IMDIV(1,IMPRODUCT(B162,'Design the AEF circuit'!$G$13*0.001)),IMDIV(1,'Design the AEF circuit'!$H$13*1000),IMPRODUCT(B162,'Design the AEF circuit'!$I$13*0.000000000001))),COMPLEX(G162,H162,"j")) -> 5.47877342390643+195.709529935683j | L162: =IF(CMdata=1,IMDIV(1,IMSUM(IMDIV(1,IMPRODUCT(B162,'Design the AEF circuit'!$G$14*0.001)),IMDIV(1,'Design the AEF circuit'!$H$14*1000),IMPRODUCT(B162,'Design the AEF circuit'!$I$14*0.000000000001))),COMPLEX(I162,J162,"j")) -> 5.47877342390643+195.709529935683j
A163: ='Frequency vector'!G163 -> 69314.48432 | B163: =COMPLEX(0,2*PI()*'Frequency vector'!G163,"j") -> 435515.749425972j | C163: =IF(IF(CMdata=1,IMABS(K163),'CM choke'!C167)=0, C162, IF(CMdata=1,IMABS(K163),'CM choke'!C167)) -> 201.9657311 | D163: =IF(IF(CMdata=1,DEGREES(IMARGUMENT(K163)),'CM choke'!D167)=0, D162, IF(CMdata=1,DEGREES(IMARGUMENT(K163)),'CM choke'!D167)) -> 88.32726313 | E163: =IF(IF(CMdata=1,IMABS(L163),'CM choke'!E167)=0, E162, IF(CMdata=1,IMABS(L163),'CM choke'!E167)) -> 201.9657311 | F163: =IF(IF(CMdata=1,DEGREES(IMARGUMENT(L163)),'CM choke'!F167)=0, F162, IF(CMdata=1,DEGREES(IMARGUMENT(L163)),'CM choke'!F167)) -> 88.32726313 | G163: 5.895504671 | H163: 201.879666 | I163: 5.895504671 | J163: 201.879666 | K163: =IF(CMdata=1,IMDIV(1,IMSUM(IMDIV(1,IMPRODUCT(B163,'Design the AEF circuit'!$G$13*0.001)),IMDIV(1,'Design the AEF circuit'!$H$13*1000),IMPRODUCT(B163,'Design the AEF circuit'!$I$13*0.000000000001))),COMPLEX(G163,H163,"j")) -> 5.89550467124055+201.879666009431j | L163: =IF(CMdata=1,IMDIV(1,IMSUM(IMDIV(1,IMPRODUCT(B163,'Design the AEF circuit'!$G$14*0.001)),IMDIV(1,'Design the AEF circuit'!$H$14*1000),IMPRODUCT(B163,'Design the AEF circuit'!$I$14*0.000000000001))),COMPLEX(I163,J163,"j")) -> 5.89550467124055+201.879666009431j
A164: ='Frequency vector'!G164 -> 71175.2738 | B164: =COMPLEX(0,2*PI()*'Frequency vector'!G164,"j") -> 447207.43460064j | C164: =IF(IF(CMdata=1,IMABS(K164),'CM choke'!C168)=0, C163, IF(CMdata=1,IMABS(K164),'CM choke'!C168)) -> 208.365013 | D164: =IF(IF(CMdata=1,DEGREES(IMARGUMENT(K164)),'CM choke'!D168)=0, D163, IF(CMdata=1,DEGREES(IMARGUMENT(K164)),'CM choke'!D168)) -> 88.25207291 | E164: =IF(IF(CMdata=1,IMABS(L164),'CM choke'!E168)=0, E163, IF(CMdata=1,IMABS(L164),'CM choke'!E168)) -> 208.365013 | F164: =IF(IF(CMdata=1,DEGREES(IMARGUMENT(L164)),'CM choke'!F168)=0, F163, IF(CMdata=1,DEGREES(IMARGUMENT(L164)),'CM choke'!F168)) -> 88.25207291 | G164: 6.35562274 | H164: 208.2680597 | I164: 6.35562274 | J164: 208.2680597 | K164: =IF(CMdata=1,IMDIV(1,IMSUM(IMDIV(1,IMPRODUCT(B164,'Design the AEF circuit'!$G$13*0.001)),IMDIV(1,'Design the AEF circuit'!$H$13*1000),IMPRODUCT(B164,'Design the AEF circuit'!$I$13*0.000000000001))),COMPLEX(G164,H164,"j")) -> 6.35562273976361+208.26805974112j | L164: =IF(CMdata=1,IMDIV(1,IMSUM(IMDIV(1,IMPRODUCT(B164,'Design the AEF circuit'!$G$14*0.001)),IMDIV(1,'Design the AEF circuit'!$H$14*1000),IMPRODUCT(B164,'Design the AEF circuit'!$I$14*0.000000000001))),COMPLEX(I164,J164,"j")) -> 6.35562273976361+208.26805974112j
A165: ='Frequency vector'!G165 -> 73086.01732 | B165: =COMPLEX(0,2*PI()*'Frequency vector'!G165,"j") -> 459212.990174722j | C165: =IF(IF(CMdata=1,IMABS(K165),'CM choke'!C169)=0, C164, IF(CMdata=1,IMABS(K165),'CM choke'!C169)) -> 214.9894766 | D165: =IF(IF(CMdata=1,DEGREES(IMARGUMENT(K165)),'CM choke'!D169)=0, D164, IF(CMdata=1,DEGREES(IMARGUMENT(K165)),'CM choke'!D169)) -> 88.17081616 | E165: =IF(IF(CMdata=1,IMABS(L165),'CM choke'!E169)=0, E164, IF(CMdata=1,IMABS(L165),'CM choke'!E169)) -> 214.9894766 | F165: =IF(IF(CMdata=1,DEGREES(IMARGUMENT(L165)),'CM choke'!F169)=0, F164, IF(CMdata=1,DEGREES(IMARGUMENT(L165)),'CM choke'!F169)) -> 88.17081616 | G165: 6.862433517 | H165: 214.8799247 | I165: 6.862433517 | J165: 214.8799247 | K165: =IF(CMdata=1,IMDIV(1,IMSUM(IMDIV(1,IMPRODUCT(B165,'Design the AEF circuit'!$G$13*0.001)),IMDIV(1,'Design the AEF circuit'!$H$13*1000),IMPRODUCT(B165,'Design the AEF circuit'!$I$13*0.000000000001))),COMPLEX(G165,H165,"j")) -> 6.86243351674137+214.879924691957j | L165: =IF(CMdata=1,IMDIV(1,IMSUM(IMDIV(1,IMPRODUCT(B165,'Design the AEF circuit'!$G$14*0.001)),IMDIV(1,'Design the AEF circuit'!$H$14*1000),IMPRODUCT(B165,'Design the AEF circuit'!$I$14*0.000000000001))),COMPLEX(I165,J165,"j")) -> 6.86243351674137+214.879924691957j
A166: ='Frequency vector'!G166 -> 75048.0559 | B166: =COMPLEX(0,2*PI()*'Frequency vector'!G166,"j") -> 471540.842189986j | C166: =IF(IF(CMdata=1,IMABS(K166),'CM choke'!C170)=0, C165, IF(CMdata=1,IMABS(K166),'CM choke'!C170)) -> 221.8501423 | D166: =IF(IF(CMdata=1,DEGREES(IMARGUMENT(K166)),'CM choke'!D170)=0, D165, IF(CMdata=1,DEGREES(IMARGUMENT(K166)),'CM choke'!D170)) -> 88.08109549 | E166: =IF(IF(CMdata=1,IMABS(L166),'CM choke'!E170)=0, E165, IF(CMdata=1,IMABS(L166),'CM choke'!E170)) -> 221.8501423 | F166: =IF(IF(CMdata=1,DEGREES(IMARGUMENT(L166)),'CM choke'!F170)=0, F165, IF(CMdata=1,DEGREES(IMARGUMENT(L166)),'CM choke'!F170)) -> 88.08109549 | G166: 7.428638938 | H166: 221.7257337 | I166: 7.428638938 | J166: 221.7257337 | K166: =IF(CMdata=1,IMDIV(1,IMSUM(IMDIV(1,IMPRODUCT(B166,'Design the AEF circuit'!$G$13*0.001)),IMDIV(1,'Design the AEF circuit'!$H$13*1000),IMPRODUCT(B166,'Design the AEF circuit'!$I$13*0.000000000001))),COMPLEX(G166,H166,"j")) -> 7.42863893846922+221.725733683715j | L166: =IF(CMdata=1,IMDIV(1,IMSUM(IMDIV(1,IMPRODUCT(B166,'Design the AEF circuit'!$G$14*0.001)),IMDIV(1,'Design the AEF circuit'!$H$14*1000),IMPRODUCT(B166,'Design the AEF circuit'!$I$14*0.000000000001))),COMPLEX(I166,J166,"j")) -> 7.42863893846922+221.725733683715j
A167: ='Frequency vector'!G167 -> 77062.76661 | B167: =COMPLEX(0,2*PI()*'Frequency vector'!G167,"j") -> 484199.642890418j | C167: =IF(IF(CMdata=1,IMABS(K167),'CM choke'!C171)=0, C166, IF(CMdata=1,IMABS(K167),'CM choke'!C171)) -> 228.9619862 | D167: =IF(IF(CMdata=1,DEGREES(IMARGUMENT(K167)),'CM choke'!D171)=0, D166, IF(CMdata=1,DEGREES(IMARGUMENT(K167)),'CM choke'!D171)) -> 87.98399955 | E167: =IF(IF(CMdata=1,IMABS(L167),'CM choke'!E171)=0, E166, IF(CMdata=1,IMABS(L167),'CM choke'!E171)) -> 228.9619862 | F167: =IF(IF(CMdata=1,DEGREES(IMARGUMENT(L167)),'CM choke'!F171)=0, F166, IF(CMdata=1,DEGREES(IMARGUMENT(L167)),'CM choke'!F171)) -> 87.98399955 | G167: 8.054558862 | H167: 228.8202684 | I167: 8.054558862 | J167: 228.8202684 | K167: =IF(CMdata=1,IMDIV(1,IMSUM(IMDIV(1,IMPRODUCT(B167,'Design the AEF circuit'!$G$13*0.001)),IMDIV(1,'Design the AEF circuit'!$H$13*1000),IMPRODUCT(B167,'Design the AEF circuit'!$I$13*0.000000000001))),COMPLEX(G167,H167,"j")) -> 8.05455886172291+228.82026839459j | L167: =IF(CMdata=1,IMDIV(1,IMSUM(IMDIV(1,IMPRODUCT(B167,'Design the AEF circuit'!$G$14*0.001)),IMDIV(1,'Design the AEF circuit'!$H$14*1000),IMPRODUCT(B167,'Design the AEF circuit'!$I$14*0.000000000001))),COMPLEX(I167,J167,"j")) -> 8.05455886172291+228.82026839459j
A168: ='Frequency vector'!G168 -> 79131.56345 | B168: =COMPLEX(0,2*PI()*'Frequency vector'!G168,"j") -> 497198.276794756j | C168: =IF(IF(CMdata=1,IMABS(K168),'CM choke'!C172)=0, C167, IF(CMdata=1,IMABS(K168),'CM choke'!C172)) -> 236.3266443 | D168: =IF(IF(CMdata=1,DEGREES(IMARGUMENT(K168)),'CM choke'!D172)=0, D167, IF(CMdata=1,DEGREES(IMARGUMENT(K168)),'CM choke'!D172)) -> 87.8758365 | E168: =IF(IF(CMdata=1,IMABS(L168),'CM choke'!E172)=0, E167, IF(CMdata=1,IMABS(L168),'CM choke'!E172)) -> 236.3266443 | F168: =IF(IF(CMdata=1,DEGREES(IMARGUMENT(L168)),'CM choke'!F172)=0, F167, IF(CMdata=1,DEGREES(IMARGUMENT(L168)),'CM choke'!F172)) -> 87.8758365 | G168: 8.759483676 | H168: 236.1642527 | I168: 8.759483676 | J168: 236.1642527 | K168: =IF(CMdata=1,IMDIV(1,IMSUM(IMDIV(1,IMPRODUCT(B168,'Design the AEF circuit'!$G$13*0.001)),IMDIV(1,'Design the AEF circuit'!$H$13*1000),IMPRODUCT(B168,'Design the AEF circuit'!$I$13*0.000000000001))),COMPLEX(G168,H168,"j")) -> 8.75948367603882+236.164252695778j | L168: =IF(CMdata=1,IMDIV(1,IMSUM(IMDIV(1,IMPRODUCT(B168,'Design the AEF circuit'!$G$14*0.001)),IMDIV(1,'Design the AEF circuit'!$H$14*1000),IMPRODUCT(B168,'Design the AEF circuit'!$I$14*0.000000000001))),COMPLEX(I168,J168,"j")) -> 8.75948367603882+236.164252695778j
A169: ='Frequency vector'!G169 -> 81255.8984 | B169: =COMPLEX(0,2*PI()*'Frequency vector'!G169,"j") -> 510545.866932044j | C169: =IF(IF(CMdata=1,IMABS(K169),'CM choke'!C173)=0, C168, IF(CMdata=1,IMABS(K169),'CM choke'!C173)) -> 243.9605564 | D169: =IF(IF(CMdata=1,DEGREES(IMARGUMENT(K169)),'CM choke'!D173)=0, D168, IF(CMdata=1,DEGREES(IMARGUMENT(K169)),'CM choke'!D173)) -> 87.75810253 | E169: =IF(IF(CMdata=1,IMABS(L169),'CM choke'!E173)=0, E168, IF(CMdata=1,IMABS(L169),'CM choke'!E173)) -> 243.9605564 | F169: =IF(IF(CMdata=1,DEGREES(IMARGUMENT(L169)),'CM choke'!F173)=0, F168, IF(CMdata=1,DEGREES(IMARGUMENT(L169)),'CM choke'!F173)) -> 87.75810253 | G169: 9.543373121 | H169: 243.7738237 | I169: 9.543373121 | J169: 243.7738237 | K169: =IF(CMdata=1,IMDIV(1,IMSUM(IMDIV(1,IMPRODUCT(B169,'Design the AEF circuit'!$G$13*0.001)),IMDIV(1,'Design the AEF circuit'!$H$13*1000),IMPRODUCT(B169,'Design the AEF circuit'!$I$13*0.000000000001))),COMPLEX(G169,H169,"j")) -> 9.54337312111546+243.773823651627j | L169: =IF(CMdata=1,IMDIV(1,IMSUM(IMDIV(1,IMPRODUCT(B169,'Design the AEF circuit'!$G$14*0.001)),IMDIV(1,'Design the AEF circuit'!$H$14*1000),IMPRODUCT(B169,'Design the AEF circuit'!$I$14*0.000000000001))),COMPLEX(I169,J169,"j")) -> 9.54337312111546+243.773823651627j
A170: ='Frequency vector'!G170 -> 83437.26241 | B170: =COMPLEX(0,2*PI()*'Frequency vector'!G170,"j") -> 524251.781244592j | C170: =IF(IF(CMdata=1,IMABS(K170),'CM choke'!C174)=0, C169, IF(CMdata=1,IMABS(K170),'CM choke'!C174)) -> 251.8661327 | D170: =IF(IF(CMdata=1,DEGREES(IMARGUMENT(K170)),'CM choke'!D174)=0, D169, IF(CMdata=1,DEGREES(IMARGUMENT(K170)),'CM choke'!D174)) -> 87.62927696 | E170: =IF(IF(CMdata=1,IMABS(L170),'CM choke'!E174)=0, E169, IF(CMdata=1,IMABS(L170),'CM choke'!E174)) -> 251.8661327 | F170: =IF(IF(CMdata=1,DEGREES(IMARGUMENT(L170)),'CM choke'!F174)=0, F169, IF(CMdata=1,DEGREES(IMARGUMENT(L170)),'CM choke'!F174)) -> 87.62927696 | G170: 10.4184721 | H170: 251.6505598 | I170: 10.4184721 | J170: 251.6505598 | K170: =IF(CMdata=1,IMDIV(1,IMSUM(IMDIV(1,IMPRODUCT(B170,'Design the AEF circuit'!$G$13*0.001)),IMDIV(1,'Design the AEF circuit'!$H$13*1000),IMPRODUCT(B170,'Design the AEF circuit'!$I$13*0.000000000001))),COMPLEX(G170,H170,"j")) -> 10.4184721044239+251.650559825351j | L170: =IF(CMdata=1,IMDIV(1,IMSUM(IMDIV(1,IMPRODUCT(B170,'Design the AEF circuit'!$G$14*0.001)),IMDIV(1,'Design the AEF circuit'!$H$14*1000),IMPRODUCT(B170,'Design the AEF circuit'!$I$14*0.000000000001))),COMPLEX(I170,J170,"j")) -> 10.4184721044239+251.650559825351j
A171: ='Frequency vector'!G171 -> 85677.18647 | B171: =COMPLEX(0,2*PI()*'Frequency vector'!G171,"j") -> 538325.639162816j | C171: =IF(IF(CMdata=1,IMABS(K171),'CM choke'!C175)=0, C170, IF(CMdata=1,IMABS(K171),'CM choke'!C175)) -> 260.0509552 | D171: =IF(IF(CMdata=1,DEGREES(IMARGUMENT(K171)),'CM choke'!D175)=0, D170, IF(CMdata=1,DEGREES(IMARGUMENT(K171)),'CM choke'!D175)) -> 87.48929402 | E171: =IF(IF(CMdata=1,IMABS(L171),'CM choke'!E175)=0, E170, IF(CMdata=1,IMABS(L171),'CM choke'!E175)) -> 260.0509552 | F171: =IF(IF(CMdata=1,DEGREES(IMARGUMENT(L171)),'CM choke'!F175)=0, F170, IF(CMdata=1,DEGREES(IMARGUMENT(L171)),'CM choke'!F175)) -> 87.48929402 | G171: 11.39180861 | H171: 259.8013202 | I171: 11.39180861 | J171: 259.8013202 | K171: =IF(CMdata=1,IMDIV(1,IMSUM(IMDIV(1,IMPRODUCT(B171,'Design the AEF circuit'!$G$13*0.001)),IMDIV(1,'Design the AEF circuit'!$H$13*1000),IMPRODUCT(B171,'Design the AEF circuit'!$I$13*0.000000000001))),COMPLEX(G171,H171,"j")) -> 11.3918086130007+259.801320240136j | L171: =IF(CMdata=1,IMDIV(1,IMSUM(IMDIV(1,IMPRODUCT(B171,'Design the AEF circuit'!$G$14*0.001)),IMDIV(1,'Design the AEF circuit'!$H$14*1000),IMPRODUCT(B171,'Design the AEF circuit'!$I$14*0.000000000001))),COMPLEX(I171,J171,"j")) -> 11.3918086130007+259.801320240136j
A172: ='Frequency vector'!G172 -> 87977.24265 | B172: =COMPLEX(0,2*PI()*'Frequency vector'!G172,"j") -> 552777.318356598j | C172: =IF(IF(CMdata=1,IMABS(K172),'CM choke'!C176)=0, C171, IF(CMdata=1,IMABS(K172),'CM choke'!C176)) -> 268.5292097 | D172: =IF(IF(CMdata=1,DEGREES(IMARGUMENT(K172)),'CM choke'!D176)=0, D171, IF(CMdata=1,DEGREES(IMARGUMENT(K172)),'CM choke'!D176)) -> 87.33590928 | E172: =IF(IF(CMdata=1,IMABS(L172),'CM choke'!E176)=0, E171, IF(CMdata=1,IMABS(L172),'CM choke'!E176)) -> 268.5292097 | F172: =IF(IF(CMdata=1,DEGREES(IMARGUMENT(L172)),'CM choke'!F176)=0, F171, IF(CMdata=1,DEGREES(IMARGUMENT(L172)),'CM choke'!F176)) -> 87.33590928 | G172: 12.48134564 | H172: 268.2389839 | I172: 12.48134564 | J172: 268.2389839 | K172: =IF(CMdata=1,IMDIV(1,IMSUM(IMDIV(1,IMPRODUCT(B172,'Design the AEF circuit'!$G$13*0.001)),IMDIV(1,'Design the AEF circuit'!$H$13*1000),IMPRODUCT(B172,'Design the AEF circuit'!$I$13*0.000000000001))),COMPLEX(G172,H172,"j")) -> 12.481345637524+268.238983929441j | L172: =IF(CMdata=1,IMDIV(1,IMSUM(IMDIV(1,IMPRODUCT(B172,'Design the AEF circuit'!$G$14*0.001)),IMDIV(1,'Design the AEF circuit'!$H$14*1000),IMPRODUCT(B172,'Design the AEF circuit'!$I$14*0.000000000001))),COMPLEX(I172,J172,"j")) -> 12.481345637524+268.238983929441j
A173: ='Frequency vector'!G173 -> 90339.04523 | B173: =COMPLEX(0,2*PI()*'Frequency vector'!G173,"j") -> 567616.961667869j | C173: =IF(IF(CMdata=1,IMABS(K173),'CM choke'!C177)=0, C172, IF(CMdata=1,IMABS(K173),'CM choke'!C177)) -> 277.3034351 | D173: =IF(IF(CMdata=1,DEGREES(IMARGUMENT(K173)),'CM choke'!D177)=0, D172, IF(CMdata=1,DEGREES(IMARGUMENT(K173)),'CM choke'!D177)) -> 87.1688231 | E173: =IF(IF(CMdata=1,IMABS(L173),'CM choke'!E177)=0, E172, IF(CMdata=1,IMABS(L173),'CM choke'!E177)) -> 277.3034351 | F173: =IF(IF(CMdata=1,DEGREES(IMARGUMENT(L173)),'CM choke'!F177)=0, F172, IF(CMdata=1,DEGREES(IMARGUMENT(L173)),'CM choke'!F177)) -> 87.1688231 | G173: 13.69691858 | H173: 276.9649608 | I173: 13.69691858 | J173: 276.9649608 | K173: =IF(CMdata=1,IMDIV(1,IMSUM(IMDIV(1,IMPRODUCT(B173,'Design the AEF circuit'!$G$13*0.001)),IMDIV(1,'Design the AEF circuit'!$H$13*1000),IMPRODUCT(B173,'Design the AEF circuit'!$I$13*0.000000000001))),COMPLEX(G173,H173,"j")) -> 13.6969185773044+276.964960813948j | L173: =IF(CMdata=1,IMDIV(1,IMSUM(IMDIV(1,IMPRODUCT(B173,'Design the AEF circuit'!$G$14*0.001)),IMDIV(1,'Design the AEF circuit'!$H$14*1000),IMPRODUCT(B173,'Design the AEF circuit'!$I$14*0.000000000001))),COMPLEX(I173,J173,"j")) -> 13.6969185773044+276.964960813948j
A174: ='Frequency vector'!G174 -> 92764.25185 | B174: =COMPLEX(0,2*PI()*'Frequency vector'!G174,"j") -> 582854.984229325j | C174: =IF(IF(CMdata=1,IMABS(K174),'CM choke'!C178)=0, C173, IF(CMdata=1,IMABS(K174),'CM choke'!C178)) -> 286.3896882 | D174: =IF(IF(CMdata=1,DEGREES(IMARGUMENT(K174)),'CM choke'!D178)=0, D173, IF(CMdata=1,DEGREES(IMARGUMENT(K174)),'CM choke'!D178)) -> 86.98816501 | E174: =IF(IF(CMdata=1,IMABS(L174),'CM choke'!E178)=0, E173, IF(CMdata=1,IMABS(L174),'CM choke'!E178)) -> 286.3896882 | F174: =IF(IF(CMdata=1,DEGREES(IMARGUMENT(L174)),'CM choke'!F178)=0, F173, IF(CMdata=1,DEGREES(IMARGUMENT(L174)),'CM choke'!F178)) -> 86.98816501 | G174: 15.04755331 | H174: 285.994099 | I174: 15.04755331 | J174: 285.994099 | K174: =IF(CMdata=1,IMDIV(1,IMSUM(IMDIV(1,IMPRODUCT(B174,'Design the AEF circuit'!$G$13*0.001)),IMDIV(1,'Design the AEF circuit'!$H$13*1000),IMPRODUCT(B174,'Design the AEF circuit'!$I$13*0.000000000001))),COMPLEX(G174,H174,"j")) -> 15.0475533115854+285.994098965681j | L174: =IF(CMdata=1,IMDIV(1,IMSUM(IMDIV(1,IMPRODUCT(B174,'Design the AEF circuit'!$G$14*0.001)),IMDIV(1,'Design the AEF circuit'!$H$14*1000),IMPRODUCT(B174,'Design the AEF circuit'!$I$14*0.000000000001))),COMPLEX(I174,J174,"j")) -> 15.0475533115854+285.994098965681j
A175: ='Frequency vector'!G175 -> 95254.56461 | B175: =COMPLEX(0,2*PI()*'Frequency vector'!G175,"j") -> 598502.080774231j | C175: =IF(IF(CMdata=1,IMABS(K175),'CM choke'!C179)=0, C174, IF(CMdata=1,IMABS(K175),'CM choke'!C179)) -> 295.7953717 | D175: =IF(IF(CMdata=1,DEGREES(IMARGUMENT(K175)),'CM choke'!D179)=0, D174, IF(CMdata=1,DEGREES(IMARGUMENT(K175)),'CM choke'!D179)) -> 86.79499474 | E175: =IF(IF(CMdata=1,IMABS(L175),'CM choke'!E179)=0, E174, IF(CMdata=1,IMABS(L175),'CM choke'!E179)) -> 295.7953717 | F175: =IF(IF(CMdata=1,DEGREES(IMARGUMENT(L175)),'CM choke'!F179)=0, F174, IF(CMdata=1,DEGREES(IMARGUMENT(L175)),'CM choke'!F179)) -> 86.79499474 | G175: 16.53754262 | H175: 295.3327134 | I175: 16.53754262 | J175: 295.3327134 | K175: =IF(CMdata=1,IMDIV(1,IMSUM(IMDIV(1,IMPRODUCT(B175,'Design the AEF circuit'!$G$13*0.001)),IMDIV(1,'Design the AEF circuit'!$H$13*1000),IMPRODUCT(B175,'Design the AEF circuit'!$I$13*0.000000000001))),COMPLEX(G175,H175,"j")) -> 16.5375426249745+295.332713387056j | L175: =IF(CMdata=1,IMDIV(1,IMSUM(IMDIV(1,IMPRODUCT(B175,'Design the AEF circuit'!$G$14*0.001)),IMDIV(1,'Design the AEF circuit'!$H$14*1000),IMPRODUCT(B175,'Design the AEF circuit'!$I$14*0.000000000001))),COMPLEX(I175,J175,"j")) -> 16.5375426249745+295.332713387056j
A176: ='Frequency vector'!G176 -> 97811.73133 | B176: =COMPLEX(0,2*PI()*'Frequency vector'!G176,"j") -> 614569.233142471j | C176: =IF(IF(CMdata=1,IMABS(K176),'CM choke'!C180)=0, C175, IF(CMdata=1,IMABS(K176),'CM choke'!C180)) -> 305.5221549 | D176: =IF(IF(CMdata=1,DEGREES(IMARGUMENT(K176)),'CM choke'!D180)=0, D175, IF(CMdata=1,DEGREES(IMARGUMENT(K176)),'CM choke'!D180)) -> 86.58495736 | E176: =IF(IF(CMdata=1,IMABS(L176),'CM choke'!E180)=0, E175, IF(CMdata=1,IMABS(L176),'CM choke'!E180)) -> 305.5221549 | F176: =IF(IF(CMdata=1,DEGREES(IMARGUMENT(L176)),'CM choke'!F180)=0, F175, IF(CMdata=1,DEGREES(IMARGUMENT(L176)),'CM choke'!F180)) -> 86.58495736 | G176: 18.1994821 | H176: 304.9796157 | I176: 18.1994821 | J176: 304.9796157 | K176: =IF(CMdata=1,IMDIV(1,IMSUM(IMDIV(1,IMPRODUCT(B176,'Design the AEF circuit'!$G$13*0.001)),IMDIV(1,'Design the AEF circuit'!$H$13*1000),IMPRODUCT(B176,'Design the AEF circuit'!$I$13*0.000000000001))),COMPLEX(G176,H176,"j")) -> 18.1994820994087+304.979615669362j | L176: =IF(CMdata=1,IMDIV(1,IMSUM(IMDIV(1,IMPRODUCT(B176,'Design the AEF circuit'!$G$14*0.001)),IMDIV(1,'Design the AEF circuit'!$H$14*1000),IMPRODUCT(B176,'Design the AEF circuit'!$I$14*0.000000000001))),COMPLEX(I176,J176,"j")) -> 18.1994820994087+304.979615669362j
A177: ='Frequency vector'!G177 -> 100437.5467 | B177: =COMPLEX(0,2*PI()*'Frequency vector'!G177,"j") -> 631067.717988104j | C177: =IF(IF(CMdata=1,IMABS(K177),'CM choke'!C181)=0, C176, IF(CMdata=1,IMABS(K177),'CM choke'!C181)) -> 315.6175236 | D177: =IF(IF(CMdata=1,DEGREES(IMARGUMENT(K177)),'CM choke'!D181)=0, D176, IF(CMdata=1,DEGREES(IMARGUMENT(K177)),'CM choke'!D181)) -> 86.34292425 | E177: =IF(IF(CMdata=1,IMABS(L177),'CM choke'!E181)=0, E176, IF(CMdata=1,IMABS(L177),'CM choke'!E181)) -> 315.6175236 | F177: =IF(IF(CMdata=1,DEGREES(IMARGUMENT(L177)),'CM choke'!F181)=0, F176, IF(CMdata=1,DEGREES(IMARGUMENT(L177)),'CM choke'!F181)) -> 86.34292425 | G177: 20.13156347 | H177: 314.9748266 | I177: 20.13156347 | J177: 314.9748266 | K177: =IF(CMdata=1,IMDIV(1,IMSUM(IMDIV(1,IMPRODUCT(B177,'Design the AEF circuit'!$G$13*0.001)),IMDIV(1,'Design the AEF circuit'!$H$13*1000),IMPRODUCT(B177,'Design the AEF circuit'!$I$13*0.000000000001))),COMPLEX(G177,H177,"j")) -> 20.1315634689724+314.974826561877j | L177: =IF(CMdata=1,IMDIV(1,IMSUM(IMDIV(1,IMPRODUCT(B177,'Design the AEF circuit'!$G$14*0.001)),IMDIV(1,'Design the AEF circuit'!$H$14*1000),IMPRODUCT(B177,'Design the AEF circuit'!$I$14*0.000000000001))),COMPLEX(I177,J177,"j")) -> 20.1315634689724+314.974826561877j
A178: ='Frequency vector'!G178 -> 103133.8538 | B178: =COMPLEX(0,2*PI()*'Frequency vector'!G178,"j") -> 648009.114693824j | C178: =IF(IF(CMdata=1,IMABS(K178),'CM choke'!C182)=0, C177, IF(CMdata=1,IMABS(K178),'CM choke'!C182)) -> 325.9358248 | D178: =IF(IF(CMdata=1,DEGREES(IMARGUMENT(K178)),'CM choke'!D182)=0, D177, IF(CMdata=1,DEGREES(IMARGUMENT(K178)),'CM choke'!D182)) -> 86.12494369 | E178: =IF(IF(CMdata=1,IMABS(L178),'CM choke'!E182)=0, E177, IF(CMdata=1,IMABS(L178),'CM choke'!E182)) -> 325.9358248 | F178: =IF(IF(CMdata=1,DEGREES(IMARGUMENT(L178)),'CM choke'!F182)=0, F177, IF(CMdata=1,DEGREES(IMARGUMENT(L178)),'CM choke'!F182)) -> 86.12494369 | G178: 22.02705033 | H178: 325.1906686 | I178: 22.02705033 | J178: 325.1906686 | K178: =IF(CMdata=1,IMDIV(1,IMSUM(IMDIV(1,IMPRODUCT(B178,'Design the AEF circuit'!$G$13*0.001)),IMDIV(1,'Design the AEF circuit'!$H$13*1000),IMPRODUCT(B178,'Design the AEF circuit'!$I$13*0.000000000001))),COMPLEX(G178,H178,"j")) -> 22.0270503297006+325.190668620928j | L178: =IF(CMdata=1,IMDIV(1,IMSUM(IMDIV(1,IMPRODUCT(B178,'Design the AEF circuit'!$G$14*0.001)),IMDIV(1,'Design the AEF circuit'!$H$14*1000),IMPRODUCT(B178,'Design the AEF circuit'!$I$14*0.000000000001))),COMPLEX(I178,J178,"j")) -> 22.0270503297006+325.190668620928j
A179: ='Frequency vector'!G179 -> 105902.5448 | B179: =COMPLEX(0,2*PI()*'Frequency vector'!G179,"j") -> 665405.313497887j | C179: =IF(IF(CMdata=1,IMABS(K179),'CM choke'!C183)=0, C178, IF(CMdata=1,IMABS(K179),'CM choke'!C183)) -> 336.7210203 | D179: =IF(IF(CMdata=1,DEGREES(IMARGUMENT(K179)),'CM choke'!D183)=0, D178, IF(CMdata=1,DEGREES(IMARGUMENT(K179)),'CM choke'!D183)) -> 85.86956169 | E179: =IF(IF(CMdata=1,IMABS(L179),'CM choke'!E183)=0, E178, IF(CMdata=1,IMABS(L179),'CM choke'!E183)) -> 336.7210203 | F179: =IF(IF(CMdata=1,DEGREES(IMARGUMENT(L179)),'CM choke'!F183)=0, F178, IF(CMdata=1,DEGREES(IMARGUMENT(L179)),'CM choke'!F183)) -> 85.86956169 | G179: 24.2531138 | H179: 335.8464411 | I179: 24.2531138 | J179: 335.8464411 | K179: =IF(CMdata=1,IMDIV(1,IMSUM(IMDIV(1,IMPRODUCT(B179,'Design the AEF circuit'!$G$13*0.001)),IMDIV(1,'Design the AEF circuit'!$H$13*1000),IMPRODUCT(B179,'Design the AEF circuit'!$I$13*0.000000000001))),COMPLEX(G179,H179,"j")) -> 24.2531138044976+335.846441124002j | L179: =IF(CMdata=1,IMDIV(1,IMSUM(IMDIV(1,IMPRODUCT(B179,'Design the AEF circuit'!$G$14*0.001)),IMDIV(1,'Design the AEF circuit'!$H$14*1000),IMPRODUCT(B179,'Design the AEF circuit'!$I$14*0.000000000001))),COMPLEX(I179,J179,"j")) -> 24.2531138044976+335.846441124002j
A180: ='Frequency vector'!G180 -> 108745.563 | B180: =COMPLEX(0,2*PI()*'Frequency vector'!G180,"j") -> 683268.523839243j | C180: =IF(IF(CMdata=1,IMABS(K180),'CM choke'!C184)=0, C179, IF(CMdata=1,IMABS(K180),'CM choke'!C184)) -> 347.8454823 | D180: =IF(IF(CMdata=1,DEGREES(IMARGUMENT(K180)),'CM choke'!D184)=0, D179, IF(CMdata=1,DEGREES(IMARGUMENT(K180)),'CM choke'!D184)) -> 85.60066485 | E180: =IF(IF(CMdata=1,IMABS(L180),'CM choke'!E184)=0, E179, IF(CMdata=1,IMABS(L180),'CM choke'!E184)) -> 347.8454823 | F180: =IF(IF(CMdata=1,DEGREES(IMARGUMENT(L180)),'CM choke'!F184)=0, F179, IF(CMdata=1,DEGREES(IMARGUMENT(L180)),'CM choke'!F184)) -> 85.60066485 | G180: 26.68234288 | H180: 346.8206051 | I180: 26.68234288 | J180: 346.8206051 | K180: =IF(CMdata=1,IMDIV(1,IMSUM(IMDIV(1,IMPRODUCT(B180,'Design the AEF circuit'!$G$13*0.001)),IMDIV(1,'Design the AEF circuit'!$H$13*1000),IMPRODUCT(B180,'Design the AEF circuit'!$I$13*0.000000000001))),COMPLEX(G180,H180,"j")) -> 26.6823428840761+346.820605137518j | L180: =IF(CMdata=1,IMDIV(1,IMSUM(IMDIV(1,IMPRODUCT(B180,'Design the AEF circuit'!$G$14*0.001)),IMDIV(1,'Design the AEF circuit'!$H$14*1000),IMPRODUCT(B180,'Design the AEF circuit'!$I$14*0.000000000001))),COMPLEX(I180,J180,"j")) -> 26.6823428840761+346.820605137518j
A181: ='Frequency vector'!G181 -> 111664.9038 | B181: =COMPLEX(0,2*PI()*'Frequency vector'!G181,"j") -> 701611.28292664j | C181: =IF(IF(CMdata=1,IMABS(K181),'CM choke'!C185)=0, C180, IF(CMdata=1,IMABS(K181),'CM choke'!C185)) -> 359.3376395 | D181: =IF(IF(CMdata=1,DEGREES(IMARGUMENT(K181)),'CM choke'!D185)=0, D180, IF(CMdata=1,DEGREES(IMARGUMENT(K181)),'CM choke'!D185)) -> 85.31559159 | E181: =IF(IF(CMdata=1,IMABS(L181),'CM choke'!E185)=0, E180, IF(CMdata=1,IMABS(L181),'CM choke'!E185)) -> 359.3376395 | F181: =IF(IF(CMdata=1,DEGREES(IMARGUMENT(L181)),'CM choke'!F185)=0, F180, IF(CMdata=1,DEGREES(IMARGUMENT(L181)),'CM choke'!F185)) -> 85.31559159 | G181: 29.3461334 | H181: 358.1373251 | I181: 29.3461334 | J181: 358.1373251 | K181: =IF(CMdata=1,IMDIV(1,IMSUM(IMDIV(1,IMPRODUCT(B181,'Design the AEF circuit'!$G$13*0.001)),IMDIV(1,'Design the AEF circuit'!$H$13*1000),IMPRODUCT(B181,'Design the AEF circuit'!$I$13*0.000000000001))),COMPLEX(G181,H181,"j")) -> 29.3461333960179+358.137325050845j | L181: =IF(CMdata=1,IMDIV(1,IMSUM(IMDIV(1,IMPRODUCT(B181,'Design the AEF circuit'!$G$14*0.001)),IMDIV(1,'Design the AEF circuit'!$H$14*1000),IMPRODUCT(B181,'Design the AEF circuit'!$I$14*0.000000000001))),COMPLEX(I181,J181,"j")) -> 29.3461333960179+358.137325050845j
A182: ='Frequency vector'!G182 -> 114662.6161 | B182: =COMPLEX(0,2*PI()*'Frequency vector'!G182,"j") -> 720446.464537833j | C182: =IF(IF(CMdata=1,IMABS(K182),'CM choke'!C186)=0, C181, IF(CMdata=1,IMABS(K182),'CM choke'!C186)) -> 371.2007641 | D182: =IF(IF(CMdata=1,DEGREES(IMARGUMENT(K182)),'CM choke'!D186)=0, D181, IF(CMdata=1,DEGREES(IMARGUMENT(K182)),'CM choke'!D186)) -> 85.0155246 | E182: =IF(IF(CMdata=1,IMABS(L182),'CM choke'!E186)=0, E181, IF(CMdata=1,IMABS(L182),'CM choke'!E186)) -> 371.2007641 | F182: =IF(IF(CMdata=1,DEGREES(IMARGUMENT(L182)),'CM choke'!F186)=0, F181, IF(CMdata=1,DEGREES(IMARGUMENT(L182)),'CM choke'!F186)) -> 85.0155246 | G182: 32.25208101 | H182: 369.7969856 | I182: 32.25208101 | J182: 369.7969856 | K182: =IF(CMdata=1,IMDIV(1,IMSUM(IMDIV(1,IMPRODUCT(B182,'Design the AEF circuit'!$G$13*0.001)),IMDIV(1,'Design the AEF circuit'!$H$13*1000),IMPRODUCT(B182,'Design the AEF circuit'!$I$13*0.000000000001))),COMPLEX(G182,H182,"j")) -> 32.2520810051944+369.796985622701j | L182: =IF(CMdata=1,IMDIV(1,IMSUM(IMDIV(1,IMPRODUCT(B182,'Design the AEF circuit'!$G$14*0.001)),IMDIV(1,'Design the AEF circuit'!$H$14*1000),IMPRODUCT(B182,'Design the AEF circuit'!$I$14*0.000000000001))),COMPLEX(I182,J182,"j")) -> 32.2520810051944+369.796985622701j
A183: ='Frequency vector'!G183 -> 117740.8037 | B183: =COMPLEX(0,2*PI()*'Frequency vector'!G183,"j") -> 739787.288054962j | C183: =IF(IF(CMdata=1,IMABS(K183),'CM choke'!C187)=0, C182, IF(CMdata=1,IMABS(K183),'CM choke'!C187)) -> 383.4758474 | D183: =IF(IF(CMdata=1,DEGREES(IMARGUMENT(K183)),'CM choke'!D187)=0, D182, IF(CMdata=1,DEGREES(IMARGUMENT(K183)),'CM choke'!D187)) -> 84.69818443 | E183: =IF(IF(CMdata=1,IMABS(L183),'CM choke'!E187)=0, E182, IF(CMdata=1,IMABS(L183),'CM choke'!E187)) -> 383.4758474 | F183: =IF(IF(CMdata=1,DEGREES(IMARGUMENT(L183)),'CM choke'!F187)=0, F182, IF(CMdata=1,DEGREES(IMARGUMENT(L183)),'CM choke'!F187)) -> 84.69818443 | G183: 35.43398877 | H183: 381.8352498 | I183: 35.43398877 | J183: 381.8352498 | K183: =IF(CMdata=1,IMDIV(1,IMSUM(IMDIV(1,IMPRODUCT(B183,'Design the AEF circuit'!$G$13*0.001)),IMDIV(1,'Design the AEF circuit'!$H$13*1000),IMPRODUCT(B183,'Design the AEF circuit'!$I$13*0.000000000001))),COMPLEX(G183,H183,"j")) -> 35.4339887672806+381.835249828248j | L183: =IF(CMdata=1,IMDIV(1,IMSUM(IMDIV(1,IMPRODUCT(B183,'Design the AEF circuit'!$G$14*0.001)),IMDIV(1,'Design the AEF circuit'!$H$14*1000),IMPRODUCT(B183,'Design the AEF circuit'!$I$14*0.000000000001))),COMPLEX(I183,J183,"j")) -> 35.4339887672806+381.835249828248j
A184: ='Frequency vector'!G184 -> 120901.6272 | B184: =COMPLEX(0,2*PI()*'Frequency vector'!G184,"j") -> 759647.327742525j | C184: =IF(IF(CMdata=1,IMABS(K184),'CM choke'!C188)=0, C183, IF(CMdata=1,IMABS(K184),'CM choke'!C188)) -> 396.1644857 | D184: =IF(IF(CMdata=1,DEGREES(IMARGUMENT(K184)),'CM choke'!D188)=0, D183, IF(CMdata=1,DEGREES(IMARGUMENT(K184)),'CM choke'!D188)) -> 84.36870878 | E184: =IF(IF(CMdata=1,IMABS(L184),'CM choke'!E188)=0, E183, IF(CMdata=1,IMABS(L184),'CM choke'!E188)) -> 396.1644857 | F184: =IF(IF(CMdata=1,DEGREES(IMARGUMENT(L184)),'CM choke'!F188)=0, F183, IF(CMdata=1,DEGREES(IMARGUMENT(L184)),'CM choke'!F188)) -> 84.36870878 | G184: 38.87420013 | H184: 394.2525793 | I184: 38.87420013 | J184: 394.2525793 | K184: =IF(CMdata=1,IMDIV(1,IMSUM(IMDIV(1,IMPRODUCT(B184,'Design the AEF circuit'!$G$13*0.001)),IMDIV(1,'Design the AEF circuit'!$H$13*1000),IMPRODUCT(B184,'Design the AEF circuit'!$I$13*0.000000000001))),COMPLEX(G184,H184,"j")) -> 38.8742001269908+394.252579278174j | L184: =IF(CMdata=1,IMDIV(1,IMSUM(IMDIV(1,IMPRODUCT(B184,'Design the AEF circuit'!$G$14*0.001)),IMDIV(1,'Design the AEF circuit'!$H$14*1000),IMPRODUCT(B184,'Design the AEF circuit'!$I$14*0.000000000001))),COMPLEX(I184,J184,"j")) -> 38.8742001269908+394.252579278174j
A185: ='Frequency vector'!G185 -> 124147.3049 | B185: =COMPLEX(0,2*PI()*'Frequency vector'!G185,"j") -> 780040.52227441j | C185: =IF(IF(CMdata=1,IMABS(K185),'CM choke'!C189)=0, C184, IF(CMdata=1,IMABS(K185),'CM choke'!C189)) -> 409.3076558 | D185: =IF(IF(CMdata=1,DEGREES(IMARGUMENT(K185)),'CM choke'!D189)=0, D184, IF(CMdata=1,DEGREES(IMARGUMENT(K185)),'CM choke'!D189)) -> 84.02163676 | E185: =IF(IF(CMdata=1,IMABS(L185),'CM choke'!E189)=0, E184, IF(CMdata=1,IMABS(L185),'CM choke'!E189)) -> 409.3076558 | F185: =IF(IF(CMdata=1,DEGREES(IMARGUMENT(L185)),'CM choke'!F189)=0, F184, IF(CMdata=1,DEGREES(IMARGUMENT(L185)),'CM choke'!F189)) -> 84.02163676 | G185: 42.63057599 | H185: 407.0815534 | I185: 42.63057599 | J185: 407.0815534 | K185: =IF(CMdata=1,IMDIV(1,IMSUM(IMDIV(1,IMPRODUCT(B185,'Design the AEF circuit'!$G$13*0.001)),IMDIV(1,'Design the AEF circuit'!$H$13*1000),IMPRODUCT(B185,'Design the AEF circuit'!$I$13*0.000000000001))),COMPLEX(G185,H185,"j")) -> 42.630575994798+407.081553396238j | L185: =IF(CMdata=1,IMDIV(1,IMSUM(IMDIV(1,IMPRODUCT(B185,'Design the AEF circuit'!$G$14*0.001)),IMDIV(1,'Design the AEF circuit'!$H$14*1000),IMPRODUCT(B185,'Design the AEF circuit'!$I$14*0.000000000001))),COMPLEX(I185,J185,"j")) -> 42.630575994798+407.081553396238j
A186: ='Frequency vector'!G186 -> 127480.1148 | B186: =COMPLEX(0,2*PI()*'Frequency vector'!G186,"j") -> 800981.184516673j | C186: =IF(IF(CMdata=1,IMABS(K186),'CM choke'!C190)=0, C185, IF(CMdata=1,IMABS(K186),'CM choke'!C190)) -> 422.8762386 | D186: =IF(IF(CMdata=1,DEGREES(IMARGUMENT(K186)),'CM choke'!D190)=0, D185, IF(CMdata=1,DEGREES(IMARGUMENT(K186)),'CM choke'!D190)) -> 83.65921409 | E186: =IF(IF(CMdata=1,IMABS(L186),'CM choke'!E190)=0, E185, IF(CMdata=1,IMABS(L186),'CM choke'!E190)) -> 422.8762386 | F186: =IF(IF(CMdata=1,DEGREES(IMARGUMENT(L186)),'CM choke'!F190)=0, F185, IF(CMdata=1,DEGREES(IMARGUMENT(L186)),'CM choke'!F190)) -> 83.65921409 | G186: 46.70322682 | H186: 420.2893311 | I186: 46.70322682 | J186: 420.2893311 | K186: =IF(CMdata=1,IMDIV(1,IMSUM(IMDIV(1,IMPRODUCT(B186,'Design the AEF circuit'!$G$13*0.001)),IMDIV(1,'Design the AEF circuit'!$H$13*1000),IMPRODUCT(B186,'Design the AEF circuit'!$I$13*0.000000000001))),COMPLEX(G186,H186,"j")) -> 46.7032268186073+420.289331053635j | L186: =IF(CMdata=1,IMDIV(1,IMSUM(IMDIV(1,IMPRODUCT(B186,'Design the AEF circuit'!$G$14*0.001)),IMDIV(1,'Design the AEF circuit'!$H$14*1000),IMPRODUCT(B186,'Design the AEF circuit'!$I$14*0.000000000001))),COMPLEX(I186,J186,"j")) -> 46.7032268186073+420.289331053635j
